Workbook

Sheet Resumo
A1: Ministério da Integração e do Desenvolvimento Regional
A2: Companhia de Desenvolvimento dos Vales do São Francisco e do Parnaíba
A4: PLANILHA RESUMO
A5: OBRA: | B5: Execução de manutenção e recuperação nas barragens de Jacu, Caiçara, Algodoes, Manoel Rodrigues, Murici, Riacho dos Cavalos e Alto Grande, localizadas no estado de Pernambuco. | E5: BDI (serv.): | F5: ='BDI serv'!D23 -> 0.2321 | G5: Bancos de dados:
A6: LOCAL: | B6: BARRAGENS DE PERNAMBUCO | E6: BDI (forn.): | F6: ='BDI forn'!D23 -> 0.1415 | G6: JUN/25 - SINAPI
A7: DATA BASE: | B7: 2025-07-01 | C7: Encargos sociais - Horistas: | F7: ='Encargos Sociais'!E49 -> 1.1384 | G7: MAI/25 - ORSE
A8: PRAZO: | B8: 270 dias | C8: Encargos sociais - Mensalista: | F8: ='Encargos Sociais'!F49 -> 0.7011 | G8: JAN/25 - SETOP
E9: Desconto: | F9: 0 | G9: ABR/2025 - SICRO3
G10: JAN/2025 - EMBASA
G11: 028 - SEINFRA
A12: ITEM | B12: DESCRIÇÃO | C12: UNID. | D12: QUANT. | E12: CUSTO UNITÁRIO | F12: PREÇO UNITÁRIO | G12: PREÇO TOTAL
A14: 1 | B14: BARRAGENS PERNAMBUCO | G14: =SUM(G15:G21) -> 5003311.99
A15: 1.1 | B15: Jacu | C15: unid. | D15: 1 | E15: =JACU!I89 -> 777793.77 | F15: =JACU!I91 -> 958236.65 | G15: =TRUNC(D15*F15,2) -> 958236.65
A16: 1.2 | B16: Caiçara | C16: unid. | D16: 1 | E16: =CAIÇARA!I84 -> 834131.79 | F16: =CAIÇARA!I86 -> 1027642.18 | G16: 1027642.18
A17: 1.3 | B17: Algodoes | C17: unid. | D17: 1 | E17: =ALGODOES!I89 -> 736391.25 | F17: =ALGODOES!I91 -> 907206.19 | G17: =TRUNC(D17*F17,2) -> 907206.19
A18: 1.4 | B18: Manoel Rodrigues | C18: unid. | D18: 1 | E18: ='MANOEL RODRIGUES'!I89 -> 403374.99 | F18: ='MANOEL RODRIGUES'!I91 -> 496965.51 | G18: 496965.51
A19: 1.5 | B19: Murici | C19: unid. | D19: 1 | E19: =MURICI!I90 -> 444977.31 | F19: =MURICI!I92 -> 548219.47 | G19: 548219.47
A20: 1.6 | B20: Riacho dos Cavalos | C20: unid. | D20: 1 | E20: ='RIACHO DOS CAVALOS'!I85 -> 420271.79 | F20: ='RIACHO DOS CAVALOS'!I87 -> 517782.62 | G20: 517782.62
A21: 1.7 | B21: Alto Grande | C21: unid. | D21: 1 | E21: ='ALTO GRANDE'!I74 -> 444199.95 | F21: ='ALTO GRANDE'!I76 -> 547259.37 | G21: 547259.37
B23: TOTAL (Custo): | G23: =SUMPRODUCT(D14:D22,E14:E22) -> 4061140.85
B24: BDI e Encargos Sociais: | G24: =G25-G23 -> 942171.14
B25: TOTAL GERAL COM BDI: | G25: =SUMPRODUCT(D14:D22,F14:F22) -> 5003311.99

Sheet JACU
A1: Ministério da Integração e do Desenvolvimento Regional
A2: Companhia de Desenvolvimento dos Vales do São Francisco e do Parnaíba
A4: PLANILHA ORÇAMENTÁRIA - ORÇAMENTO NÃO DESONERADO
A5: OBRA: | B5: =Resumo!B5 -> Execução de manutenção e recuperação nas barragens de Jacu, Caiçara, Algodoes, Manoel Rodrigues, Murici, Riacho dos Cavalos e Alto Grande, localizadas no estado de Pernambuco. | G5: BDI (serv.): | H5: ='BDI serv'!D23 -> 0.2321 | I5: Bancos de dados:
A6: LOCAL: | B6: =Resumo!B6 -> BARRAGENS DE PERNAMBUCO | G6: BDI (forn.): | H6: ='BDI forn'!D23 -> 0.1415 | I6: =Resumo!G6 -> JUN/25 - SINAPI
A7: DATA BASE: | B7: =Resumo!B7 -> 2025-07-01 | E7: Encargos sociais - Horistas: | H7: ='Encargos Sociais'!E49 -> 1.1384 | I7: =Resumo!G7 -> MAI/25 - ORSE
A8: PRAZO: | B8: 90 dias | E8: Encargos sociais - Mensalista: | H8: ='Encargos Sociais'!F49 -> 0.7011 | I8: =Resumo!G8 -> JAN/25 - SETOP
B9: =Resumo!B15 -> Jacu | G9: Desconto: | H9: 0 | I9: =Resumo!G9 -> ABR/2025 - SICRO3
I10: =Resumo!G10 -> JAN/2025 - EMBASA
I11: =Resumo!G11 -> 028 - SEINFRA
A12: ITEM | B12: REFERÊNCIA | D12: DESCRIÇÃO | E12: UNID. | F12: QUANT. | G12: CUSTO UNITÁRIO | H12: PREÇO UNITÁRIO | I12: PREÇO TOTAL
B13: FONTE | C13: CÓDIGO
A14: 1 | D14: ADMINISTRAÇÃO DA OBRA | I14: =SUM(I15) -> 107417.73
A15: 1.1 | D15: Administração da Obra | I15: =SUM(I16:I16) -> 107417.73
A16: 1.1.1 | B16: PRÓPRIA | C16: CPU.01 | D16: =(VLOOKUP(C16,CPU!$B$10:$C$302,2,0)) -> Administração Local | E16: mês | F16: 3 | G16: =TRUNC((1-$H$9)*(SUMIFS(CPU!$G:$G,CPU!$A:$A,JACU!$C16,CPU!$H:$H,"ss")+SUMIFS(CPU!$G:$G,CPU!$A:$A,JACU!$C16,CPU!$H:$H,"mdo")+SUMIF('Comp SINAPI PE 06-2025 Onerado'!B:B,JACU!C16,'Comp SINAPI PE 06-2025 Onerado'!E:E)+SUMIF('Ins SINAPI PE 06-2025 Onerado'!B:B,JACU!C16,'Ins SINAPI PE 06-2025 Onerado'!F:F)),2) -> 29060.88 | H16: =TRUNC(G16*(1+$H$5),2) -> 35805.91 | I16: =TRUNC(F16*H16,2) -> 107417.73
A18: 2 | D18: SERVIÇOS PRELIMINARES | I18: =SUM(I19,I21,I23) -> 30051.26
A19: 2.1 | D19: Mobilização e desmobilização | I19: =SUM(I20) -> 3697.9
A20: 2.1.1 | B20: PRÓPRIA | C20: CPU.02 | D20: =(VLOOKUP(C20,CPU!$B$10:$C$302,2,0)) -> Mobilização e desmobilização de instalação do canteiro | E20: un | F20: 1 | G20: =TRUNC((1-$H$9)*(SUMIFS(CPU!$G:$G,CPU!$A:$A,JACU!$C20,CPU!$H:$H,"ss")+SUMIFS(CPU!$G:$G,CPU!$A:$A,JACU!$C20,CPU!$H:$H,"mdo")+SUMIF('Comp SINAPI PE 06-2025 Onerado'!B:B,JACU!C20,'Comp SINAPI PE 06-2025 Onerado'!E:E)+SUMIF('Ins SINAPI PE 06-2025 Onerado'!B:B,JACU!C20,'Ins SINAPI PE 06-2025 Onerado'!F:F)),2) -> 3001.3 | H20: =TRUNC(G20*(1+$H$5),2) -> 3697.9 | I20: =TRUNC(F20*H20,2) -> 3697.9
A21: 2.2 | D21: Canteiro de obras | I21: =SUM(I22) -> 25199.98
A22: 2.2.1 | B22: PRÓPRIA | C22: CPU.03 | D22: =(VLOOKUP(C22,CPU!$B$10:$C$302,2,0)) -> Execução de canteiro de obras, inclusive, limpeza, refeitório, sanitários e central de formas | E22: m2 | F22: 28.5 | G22: =TRUNC((1-$H$9)*(SUMIFS(CPU!$G:$G,CPU!$A:$A,JACU!$C22,CPU!$H:$H,"ss")+SUMIFS(CPU!$G:$G,CPU!$A:$A,JACU!$C22,CPU!$H:$H,"mdo")+SUMIF('Comp SINAPI PE 06-2025 Onerado'!B:B,JACU!C22,'Comp SINAPI PE 06-2025 Onerado'!E:E)+SUMIF('Ins SINAPI PE 06-2025 Onerado'!B:B,JACU!C22,'Ins SINAPI PE 06-2025 Onerado'!F:F)),2) -> 717.65 | H22: =TRUNC(G22*(1+$H$5),2) -> 884.21 | I22: =TRUNC(F22*H22,2) -> 25199.98
A23: 2.3 | D23: Sinalização | I23: =SUM(I24:I24) -> 1153.38
A24: 2.3.1 | B24: SINAPI | C24: 103689 | D24: =IF(J24="ca",VLOOKUP(C24,'Comp SINAPI PE 06-2025 Onerado'!$B$11:$C$9004,2,0),VLOOKUP(C24,'Ins SINAPI PE 06-2025 Onerado'!$B$10:$C$9004,2,0)) -> FORNECIMENTO E INSTALAÇÃO DE PLACA DE OBRA COM CHAPA GALVANIZADA E ESTRUTURA DE MADEIRA. AF_03/2022_PS | E24: =IF(J24="ca",VLOOKUP(C24,'Comp SINAPI PE 06-2025 Onerado'!$B$11:$D$9004,3,0),VLOOKUP(C24,'Ins SINAPI PE 06-2025 Onerado'!$B$11:$D$9004,3,0)) -> M2 | F24: 2 | G24: =TRUNC((1-$H$9)*(SUMIFS(CPU!$G:$G,CPU!$A:$A,JACU!$C24,CPU!$H:$H,"ss")+SUMIFS(CPU!$G:$G,CPU!$A:$A,JACU!$C24,CPU!$H:$H,"mdo")+SUMIF('Comp SINAPI PE 06-2025 Onerado'!B:B,JACU!C24,'Comp SINAPI PE 06-2025 Onerado'!E:E)+SUMIF('Ins SINAPI PE 06-2025 Onerado'!B:B,JACU!C24,'Ins SINAPI PE 06-2025 Onerado'!F:F)),2) -> 468.06 | H24: =TRUNC(G24*(1+$H$5),2) -> 576.69 | I24: =TRUNC(F24*H24,2) -> 1153.38 | J24: ca
A26: 3 | D26: CORTE DA VEGETAÇÃO E REMOÇÃO DAS RAIZES | I26: =SUM(I27) -> 195677.27
A27: 3.1 | D27: Remoção da vegetação | I27: =SUM(I28:I29) -> 195677.27
A28: 3.1.1 | B28: PRÓPRIA | C28: CPU.04 | D28: =(VLOOKUP(C28,CPU!$B$10:$C$302,2,0)) -> Limpeza de vegetação | E28: =(VLOOKUP(C28,CPU!B2:D$408,3,0)) -> m2 | F28: 18671 | G28: =TRUNC((1-$H$9)*(SUMIFS(CPU!$G:$G,CPU!$A:$A,JACU!$C28,CPU!$H:$H,"ss")+SUMIFS(CPU!$G:$G,CPU!$A:$A,JACU!$C28,CPU!$H:$H,"mdo")+SUMIF('Comp SINAPI PE 06-2025 Onerado'!B:B,JACU!C28,'Comp SINAPI PE 06-2025 Onerado'!E:E)+SUMIF('Ins SINAPI PE 06-2025 Onerado'!B:B,JACU!C28,'Ins SINAPI PE 06-2025 Onerado'!F:F)),2) -> 7.85 | H28: =TRUNC(G28*(1+$H$5),2) -> 9.67 | I28: =TRUNC(F28*H28,2) -> 180548.57
A29: 3.1.2 | B29: PRÓPRIA | C29: CPU.05 | D29: =(VLOOKUP(C29,CPU!$B$10:$C$302,2,0)) -> Corte de tronco e remoção de raiz | E29: =(VLOOKUP(C29,CPU!B3:D$408,3,0)) -> un | F29: 30 | G29: =TRUNC((1-$H$9)*(SUMIFS(CPU!$G:$G,CPU!$A:$A,JACU!$C29,CPU!$H:$H,"ss")+SUMIFS(CPU!$G:$G,CPU!$A:$A,JACU!$C29,CPU!$H:$H,"mdo")+SUMIF('Comp SINAPI PE 06-2025 Onerado'!B:B,JACU!C29,'Comp SINAPI PE 06-2025 Onerado'!E:E)+SUMIF('Ins SINAPI PE 06-2025 Onerado'!B:B,JACU!C29,'Ins SINAPI PE 06-2025 Onerado'!F:F)),2) -> 409.3 | H29: =TRUNC(G29*(1+$H$5),2) -> 504.29 | I29: =TRUNC(F29*H29,2) -> 15128.7
A31: 4 | D31: RECUPERAÇÃO DO MACIÇO | I31: =SUM(I32,I34) -> 85472.22
A32: 4.1 | D32: Recomposição das Erosões (erosões locais nas ombreiras e aterro), trincas e buracos | I32: =I33 -> 84775.5
A33: 4.1.1 | B33: PRÓPRIA | C33: CPU.12 | D33: =(VLOOKUP(C33,CPU!$B$10:$C$302,2,0)) -> Recomposição das erosões, inclusive, regularização da superfície e reaterro | E33: =(VLOOKUP(C33,CPU!B4:D$408,3,0)) -> m3 | F33: 225 | G33: =TRUNC((1-$H$9)*(SUMIFS(CPU!$G:$G,CPU!$A:$A,JACU!$C33,CPU!$H:$H,"ss")+SUMIFS(CPU!$G:$G,CPU!$A:$A,JACU!$C33,CPU!$H:$H,"mdo")+SUMIF('Comp SINAPI PE 06-2025 Onerado'!B:B,JACU!C33,'Comp SINAPI PE 06-2025 Onerado'!E:E)+SUMIF('Ins SINAPI PE 06-2025 Onerado'!B:B,JACU!C33,'Ins SINAPI PE 06-2025 Onerado'!F:F)),2) -> 305.81 | H33: =TRUNC(G33*(1+$H$5),2) -> 376.78 | I33: =TRUNC(F33*H33,2) -> 84775.5
A34: 4.2 | D34: Injeção de nata de cimento em buracos | I34: =SUM(I35:I35) -> 696.72
A35: 4.2.1 | B35: PRÓPRIA | C35: CPU.20 | D35: =(VLOOKUP(C35,CPU!$B$10:$C$302,2,0)) -> Injeção de nata de cimento em buracos | E35: =(VLOOKUP(C35,CPU!B6:D$408,3,0)) -> m3 | F35: 0.5 | G35: =TRUNC((1-$H$9)*(SUMIFS(CPU!$G:$G,CPU!$A:$A,JACU!$C35,CPU!$H:$H,"ss")+SUMIFS(CPU!$G:$G,CPU!$A:$A,JACU!$C35,CPU!$H:$H,"mdo")+SUMIF('Comp SINAPI PE 06-2025 Onerado'!B:B,JACU!C35,'Comp SINAPI PE 06-2025 Onerado'!E:E)+SUMIF('Ins SINAPI PE 06-2025 Onerado'!B:B,JACU!C35,'Ins SINAPI PE 06-2025 Onerado'!F:F)),2) -> 1130.96 | H35: =TRUNC(G35*(1+$H$5),2) -> 1393.45 | I35: =TRUNC(F35*H35,2) -> 696.72
A37: 5 | D37: REGULARIZAÇÃO E PAVIMENTAÇÃO DA CRISTA | I37: =SUM(I38,I40,I42) -> 210760.77
A38: 5.1 | D38: Limpeza e Regularização da Crista | I38: =SUM(I39:I39) -> 8470.77
A39: 5.1.2 | B39: PRÓPRIA | C39: CPU.13 | D39: =(VLOOKUP(C39,CPU!$B$10:$C$302,2,0)) -> Regularização e compactação da crista | E39: =(VLOOKUP(C39,CPU!B10:D302,3,0)) -> m2 | F39: 2123 | G39: =TRUNC((1-$H$9)*(SUMIFS(CPU!$G:$G,CPU!$A:$A,JACU!$C39,CPU!$H:$H,"ss")+SUMIFS(CPU!$G:$G,CPU!$A:$A,JACU!$C39,CPU!$H:$H,"mdo")+SUMIF('Comp SINAPI PE 06-2025 Onerado'!B:B,JACU!C39,'Comp SINAPI PE 06-2025 Onerado'!E:E)+SUMIF('Ins SINAPI PE 06-2025 Onerado'!B:B,JACU!C39,'Ins SINAPI PE 06-2025 Onerado'!F:F)),2) -> 3.24 | H39: =TRUNC(G39*(1+$H$5),2) -> 3.99 | I39: =TRUNC(F39*H39,2) -> 8470.77
A40: 5.2 | D40: Instalação de meio-fio e sarjeta em ambos os lados da crista | I40: =SUM(I41:I41) -> 21805.92
A41: 5.2.1 | B41: PRÓPRIA | C41: CPU.16 | D41: =(VLOOKUP(C41,CPU!$B$10:$C$302,2,0)) -> Fornecimento e Assentamento de Guia (meio-fio) Pré-fabricado, dimensões 100x15x20 cm (comprimento x base x altura) | E41: =(VLOOKUP(C41,CPU!B13:D305,3,0)) -> m | F41: 228 | G41: =TRUNC((1-$H$9)*(SUMIFS(CPU!$G:$G,CPU!$A:$A,JACU!$C41,CPU!$H:$H,"ss")+SUMIFS(CPU!$G:$G,CPU!$A:$A,JACU!$C41,CPU!$H:$H,"mdo")+SUMIF('Comp SINAPI PE 06-2025 Onerado'!B:B,JACU!C41,'Comp SINAPI PE 06-2025 Onerado'!E:E)+SUMIF('Ins SINAPI PE 06-2025 Onerado'!B:B,JACU!C41,'Ins SINAPI PE 06-2025 Onerado'!F:F)),2) -> 77.63 | H41: =TRUNC(G41*(1+$H$5),2) -> 95.64 | I41: =TRUNC(F41*H41,2) -> 21805.92
A42: 5.3 | D42: Pavimentação da Crista | I42: =SUM(I43:I43) -> 180484.08
A43: 5.3.1 | B43: PRÓPRIA | C43: CPU.14 | D43: =(VLOOKUP(C43,CPU!$B$10:$C$302,2,0)) -> Execução de Revestimento com BGTC | E43: =(VLOOKUP(C43,CPU!B14:D306,3,0)) -> m3 | F43: 318 | G43: =TRUNC((1-$H$9)*(SUMIFS(CPU!$G:$G,CPU!$A:$A,JACU!$C43,CPU!$H:$H,"ss")+SUMIFS(CPU!$G:$G,CPU!$A:$A,JACU!$C43,CPU!$H:$H,"mdo")+SUMIF('Comp SINAPI PE 06-2025 Onerado'!B:B,JACU!C43,'Comp SINAPI PE 06-2025 Onerado'!E:E)+SUMIF('Ins SINAPI PE 06-2025 Onerado'!B:B,JACU!C43,'Ins SINAPI PE 06-2025 Onerado'!F:F)),2) -> 460.65 | H43: =TRUNC(G43*(1+$H$5),2) -> 567.56 | I43: =TRUNC(F43*H43,2) -> 180484.08
A45: 6 | D45: MANUTENÇÃO NO TALUDE DE MONTANTE | I45: =SUM(I46) -> 54101.88
A46: 6.1 | D46: Enrocamento com pedra de mão para proteção do talude | I46: =SUM(I47:I47) -> 54101.88
A47: 6.1.1 | B47: PRÓPRIA | C47: CPU.06 | D47: =(VLOOKUP(C47,CPU!$B$10:$C$302,2,0)) -> Enrocamento c/ pedra de mão c/ fornecimento e assentamento | E47: =(VLOOKUP(C47,CPU!B24:D408,3,0)) -> m3 | F47: 126 | G47: =TRUNC((1-$H$9)*(SUMIFS(CPU!$G:$G,CPU!$A:$A,JACU!$C47,CPU!$H:$H,"ss")+SUMIFS(CPU!$G:$G,CPU!$A:$A,JACU!$C47,CPU!$H:$H,"mdo")+SUMIF('Comp SINAPI PE 06-2025 Onerado'!B:B,JACU!C47,'Comp SINAPI PE 06-2025 Onerado'!E:E)+SUMIF('Ins SINAPI PE 06-2025 Onerado'!B:B,JACU!C47,'Ins SINAPI PE 06-2025 Onerado'!F:F)),2) -> 348.5 | H47: =TRUNC(G47*(1+$H$5),2) -> 429.38 | I47: =TRUNC(F47*H47,2) -> 54101.88
A49: 7 | D49: DRENAGEM SUPERFICIAL DO TALUDE DE JUSANTE | I49: =SUM(I50,I52) -> 60152.54
A50: 7.1 | D50: Canaleta para descida d'água | I50: =SUM(I51:I51) -> 57072.96
A51: 7.1.2 | B51: PRÓPRIA | C51: CPU.07 | D51: =(VLOOKUP(C51,CPU!$B$10:$C$302,2,0)) -> Canaleta meia cana de concreto (D=30cm) - Fornecimento e instalação | E51: =(VLOOKUP(C51,CPU!B18:D310,3,0)) -> m | F51: 288 | G51: =TRUNC((1-$H$9)*(SUMIFS(CPU!$G:$G,CPU!$A:$A,JACU!$C51,CPU!$H:$H,"ss")+SUMIFS(CPU!$G:$G,CPU!$A:$A,JACU!$C51,CPU!$H:$H,"mdo")+SUMIF('Comp SINAPI PE 06-2025 Onerado'!B:B,JACU!C51,'Comp SINAPI PE 06-2025 Onerado'!E:E)+SUMIF('Ins SINAPI PE 06-2025 Onerado'!B:B,JACU!C51,'Ins SINAPI PE 06-2025 Onerado'!F:F)),2) -> 160.84 | H51: =TRUNC(G51*(1+$H$5),2) -> 198.17 | I51: =TRUNC(F51*H51,2) -> 57072.96
A52: 7.2 | D52: Entrada para descida d'água | I52: =I53 -> 3079.58
A53: 7.2.1 | B53: PRÓPRIA | C53: CPU.08 | D53: =(VLOOKUP(C53,CPU!$B$10:$C$302,2,0)) -> Entrada para descida d'água | E53: =(VLOOKUP(C53,CPU!B20:D408,3,0)) -> un | F53: =F51/20 -> 14.4 | G53: =TRUNC((1-$H$9)*(SUMIFS(CPU!$G:$G,CPU!$A:$A,JACU!$C53,CPU!$H:$H,"ss")+SUMIFS(CPU!$G:$G,CPU!$A:$A,JACU!$C53,CPU!$H:$H,"mdo")+SUMIF('Comp SINAPI PE 06-2025 Onerado'!B:B,JACU!C53,'Comp SINAPI PE 06-2025 Onerado'!E:E)+SUMIF('Ins SINAPI PE 06-2025 Onerado'!B:B,JACU!C53,'Ins SINAPI PE 06-2025 Onerado'!F:F)),2) -> 173.58 | H53: =TRUNC(G53*(1+$H$5),2) -> 213.86 | I53: =TRUNC(F53*H53,2) -> 3079.58
A55: 8 | D55: PROTEÇÃO SUPERFICIAL DO TALUDE DE JUSANTE | I55: =SUM(I56) -> 155685.92
A56: 8.1 | D56: Proteção vegetal | I56: =SUM(I57:I57) -> 155685.92
A57: 8.1.1 | B57: PRÓPRIA | C57: CPU.09 | D57: =(VLOOKUP(C57,CPU!$B$10:$C$302,2,0)) -> Plantio de vegetação para proteção de talude com hidrossemeadura, inclusive adubação e transporte | E57: =(VLOOKUP(C57,CPU!B28:D408,3,0)) -> m2 | F57: 10324 | G57: =TRUNC((1-$H$9)*(SUMIFS(CPU!$G:$G,CPU!$A:$A,JACU!$C57,CPU!$H:$H,"ss")+SUMIFS(CPU!$G:$G,CPU!$A:$A,JACU!$C57,CPU!$H:$H,"mdo")+SUMIF('Comp SINAPI PE 06-2025 Onerado'!B:B,JACU!C57,'Comp SINAPI PE 06-2025 Onerado'!E:E)+SUMIF('Ins SINAPI PE 06-2025 Onerado'!B:B,JACU!C57,'Ins SINAPI PE 06-2025 Onerado'!F:F)),2) -> 12.24 | H57: =TRUNC(G57*(1+$H$5),2) -> 15.08 | I57: =TRUNC(F57*H57,2) -> 155685.92
A59: 9 | D59: RESTAURAÇÃO DO MURO LATERAL | I59: =SUM(I60,) -> 5143
A60: 9.1 | D60: Restauração do muro lateral | I60: =SUM(I61:I62) -> 5143
A61: 9.1.1 | B61: PRÓPRIA | C61: CPU.18 | D61: =(VLOOKUP(C61,CPU!$B$10:$C$302,2,0)) -> Limpeza da superfície | E61: =(VLOOKUP(C61,CPU!B37:D425,3,0)) -> m2 | F61: 37 | G61: =TRUNC((1-$H$9)*(SUMIFS(CPU!$G:$G,CPU!$A:$A,JACU!$C61,CPU!$H:$H,"ss")+SUMIFS(CPU!$G:$G,CPU!$A:$A,JACU!$C61,CPU!$H:$H,"mdo")+SUMIF('Comp SINAPI PE 06-2025 Onerado'!B:B,JACU!C61,'Comp SINAPI PE 06-2025 Onerado'!E:E)+SUMIF('Ins SINAPI PE 06-2025 Onerado'!B:B,JACU!C61,'Ins SINAPI PE 06-2025 Onerado'!F:F)),2) -> 6.5 | H61: =TRUNC(G61*(1+$H$5),2) -> 8 | I61: =TRUNC(F61*H61,2) -> 296
A62: 9.1.2 | B62: PRÓPRIA | C62: CPU.17 | D62: =(VLOOKUP(C62,CPU!$B$10:$C$302,2,0)) -> Emboço ou massa única em argamassa | E62: =(VLOOKUP(C62,CPU!B38:D426,3,0)) -> m2 | F62: 37 | G62: =TRUNC((1-$H$9)*(SUMIFS(CPU!$G:$G,CPU!$A:$A,JACU!$C62,CPU!$H:$H,"ss")+SUMIFS(CPU!$G:$G,CPU!$A:$A,JACU!$C62,CPU!$H:$H,"mdo")+SUMIF('Comp SINAPI PE 06-2025 Onerado'!B:B,JACU!C62,'Comp SINAPI PE 06-2025 Onerado'!E:E)+SUMIF('Ins SINAPI PE 06-2025 Onerado'!B:B,JACU!C62,'Ins SINAPI PE 06-2025 Onerado'!F:F)),2) -> 106.33 | H62: =TRUNC(G62*(1+$H$5),2) -> 131 | I62: =TRUNC(F62*H62,2) -> 4847
A64: 10 | D64: RESTAURAÇÃO DA SOLEIRA DO VERTEDOURO | I64: =SUM(I65) -> 2905.96
A65: 10.1 | D65: Restauração da soleira do vertedouro | I65: =SUM(I66:I68) -> 2905.96
A66: 10.1.1 | B66: PRÓPRIA | C66: CPU.18 | D66: =(VLOOKUP(C66,CPU!$B$10:$C$302,2,0)) -> Limpeza da superfície | E66: =(VLOOKUP(C66,CPU!B32:D420,3,0)) -> m2 | F66: 15.75 | G66: =TRUNC((1-$H$9)*(SUMIFS(CPU!$G:$G,CPU!$A:$A,JACU!$C66,CPU!$H:$H,"ss")+SUMIFS(CPU!$G:$G,CPU!$A:$A,JACU!$C66,CPU!$H:$H,"mdo")+SUMIF('Comp SINAPI PE 06-2025 Onerado'!B:B,JACU!C66,'Comp SINAPI PE 06-2025 Onerado'!E:E)+SUMIF('Ins SINAPI PE 06-2025 Onerado'!B:B,JACU!C66,'Ins SINAPI PE 06-2025 Onerado'!F:F)),2) -> 6.5 | H66: =TRUNC(G66*(1+$H$5),2) -> 8 | I66: =TRUNC(F66*H66,2) -> 126
A67: 10.1.2 | B67: PRÓPRIA | C67: CPU.24 | D67: =(VLOOKUP(C67,CPU!$B$10:$C$302,2,0)) -> Selagem de fissuras com resina epóxi | E67: =(VLOOKUP(C67,CPU!B32:D420,3,0)) -> m | F67: =ROUND(2.5/0.3,2) -> 8.33 | G67: =TRUNC((1-$H$9)*(SUMIFS(CPU!$G:$G,CPU!$A:$A,JACU!$C67,CPU!$H:$H,"ss")+SUMIFS(CPU!$G:$G,CPU!$A:$A,JACU!$C67,CPU!$H:$H,"mdo")+SUMIF('Comp SINAPI PE 06-2025 Onerado'!B:B,JACU!C67,'Comp SINAPI PE 06-2025 Onerado'!E:E)+SUMIF('Ins SINAPI PE 06-2025 Onerado'!B:B,JACU!C67,'Ins SINAPI PE 06-2025 Onerado'!F:F)),2) -> 69.84 | H67: =TRUNC(G67*(1+$H$5),2) -> 86.04 | I67: =TRUNC(F67*H67,2) -> 716.71
A68: 10.1.3 | B68: PRÓPRIA | C68: CPU.17 | D68: =(VLOOKUP(C68,CPU!$B$10:$C$302,2,0)) -> Emboço ou massa única em argamassa | E68: =(VLOOKUP(C68,CPU!B33:D421,3,0)) -> m2 | F68: 15.75 | G68: =TRUNC((1-$H$9)*(SUMIFS(CPU!$G:$G,CPU!$A:$A,JACU!$C68,CPU!$H:$H,"ss")+SUMIFS(CPU!$G:$G,CPU!$A:$A,JACU!$C68,CPU!$H:$H,"mdo")+SUMIF('Comp SINAPI PE 06-2025 Onerado'!B:B,JACU!C68,'Comp SINAPI PE 06-2025 Onerado'!E:E)+SUMIF('Ins SINAPI PE 06-2025 Onerado'!B:B,JACU!C68,'Ins SINAPI PE 06-2025 Onerado'!F:F)),2) -> 106.33 | H68: =TRUNC(G68*(1+$H$5),2) -> 131 | I68: =TRUNC(F68*H68,2) -> 2063.25
A70: 11 | D70: CONTENÇÃO DO PROCESSO EROSIVO NA OMBREIRA | I70: =SUM(I71) -> 20095.26
A71: 11.1 | D71: Tratamento da erosão na ombreira | I71: =SUM(I72:I72) -> 20095.26
A72: 11.1.1 | B72: PRÓPRIA | C72: CPU.11 | D72: =(VLOOKUP(C72,CPU!$B$10:$C$302,2,0)) -> Enrocamento ARCO tipo rachão reciclado cinza classe A jogado com fornecimento | E72: =(VLOOKUP(C72,CPU!B42:D430,3,0)) -> m3 | F72: 58 | G72: =TRUNC((1-$H$9)*(SUMIFS(CPU!$G:$G,CPU!$A:$A,JACU!$C72,CPU!$H:$H,"ss")+SUMIFS(CPU!$G:$G,CPU!$A:$A,JACU!$C72,CPU!$H:$H,"mdo")+SUMIF('Comp SINAPI PE 06-2025 Onerado'!B:B,JACU!C72,'Comp SINAPI PE 06-2025 Onerado'!E:E)+SUMIF('Ins SINAPI PE 06-2025 Onerado'!B:B,JACU!C72,'Ins SINAPI PE 06-2025 Onerado'!F:F)),2) -> 281.21 | H72: =TRUNC(G72*(1+$H$5),2) -> 346.47 | I72: =TRUNC(F72*H72,2) -> 20095.26
A74: 12 | D74: SERVIÇOS COMPLEMENTARES | I74: =SUM(I75,I77) -> 9791.16
A75: 12.1 | D75: Instalação de placas de aviso | I75: =SUM(I76:I76) -> 2306.76
A76: 12.1.1 | B76: SINAPI | C76: 103689 | D76: =IF(J76="ca",VLOOKUP(C76,'Comp SINAPI PE 06-2025 Onerado'!$B$11:$C$9004,2,0),VLOOKUP(C76,'Ins SINAPI PE 06-2025 Onerado'!$B$10:$C$9004,2,0)) -> FORNECIMENTO E INSTALAÇÃO DE PLACA DE OBRA COM CHAPA GALVANIZADA E ESTRUTURA DE MADEIRA. AF_03/2022_PS | E76: =IF(J76="ca",VLOOKUP(C76,'Comp SINAPI PE 06-2025 Onerado'!$B$11:$D$9004,3,0),VLOOKUP(C76,'Ins SINAPI PE 06-2025 Onerado'!$B$11:$D$9004,3,0)) -> M2 | F76: 4 | G76: =TRUNC((1-$H$9)*(SUMIFS(CPU!$G:$G,CPU!$A:$A,JACU!$C76,CPU!$H:$H,"ss")+SUMIFS(CPU!$G:$G,CPU!$A:$A,JACU!$C76,CPU!$H:$H,"mdo")+SUMIF('Comp SINAPI PE 06-2025 Onerado'!B:B,JACU!C76,'Comp SINAPI PE 06-2025 Onerado'!E:E)+SUMIF('Ins SINAPI PE 06-2025 Onerado'!B:B,JACU!C76,'Ins SINAPI PE 06-2025 Onerado'!F:F)),2) -> 468.06 | H76: =TRUNC(G76*(1+$H$5),2) -> 576.69 | I76: =TRUNC(F76*H76,2) -> 2306.76 | J76: ca
A77: 12.2 | D77: Régua Linimétrica Padrão “ANA”, Aço Carbono - 2 X 70 X 1000 mm (Fornecimento e Instalação) | I77: =SUM(I78:I78) -> 7484.4
A78: 12.2.1 | B78: PRÓPRIA | C78: CPU.15 | D78: =(VLOOKUP(C78,CPU!$B$10:$C$302,2,0)) -> Régua Linimétrica Padrão “ANA”, Aço Carbono - 2 X 70 X 1000 mm (Fornecimento e Instalação) | E78: un | F78: 14 | G78: =TRUNC((1-$H$9)*(SUMIFS(CPU!$G:$G,CPU!$A:$A,JACU!$C78,CPU!$H:$H,"ss")+SUMIFS(CPU!$G:$G,CPU!$A:$A,JACU!$C78,CPU!$H:$H,"mdo")+SUMIF('Comp SINAPI PE 06-2025 Onerado'!B:B,JACU!C78,'Comp SINAPI PE 06-2025 Onerado'!E:E)+SUMIF('Ins SINAPI PE 06-2025 Onerado'!B:B,JACU!C78,'Ins SINAPI PE 06-2025 Onerado'!F:F)),2) -> 433.9 | H78: =TRUNC(G78*(1+$H$5),2) -> 534.6 | I78: =TRUNC(F78*H78,2) -> 7484.4
A80: 13 | D80: PROJETO "AS IS" | I80: =SUM(I81) -> 18623.48
A81: 13.1 | D81: Levantamento topográfico e "AS IS" | I81: =SUM(I82:I83) -> 18623.48
A82: 13.1.1 | B82: ORSE | C82: 9346 | D82: Levantamento topográfico planimétrico cadastral | E82: m2 | F82: =F28 -> 18671 | G82: =TRUNC(0.35*(1-$H$9),2) -> 0.35 | H82: =TRUNC(G82*(1+$H$5),2) -> 0.43 | I82: =TRUNC(F82*H82,2) -> 8028.53
A83: 13.1.2 | B83: PRÓPRIA | C83: CPU.19 | D83: =(VLOOKUP(C83,CPU!$B$10:$C$302,2,0)) -> Projeto geométrico | E83: un | F83: 1 | G83: =TRUNC((1-$H$9)*(SUMIFS(CPU!$G:$G,CPU!$A:$A,JACU!$C83,CPU!$H:$H,"ss")+SUMIFS(CPU!$G:$G,CPU!$A:$A,JACU!$C83,CPU!$H:$H,"mdo")+SUMIF('Comp SINAPI PE 06-2025 Onerado'!B:B,JACU!C83,'Comp SINAPI PE 06-2025 Onerado'!E:E)+SUMIF('Ins SINAPI PE 06-2025 Onerado'!B:B,JACU!C83,'Ins SINAPI PE 06-2025 Onerado'!F:F)),2) -> 8599.1 | H83: =TRUNC(G83*(1+$H$5),2) -> 10594.95 | I83: =TRUNC(F83*H83,2) -> 10594.95
A85: 14 | D85: FISCALIZAÇÃO E ACOMPANHAMENTO | I85: =SUM(I86) -> 2358.2
A86: 14.1 | D86: Disponibilidade de veículo para apoio a fiscalização | I86: =SUM(I87:I88) -> 2358.2
A87: 14.1.1 | B87: PRÓPRIA | C87: CPU.21 | D87: =(VLOOKUP(C87,CPU!$B$10:$C$302,2,0)) -> Disponibilidade de veículo para apoio a fiscalização, inclusive combustível | E87: un | F87: =F16+2 -> 5 | G87: =TRUNC((1-$H$9)*(SUMIFS(CPU!$G:$G,CPU!$A:$A,JACU!$C87,CPU!$H:$H,"ss")+SUMIFS(CPU!$G:$G,CPU!$A:$A,JACU!$C87,CPU!$H:$H,"mdo")+SUMIF('Comp SINAPI PE 06-2025 Onerado'!B:B,JACU!C87,'Comp SINAPI PE 06-2025 Onerado'!E:E)+SUMIF('Ins SINAPI PE 06-2025 Onerado'!B:B,JACU!C87,'Ins SINAPI PE 06-2025 Onerado'!F:F)),2) -> 382.8 | H87: =TRUNC(G87*(1+$H$5),2) -> 471.64 | I87: =TRUNC(F87*H87,2) -> 2358.2
D89: TOTAL (Custo): | I89: =TRUNC(SUMPRODUCT(F15:F88,G15:G88),2) -> 777793.77
D90: BDI e Encargos Sociais: | I90: =I91-I89 -> 180442.88
D91: TOTAL GERAL COM BDI: | I91: =SUM(I14,I18,I26,I31,I37,I45,I49,I55,I64,I59,I70,I74,I80,I85) -> 958236.65 | L91: =TRUNC(SUMPRODUCT(F15:F88,H15:H88),2) -> 958236.66

Sheet CAIÇARA
A1: Ministério da Integração e do Desenvolvimento Regional
A2: Companhia de Desenvolvimento dos Vales do São Francisco e do Parnaíba
A4: PLANILHA ORÇAMENTÁRIA - ORÇAMENTO NÃO DESONERADO
A5: OBRA: | B5: =Resumo!B5 -> Execução de manutenção e recuperação nas barragens de Jacu, Caiçara, Algodoes, Manoel Rodrigues, Murici, Riacho dos Cavalos e Alto Grande, localizadas no estado de Pernambuco. | G5: BDI (serv.): | H5: ='BDI serv'!D23 -> 0.2321 | I5: Bancos de dados:
A6: LOCAL: | B6: =Resumo!B6 -> BARRAGENS DE PERNAMBUCO | G6: BDI (forn.): | H6: ='BDI forn'!D23 -> 0.1415 | I6: =Resumo!G6 -> JUN/25 - SINAPI
A7: DATA BASE: | B7: =Resumo!B7 -> 2025-07-01 | E7: Encargos sociais - Horistas: | H7: ='Encargos Sociais'!E49 -> 1.1384 | I7: =Resumo!G7 -> MAI/25 - ORSE
A8: PRAZO: | B8: 90 dias | E8: Encargos sociais - Mensalista: | H8: ='Encargos Sociais'!F49 -> 0.7011 | I8: =Resumo!G8 -> JAN/25 - SETOP
B9: =Resumo!B16 -> Caiçara | G9: Desconto: | H9: 0 | I9: =Resumo!G9 -> ABR/2025 - SICRO3
I10: =Resumo!G10 -> JAN/2025 - EMBASA
I11: =Resumo!G11 -> 028 - SEINFRA
A12: ITEM | B12: REFERÊNCIA | D12: DESCRIÇÃO | E12: UNID. | F12: QUANT. | G12: CUSTO UNITÁRIO | H12: PREÇO UNITÁRIO | I12: PREÇO TOTAL
B13: FONTE | C13: CÓDIGO
A14: 1 | D14: ADMINISTRAÇÃO DA OBRA | I14: =SUM(I15) -> 107417.73
A15: 1.1 | D15: Administração da Obra | I15: =SUM(I16:I16) -> 107417.73
A16: 1.1.1 | B16: PRÓPRIA | C16: CPU.01 | D16: =(VLOOKUP(C16,CPU!$B$10:$C$302,2,0)) -> Administração Local | E16: mês | F16: 3 | G16: =TRUNC((1-$H$9)*(SUMIFS(CPU!$G:$G,CPU!$A:$A,CAIÇARA!$C16,CPU!$H:$H,"ss")+SUMIFS(CPU!$G:$G,CPU!$A:$A,CAIÇARA!$C16,CPU!$H:$H,"mdo")+SUMIF('Comp SINAPI PE 06-2025 Onerado'!B:B,CAIÇARA!C16,'Comp SINAPI PE 06-2025 Onerado'!E:E)+SUMIF('Ins SINAPI PE 06-2025 Onerado'!B:B,CAIÇARA!C16,'Ins SINAPI PE 06-2025 Onerado'!F:F)),2) -> 29060.88 | H16: =TRUNC(G16*(1+$H$5),2) -> 35805.91 | I16: =TRUNC(F16*H16,2) -> 107417.73
A18: 2 | D18: SERVIÇOS PRELIMINARES | I18: =SUM(I19,I21,I23) -> 30051.26
A19: 2.1 | D19: Mobilização e desmobilização | I19: =SUM(I20) -> 3697.9
A20: 2.1.1 | B20: PRÓPRIA | C20: CPU.02 | D20: =(VLOOKUP(C20,CPU!$B$10:$C$302,2,0)) -> Mobilização e desmobilização de instalação do canteiro | E20: un | F20: 1 | G20: =TRUNC((1-$H$9)*(SUMIFS(CPU!$G:$G,CPU!$A:$A,CAIÇARA!$C20,CPU!$H:$H,"ss")+SUMIFS(CPU!$G:$G,CPU!$A:$A,CAIÇARA!$C20,CPU!$H:$H,"mdo")+SUMIF('Comp SINAPI PE 06-2025 Onerado'!B:B,CAIÇARA!C20,'Comp SINAPI PE 06-2025 Onerado'!E:E)+SUMIF('Ins SINAPI PE 06-2025 Onerado'!B:B,CAIÇARA!C20,'Ins SINAPI PE 06-2025 Onerado'!F:F)),2) -> 3001.3 | H20: =TRUNC(G20*(1+$H$5),2) -> 3697.9 | I20: =TRUNC(F20*H20,2) -> 3697.9
A21: 2.2 | D21: Canteiro de obras | I21: =SUM(I22) -> 25199.98
A22: 2.2.1 | B22: PRÓPRIA | C22: CPU.03 | D22: =(VLOOKUP(C22,CPU!$B$10:$C$302,2,0)) -> Execução de canteiro de obras, inclusive, limpeza, refeitório, sanitários e central de formas | E22: m2 | F22: 28.5 | G22: =TRUNC((1-$H$9)*(SUMIFS(CPU!$G:$G,CPU!$A:$A,CAIÇARA!$C22,CPU!$H:$H,"ss")+SUMIFS(CPU!$G:$G,CPU!$A:$A,CAIÇARA!$C22,CPU!$H:$H,"mdo")+SUMIF('Comp SINAPI PE 06-2025 Onerado'!B:B,CAIÇARA!C22,'Comp SINAPI PE 06-2025 Onerado'!E:E)+SUMIF('Ins SINAPI PE 06-2025 Onerado'!B:B,CAIÇARA!C22,'Ins SINAPI PE 06-2025 Onerado'!F:F)),2) -> 717.65 | H22: =TRUNC(G22*(1+$H$5),2) -> 884.21 | I22: =TRUNC(F22*H22,2) -> 25199.98
A23: 2.3 | D23: Sinalização | I23: =SUM(I24:I24) -> 1153.38
A24: 2.3.1 | B24: SINAPI | C24: 103689 | D24: =IF(J24="ca",VLOOKUP(C24,'Comp SINAPI PE 06-2025 Onerado'!$B$11:$C$9004,2,0),VLOOKUP(C24,'Ins SINAPI PE 06-2025 Onerado'!$B$10:$C$9004,2,0)) -> FORNECIMENTO E INSTALAÇÃO DE PLACA DE OBRA COM CHAPA GALVANIZADA E ESTRUTURA DE MADEIRA. AF_03/2022_PS | E24: =IF(J24="ca",VLOOKUP(C24,'Comp SINAPI PE 06-2025 Onerado'!$B$11:$D$9004,3,0),VLOOKUP(C24,'Ins SINAPI PE 06-2025 Onerado'!$B$11:$D$9004,3,0)) -> M2 | F24: 2 | G24: =TRUNC((1-$H$9)*(SUMIFS(CPU!$G:$G,CPU!$A:$A,CAIÇARA!$C24,CPU!$H:$H,"ss")+SUMIFS(CPU!$G:$G,CPU!$A:$A,CAIÇARA!$C24,CPU!$H:$H,"mdo")+SUMIF('Comp SINAPI PE 06-2025 Onerado'!B:B,CAIÇARA!C24,'Comp SINAPI PE 06-2025 Onerado'!E:E)+SUMIF('Ins SINAPI PE 06-2025 Onerado'!B:B,CAIÇARA!C24,'Ins SINAPI PE 06-2025 Onerado'!F:F)),2) -> 468.06 | H24: =TRUNC(G24*(1+$H$5),2) -> 576.69 | I24: =TRUNC(F24*H24,2) -> 1153.38 | J24: ca
A26: 3 | D26: CORTE DA VEGETAÇÃO E REMOÇÃO DAS RAIZES | I26: =SUM(I27) -> 224126.41
A27: 3.1 | D27: Remoção da vegetação | I27: =SUM(I28:I29) -> 224126.41
A28: 3.1.1 | B28: PRÓPRIA | C28: CPU.04 | D28: =(VLOOKUP(C28,CPU!$B$10:$C$302,2,0)) -> Limpeza de vegetação | E28: =(VLOOKUP(C28,CPU!B2:D$408,3,0)) -> m2 | F28: 21613 | G28: =TRUNC((1-$H$9)*(SUMIFS(CPU!$G:$G,CPU!$A:$A,CAIÇARA!$C28,CPU!$H:$H,"ss")+SUMIFS(CPU!$G:$G,CPU!$A:$A,CAIÇARA!$C28,CPU!$H:$H,"mdo")+SUMIF('Comp SINAPI PE 06-2025 Onerado'!B:B,CAIÇARA!C28,'Comp SINAPI PE 06-2025 Onerado'!E:E)+SUMIF('Ins SINAPI PE 06-2025 Onerado'!B:B,CAIÇARA!C28,'Ins SINAPI PE 06-2025 Onerado'!F:F)),2) -> 7.85 | H28: =TRUNC(G28*(1+$H$5),2) -> 9.67 | I28: =TRUNC(F28*H28,2) -> 208997.71
A29: 3.1.2 | B29: PRÓPRIA | C29: CPU.05 | D29: =(VLOOKUP(C29,CPU!$B$10:$C$302,2,0)) -> Corte de tronco e remoção de raiz | E29: =(VLOOKUP(C29,CPU!B3:D$408,3,0)) -> un | F29: 30 | G29: =TRUNC((1-$H$9)*(SUMIFS(CPU!$G:$G,CPU!$A:$A,CAIÇARA!$C29,CPU!$H:$H,"ss")+SUMIFS(CPU!$G:$G,CPU!$A:$A,CAIÇARA!$C29,CPU!$H:$H,"mdo")+SUMIF('Comp SINAPI PE 06-2025 Onerado'!B:B,CAIÇARA!C29,'Comp SINAPI PE 06-2025 Onerado'!E:E)+SUMIF('Ins SINAPI PE 06-2025 Onerado'!B:B,CAIÇARA!C29,'Ins SINAPI PE 06-2025 Onerado'!F:F)),2) -> 409.3 | H29: =TRUNC(G29*(1+$H$5),2) -> 504.29 | I29: =TRUNC(F29*H29,2) -> 15128.7
A31: 4 | D31: RECUPERAÇÃO DO MACIÇO | I31: =SUM(I32,I34) -> 183811.8
A32: 4.1 | D32: Recomposição das Erosões (erosões locais nas ombreiras e aterro), trincas e buracos | I32: =I33 -> 183115.08
A33: 4.1.1 | B33: PRÓPRIA | C33: CPU.12 | D33: =(VLOOKUP(C33,CPU!$B$10:$C$302,2,0)) -> Recomposição das erosões, inclusive, regularização da superfície e reaterro | E33: =(VLOOKUP(C33,CPU!B4:D$408,3,0)) -> m3 | F33: 486 | G33: =TRUNC((1-$H$9)*(SUMIFS(CPU!$G:$G,CPU!$A:$A,CAIÇARA!$C33,CPU!$H:$H,"ss")+SUMIFS(CPU!$G:$G,CPU!$A:$A,CAIÇARA!$C33,CPU!$H:$H,"mdo")+SUMIF('Comp SINAPI PE 06-2025 Onerado'!B:B,CAIÇARA!C33,'Comp SINAPI PE 06-2025 Onerado'!E:E)+SUMIF('Ins SINAPI PE 06-2025 Onerado'!B:B,CAIÇARA!C33,'Ins SINAPI PE 06-2025 Onerado'!F:F)),2) -> 305.81 | H33: =TRUNC(G33*(1+$H$5),2) -> 376.78 | I33: =TRUNC(F33*H33,2) -> 183115.08
A34: 4.2 | D34: Injeção de nata de cimento em buracos | I34: =SUM(I35:I35) -> 696.72
A35: 4.2.1 | B35: PRÓPRIA | C35: CPU.20 | D35: =(VLOOKUP(C35,CPU!$B$10:$C$302,2,0)) -> Injeção de nata de cimento em buracos | E35: =(VLOOKUP(C35,CPU!B6:D$408,3,0)) -> m3 | F35: 0.5 | G35: =TRUNC((1-$H$9)*(SUMIFS(CPU!$G:$G,CPU!$A:$A,CAIÇARA!$C35,CPU!$H:$H,"ss")+SUMIFS(CPU!$G:$G,CPU!$A:$A,CAIÇARA!$C35,CPU!$H:$H,"mdo")+SUMIF('Comp SINAPI PE 06-2025 Onerado'!B:B,CAIÇARA!C35,'Comp SINAPI PE 06-2025 Onerado'!E:E)+SUMIF('Ins SINAPI PE 06-2025 Onerado'!B:B,CAIÇARA!C35,'Ins SINAPI PE 06-2025 Onerado'!F:F)),2) -> 1130.96 | H35: =TRUNC(G35*(1+$H$5),2) -> 1393.45 | I35: =TRUNC(F35*H35,2) -> 696.72
A37: 5 | D37: REGULARIZAÇÃO E PAVIMENTAÇÃO DA CRISTA | I37: =SUM(I38,I40,I42) -> 234216.58
A38: 5.1 | D38: Limpeza e Regularização da Crista | I38: =SUM(I39:I39) -> 9631.86
A39: 5.1.2 | B39: PRÓPRIA | C39: CPU.13 | D39: =(VLOOKUP(C39,CPU!$B$10:$C$302,2,0)) -> Regularização e compactação da crista | E39: =(VLOOKUP(C39,CPU!B10:D302,3,0)) -> m2 | F39: 2414 | G39: =TRUNC((1-$H$9)*(SUMIFS(CPU!$G:$G,CPU!$A:$A,CAIÇARA!$C39,CPU!$H:$H,"ss")+SUMIFS(CPU!$G:$G,CPU!$A:$A,CAIÇARA!$C39,CPU!$H:$H,"mdo")+SUMIF('Comp SINAPI PE 06-2025 Onerado'!B:B,CAIÇARA!C39,'Comp SINAPI PE 06-2025 Onerado'!E:E)+SUMIF('Ins SINAPI PE 06-2025 Onerado'!B:B,CAIÇARA!C39,'Ins SINAPI PE 06-2025 Onerado'!F:F)),2) -> 3.24 | H39: =TRUNC(G39*(1+$H$5),2) -> 3.99 | I39: =TRUNC(F39*H39,2) -> 9631.86
A40: 5.2 | D40: Instalação de meio-fio e sarjeta em ambos os lados da crista | I40: =SUM(I41:I41) -> 19128
A41: 5.2.1 | B41: PRÓPRIA | C41: CPU.16 | D41: =(VLOOKUP(C41,CPU!$B$10:$C$302,2,0)) -> Fornecimento e Assentamento de Guia (meio-fio) Pré-fabricado, dimensões 100x15x20 cm (comprimento x base x altura) | E41: =(VLOOKUP(C41,CPU!B12:D304,3,0)) -> m | F41: 200 | G41: =TRUNC((1-$H$9)*(SUMIFS(CPU!$G:$G,CPU!$A:$A,CAIÇARA!$C41,CPU!$H:$H,"ss")+SUMIFS(CPU!$G:$G,CPU!$A:$A,CAIÇARA!$C41,CPU!$H:$H,"mdo")+SUMIF('Comp SINAPI PE 06-2025 Onerado'!B:B,CAIÇARA!C41,'Comp SINAPI PE 06-2025 Onerado'!E:E)+SUMIF('Ins SINAPI PE 06-2025 Onerado'!B:B,CAIÇARA!C41,'Ins SINAPI PE 06-2025 Onerado'!F:F)),2) -> 77.63 | H41: =TRUNC(G41*(1+$H$5),2) -> 95.64 | I41: =TRUNC(F41*H41,2) -> 19128
A42: 5.3 | D42: Pavimentação da Crista | I42: =SUM(I43:I43) -> 205456.72
A43: 5.3.1 | B43: PRÓPRIA | C43: CPU.14 | D43: =(VLOOKUP(C43,CPU!$B$10:$C$302,2,0)) -> Execução de Revestimento com BGTC | E43: =(VLOOKUP(C43,CPU!B14:D306,3,0)) -> m3 | F43: 362 | G43: =TRUNC((1-$H$9)*(SUMIFS(CPU!$G:$G,CPU!$A:$A,CAIÇARA!$C43,CPU!$H:$H,"ss")+SUMIFS(CPU!$G:$G,CPU!$A:$A,CAIÇARA!$C43,CPU!$H:$H,"mdo")+SUMIF('Comp SINAPI PE 06-2025 Onerado'!B:B,CAIÇARA!C43,'Comp SINAPI PE 06-2025 Onerado'!E:E)+SUMIF('Ins SINAPI PE 06-2025 Onerado'!B:B,CAIÇARA!C43,'Ins SINAPI PE 06-2025 Onerado'!F:F)),2) -> 460.65 | H43: =TRUNC(G43*(1+$H$5),2) -> 567.56 | I43: =TRUNC(F43*H43,2) -> 205456.72
A45: 6 | D45: MANUTENÇÃO NO TALUDE DE MONTANTE | I45: =SUM(I46) -> 64407
A46: 6.1 | D46: Enrocamento com pedra de mão para proteção do talude | I46: =SUM(I47:I47) -> 64407
A47: 6.1.1 | B47: PRÓPRIA | C47: CPU.06 | D47: =(VLOOKUP(C47,CPU!$B$10:$C$302,2,0)) -> Enrocamento c/ pedra de mão c/ fornecimento e assentamento | E47: =(VLOOKUP(C47,CPU!B24:D408,3,0)) -> m3 | F47: 150 | G47: =TRUNC((1-$H$9)*(SUMIFS(CPU!$G:$G,CPU!$A:$A,CAIÇARA!$C47,CPU!$H:$H,"ss")+SUMIFS(CPU!$G:$G,CPU!$A:$A,CAIÇARA!$C47,CPU!$H:$H,"mdo")+SUMIF('Comp SINAPI PE 06-2025 Onerado'!B:B,CAIÇARA!C47,'Comp SINAPI PE 06-2025 Onerado'!E:E)+SUMIF('Ins SINAPI PE 06-2025 Onerado'!B:B,CAIÇARA!C47,'Ins SINAPI PE 06-2025 Onerado'!F:F)),2) -> 348.5 | H47: =TRUNC(G47*(1+$H$5),2) -> 429.38 | I47: =TRUNC(F47*H47,2) -> 64407
A49: 7 | D49: DRENAGEM SUPERFICIAL DO TALUDE DE JUSANTE | I49: =SUM(I50,I52) -> 36551.02
A50: 7.1 | D50: Canaleta para descida d'água | I50: =I51 -> 34679.75
A51: 7.1.1 | B51: PRÓPRIA | C51: CPU.07 | D51: =(VLOOKUP(C51,CPU!$B$10:$C$302,2,0)) -> Canaleta meia cana de concreto (D=30cm) - Fornecimento e instalação | E51: =(VLOOKUP(C51,CPU!B18:D310,3,0)) -> m | F51: 175 | G51: =TRUNC((1-$H$9)*(SUMIFS(CPU!$G:$G,CPU!$A:$A,CAIÇARA!$C51,CPU!$H:$H,"ss")+SUMIFS(CPU!$G:$G,CPU!$A:$A,CAIÇARA!$C51,CPU!$H:$H,"mdo")+SUMIF('Comp SINAPI PE 06-2025 Onerado'!B:B,CAIÇARA!C51,'Comp SINAPI PE 06-2025 Onerado'!E:E)+SUMIF('Ins SINAPI PE 06-2025 Onerado'!B:B,CAIÇARA!C51,'Ins SINAPI PE 06-2025 Onerado'!F:F)),2) -> 160.84 | H51: =TRUNC(G51*(1+$H$5),2) -> 198.17 | I51: =TRUNC(F51*H51,2) -> 34679.75
A52: 7.2 | D52: Entrada para descida d'água | I52: =I53 -> 1871.27
A53: 7.2.1 | B53: PRÓPRIA | C53: CPU.08 | D53: =(VLOOKUP(C53,CPU!$B$10:$C$302,2,0)) -> Entrada para descida d'água | E53: =(VLOOKUP(C53,CPU!B20:D408,3,0)) -> un | F53: =F51/20 -> 8.75 | G53: =TRUNC((1-$H$9)*(SUMIFS(CPU!$G:$G,CPU!$A:$A,CAIÇARA!$C53,CPU!$H:$H,"ss")+SUMIFS(CPU!$G:$G,CPU!$A:$A,CAIÇARA!$C53,CPU!$H:$H,"mdo")+SUMIF('Comp SINAPI PE 06-2025 Onerado'!B:B,CAIÇARA!C53,'Comp SINAPI PE 06-2025 Onerado'!E:E)+SUMIF('Ins SINAPI PE 06-2025 Onerado'!B:B,CAIÇARA!C53,'Ins SINAPI PE 06-2025 Onerado'!F:F)),2) -> 173.58 | H53: =TRUNC(G53*(1+$H$5),2) -> 213.86 | I53: =TRUNC(F53*H53,2) -> 1871.27
A55: 8 | D55: PROTEÇÃO SUPERFICIAL DO TALUDE DE JUSANTE | I55: =SUM(I56) -> 112014.24
A56: 8.1 | D56: Proteção vegetal | I56: =SUM(I57:I57) -> 112014.24
A57: 8.1.1 | B57: PRÓPRIA | C57: CPU.09 | D57: =(VLOOKUP(C57,CPU!$B$10:$C$302,2,0)) -> Plantio de vegetação para proteção de talude com hidrossemeadura, inclusive adubação e transporte | E57: =(VLOOKUP(C57,CPU!B28:D408,3,0)) -> m2 | F57: 7428 | G57: =TRUNC((1-$H$9)*(SUMIFS(CPU!$G:$G,CPU!$A:$A,CAIÇARA!$C57,CPU!$H:$H,"ss")+SUMIFS(CPU!$G:$G,CPU!$A:$A,CAIÇARA!$C57,CPU!$H:$H,"mdo")+SUMIF('Comp SINAPI PE 06-2025 Onerado'!B:B,CAIÇARA!C57,'Comp SINAPI PE 06-2025 Onerado'!E:E)+SUMIF('Ins SINAPI PE 06-2025 Onerado'!B:B,CAIÇARA!C57,'Ins SINAPI PE 06-2025 Onerado'!F:F)),2) -> 12.24 | H57: =TRUNC(G57*(1+$H$5),2) -> 15.08 | I57: =TRUNC(F57*H57,2) -> 112014.24
A59: 9 | D59: RESTAURAÇÃO DO MURO LATERAL | I59: =SUM(I60) -> 751
A60: 9.1 | D60: Restauração do muro lateral | I60: =SUM(I61:I62) -> 751
A61: 9.1.1 | B61: PRÓPRIA | C61: CPU.18 | D61: =(VLOOKUP(C61,CPU!$B$10:$C$302,2,0)) -> Limpeza da superfície | E61: =(VLOOKUP(C61,CPU!B37:D425,3,0)) -> m2 | F61: 12 | G61: =TRUNC((1-$H$9)*(SUMIFS(CPU!$G:$G,CPU!$A:$A,CAIÇARA!$C61,CPU!$H:$H,"ss")+SUMIFS(CPU!$G:$G,CPU!$A:$A,CAIÇARA!$C61,CPU!$H:$H,"mdo")+SUMIF('Comp SINAPI PE 06-2025 Onerado'!B:B,CAIÇARA!C61,'Comp SINAPI PE 06-2025 Onerado'!E:E)+SUMIF('Ins SINAPI PE 06-2025 Onerado'!B:B,CAIÇARA!C61,'Ins SINAPI PE 06-2025 Onerado'!F:F)),2) -> 6.5 | H61: =TRUNC(G61*(1+$H$5),2) -> 8 | I61: =TRUNC(F61*H61,2) -> 96
A62: 9.1.3 | B62: PRÓPRIA | C62: CPU.17 | D62: =(VLOOKUP(C62,CPU!$B$10:$C$302,2,0)) -> Emboço ou massa única em argamassa | E62: =(VLOOKUP(C62,CPU!B38:D426,3,0)) -> m2 | F62: 5 | G62: =TRUNC((1-$H$9)*(SUMIFS(CPU!$G:$G,CPU!$A:$A,CAIÇARA!$C62,CPU!$H:$H,"ss")+SUMIFS(CPU!$G:$G,CPU!$A:$A,CAIÇARA!$C62,CPU!$H:$H,"mdo")+SUMIF('Comp SINAPI PE 06-2025 Onerado'!B:B,CAIÇARA!C62,'Comp SINAPI PE 06-2025 Onerado'!E:E)+SUMIF('Ins SINAPI PE 06-2025 Onerado'!B:B,CAIÇARA!C62,'Ins SINAPI PE 06-2025 Onerado'!F:F)),2) -> 106.33 | H62: =TRUNC(G62*(1+$H$5),2) -> 131 | I62: =TRUNC(F62*H62,2) -> 655
A64: 10 | D64: RESTAURAÇÃO DA BACIA DE DISSIPAÇÃO | I64: =SUM(I65) -> 1251
A65: 10.1 | D65: Restauração da bacia de dissipação | I65: =SUM(I66:I67) -> 1251
A66: 10.1.1 | B66: PRÓPRIA | C66: CPU.18 | D66: =(VLOOKUP(C66,CPU!$B$10:$C$302,2,0)) -> Limpeza da superfície | E66: =(VLOOKUP(C66,CPU!B32:D420,3,0)) -> m2 | F66: 9 | G66: =TRUNC((1-$H$9)*(SUMIFS(CPU!$G:$G,CPU!$A:$A,CAIÇARA!$C66,CPU!$H:$H,"ss")+SUMIFS(CPU!$G:$G,CPU!$A:$A,CAIÇARA!$C66,CPU!$H:$H,"mdo")+SUMIF('Comp SINAPI PE 06-2025 Onerado'!B:B,CAIÇARA!C66,'Comp SINAPI PE 06-2025 Onerado'!E:E)+SUMIF('Ins SINAPI PE 06-2025 Onerado'!B:B,CAIÇARA!C66,'Ins SINAPI PE 06-2025 Onerado'!F:F)),2) -> 6.5 | H66: =TRUNC(G66*(1+$H$5),2) -> 8 | I66: =TRUNC(F66*H66,2) -> 72
A67: 10.1.2 | B67: PRÓPRIA | C67: CPU.17 | D67: =(VLOOKUP(C67,CPU!$B$10:$C$302,2,0)) -> Emboço ou massa única em argamassa | E67: =(VLOOKUP(C67,CPU!B33:D421,3,0)) -> m2 | F67: 9 | G67: =TRUNC((1-$H$9)*(SUMIFS(CPU!$G:$G,CPU!$A:$A,CAIÇARA!$C67,CPU!$H:$H,"ss")+SUMIFS(CPU!$G:$G,CPU!$A:$A,CAIÇARA!$C67,CPU!$H:$H,"mdo")+SUMIF('Comp SINAPI PE 06-2025 Onerado'!B:B,CAIÇARA!C67,'Comp SINAPI PE 06-2025 Onerado'!E:E)+SUMIF('Ins SINAPI PE 06-2025 Onerado'!B:B,CAIÇARA!C67,'Ins SINAPI PE 06-2025 Onerado'!F:F)),2) -> 106.33 | H67: =TRUNC(G67*(1+$H$5),2) -> 131 | I67: =TRUNC(F67*H67,2) -> 1179
A69: 11 | D69: SERVIÇOS COMPLEMENTARES | I69: =SUM(I70,I72) -> 10325.76
A70: 11.1 | D70: Instalação de placas de aviso | I70: =SUM(I71:I71) -> 2306.76
A71: 11.1.1 | B71: SINAPI | C71: 103689 | D71: =IF(J71="ca",VLOOKUP(C71,'Comp SINAPI PE 06-2025 Onerado'!$B$11:$C$9004,2,0),VLOOKUP(C71,'Ins SINAPI PE 06-2025 Onerado'!$B$10:$C$9004,2,0)) -> FORNECIMENTO E INSTALAÇÃO DE PLACA DE OBRA COM CHAPA GALVANIZADA E ESTRUTURA DE MADEIRA. AF_03/2022_PS | E71: =IF(J71="ca",VLOOKUP(C71,'Comp SINAPI PE 06-2025 Onerado'!$B$11:$D$9004,3,0),VLOOKUP(C71,'Ins SINAPI PE 06-2025 Onerado'!$B$11:$D$9004,3,0)) -> M2 | F71: 4 | G71: =TRUNC((1-$H$9)*(SUMIFS(CPU!$G:$G,CPU!$A:$A,CAIÇARA!$C71,CPU!$H:$H,"ss")+SUMIFS(CPU!$G:$G,CPU!$A:$A,CAIÇARA!$C71,CPU!$H:$H,"mdo")+SUMIF('Comp SINAPI PE 06-2025 Onerado'!B:B,CAIÇARA!C71,'Comp SINAPI PE 06-2025 Onerado'!E:E)+SUMIF('Ins SINAPI PE 06-2025 Onerado'!B:B,CAIÇARA!C71,'Ins SINAPI PE 06-2025 Onerado'!F:F)),2) -> 468.06 | H71: =TRUNC(G71*(1+$H$5),2) -> 576.69 | I71: =TRUNC(F71*H71,2) -> 2306.76 | J71: ca
A72: 11.2 | D72: Régua Linimétrica Padrão “ANA”, Aço Carbono - 2 X 70 X 1000 mm (Fornecimento e Instalação) | I72: =SUM(I73:I73) -> 8019
A73: 11.2.1 | B73: PRÓPRIA | C73: CPU.15 | D73: =(VLOOKUP(C73,CPU!$B$10:$C$302,2,0)) -> Régua Linimétrica Padrão “ANA”, Aço Carbono - 2 X 70 X 1000 mm (Fornecimento e Instalação) | E73: un | F73: 15 | G73: =TRUNC((1-$H$9)*(SUMIFS(CPU!$G:$G,CPU!$A:$A,CAIÇARA!$C73,CPU!$H:$H,"ss")+SUMIFS(CPU!$G:$G,CPU!$A:$A,CAIÇARA!$C73,CPU!$H:$H,"mdo")+SUMIF('Comp SINAPI PE 06-2025 Onerado'!B:B,CAIÇARA!C73,'Comp SINAPI PE 06-2025 Onerado'!E:E)+SUMIF('Ins SINAPI PE 06-2025 Onerado'!B:B,CAIÇARA!C73,'Ins SINAPI PE 06-2025 Onerado'!F:F)),2) -> 433.9 | H73: =TRUNC(G73*(1+$H$5),2) -> 534.6 | I73: =TRUNC(F73*H73,2) -> 8019
A75: 12 | D75: PROJETO "AS IS" | I75: =SUM(I76) -> 19888.54
A76: 12.1 | D76: Levantamento topográfico e "AS IS" | I76: =SUM(I77:I78) -> 19888.54
A77: 12.1.1 | B77: ORSE | C77: 9346 | D77: Levantamento topográfico planimétrico cadastral | E77: m2 | F77: =F28 -> 21613 | G77: =TRUNC(0.35*(1-$H$9),2) -> 0.35 | H77: =TRUNC(G77*(1+$H$5),2) -> 0.43 | I77: =TRUNC(F77*H77,2) -> 9293.59
A78: 12.1.2 | B78: PRÓPRIA | C78: CPU.19 | D78: =(VLOOKUP(C78,CPU!$B$10:$C$302,2,0)) -> Projeto geométrico | E78: un | F78: 1 | G78: =TRUNC((1-$H$9)*(SUMIFS(CPU!$G:$G,CPU!$A:$A,CAIÇARA!$C78,CPU!$H:$H,"ss")+SUMIFS(CPU!$G:$G,CPU!$A:$A,CAIÇARA!$C78,CPU!$H:$H,"mdo")+SUMIF('Comp SINAPI PE 06-2025 Onerado'!B:B,CAIÇARA!C78,'Comp SINAPI PE 06-2025 Onerado'!E:E)+SUMIF('Ins SINAPI PE 06-2025 Onerado'!B:B,CAIÇARA!C78,'Ins SINAPI PE 06-2025 Onerado'!F:F)),2) -> 8599.1 | H78: =TRUNC(G78*(1+$H$5),2) -> 10594.95 | I78: =TRUNC(F78*H78,2) -> 10594.95
A80: 13 | D80: FISCALIZAÇÃO E ACOMPANHAMENTO | I80: =SUM(I81) -> 2829.84
A81: 13.1 | D81: Disponibilidade de veículo para apoio a fiscalização | I81: =SUM(I82:I83) -> 2829.84
A82: 13.1.1 | B82: PRÓPRIA | C82: CPU.21 | D82: =(VLOOKUP(C82,CPU!$B$10:$C$302,2,0)) -> Disponibilidade de veículo para apoio a fiscalização, inclusive combustível | E82: un | F82: 6 | G82: =TRUNC((1-$H$9)*(SUMIFS(CPU!$G:$G,CPU!$A:$A,CAIÇARA!$C82,CPU!$H:$H,"ss")+SUMIFS(CPU!$G:$G,CPU!$A:$A,CAIÇARA!$C82,CPU!$H:$H,"mdo")+SUMIF('Comp SINAPI PE 06-2025 Onerado'!B:B,CAIÇARA!C82,'Comp SINAPI PE 06-2025 Onerado'!E:E)+SUMIF('Ins SINAPI PE 06-2025 Onerado'!B:B,CAIÇARA!C82,'Ins SINAPI PE 06-2025 Onerado'!F:F)),2) -> 382.8 | H82: =TRUNC(G82*(1+$H$5),2) -> 471.64 | I82: =TRUNC(F82*H82,2) -> 2829.84
D84: TOTAL (Custo): | I84: =TRUNC(SUMPRODUCT(F15:F83,G15:G83),2) -> 834131.79
D85: BDI e Encargos Sociais: | I85: =I86-I84 -> 193510.39
D86: TOTAL GERAL COM BDI: | I86: =SUM(I14,I18,I26,I31,I37,I45,I49,I55,I64,I59,I69,I75,I80) -> 1027642.18 | L86: =TRUNC(SUMPRODUCT(F15:F83,H15:H83),2) -> 1027642.19

Sheet ALGODOES
A1: Ministério da Integração e do Desenvolvimento Regional
A2: Companhia de Desenvolvimento dos Vales do São Francisco e do Parnaíba
A4: PLANILHA ORÇAMENTÁRIA - ORÇAMENTO NÃO DESONERADO
A5: OBRA: | B5: =Resumo!B5 -> Execução de manutenção e recuperação nas barragens de Jacu, Caiçara, Algodoes, Manoel Rodrigues, Murici, Riacho dos Cavalos e Alto Grande, localizadas no estado de Pernambuco. | G5: BDI (serv.): | H5: ='BDI serv'!D23 -> 0.2321 | I5: Bancos de dados:
A6: LOCAL: | B6: =Resumo!B6 -> BARRAGENS DE PERNAMBUCO | G6: BDI (forn.): | H6: ='BDI forn'!D23 -> 0.1415 | I6: =Resumo!G6 -> JUN/25 - SINAPI
A7: DATA BASE: | B7: =Resumo!B7 -> 2025-07-01 | E7: Encargos sociais - Horistas: | H7: ='Encargos Sociais'!E49 -> 1.1384 | I7: =Resumo!G7 -> MAI/25 - ORSE
A8: PRAZO: | B8: 120 dias | E8: Encargos sociais - Mensalista: | H8: ='Encargos Sociais'!F49 -> 0.7011 | I8: =Resumo!G8 -> JAN/25 - SETOP
B9: =Resumo!B17 -> Algodoes | G9: Desconto: | H9: 0 | I9: =Resumo!G9 -> ABR/2025 - SICRO3
I10: =Resumo!G10 -> JAN/2025 - EMBASA
I11: =Resumo!G11 -> 028 - SEINFRA
A12: ITEM | B12: REFERÊNCIA | D12: DESCRIÇÃO | E12: UNID. | F12: QUANT. | G12: CUSTO UNITÁRIO | H12: PREÇO UNITÁRIO | I12: PREÇO TOTAL
B13: FONTE | C13: CÓDIGO
A14: 1 | D14: ADMINISTRAÇÃO DA OBRA | I14: =SUM(I15) -> 143223.64
A15: 1.1 | D15: Administração da Obra | I15: =SUM(I16:I16) -> 143223.64
A16: 1.1.1 | B16: PRÓPRIA | C16: CPU.01 | D16: =(VLOOKUP(C16,CPU!$B$10:$C$302,2,0)) -> Administração Local | E16: mês | F16: 4 | G16: =TRUNC((1-$H$9)*(SUMIFS(CPU!$G:$G,CPU!$A:$A,ALGODOES!$C16,CPU!$H:$H,"ss")+SUMIFS(CPU!$G:$G,CPU!$A:$A,ALGODOES!$C16,CPU!$H:$H,"mdo")+SUMIF('Comp SINAPI PE 06-2025 Onerado'!B:B,ALGODOES!C16,'Comp SINAPI PE 06-2025 Onerado'!E:E)+SUMIF('Ins SINAPI PE 06-2025 Onerado'!B:B,ALGODOES!C16,'Ins SINAPI PE 06-2025 Onerado'!F:F)),2) -> 29060.88 | H16: =TRUNC(G16*(1+$H$5),2) -> 35805.91 | I16: =TRUNC(F16*H16,2) -> 143223.64
A18: 2 | D18: SERVIÇOS PRELIMINARES | I18: =SUM(I19,I21,I23) -> 30051.26
A19: 2.1 | D19: Mobilização e desmobilização | I19: =SUM(I20) -> 3697.9
A20: 2.1.1 | B20: PRÓPRIA | C20: CPU.02 | D20: =(VLOOKUP(C20,CPU!$B$10:$C$302,2,0)) -> Mobilização e desmobilização de instalação do canteiro | E20: un | F20: 1 | G20: =TRUNC((1-$H$9)*(SUMIFS(CPU!$G:$G,CPU!$A:$A,ALGODOES!$C20,CPU!$H:$H,"ss")+SUMIFS(CPU!$G:$G,CPU!$A:$A,ALGODOES!$C20,CPU!$H:$H,"mdo")+SUMIF('Comp SINAPI PE 06-2025 Onerado'!B:B,ALGODOES!C20,'Comp SINAPI PE 06-2025 Onerado'!E:E)+SUMIF('Ins SINAPI PE 06-2025 Onerado'!B:B,ALGODOES!C20,'Ins SINAPI PE 06-2025 Onerado'!F:F)),2) -> 3001.3 | H20: =TRUNC(G20*(1+$H$5),2) -> 3697.9 | I20: =TRUNC(F20*H20,2) -> 3697.9
A21: 2.2 | D21: Canteiro de obras | I21: =SUM(I22) -> 25199.98
A22: 2.2.1 | B22: PRÓPRIA | C22: CPU.03 | D22: =(VLOOKUP(C22,CPU!$B$10:$C$302,2,0)) -> Execução de canteiro de obras, inclusive, limpeza, refeitório, sanitários e central de formas | E22: m2 | F22: 28.5 | G22: =TRUNC((1-$H$9)*(SUMIFS(CPU!$G:$G,CPU!$A:$A,ALGODOES!$C22,CPU!$H:$H,"ss")+SUMIFS(CPU!$G:$G,CPU!$A:$A,ALGODOES!$C22,CPU!$H:$H,"mdo")+SUMIF('Comp SINAPI PE 06-2025 Onerado'!B:B,ALGODOES!C22,'Comp SINAPI PE 06-2025 Onerado'!E:E)+SUMIF('Ins SINAPI PE 06-2025 Onerado'!B:B,ALGODOES!C22,'Ins SINAPI PE 06-2025 Onerado'!F:F)),2) -> 717.65 | H22: =TRUNC(G22*(1+$H$5),2) -> 884.21 | I22: =TRUNC(F22*H22,2) -> 25199.98
A23: 2.3 | D23: Sinalização | I23: =SUM(I24:I24) -> 1153.38
A24: 2.3.1 | B24: SINAPI | C24: 103689 | D24: =IF(J24="ca",VLOOKUP(C24,'Comp SINAPI PE 06-2025 Onerado'!$B$11:$C$9004,2,0),VLOOKUP(C24,'Ins SINAPI PE 06-2025 Onerado'!$B$10:$C$9004,2,0)) -> FORNECIMENTO E INSTALAÇÃO DE PLACA DE OBRA COM CHAPA GALVANIZADA E ESTRUTURA DE MADEIRA. AF_03/2022_PS | E24: =IF(J24="ca",VLOOKUP(C24,'Comp SINAPI PE 06-2025 Onerado'!$B$11:$D$9004,3,0),VLOOKUP(C24,'Ins SINAPI PE 06-2025 Onerado'!$B$11:$D$9004,3,0)) -> M2 | F24: 2 | G24: =TRUNC((1-$H$9)*(SUMIFS(CPU!$G:$G,CPU!$A:$A,ALGODOES!$C24,CPU!$H:$H,"ss")+SUMIFS(CPU!$G:$G,CPU!$A:$A,ALGODOES!$C24,CPU!$H:$H,"mdo")+SUMIF('Comp SINAPI PE 06-2025 Onerado'!B:B,ALGODOES!C24,'Comp SINAPI PE 06-2025 Onerado'!E:E)+SUMIF('Ins SINAPI PE 06-2025 Onerado'!B:B,ALGODOES!C24,'Ins SINAPI PE 06-2025 Onerado'!F:F)),2) -> 468.06 | H24: =TRUNC(G24*(1+$H$5),2) -> 576.69 | I24: =TRUNC(F24*H24,2) -> 1153.38 | J24: ca
A26: 3 | D26: CORTE DA VEGETAÇÃO E REMOÇÃO DAS RAIZES | I26: =SUM(I27,I30) -> 223343.59
A27: 3.1 | D27: Remoção da vegetação | I27: =SUM(I28:I29) -> 170733.49
A28: 3.1.1 | B28: PRÓPRIA | C28: CPU.04 | D28: =(VLOOKUP(C28,CPU!$B$10:$C$302,2,0)) -> Limpeza de vegetação | E28: =(VLOOKUP(C28,CPU!B2:D$408,3,0)) -> m2 | F28: 14527 | G28: =TRUNC((1-$H$9)*(SUMIFS(CPU!$G:$G,CPU!$A:$A,ALGODOES!$C28,CPU!$H:$H,"ss")+SUMIFS(CPU!$G:$G,CPU!$A:$A,ALGODOES!$C28,CPU!$H:$H,"mdo")+SUMIF('Comp SINAPI PE 06-2025 Onerado'!B:B,ALGODOES!C28,'Comp SINAPI PE 06-2025 Onerado'!E:E)+SUMIF('Ins SINAPI PE 06-2025 Onerado'!B:B,ALGODOES!C28,'Ins SINAPI PE 06-2025 Onerado'!F:F)),2) -> 7.85 | H28: =TRUNC(G28*(1+$H$5),2) -> 9.67 | I28: =TRUNC(F28*H28,2) -> 140476.09
A29: 3.1.2 | B29: PRÓPRIA | C29: CPU.05 | D29: =(VLOOKUP(C29,CPU!$B$10:$C$302,2,0)) -> Corte de tronco e remoção de raiz | E29: =(VLOOKUP(C29,CPU!B3:D$408,3,0)) -> un | F29: 60 | G29: =TRUNC((1-$H$9)*(SUMIFS(CPU!$G:$G,CPU!$A:$A,ALGODOES!$C29,CPU!$H:$H,"ss")+SUMIFS(CPU!$G:$G,CPU!$A:$A,ALGODOES!$C29,CPU!$H:$H,"mdo")+SUMIF('Comp SINAPI PE 06-2025 Onerado'!B:B,ALGODOES!C29,'Comp SINAPI PE 06-2025 Onerado'!E:E)+SUMIF('Ins SINAPI PE 06-2025 Onerado'!B:B,ALGODOES!C29,'Ins SINAPI PE 06-2025 Onerado'!F:F)),2) -> 409.3 | H29: =TRUNC(G29*(1+$H$5),2) -> 504.29 | I29: =TRUNC(F29*H29,2) -> 30257.4
A30: 3.2 | D30: Remoção da vegetação aquática | I30: =SUM(I31:I32) -> 52610.1
A31: 3.2.1 | B31: PRÓPRIA | C31: CPU.26 | D31: =(VLOOKUP(C31,CPU!$B$10:$C$302,2,0)) -> Remoção de vegetação aquática | E31: =(VLOOKUP(C31,CPU!B5:D$408,3,0)) -> m2 | F31: 3118.56 | G31: =TRUNC((1-$H$9)*(SUMIFS(CPU!$G:$G,CPU!$A:$A,ALGODOES!$C31,CPU!$H:$H,"ss")+SUMIFS(CPU!$G:$G,CPU!$A:$A,ALGODOES!$C31,CPU!$H:$H,"mdo")+SUMIF('Comp SINAPI PE 06-2025 Onerado'!B:B,ALGODOES!C31,'Comp SINAPI PE 06-2025 Onerado'!E:E)+SUMIF('Ins SINAPI PE 06-2025 Onerado'!B:B,ALGODOES!C31,'Ins SINAPI PE 06-2025 Onerado'!F:F)),2) -> 13.7 | H31: =TRUNC(G31*(1+$H$5),2) -> 16.87 | I31: =TRUNC(F31*H31,2) -> 52610.1
A33: 4 | D33: RECUPERAÇÃO DO MACIÇO | I33: =SUM(I34,I36) -> 76806.28
A34: 4.1 | D34: Recomposição das Erosões (erosões locais nas ombreiras e aterro), trincas e buracos | I34: =I35 -> 76109.56
A35: 4.1.1 | B35: PRÓPRIA | C35: CPU.12 | D35: =(VLOOKUP(C35,CPU!$B$10:$C$302,2,0)) -> Recomposição das erosões, inclusive, regularização da superfície e reaterro | E35: =(VLOOKUP(C35,CPU!B4:D$408,3,0)) -> m3 | F35: 202 | G35: =TRUNC((1-$H$9)*(SUMIFS(CPU!$G:$G,CPU!$A:$A,ALGODOES!$C35,CPU!$H:$H,"ss")+SUMIFS(CPU!$G:$G,CPU!$A:$A,ALGODOES!$C35,CPU!$H:$H,"mdo")+SUMIF('Comp SINAPI PE 06-2025 Onerado'!B:B,ALGODOES!C35,'Comp SINAPI PE 06-2025 Onerado'!E:E)+SUMIF('Ins SINAPI PE 06-2025 Onerado'!B:B,ALGODOES!C35,'Ins SINAPI PE 06-2025 Onerado'!F:F)),2) -> 305.81 | H35: =TRUNC(G35*(1+$H$5),2) -> 376.78 | I35: =TRUNC(F35*H35,2) -> 76109.56
A36: 4.2 | D36: Injeção de nata de cimento em buracos | I36: =SUM(I37:I37) -> 696.72
A37: 4.2.1 | B37: PRÓPRIA | C37: CPU.20 | D37: =(VLOOKUP(C37,CPU!$B$10:$C$302,2,0)) -> Injeção de nata de cimento em buracos | E37: =(VLOOKUP(C37,CPU!B6:D$408,3,0)) -> m3 | F37: 0.5 | G37: =TRUNC((1-$H$9)*(SUMIFS(CPU!$G:$G,CPU!$A:$A,ALGODOES!$C37,CPU!$H:$H,"ss")+SUMIFS(CPU!$G:$G,CPU!$A:$A,ALGODOES!$C37,CPU!$H:$H,"mdo")+SUMIF('Comp SINAPI PE 06-2025 Onerado'!B:B,ALGODOES!C37,'Comp SINAPI PE 06-2025 Onerado'!E:E)+SUMIF('Ins SINAPI PE 06-2025 Onerado'!B:B,ALGODOES!C37,'Ins SINAPI PE 06-2025 Onerado'!F:F)),2) -> 1130.96 | H37: =TRUNC(G37*(1+$H$5),2) -> 1393.45 | I37: =TRUNC(F37*H37,2) -> 696.72
A39: 5 | D39: REGULARIZAÇÃO E PAVIMENTAÇÃO DA CRISTA | I39: =SUM(I40,I42,I44) -> 209932.4
A40: 5.1 | D40: Limpeza e Regularização da Crista | I40: =SUM(I41:I41) -> 8394.96
A41: 5.1.2 | B41: PRÓPRIA | C41: CPU.13 | D41: =(VLOOKUP(C41,CPU!$B$10:$C$302,2,0)) -> Regularização e compactação da crista | E41: =(VLOOKUP(C41,CPU!B10:D302,3,0)) -> m2 | F41: 2104 | G41: =TRUNC((1-$H$9)*(SUMIFS(CPU!$G:$G,CPU!$A:$A,ALGODOES!$C41,CPU!$H:$H,"ss")+SUMIFS(CPU!$G:$G,CPU!$A:$A,ALGODOES!$C41,CPU!$H:$H,"mdo")+SUMIF('Comp SINAPI PE 06-2025 Onerado'!B:B,ALGODOES!C41,'Comp SINAPI PE 06-2025 Onerado'!E:E)+SUMIF('Ins SINAPI PE 06-2025 Onerado'!B:B,ALGODOES!C41,'Ins SINAPI PE 06-2025 Onerado'!F:F)),2) -> 3.24 | H41: =TRUNC(G41*(1+$H$5),2) -> 3.99 | I41: =TRUNC(F41*H41,2) -> 8394.96
A42: 5.2 | D42: Instalação de meio-fio e sarjeta em ambos os lados da crista | I42: =SUM(I43:I43) -> 22188.48
A43: 5.2.1 | B43: PRÓPRIA | C43: CPU.16 | D43: =(VLOOKUP(C43,CPU!$B$10:$C$302,2,0)) -> Fornecimento e Assentamento de Guia (meio-fio) Pré-fabricado, dimensões 100x15x20 cm (comprimento x base x altura) | E43: =(VLOOKUP(C43,CPU!B11:D303,3,0)) -> m | F43: 232 | G43: =TRUNC((1-$H$9)*(SUMIFS(CPU!$G:$G,CPU!$A:$A,ALGODOES!$C43,CPU!$H:$H,"ss")+SUMIFS(CPU!$G:$G,CPU!$A:$A,ALGODOES!$C43,CPU!$H:$H,"mdo")+SUMIF('Comp SINAPI PE 06-2025 Onerado'!B:B,ALGODOES!C43,'Comp SINAPI PE 06-2025 Onerado'!E:E)+SUMIF('Ins SINAPI PE 06-2025 Onerado'!B:B,ALGODOES!C43,'Ins SINAPI PE 06-2025 Onerado'!F:F)),2) -> 77.63 | H43: =TRUNC(G43*(1+$H$5),2) -> 95.64 | I43: =TRUNC(F43*H43,2) -> 22188.48
A44: 5.3 | D44: Pavimentação da Crista | I44: =SUM(I45:I45) -> 179348.96
A45: 5.3.1 | B45: PRÓPRIA | C45: CPU.14 | D45: =(VLOOKUP(C45,CPU!$B$10:$C$302,2,0)) -> Execução de Revestimento com BGTC | E45: =(VLOOKUP(C45,CPU!B14:D306,3,0)) -> m3 | F45: 316 | G45: =TRUNC((1-$H$9)*(SUMIFS(CPU!$G:$G,CPU!$A:$A,ALGODOES!$C45,CPU!$H:$H,"ss")+SUMIFS(CPU!$G:$G,CPU!$A:$A,ALGODOES!$C45,CPU!$H:$H,"mdo")+SUMIF('Comp SINAPI PE 06-2025 Onerado'!B:B,ALGODOES!C45,'Comp SINAPI PE 06-2025 Onerado'!E:E)+SUMIF('Ins SINAPI PE 06-2025 Onerado'!B:B,ALGODOES!C45,'Ins SINAPI PE 06-2025 Onerado'!F:F)),2) -> 460.65 | H45: =TRUNC(G45*(1+$H$5),2) -> 567.56 | I45: =TRUNC(F45*H45,2) -> 179348.96
A47: 6 | D47: MANUTENÇÃO NO TALUDE DE MONTANTE | I47: =SUM(I48) -> 27050.94
A48: 6.1 | D48: Enrocamento com pedra de mão para proteção do talude | I48: =SUM(I49:I49) -> 27050.94
A49: 6.1.1 | B49: PRÓPRIA | C49: CPU.06 | D49: =(VLOOKUP(C49,CPU!$B$10:$C$302,2,0)) -> Enrocamento c/ pedra de mão c/ fornecimento e assentamento | E49: =(VLOOKUP(C49,CPU!B24:D408,3,0)) -> m3 | F49: 63 | G49: =TRUNC((1-$H$9)*(SUMIFS(CPU!$G:$G,CPU!$A:$A,ALGODOES!$C49,CPU!$H:$H,"ss")+SUMIFS(CPU!$G:$G,CPU!$A:$A,ALGODOES!$C49,CPU!$H:$H,"mdo")+SUMIF('Comp SINAPI PE 06-2025 Onerado'!B:B,ALGODOES!C49,'Comp SINAPI PE 06-2025 Onerado'!E:E)+SUMIF('Ins SINAPI PE 06-2025 Onerado'!B:B,ALGODOES!C49,'Ins SINAPI PE 06-2025 Onerado'!F:F)),2) -> 348.5 | H49: =TRUNC(G49*(1+$H$5),2) -> 429.38 | I49: =TRUNC(F49*H49,2) -> 27050.94
A51: 7 | D51: DRENAGEM SUPERFICIAL DO TALUDE DE JUSANTE | I51: =SUM(I52,I54) -> 36342.16
A52: 7.1 | D52: Canaleta para descida d'água | I52: =I53 -> 34481.58
A53: 7.1.1 | B53: PRÓPRIA | C53: CPU.07 | D53: =(VLOOKUP(C53,CPU!$B$10:$C$302,2,0)) -> Canaleta meia cana de concreto (D=30cm) - Fornecimento e instalação | E53: =(VLOOKUP(C53,CPU!B18:D310,3,0)) -> m | F53: 174 | G53: =TRUNC((1-$H$9)*(SUMIFS(CPU!$G:$G,CPU!$A:$A,ALGODOES!$C53,CPU!$H:$H,"ss")+SUMIFS(CPU!$G:$G,CPU!$A:$A,ALGODOES!$C53,CPU!$H:$H,"mdo")+SUMIF('Comp SINAPI PE 06-2025 Onerado'!B:B,ALGODOES!C53,'Comp SINAPI PE 06-2025 Onerado'!E:E)+SUMIF('Ins SINAPI PE 06-2025 Onerado'!B:B,ALGODOES!C53,'Ins SINAPI PE 06-2025 Onerado'!F:F)),2) -> 160.84 | H53: =TRUNC(G53*(1+$H$5),2) -> 198.17 | I53: =TRUNC(F53*H53,2) -> 34481.58
A54: 7.2 | D54: Entrada para descida d'água | I54: =I55 -> 1860.58
A55: 7.2.1 | B55: PRÓPRIA | C55: CPU.08 | D55: =(VLOOKUP(C55,CPU!$B$10:$C$302,2,0)) -> Entrada para descida d'água | E55: =(VLOOKUP(C55,CPU!B20:D408,3,0)) -> un | F55: =F53/20 -> 8.7 | G55: =TRUNC((1-$H$9)*(SUMIFS(CPU!$G:$G,CPU!$A:$A,ALGODOES!$C55,CPU!$H:$H,"ss")+SUMIFS(CPU!$G:$G,CPU!$A:$A,ALGODOES!$C55,CPU!$H:$H,"mdo")+SUMIF('Comp SINAPI PE 06-2025 Onerado'!B:B,ALGODOES!C55,'Comp SINAPI PE 06-2025 Onerado'!E:E)+SUMIF('Ins SINAPI PE 06-2025 Onerado'!B:B,ALGODOES!C55,'Ins SINAPI PE 06-2025 Onerado'!F:F)),2) -> 173.58 | H55: =TRUNC(G55*(1+$H$5),2) -> 213.86 | I55: =TRUNC(F55*H55,2) -> 1860.58
A57: 8 | D57: PROTEÇÃO SUPERFICIAL DO TALUDE DE JUSANTE | I57: =SUM(I58) -> 48044.88
A58: 8.1 | D58: Proteção vegetal | I58: =SUM(I59:I59) -> 48044.88
A59: 8.1.1 | B59: PRÓPRIA | C59: CPU.09 | D59: =(VLOOKUP(C59,CPU!$B$10:$C$302,2,0)) -> Plantio de vegetação para proteção de talude com hidrossemeadura, inclusive adubação e transporte | E59: =(VLOOKUP(C59,CPU!B28:D408,3,0)) -> m2 | F59: 3186 | G59: =TRUNC((1-$H$9)*(SUMIFS(CPU!$G:$G,CPU!$A:$A,ALGODOES!$C59,CPU!$H:$H,"ss")+SUMIFS(CPU!$G:$G,CPU!$A:$A,ALGODOES!$C59,CPU!$H:$H,"mdo")+SUMIF('Comp SINAPI PE 06-2025 Onerado'!B:B,ALGODOES!C59,'Comp SINAPI PE 06-2025 Onerado'!E:E)+SUMIF('Ins SINAPI PE 06-2025 Onerado'!B:B,ALGODOES!C59,'Ins SINAPI PE 06-2025 Onerado'!F:F)),2) -> 12.24 | H59: =TRUNC(G59*(1+$H$5),2) -> 15.08 | I59: =TRUNC(F59*H59,2) -> 48044.88
A61: 9 | D61: RESTAURAÇÃO DA SOLEIRA DO VERTEDOURO | I61: =SUM(I62) -> 14768.91
A62: 9.1 | D62: Restauração da soleira do vertedouro | I62: =SUM(I63:I65) -> 14768.91
A63: 9.1.1 | B63: PRÓPRIA | C63: CPU.18 | D63: =(VLOOKUP(C63,CPU!$B$10:$C$302,2,0)) -> Limpeza da superfície | E63: =(VLOOKUP(C63,CPU!B32:D420,3,0)) -> m2 | F63: 98 | G63: =TRUNC((1-$H$9)*(SUMIFS(CPU!$G:$G,CPU!$A:$A,ALGODOES!$C63,CPU!$H:$H,"ss")+SUMIFS(CPU!$G:$G,CPU!$A:$A,ALGODOES!$C63,CPU!$H:$H,"mdo")+SUMIF('Comp SINAPI PE 06-2025 Onerado'!B:B,ALGODOES!C63,'Comp SINAPI PE 06-2025 Onerado'!E:E)+SUMIF('Ins SINAPI PE 06-2025 Onerado'!B:B,ALGODOES!C63,'Ins SINAPI PE 06-2025 Onerado'!F:F)),2) -> 6.5 | H63: =TRUNC(G63*(1+$H$5),2) -> 8 | I63: =TRUNC(F63*H63,2) -> 784
A64: 9.1.2 | B64: PRÓPRIA | C64: CPU.24 | D64: =(VLOOKUP(C64,CPU!$B$10:$C$302,2,0)) -> Selagem de fissuras com resina epóxi | E64: =(VLOOKUP(C64,CPU!B32:D420,3,0)) -> m | F64: =ROUND(4/0.3,2) -> 13.33 | G64: =TRUNC((1-$H$9)*(SUMIFS(CPU!$G:$G,CPU!$A:$A,ALGODOES!$C64,CPU!$H:$H,"ss")+SUMIFS(CPU!$G:$G,CPU!$A:$A,ALGODOES!$C64,CPU!$H:$H,"mdo")+SUMIF('Comp SINAPI PE 06-2025 Onerado'!B:B,ALGODOES!C64,'Comp SINAPI PE 06-2025 Onerado'!E:E)+SUMIF('Ins SINAPI PE 06-2025 Onerado'!B:B,ALGODOES!C64,'Ins SINAPI PE 06-2025 Onerado'!F:F)),2) -> 69.84 | H64: =TRUNC(G64*(1+$H$5),2) -> 86.04 | I64: =TRUNC(F64*H64,2) -> 1146.91
A65: 9.1.3 | B65: PRÓPRIA | C65: CPU.17 | D65: =(VLOOKUP(C65,CPU!$B$10:$C$302,2,0)) -> Emboço ou massa única em argamassa | E65: =(VLOOKUP(C65,CPU!B33:D421,3,0)) -> m2 | F65: 98 | G65: =TRUNC((1-$H$9)*(SUMIFS(CPU!$G:$G,CPU!$A:$A,ALGODOES!$C65,CPU!$H:$H,"ss")+SUMIFS(CPU!$G:$G,CPU!$A:$A,ALGODOES!$C65,CPU!$H:$H,"mdo")+SUMIF('Comp SINAPI PE 06-2025 Onerado'!B:B,ALGODOES!C65,'Comp SINAPI PE 06-2025 Onerado'!E:E)+SUMIF('Ins SINAPI PE 06-2025 Onerado'!B:B,ALGODOES!C65,'Ins SINAPI PE 06-2025 Onerado'!F:F)),2) -> 106.33 | H65: =TRUNC(G65*(1+$H$5),2) -> 131 | I65: =TRUNC(F65*H65,2) -> 12838
A67: 10 | D67: RECUPERAÇÃO DA BACIA AMORTECEDORA | I67: =SUM(I68) -> 70317.97
A68: 10.1 | D68: Recuperação bacia amortecedora | I68: =SUM(I69:I72) -> 70317.97
A69: 10.1.1 | B69: PRÓPRIA | C69: CPU.10 | D69: =(VLOOKUP(C69,CPU!$B$10:$C$302,2,0)) -> Apicoamento da superfície | E69: =(VLOOKUP(C69,CPU!B37:D425,3,0)) -> m2 | F69: 450 | G69: =TRUNC((1-$H$9)*(SUMIFS(CPU!$G:$G,CPU!$A:$A,ALGODOES!$C69,CPU!$H:$H,"ss")+SUMIFS(CPU!$G:$G,CPU!$A:$A,ALGODOES!$C69,CPU!$H:$H,"mdo")+SUMIF('Comp SINAPI PE 06-2025 Onerado'!B:B,ALGODOES!C69,'Comp SINAPI PE 06-2025 Onerado'!E:E)+SUMIF('Ins SINAPI PE 06-2025 Onerado'!B:B,ALGODOES!C69,'Ins SINAPI PE 06-2025 Onerado'!F:F)),2) -> 33.73 | H69: =TRUNC(G69*(1+$H$5),2) -> 41.55 | I69: =TRUNC(F69*H69,2) -> 18697.5
A70: 10.1.2 | B70: PRÓPRIA | C70: CPU.18 | D70: =(VLOOKUP(C70,CPU!$B$10:$C$302,2,0)) -> Limpeza da superfície | E70: =(VLOOKUP(C70,CPU!B38:D426,3,0)) -> m2 | F70: 450 | G70: =TRUNC((1-$H$9)*(SUMIFS(CPU!$G:$G,CPU!$A:$A,ALGODOES!$C70,CPU!$H:$H,"ss")+SUMIFS(CPU!$G:$G,CPU!$A:$A,ALGODOES!$C70,CPU!$H:$H,"mdo")+SUMIF('Comp SINAPI PE 06-2025 Onerado'!B:B,ALGODOES!C70,'Comp SINAPI PE 06-2025 Onerado'!E:E)+SUMIF('Ins SINAPI PE 06-2025 Onerado'!B:B,ALGODOES!C70,'Ins SINAPI PE 06-2025 Onerado'!F:F)),2) -> 6.5 | H70: =TRUNC(G70*(1+$H$5),2) -> 8 | I70: =TRUNC(F70*H70,2) -> 3600
A71: 10.1.3 | B71: PRÓPRIA | C71: CPU.23 | D71: =(VLOOKUP(C71,CPU!$B$10:$C$302,2,0)) -> Concreto projetado c/ aditivo impermeabilizante | E71: =(VLOOKUP(C71,CPU!B37:D425,3,0)) -> m3 | F71: 11.3 | G71: =TRUNC((1-$H$9)*(SUMIFS(CPU!$G:$G,CPU!$A:$A,ALGODOES!$C71,CPU!$H:$H,"ss")+SUMIFS(CPU!$G:$G,CPU!$A:$A,ALGODOES!$C71,CPU!$H:$H,"mdo")+SUMIF('Comp SINAPI PE 06-2025 Onerado'!B:B,ALGODOES!C71,'Comp SINAPI PE 06-2025 Onerado'!E:E)+SUMIF('Ins SINAPI PE 06-2025 Onerado'!B:B,ALGODOES!C71,'Ins SINAPI PE 06-2025 Onerado'!F:F)),2) -> 1688.38 | H71: =TRUNC(G71*(1+$H$5),2) -> 2080.25 | I71: =TRUNC(F71*H71,2) -> 23506.82
A72: 10.1.4 | B72: PRÓPRIA | C72: CPU.25 | D72: =(VLOOKUP(C72,CPU!$B$10:$C$302,2,0)) -> Restauração com uso de concreto | E72: =(VLOOKUP(C72,CPU!B38:D426,3,0)) -> m3 | F72: 11.3 | G72: =TRUNC((1-$H$9)*(SUMIFS(CPU!$G:$G,CPU!$A:$A,ALGODOES!$C72,CPU!$H:$H,"ss")+SUMIFS(CPU!$G:$G,CPU!$A:$A,ALGODOES!$C72,CPU!$H:$H,"mdo")+SUMIF('Comp SINAPI PE 06-2025 Onerado'!B:B,ALGODOES!C72,'Comp SINAPI PE 06-2025 Onerado'!E:E)+SUMIF('Ins SINAPI PE 06-2025 Onerado'!B:B,ALGODOES!C72,'Ins SINAPI PE 06-2025 Onerado'!F:F)),2) -> 1760.7 | H72: =TRUNC(G72*(1+$H$5),2) -> 2169.35 | I72: =TRUNC(F72*H72,2) -> 24513.65
A74: 11 | D74: SERVIÇOS COMPLEMENTARES | I74: =SUM(I75,I77) -> 7652.76
A75: 11.1 | D75: Instalação de placas de aviso | I75: =SUM(I76:I76) -> 2306.76
A76: 11.1.1 | B76: SINAPI | C76: 103689 | D76: =IF(J76="ca",VLOOKUP(C76,'Comp SINAPI PE 06-2025 Onerado'!$B$11:$C$9004,2,0),VLOOKUP(C76,'Ins SINAPI PE 06-2025 Onerado'!$B$10:$C$9004,2,0)) -> FORNECIMENTO E INSTALAÇÃO DE PLACA DE OBRA COM CHAPA GALVANIZADA E ESTRUTURA DE MADEIRA. AF_03/2022_PS | E76: =IF(J76="ca",VLOOKUP(C76,'Comp SINAPI PE 06-2025 Onerado'!$B$11:$D$9004,3,0),VLOOKUP(C76,'Ins SINAPI PE 06-2025 Onerado'!$B$11:$D$9004,3,0)) -> M2 | F76: 4 | G76: =TRUNC((1-$H$9)*(SUMIFS(CPU!$G:$G,CPU!$A:$A,ALGODOES!$C76,CPU!$H:$H,"ss")+SUMIFS(CPU!$G:$G,CPU!$A:$A,ALGODOES!$C76,CPU!$H:$H,"mdo")+SUMIF('Comp SINAPI PE 06-2025 Onerado'!B:B,ALGODOES!C76,'Comp SINAPI PE 06-2025 Onerado'!E:E)+SUMIF('Ins SINAPI PE 06-2025 Onerado'!B:B,ALGODOES!C76,'Ins SINAPI PE 06-2025 Onerado'!F:F)),2) -> 468.06 | H76: =TRUNC(G76*(1+$H$5),2) -> 576.69 | I76: =TRUNC(F76*H76,2) -> 2306.76 | J76: ca
A77: 11.2 | D77: Régua Linimétrica Padrão “ANA”, Aço Carbono - 2 X 70 X 1000 mm (Fornecimento e Instalação) | I77: =SUM(I78:I78) -> 5346
A78: 11.2.1 | B78: PRÓPRIA | C78: CPU.15 | D78: =(VLOOKUP(C78,CPU!$B$10:$C$302,2,0)) -> Régua Linimétrica Padrão “ANA”, Aço Carbono - 2 X 70 X 1000 mm (Fornecimento e Instalação) | E78: un | F78: 10 | G78: =TRUNC((1-$H$9)*(SUMIFS(CPU!$G:$G,CPU!$A:$A,ALGODOES!$C78,CPU!$H:$H,"ss")+SUMIFS(CPU!$G:$G,CPU!$A:$A,ALGODOES!$C78,CPU!$H:$H,"mdo")+SUMIF('Comp SINAPI PE 06-2025 Onerado'!B:B,ALGODOES!C78,'Comp SINAPI PE 06-2025 Onerado'!E:E)+SUMIF('Ins SINAPI PE 06-2025 Onerado'!B:B,ALGODOES!C78,'Ins SINAPI PE 06-2025 Onerado'!F:F)),2) -> 433.9 | H78: =TRUNC(G78*(1+$H$5),2) -> 534.6 | I78: =TRUNC(F78*H78,2) -> 5346
A80: 12 | D80: PROJETO "AS IS" | I80: =SUM(I81) -> 16841.56
A81: 12.1 | D81: Levantamento topográfico e "AS IS" | I81: =SUM(I82:I83) -> 16841.56
A82: 12.1.1 | B82: ORSE | C82: 9346 | D82: Levantamento topográfico planimétrico cadastral | E82: m2 | F82: =F28 -> 14527 | G82: =TRUNC(0.35*(1-$H$9),2) -> 0.35 | H82: =TRUNC(G82*(1+$H$5),2) -> 0.43 | I82: =TRUNC(F82*H82,2) -> 6246.61
A83: 12.1.2 | B83: PRÓPRIA | C83: CPU.19 | D83: =(VLOOKUP(C83,CPU!$B$10:$C$302,2,0)) -> Projeto geométrico | E83: un | F83: 1 | G83: =TRUNC((1-$H$9)*(SUMIFS(CPU!$G:$G,CPU!$A:$A,ALGODOES!$C83,CPU!$H:$H,"ss")+SUMIFS(CPU!$G:$G,CPU!$A:$A,ALGODOES!$C83,CPU!$H:$H,"mdo")+SUMIF('Comp SINAPI PE 06-2025 Onerado'!B:B,ALGODOES!C83,'Comp SINAPI PE 06-2025 Onerado'!E:E)+SUMIF('Ins SINAPI PE 06-2025 Onerado'!B:B,ALGODOES!C83,'Ins SINAPI PE 06-2025 Onerado'!F:F)),2) -> 8599.1 | H83: =TRUNC(G83*(1+$H$5),2) -> 10594.95 | I83: =TRUNC(F83*H83,2) -> 10594.95
A85: 13 | D85: FISCALIZAÇÃO E ACOMPANHAMENTO | I85: =SUM(I86) -> 2829.84
A86: 13.1 | D86: Disponibilidade de veículo para apoio a fiscalização | I86: =SUM(I87:I88) -> 2829.84
A87: 13.1.1 | B87: PRÓPRIA | C87: CPU.21 | D87: =(VLOOKUP(C87,CPU!$B$10:$C$302,2,0)) -> Disponibilidade de veículo para apoio a fiscalização, inclusive combustível | E87: un | F87: 6 | G87: =TRUNC((1-$H$9)*(SUMIFS(CPU!$G:$G,CPU!$A:$A,ALGODOES!$C87,CPU!$H:$H,"ss")+SUMIFS(CPU!$G:$G,CPU!$A:$A,ALGODOES!$C87,CPU!$H:$H,"mdo")+SUMIF('Comp SINAPI PE 06-2025 Onerado'!B:B,ALGODOES!C87,'Comp SINAPI PE 06-2025 Onerado'!E:E)+SUMIF('Ins SINAPI PE 06-2025 Onerado'!B:B,ALGODOES!C87,'Ins SINAPI PE 06-2025 Onerado'!F:F)),2) -> 382.8 | H87: =TRUNC(G87*(1+$H$5),2) -> 471.64 | I87: =TRUNC(F87*H87,2) -> 2829.84
D89: TOTAL (Custo): | I89: =TRUNC(SUMPRODUCT(F15:F88,G15:G88),2) -> 736391.25
D90: BDI e Encargos Sociais: | I90: =I91-I89 -> 170814.94
D91: TOTAL GERAL COM BDI: | I91: =SUM(I14,I18,I26,I33,I39,I47,I51,I57,I61,I67,I74,I80,I85) -> 907206.19 | L91: =TRUNC(SUMPRODUCT(F15:F88,H15:H88),2) -> 907206.22

Sheet MANOEL RODRIGUES
A1: Ministério da Integração e do Desenvolvimento Regional
A2: Companhia de Desenvolvimento dos Vales do São Francisco e do Parnaíba
A4: PLANILHA ORÇAMENTÁRIA - ORÇAMENTO NÃO DESONERADO
A5: OBRA: | B5: =Resumo!B5 -> Execução de manutenção e recuperação nas barragens de Jacu, Caiçara, Algodoes, Manoel Rodrigues, Murici, Riacho dos Cavalos e Alto Grande, localizadas no estado de Pernambuco. | G5: BDI (serv.): | H5: ='BDI serv'!D23 -> 0.2321 | I5: Bancos de dados:
A6: LOCAL: | B6: =Resumo!B6 -> BARRAGENS DE PERNAMBUCO | G6: BDI (forn.): | H6: ='BDI forn'!D23 -> 0.1415 | I6: =Resumo!G6 -> JUN/25 - SINAPI
A7: DATA BASE: | B7: =Resumo!B7 -> 2025-07-01 | E7: Encargos sociais - Horistas: | H7: ='Encargos Sociais'!E49 -> 1.1384 | I7: =Resumo!G7 -> MAI/25 - ORSE
A8: PRAZO: | B8: 90 dias | E8: Encargos sociais - Mensalista: | H8: ='Encargos Sociais'!F49 -> 0.7011 | I8: =Resumo!G8 -> JAN/25 - SETOP
B9: =Resumo!B18 -> Manoel Rodrigues | G9: Desconto: | H9: 0 | I9: =Resumo!G9 -> ABR/2025 - SICRO3
I10: =Resumo!G10 -> JAN/2025 - EMBASA
I11: =Resumo!G11 -> 028 - SEINFRA
A12: ITEM | B12: REFERÊNCIA | D12: DESCRIÇÃO | E12: UNID. | F12: QUANT. | G12: CUSTO UNITÁRIO | H12: PREÇO UNITÁRIO | I12: PREÇO TOTAL
B13: FONTE | C13: CÓDIGO
A14: 1 | D14: ADMINISTRAÇÃO DA OBRA | I14: =SUM(I15) -> 107417.73
A15: 1.1 | D15: Administração da Obra | I15: =SUM(I16:I16) -> 107417.73
A16: 1.1.1 | B16: PRÓPRIA | C16: CPU.01 | D16: =(VLOOKUP(C16,CPU!$B$10:$C$302,2,0)) -> Administração Local | E16: mês | F16: 3 | G16: =TRUNC((1-$H$9)*(SUMIFS(CPU!$G:$G,CPU!$A:$A,'MANOEL RODRIGUES'!$C16,CPU!$H:$H,"ss")+SUMIFS(CPU!$G:$G,CPU!$A:$A,'MANOEL RODRIGUES'!$C16,CPU!$H:$H,"mdo")+SUMIF('Comp SINAPI PE 06-2025 Onerado'!B:B,'MANOEL RODRIGUES'!C16,'Comp SINAPI PE 06-2025 Onerado'!E:E)+SUMIF('Ins SINAPI PE 06-2025 Onerado'!B:B,'MANOEL RODRIGUES'!C16,'Ins SINAPI PE 06-2025 Onerado'!F:F)),2) -> 29060.88 | H16: =TRUNC(G16*(1+$H$5),2) -> 35805.91 | I16: =TRUNC(F16*H16,2) -> 107417.73
A18: 2 | D18: SERVIÇOS PRELIMINARES | I18: =SUM(I19,I21,I23) -> 30051.26
A19: 2.1 | D19: Mobilização e desmobilização | I19: =SUM(I20) -> 3697.9
A20: 2.1.1 | B20: PRÓPRIA | C20: CPU.02 | D20: =(VLOOKUP(C20,CPU!$B$10:$C$302,2,0)) -> Mobilização e desmobilização de instalação do canteiro | E20: un | F20: 1 | G20: =TRUNC((1-$H$9)*(SUMIFS(CPU!$G:$G,CPU!$A:$A,'MANOEL RODRIGUES'!$C20,CPU!$H:$H,"ss")+SUMIFS(CPU!$G:$G,CPU!$A:$A,'MANOEL RODRIGUES'!$C20,CPU!$H:$H,"mdo")+SUMIF('Comp SINAPI PE 06-2025 Onerado'!B:B,'MANOEL RODRIGUES'!C20,'Comp SINAPI PE 06-2025 Onerado'!E:E)+SUMIF('Ins SINAPI PE 06-2025 Onerado'!B:B,'MANOEL RODRIGUES'!C20,'Ins SINAPI PE 06-2025 Onerado'!F:F)),2) -> 3001.3 | H20: =TRUNC(G20*(1+$H$5),2) -> 3697.9 | I20: =TRUNC(F20*H20,2) -> 3697.9
A21: 2.2 | D21: Canteiro de obras | I21: =SUM(I22) -> 25199.98
A22: 2.2.1 | B22: PRÓPRIA | C22: CPU.03 | D22: =(VLOOKUP(C22,CPU!$B$10:$C$302,2,0)) -> Execução de canteiro de obras, inclusive, limpeza, refeitório, sanitários e central de formas | E22: m2 | F22: 28.5 | G22: =TRUNC((1-$H$9)*(SUMIFS(CPU!$G:$G,CPU!$A:$A,'MANOEL RODRIGUES'!$C22,CPU!$H:$H,"ss")+SUMIFS(CPU!$G:$G,CPU!$A:$A,'MANOEL RODRIGUES'!$C22,CPU!$H:$H,"mdo")+SUMIF('Comp SINAPI PE 06-2025 Onerado'!B:B,'MANOEL RODRIGUES'!C22,'Comp SINAPI PE 06-2025 Onerado'!E:E)+SUMIF('Ins SINAPI PE 06-2025 Onerado'!B:B,'MANOEL RODRIGUES'!C22,'Ins SINAPI PE 06-2025 Onerado'!F:F)),2) -> 717.65 | H22: =TRUNC(G22*(1+$H$5),2) -> 884.21 | I22: =TRUNC(F22*H22,2) -> 25199.98
A23: 2.3 | D23: Sinalização | I23: =SUM(I24:I24) -> 1153.38
A24: 2.3.1 | B24: SINAPI | C24: 103689 | D24: =IF(J24="ca",VLOOKUP(C24,'Comp SINAPI PE 06-2025 Onerado'!$B$11:$C$9004,2,0),VLOOKUP(C24,'Ins SINAPI PE 06-2025 Onerado'!$B$10:$C$9004,2,0)) -> FORNECIMENTO E INSTALAÇÃO DE PLACA DE OBRA COM CHAPA GALVANIZADA E ESTRUTURA DE MADEIRA. AF_03/2022_PS | E24: =IF(J24="ca",VLOOKUP(C24,'Comp SINAPI PE 06-2025 Onerado'!$B$11:$D$9004,3,0),VLOOKUP(C24,'Ins SINAPI PE 06-2025 Onerado'!$B$11:$D$9004,3,0)) -> M2 | F24: 2 | G24: =TRUNC((1-$H$9)*(SUMIFS(CPU!$G:$G,CPU!$A:$A,'MANOEL RODRIGUES'!$C24,CPU!$H:$H,"ss")+SUMIFS(CPU!$G:$G,CPU!$A:$A,'MANOEL RODRIGUES'!$C24,CPU!$H:$H,"mdo")+SUMIF('Comp SINAPI PE 06-2025 Onerado'!B:B,'MANOEL RODRIGUES'!C24,'Comp SINAPI PE 06-2025 Onerado'!E:E)+SUMIF('Ins SINAPI PE 06-2025 Onerado'!B:B,'MANOEL RODRIGUES'!C24,'Ins SINAPI PE 06-2025 Onerado'!F:F)),2) -> 468.06 | H24: =TRUNC(G24*(1+$H$5),2) -> 576.69 | I24: =TRUNC(F24*H24,2) -> 1153.38 | J24: ca
A26: 3 | D26: CORTE DA VEGETAÇÃO E REMOÇÃO DAS RAIZES | I26: =SUM(I27) -> 101641.34
A27: 3.1 | D27: Remoção da vegetação | I27: =SUM(I28:I29) -> 101641.34
A28: 3.1.1 | B28: PRÓPRIA | C28: CPU.04 | D28: =(VLOOKUP(C28,CPU!$B$10:$C$302,2,0)) -> Limpeza de vegetação | E28: =(VLOOKUP(C28,CPU!B2:D$408,3,0)) -> m2 | F28: 7382 | G28: =TRUNC((1-$H$9)*(SUMIFS(CPU!$G:$G,CPU!$A:$A,'MANOEL RODRIGUES'!$C28,CPU!$H:$H,"ss")+SUMIFS(CPU!$G:$G,CPU!$A:$A,'MANOEL RODRIGUES'!$C28,CPU!$H:$H,"mdo")+SUMIF('Comp SINAPI PE 06-2025 Onerado'!B:B,'MANOEL RODRIGUES'!C28,'Comp SINAPI PE 06-2025 Onerado'!E:E)+SUMIF('Ins SINAPI PE 06-2025 Onerado'!B:B,'MANOEL RODRIGUES'!C28,'Ins SINAPI PE 06-2025 Onerado'!F:F)),2) -> 7.85 | H28: =TRUNC(G28*(1+$H$5),2) -> 9.67 | I28: =TRUNC(F28*H28,2) -> 71383.94
A29: 3.1.2 | B29: PRÓPRIA | C29: CPU.05 | D29: =(VLOOKUP(C29,CPU!$B$10:$C$302,2,0)) -> Corte de tronco e remoção de raiz | E29: =(VLOOKUP(C29,CPU!B3:D$408,3,0)) -> un | F29: 60 | G29: =TRUNC((1-$H$9)*(SUMIFS(CPU!$G:$G,CPU!$A:$A,'MANOEL RODRIGUES'!$C29,CPU!$H:$H,"ss")+SUMIFS(CPU!$G:$G,CPU!$A:$A,'MANOEL RODRIGUES'!$C29,CPU!$H:$H,"mdo")+SUMIF('Comp SINAPI PE 06-2025 Onerado'!B:B,'MANOEL RODRIGUES'!C29,'Comp SINAPI PE 06-2025 Onerado'!E:E)+SUMIF('Ins SINAPI PE 06-2025 Onerado'!B:B,'MANOEL RODRIGUES'!C29,'Ins SINAPI PE 06-2025 Onerado'!F:F)),2) -> 409.3 | H29: =TRUNC(G29*(1+$H$5),2) -> 504.29 | I29: =TRUNC(F29*H29,2) -> 30257.4
A31: 4 | D31: RECUPERAÇÃO DO MACIÇO | I31: =SUM(I32,I34) -> 71154.58
A32: 4.1 | D32: Recomposição das Erosões (erosões locais nas ombreiras e aterro), trincas e buracos | I32: =I33 -> 70457.86
A33: 4.1.1 | B33: PRÓPRIA | C33: CPU.12 | D33: =(VLOOKUP(C33,CPU!$B$10:$C$302,2,0)) -> Recomposição das erosões, inclusive, regularização da superfície e reaterro | E33: =(VLOOKUP(C33,CPU!B4:D$408,3,0)) -> m3 | F33: 187 | G33: =TRUNC((1-$H$9)*(SUMIFS(CPU!$G:$G,CPU!$A:$A,'MANOEL RODRIGUES'!$C33,CPU!$H:$H,"ss")+SUMIFS(CPU!$G:$G,CPU!$A:$A,'MANOEL RODRIGUES'!$C33,CPU!$H:$H,"mdo")+SUMIF('Comp SINAPI PE 06-2025 Onerado'!B:B,'MANOEL RODRIGUES'!C33,'Comp SINAPI PE 06-2025 Onerado'!E:E)+SUMIF('Ins SINAPI PE 06-2025 Onerado'!B:B,'MANOEL RODRIGUES'!C33,'Ins SINAPI PE 06-2025 Onerado'!F:F)),2) -> 305.81 | H33: =TRUNC(G33*(1+$H$5),2) -> 376.78 | I33: =TRUNC(F33*H33,2) -> 70457.86
A34: 4.2 | D34: Injeção de nata de cimento em buracos | I34: =SUM(I35:I35) -> 696.72
A35: 4.2.1 | B35: PRÓPRIA | C35: CPU.20 | D35: =(VLOOKUP(C35,CPU!$B$10:$C$302,2,0)) -> Injeção de nata de cimento em buracos | E35: =(VLOOKUP(C35,CPU!B6:D$408,3,0)) -> m3 | F35: 0.5 | G35: =TRUNC((1-$H$9)*(SUMIFS(CPU!$G:$G,CPU!$A:$A,'MANOEL RODRIGUES'!$C35,CPU!$H:$H,"ss")+SUMIFS(CPU!$G:$G,CPU!$A:$A,'MANOEL RODRIGUES'!$C35,CPU!$H:$H,"mdo")+SUMIF('Comp SINAPI PE 06-2025 Onerado'!B:B,'MANOEL RODRIGUES'!C35,'Comp SINAPI PE 06-2025 Onerado'!E:E)+SUMIF('Ins SINAPI PE 06-2025 Onerado'!B:B,'MANOEL RODRIGUES'!C35,'Ins SINAPI PE 06-2025 Onerado'!F:F)),2) -> 1130.96 | H35: =TRUNC(G35*(1+$H$5),2) -> 1393.45 | I35: =TRUNC(F35*H35,2) -> 696.72
A37: 5 | D37: REGULARIZAÇÃO E PAVIMENTAÇÃO DA CRISTA | I37: =SUM(I38,I40,I42) -> 93893.17
A38: 5.1 | D38: Limpeza e Regularização da Crista | I38: =SUM(I39:I39) -> 3475.29
A39: 5.1.2 | B39: PRÓPRIA | C39: CPU.13 | D39: =(VLOOKUP(C39,CPU!$B$10:$C$302,2,0)) -> Regularização e compactação da crista | E39: =(VLOOKUP(C39,CPU!B10:D302,3,0)) -> m2 | F39: 871 | G39: =TRUNC((1-$H$9)*(SUMIFS(CPU!$G:$G,CPU!$A:$A,'MANOEL RODRIGUES'!$C39,CPU!$H:$H,"ss")+SUMIFS(CPU!$G:$G,CPU!$A:$A,'MANOEL RODRIGUES'!$C39,CPU!$H:$H,"mdo")+SUMIF('Comp SINAPI PE 06-2025 Onerado'!B:B,'MANOEL RODRIGUES'!C39,'Comp SINAPI PE 06-2025 Onerado'!E:E)+SUMIF('Ins SINAPI PE 06-2025 Onerado'!B:B,'MANOEL RODRIGUES'!C39,'Ins SINAPI PE 06-2025 Onerado'!F:F)),2) -> 3.24 | H39: =TRUNC(G39*(1+$H$5),2) -> 3.99 | I39: =TRUNC(F39*H39,2) -> 3475.29
A40: 5.2 | D40: Instalação de meio-fio e sarjeta em ambos os lados da crista | I40: =SUM(I41:I41) -> 16067.52
A41: 5.2.1 | B41: PRÓPRIA | C41: CPU.16 | D41: =(VLOOKUP(C41,CPU!$B$10:$C$302,2,0)) -> Fornecimento e Assentamento de Guia (meio-fio) Pré-fabricado, dimensões 100x15x20 cm (comprimento x base x altura) | E41: =(VLOOKUP(C41,CPU!B13:D305,3,0)) -> m | F41: 168 | G41: =TRUNC((1-$H$9)*(SUMIFS(CPU!$G:$G,CPU!$A:$A,'MANOEL RODRIGUES'!$C41,CPU!$H:$H,"ss")+SUMIFS(CPU!$G:$G,CPU!$A:$A,'MANOEL RODRIGUES'!$C41,CPU!$H:$H,"mdo")+SUMIF('Comp SINAPI PE 06-2025 Onerado'!B:B,'MANOEL RODRIGUES'!C41,'Comp SINAPI PE 06-2025 Onerado'!E:E)+SUMIF('Ins SINAPI PE 06-2025 Onerado'!B:B,'MANOEL RODRIGUES'!C41,'Ins SINAPI PE 06-2025 Onerado'!F:F)),2) -> 77.63 | H41: =TRUNC(G41*(1+$H$5),2) -> 95.64 | I41: =TRUNC(F41*H41,2) -> 16067.52
A42: 5.3 | D42: Pavimentação da Crista | I42: =SUM(I43:I43) -> 74350.36
A43: 5.3.1 | B43: PRÓPRIA | C43: CPU.14 | D43: =(VLOOKUP(C43,CPU!$B$10:$C$302,2,0)) -> Execução de Revestimento com BGTC | E43: =(VLOOKUP(C43,CPU!B14:D306,3,0)) -> m3 | F43: 131 | G43: =TRUNC((1-$H$9)*(SUMIFS(CPU!$G:$G,CPU!$A:$A,'MANOEL RODRIGUES'!$C43,CPU!$H:$H,"ss")+SUMIFS(CPU!$G:$G,CPU!$A:$A,'MANOEL RODRIGUES'!$C43,CPU!$H:$H,"mdo")+SUMIF('Comp SINAPI PE 06-2025 Onerado'!B:B,'MANOEL RODRIGUES'!C43,'Comp SINAPI PE 06-2025 Onerado'!E:E)+SUMIF('Ins SINAPI PE 06-2025 Onerado'!B:B,'MANOEL RODRIGUES'!C43,'Ins SINAPI PE 06-2025 Onerado'!F:F)),2) -> 460.65 | H43: =TRUNC(G43*(1+$H$5),2) -> 567.56 | I43: =TRUNC(F43*H43,2) -> 74350.36
A45: 6 | D45: MANUTENÇÃO NO TALUDE DE MONTANTE | I45: =SUM(I46) -> 9875.74
A46: 6.1 | D46: Enrocamento com pedra de mão para proteção do talude | I46: =SUM(I47:I47) -> 9875.74
A47: 6.1.1 | B47: PRÓPRIA | C47: CPU.06 | D47: =(VLOOKUP(C47,CPU!$B$10:$C$302,2,0)) -> Enrocamento c/ pedra de mão c/ fornecimento e assentamento | E47: =(VLOOKUP(C47,CPU!B24:D408,3,0)) -> m3 | F47: 23 | G47: =TRUNC((1-$H$9)*(SUMIFS(CPU!$G:$G,CPU!$A:$A,'MANOEL RODRIGUES'!$C47,CPU!$H:$H,"ss")+SUMIFS(CPU!$G:$G,CPU!$A:$A,'MANOEL RODRIGUES'!$C47,CPU!$H:$H,"mdo")+SUMIF('Comp SINAPI PE 06-2025 Onerado'!B:B,'MANOEL RODRIGUES'!C47,'Comp SINAPI PE 06-2025 Onerado'!E:E)+SUMIF('Ins SINAPI PE 06-2025 Onerado'!B:B,'MANOEL RODRIGUES'!C47,'Ins SINAPI PE 06-2025 Onerado'!F:F)),2) -> 348.5 | H47: =TRUNC(G47*(1+$H$5),2) -> 429.38 | I47: =TRUNC(F47*H47,2) -> 9875.74
A49: 7 | D49: DRENAGEM SUPERFICIAL DO TALUDE DE JUSANTE | I49: =SUM(I50,I52) -> 22557.2
A50: 7.1 | D50: Canaleta para descida d'água | I50: =I51 -> 21402.36
A51: 7.1.1 | B51: PRÓPRIA | C51: CPU.07 | D51: =(VLOOKUP(C51,CPU!$B$10:$C$302,2,0)) -> Canaleta meia cana de concreto (D=30cm) - Fornecimento e instalação | E51: =(VLOOKUP(C51,CPU!B18:D310,3,0)) -> m | F51: 108 | G51: =TRUNC((1-$H$9)*(SUMIFS(CPU!$G:$G,CPU!$A:$A,'MANOEL RODRIGUES'!$C51,CPU!$H:$H,"ss")+SUMIFS(CPU!$G:$G,CPU!$A:$A,'MANOEL RODRIGUES'!$C51,CPU!$H:$H,"mdo")+SUMIF('Comp SINAPI PE 06-2025 Onerado'!B:B,'MANOEL RODRIGUES'!C51,'Comp SINAPI PE 06-2025 Onerado'!E:E)+SUMIF('Ins SINAPI PE 06-2025 Onerado'!B:B,'MANOEL RODRIGUES'!C51,'Ins SINAPI PE 06-2025 Onerado'!F:F)),2) -> 160.84 | H51: =TRUNC(G51*(1+$H$5),2) -> 198.17 | I51: =TRUNC(F51*H51,2) -> 21402.36
A52: 7.2 | D52: Entrada para descida d'água | I52: =I53 -> 1154.84
A53: 7.2.1 | B53: PRÓPRIA | C53: CPU.08 | D53: =(VLOOKUP(C53,CPU!$B$10:$C$302,2,0)) -> Entrada para descida d'água | E53: =(VLOOKUP(C53,CPU!B20:D408,3,0)) -> un | F53: =F51/20 -> 5.4 | G53: =TRUNC((1-$H$9)*(SUMIFS(CPU!$G:$G,CPU!$A:$A,'MANOEL RODRIGUES'!$C53,CPU!$H:$H,"ss")+SUMIFS(CPU!$G:$G,CPU!$A:$A,'MANOEL RODRIGUES'!$C53,CPU!$H:$H,"mdo")+SUMIF('Comp SINAPI PE 06-2025 Onerado'!B:B,'MANOEL RODRIGUES'!C53,'Comp SINAPI PE 06-2025 Onerado'!E:E)+SUMIF('Ins SINAPI PE 06-2025 Onerado'!B:B,'MANOEL RODRIGUES'!C53,'Ins SINAPI PE 06-2025 Onerado'!F:F)),2) -> 173.58 | H53: =TRUNC(G53*(1+$H$5),2) -> 213.86 | I53: =TRUNC(F53*H53,2) -> 1154.84
A55: 8 | D55: PROTEÇÃO SUPERFICIAL DO TALUDE DE JUSANTE | I55: =SUM(I56) -> 21775.52
A56: 8.1 | D56: Proteção vegetal | I56: =SUM(I57:I57) -> 21775.52
A57: 8.1.1 | B57: PRÓPRIA | C57: CPU.09 | D57: =(VLOOKUP(C57,CPU!$B$10:$C$302,2,0)) -> Plantio de vegetação para proteção de talude com hidrossemeadura, inclusive adubação e transporte | E57: =(VLOOKUP(C57,CPU!B28:D408,3,0)) -> m2 | F57: 1444 | G57: =TRUNC((1-$H$9)*(SUMIFS(CPU!$G:$G,CPU!$A:$A,'MANOEL RODRIGUES'!$C57,CPU!$H:$H,"ss")+SUMIFS(CPU!$G:$G,CPU!$A:$A,'MANOEL RODRIGUES'!$C57,CPU!$H:$H,"mdo")+SUMIF('Comp SINAPI PE 06-2025 Onerado'!B:B,'MANOEL RODRIGUES'!C57,'Comp SINAPI PE 06-2025 Onerado'!E:E)+SUMIF('Ins SINAPI PE 06-2025 Onerado'!B:B,'MANOEL RODRIGUES'!C57,'Ins SINAPI PE 06-2025 Onerado'!F:F)),2) -> 12.24 | H57: =TRUNC(G57*(1+$H$5),2) -> 15.08 | I57: =TRUNC(F57*H57,2) -> 21775.52
A59: 9 | D59: RESTAURAÇÃO DO MURO LATERAL | I59: =SUM(I60) -> 3475
A60: 9.1 | D60: Restauração do muro lateral | I60: =SUM(I61:I62) -> 3475
A61: 9.1.1 | B61: PRÓPRIA | C61: CPU.18 | D61: =(VLOOKUP(C61,CPU!$B$10:$C$302,2,0)) -> Limpeza da superfície | E61: =(VLOOKUP(C61,CPU!B25:D413,3,0)) -> m2 | F61: 25 | G61: =TRUNC((1-$H$9)*(SUMIFS(CPU!$G:$G,CPU!$A:$A,'MANOEL RODRIGUES'!$C61,CPU!$H:$H,"ss")+SUMIFS(CPU!$G:$G,CPU!$A:$A,'MANOEL RODRIGUES'!$C61,CPU!$H:$H,"mdo")+SUMIF('Comp SINAPI PE 06-2025 Onerado'!B:B,'MANOEL RODRIGUES'!C61,'Comp SINAPI PE 06-2025 Onerado'!E:E)+SUMIF('Ins SINAPI PE 06-2025 Onerado'!B:B,'MANOEL RODRIGUES'!C61,'Ins SINAPI PE 06-2025 Onerado'!F:F)),2) -> 6.5 | H61: =TRUNC(G61*(1+$H$5),2) -> 8 | I61: =TRUNC(F61*H61,2) -> 200
A62: 9.1.2 | B62: PRÓPRIA | C62: CPU.17 | D62: =(VLOOKUP(C62,CPU!$B$10:$C$302,2,0)) -> Emboço ou massa única em argamassa | E62: =(VLOOKUP(C62,CPU!B26:D414,3,0)) -> m2 | F62: 25 | G62: =TRUNC((1-$H$9)*(SUMIFS(CPU!$G:$G,CPU!$A:$A,'MANOEL RODRIGUES'!$C62,CPU!$H:$H,"ss")+SUMIFS(CPU!$G:$G,CPU!$A:$A,'MANOEL RODRIGUES'!$C62,CPU!$H:$H,"mdo")+SUMIF('Comp SINAPI PE 06-2025 Onerado'!B:B,'MANOEL RODRIGUES'!C62,'Comp SINAPI PE 06-2025 Onerado'!E:E)+SUMIF('Ins SINAPI PE 06-2025 Onerado'!B:B,'MANOEL RODRIGUES'!C62,'Ins SINAPI PE 06-2025 Onerado'!F:F)),2) -> 106.33 | H62: =TRUNC(G62*(1+$H$5),2) -> 131 | I62: =TRUNC(F62*H62,2) -> 3275
A64: 10 | D64: RESTAURAÇÃO DA SOLEIRA DO VERTEDOURO | I64: =SUM(I65) -> 2523.71
A65: 10.1 | D65: Restauração da soleira do vertedouro | I65: =SUM(I66:I68) -> 2523.71
A66: 10.1.1 | B66: PRÓPRIA | C66: CPU.18 | D66: =(VLOOKUP(C66,CPU!$B$10:$C$302,2,0)) -> Limpeza da superfície | E66: =(VLOOKUP(C66,CPU!B32:D420,3,0)) -> m2 | F66: 13 | G66: =TRUNC((1-$H$9)*(SUMIFS(CPU!$G:$G,CPU!$A:$A,'MANOEL RODRIGUES'!$C66,CPU!$H:$H,"ss")+SUMIFS(CPU!$G:$G,CPU!$A:$A,'MANOEL RODRIGUES'!$C66,CPU!$H:$H,"mdo")+SUMIF('Comp SINAPI PE 06-2025 Onerado'!B:B,'MANOEL RODRIGUES'!C66,'Comp SINAPI PE 06-2025 Onerado'!E:E)+SUMIF('Ins SINAPI PE 06-2025 Onerado'!B:B,'MANOEL RODRIGUES'!C66,'Ins SINAPI PE 06-2025 Onerado'!F:F)),2) -> 6.5 | H66: =TRUNC(G66*(1+$H$5),2) -> 8 | I66: =TRUNC(F66*H66,2) -> 104
A67: 10.1.2 | B67: PRÓPRIA | C67: CPU.24 | D67: =(VLOOKUP(C67,CPU!$B$10:$C$302,2,0)) -> Selagem de fissuras com resina epóxi | E67: =(VLOOKUP(C67,CPU!B32:D420,3,0)) -> m | F67: =ROUND(2.5/0.3,2) -> 8.33 | G67: =TRUNC((1-$H$9)*(SUMIFS(CPU!$G:$G,CPU!$A:$A,'MANOEL RODRIGUES'!$C67,CPU!$H:$H,"ss")+SUMIFS(CPU!$G:$G,CPU!$A:$A,'MANOEL RODRIGUES'!$C67,CPU!$H:$H,"mdo")+SUMIF('Comp SINAPI PE 06-2025 Onerado'!B:B,'MANOEL RODRIGUES'!C67,'Comp SINAPI PE 06-2025 Onerado'!E:E)+SUMIF('Ins SINAPI PE 06-2025 Onerado'!B:B,'MANOEL RODRIGUES'!C67,'Ins SINAPI PE 06-2025 Onerado'!F:F)),2) -> 69.84 | H67: =TRUNC(G67*(1+$H$5),2) -> 86.04 | I67: =TRUNC(F67*H67,2) -> 716.71
A68: 10.1.3 | B68: PRÓPRIA | C68: CPU.17 | D68: =(VLOOKUP(C68,CPU!$B$10:$C$302,2,0)) -> Emboço ou massa única em argamassa | E68: =(VLOOKUP(C68,CPU!B33:D421,3,0)) -> m2 | F68: 13 | G68: =TRUNC((1-$H$9)*(SUMIFS(CPU!$G:$G,CPU!$A:$A,'MANOEL RODRIGUES'!$C68,CPU!$H:$H,"ss")+SUMIFS(CPU!$G:$G,CPU!$A:$A,'MANOEL RODRIGUES'!$C68,CPU!$H:$H,"mdo")+SUMIF('Comp SINAPI PE 06-2025 Onerado'!B:B,'MANOEL RODRIGUES'!C68,'Comp SINAPI PE 06-2025 Onerado'!E:E)+SUMIF('Ins SINAPI PE 06-2025 Onerado'!B:B,'MANOEL RODRIGUES'!C68,'Ins SINAPI PE 06-2025 Onerado'!F:F)),2) -> 106.33 | H68: =TRUNC(G68*(1+$H$5),2) -> 131 | I68: =TRUNC(F68*H68,2) -> 1703
A70: 11 | D70: CONTENÇÃO DO PROCESSO EROSIVO NA OMBREIRA | I70: =SUM(I71) -> 9354.69
A71: 11.1 | D71: Tratamento da erosão na ombreira | I71: =SUM(I72:I72) -> 9354.69
A72: 11.1.1 | B72: PRÓPRIA | C72: CPU.11 | D72: =(VLOOKUP(C72,CPU!$B$10:$C$302,2,0)) -> Enrocamento ARCO tipo rachão reciclado cinza classe A jogado com fornecimento | E72: =(VLOOKUP(C72,CPU!B37:D425,3,0)) -> m3 | F72: 27 | G72: =TRUNC((1-$H$9)*(SUMIFS(CPU!$G:$G,CPU!$A:$A,'MANOEL RODRIGUES'!$C72,CPU!$H:$H,"ss")+SUMIFS(CPU!$G:$G,CPU!$A:$A,'MANOEL RODRIGUES'!$C72,CPU!$H:$H,"mdo")+SUMIF('Comp SINAPI PE 06-2025 Onerado'!B:B,'MANOEL RODRIGUES'!C72,'Comp SINAPI PE 06-2025 Onerado'!E:E)+SUMIF('Ins SINAPI PE 06-2025 Onerado'!B:B,'MANOEL RODRIGUES'!C72,'Ins SINAPI PE 06-2025 Onerado'!F:F)),2) -> 281.21 | H72: =TRUNC(G72*(1+$H$5),2) -> 346.47 | I72: =TRUNC(F72*H72,2) -> 9354.69
A74: 12 | D74: SERVIÇOS COMPLEMENTARES | I74: =SUM(I75,I77) -> 7118.16
A75: 12.1 | D75: Instalação de placas de aviso | I75: =SUM(I76:I76) -> 2306.76
A76: 12.1.1 | B76: SINAPI | C76: 103689 | D76: =IF(J76="ca",VLOOKUP(C76,'Comp SINAPI PE 06-2025 Onerado'!$B$11:$C$9004,2,0),VLOOKUP(C76,'Ins SINAPI PE 06-2025 Onerado'!$B$10:$C$9004,2,0)) -> FORNECIMENTO E INSTALAÇÃO DE PLACA DE OBRA COM CHAPA GALVANIZADA E ESTRUTURA DE MADEIRA. AF_03/2022_PS | E76: =IF(J76="ca",VLOOKUP(C76,'Comp SINAPI PE 06-2025 Onerado'!$B$11:$D$9004,3,0),VLOOKUP(C76,'Ins SINAPI PE 06-2025 Onerado'!$B$11:$D$9004,3,0)) -> M2 | F76: 4 | G76: =TRUNC((1-$H$9)*(SUMIFS(CPU!$G:$G,CPU!$A:$A,'MANOEL RODRIGUES'!$C76,CPU!$H:$H,"ss")+SUMIFS(CPU!$G:$G,CPU!$A:$A,'MANOEL RODRIGUES'!$C76,CPU!$H:$H,"mdo")+SUMIF('Comp SINAPI PE 06-2025 Onerado'!B:B,'MANOEL RODRIGUES'!C76,'Comp SINAPI PE 06-2025 Onerado'!E:E)+SUMIF('Ins SINAPI PE 06-2025 Onerado'!B:B,'MANOEL RODRIGUES'!C76,'Ins SINAPI PE 06-2025 Onerado'!F:F)),2) -> 468.06 | H76: =TRUNC(G76*(1+$H$5),2) -> 576.69 | I76: =TRUNC(F76*H76,2) -> 2306.76 | J76: ca
A77: 12.2 | D77: Régua Linimétrica Padrão “ANA”, Aço Carbono - 2 X 70 X 1000 mm (Fornecimento e Instalação) | I77: =SUM(I78:I78) -> 4811.4
A78: 12.2.1 | B78: PRÓPRIA | C78: CPU.15 | D78: =(VLOOKUP(C78,CPU!$B$10:$C$302,2,0)) -> Régua Linimétrica Padrão “ANA”, Aço Carbono - 2 X 70 X 1000 mm (Fornecimento e Instalação) | E78: un | F78: 9 | G78: =TRUNC((1-$H$9)*(SUMIFS(CPU!$G:$G,CPU!$A:$A,'MANOEL RODRIGUES'!$C78,CPU!$H:$H,"ss")+SUMIFS(CPU!$G:$G,CPU!$A:$A,'MANOEL RODRIGUES'!$C78,CPU!$H:$H,"mdo")+SUMIF('Comp SINAPI PE 06-2025 Onerado'!B:B,'MANOEL RODRIGUES'!C78,'Comp SINAPI PE 06-2025 Onerado'!E:E)+SUMIF('Ins SINAPI PE 06-2025 Onerado'!B:B,'MANOEL RODRIGUES'!C78,'Ins SINAPI PE 06-2025 Onerado'!F:F)),2) -> 433.9 | H78: =TRUNC(G78*(1+$H$5),2) -> 534.6 | I78: =TRUNC(F78*H78,2) -> 4811.4
A80: 13 | D80: PROJETO "AS IS" | I80: =SUM(I81) -> 13769.21
A81: 13.1 | D81: Levantamento topográfico e "AS IS" | I81: =SUM(I82:I83) -> 13769.21
A82: 13.1.1 | B82: ORSE | C82: 9346 | D82: Levantamento topográfico planimétrico cadastral | E82: m2 | F82: =F28 -> 7382 | G82: =TRUNC(0.35*(1-$H$9),2) -> 0.35 | H82: =TRUNC(G82*(1+$H$5),2) -> 0.43 | I82: =TRUNC(F82*H82,2) -> 3174.26
A83: 13.1.2 | B83: PRÓPRIA | C83: CPU.19 | D83: =(VLOOKUP(C83,CPU!$B$10:$C$302,2,0)) -> Projeto geométrico | E83: un | F83: 1 | G83: =TRUNC((1-$H$9)*(SUMIFS(CPU!$G:$G,CPU!$A:$A,'MANOEL RODRIGUES'!$C83,CPU!$H:$H,"ss")+SUMIFS(CPU!$G:$G,CPU!$A:$A,'MANOEL RODRIGUES'!$C83,CPU!$H:$H,"mdo")+SUMIF('Comp SINAPI PE 06-2025 Onerado'!B:B,'MANOEL RODRIGUES'!C83,'Comp SINAPI PE 06-2025 Onerado'!E:E)+SUMIF('Ins SINAPI PE 06-2025 Onerado'!B:B,'MANOEL RODRIGUES'!C83,'Ins SINAPI PE 06-2025 Onerado'!F:F)),2) -> 8599.1 | H83: =TRUNC(G83*(1+$H$5),2) -> 10594.95 | I83: =TRUNC(F83*H83,2) -> 10594.95
A85: 14 | D85: FISCALIZAÇÃO E ACOMPANHAMENTO | I85: =SUM(I86) -> 2358.2
A86: 14.1 | D86: Disponibilidade de veículo para apoio a fiscalização | I86: =SUM(I87:I88) -> 2358.2
A87: 14.1.1 | B87: PRÓPRIA | C87: CPU.21 | D87: =(VLOOKUP(C87,CPU!$B$10:$C$302,2,0)) -> Disponibilidade de veículo para apoio a fiscalização, inclusive combustível | E87: un | F87: =F16+2 -> 5 | G87: =TRUNC((1-$H$9)*(SUMIFS(CPU!$G:$G,CPU!$A:$A,'MANOEL RODRIGUES'!$C87,CPU!$H:$H,"ss")+SUMIFS(CPU!$G:$G,CPU!$A:$A,'MANOEL RODRIGUES'!$C87,CPU!$H:$H,"mdo")+SUMIF('Comp SINAPI PE 06-2025 Onerado'!B:B,'MANOEL RODRIGUES'!C87,'Comp SINAPI PE 06-2025 Onerado'!E:E)+SUMIF('Ins SINAPI PE 06-2025 Onerado'!B:B,'MANOEL RODRIGUES'!C87,'Ins SINAPI PE 06-2025 Onerado'!F:F)),2) -> 382.8 | H87: =TRUNC(G87*(1+$H$5),2) -> 471.64 | I87: =TRUNC(F87*H87,2) -> 2358.2
D89: TOTAL (Custo): | I89: =TRUNC(SUMPRODUCT(F15:F88,G15:G88),2) -> 403374.99
D90: BDI e Encargos Sociais: | I90: =I91-I89 -> 93590.52
D91: TOTAL GERAL COM BDI: | I91: =SUM(I14,I18,I26,I31,I37,I45,I49,I55,I59,I64,I70,I74,I80,I85) -> 496965.51 | L91: =TRUNC(SUMPRODUCT(F14:F88,H14:H88),2) -> 496965.52

Sheet MURICI
A1: Ministério da Integração e do Desenvolvimento Regional
A2: Companhia de Desenvolvimento dos Vales do São Francisco e do Parnaíba
A4: PLANILHA ORÇAMENTÁRIA - ORÇAMENTO NÃO DESONERADO
A5: OBRA: | B5: =Resumo!B5 -> Execução de manutenção e recuperação nas barragens de Jacu, Caiçara, Algodoes, Manoel Rodrigues, Murici, Riacho dos Cavalos e Alto Grande, localizadas no estado de Pernambuco. | G5: BDI (serv.): | H5: ='BDI serv'!D23 -> 0.2321 | I5: Bancos de dados:
A6: LOCAL: | B6: =Resumo!B6 -> BARRAGENS DE PERNAMBUCO | G6: BDI (forn.): | H6: ='BDI forn'!D23 -> 0.1415 | I6: =Resumo!G6 -> JUN/25 - SINAPI
A7: DATA BASE: | B7: =Resumo!B7 -> 2025-07-01 | E7: Encargos sociais - Horistas: | H7: ='Encargos Sociais'!E49 -> 1.1384 | I7: =Resumo!G7 -> MAI/25 - ORSE
A8: PRAZO: | B8: 90 dias | E8: Encargos sociais - Mensalista: | H8: ='Encargos Sociais'!F49 -> 0.7011 | I8: =Resumo!G8 -> JAN/25 - SETOP
B9: =Resumo!B19 -> Murici | G9: Desconto: | H9: 0 | I9: =Resumo!G9 -> ABR/2025 - SICRO3
I10: =Resumo!G10 -> JAN/2025 - EMBASA
I11: =Resumo!G11 -> 028 - SEINFRA
A12: ITEM | B12: REFERÊNCIA | D12: DESCRIÇÃO | E12: UNID. | F12: QUANT. | G12: CUSTO UNITÁRIO | H12: PREÇO UNITÁRIO | I12: PREÇO TOTAL
B13: FONTE | C13: CÓDIGO
A14: 1 | D14: ADMINISTRAÇÃO DA OBRA | I14: =SUM(I15) -> 107417.73
A15: 1.1 | D15: Administração da Obra | I15: =SUM(I16:I16) -> 107417.73
A16: 1.1.1 | B16: PRÓPRIA | C16: CPU.01 | D16: =(VLOOKUP(C16,CPU!$B$10:$C$302,2,0)) -> Administração Local | E16: mês | F16: 3 | G16: =TRUNC((1-$H$9)*(SUMIFS(CPU!$G:$G,CPU!$A:$A,MURICI!$C16,CPU!$H:$H,"ss")+SUMIFS(CPU!$G:$G,CPU!$A:$A,MURICI!$C16,CPU!$H:$H,"mdo")+SUMIF('Comp SINAPI PE 06-2025 Onerado'!B:B,MURICI!C16,'Comp SINAPI PE 06-2025 Onerado'!E:E)+SUMIF('Ins SINAPI PE 06-2025 Onerado'!B:B,MURICI!C16,'Ins SINAPI PE 06-2025 Onerado'!F:F)),2) -> 29060.88 | H16: =TRUNC(G16*(1+$H$5),2) -> 35805.91 | I16: =TRUNC(F16*H16,2) -> 107417.73
A18: 2 | D18: SERVIÇOS PRELIMINARES | I18: =SUM(I19,I21,I23) -> 30051.26
A19: 2.1 | D19: Mobilização e desmobilização | I19: =SUM(I20) -> 3697.9
A20: 2.1.1 | B20: PRÓPRIA | C20: CPU.02 | D20: =(VLOOKUP(C20,CPU!$B$10:$C$302,2,0)) -> Mobilização e desmobilização de instalação do canteiro | E20: un | F20: 1 | G20: =TRUNC((1-$H$9)*(SUMIFS(CPU!$G:$G,CPU!$A:$A,MURICI!$C20,CPU!$H:$H,"ss")+SUMIFS(CPU!$G:$G,CPU!$A:$A,MURICI!$C20,CPU!$H:$H,"mdo")+SUMIF('Comp SINAPI PE 06-2025 Onerado'!B:B,MURICI!C20,'Comp SINAPI PE 06-2025 Onerado'!E:E)+SUMIF('Ins SINAPI PE 06-2025 Onerado'!B:B,MURICI!C20,'Ins SINAPI PE 06-2025 Onerado'!F:F)),2) -> 3001.3 | H20: =TRUNC(G20*(1+$H$5),2) -> 3697.9 | I20: =TRUNC(F20*H20,2) -> 3697.9
A21: 2.2 | D21: Canteiro de obras | I21: =SUM(I22) -> 25199.98
A22: 2.2.1 | B22: PRÓPRIA | C22: CPU.03 | D22: =(VLOOKUP(C22,CPU!$B$10:$C$302,2,0)) -> Execução de canteiro de obras, inclusive, limpeza, refeitório, sanitários e central de formas | E22: m2 | F22: 28.5 | G22: =TRUNC((1-$H$9)*(SUMIFS(CPU!$G:$G,CPU!$A:$A,MURICI!$C22,CPU!$H:$H,"ss")+SUMIFS(CPU!$G:$G,CPU!$A:$A,MURICI!$C22,CPU!$H:$H,"mdo")+SUMIF('Comp SINAPI PE 06-2025 Onerado'!B:B,MURICI!C22,'Comp SINAPI PE 06-2025 Onerado'!E:E)+SUMIF('Ins SINAPI PE 06-2025 Onerado'!B:B,MURICI!C22,'Ins SINAPI PE 06-2025 Onerado'!F:F)),2) -> 717.65 | H22: =TRUNC(G22*(1+$H$5),2) -> 884.21 | I22: =TRUNC(F22*H22,2) -> 25199.98
A23: 2.3 | D23: Sinalização | I23: =SUM(I24:I24) -> 1153.38
A24: 2.3.1 | B24: SINAPI | C24: 103689 | D24: =IF(J24="ca",VLOOKUP(C24,'Comp SINAPI PE 06-2025 Onerado'!$B$11:$C$9004,2,0),VLOOKUP(C24,'Ins SINAPI PE 06-2025 Onerado'!$B$10:$C$9004,2,0)) -> FORNECIMENTO E INSTALAÇÃO DE PLACA DE OBRA COM CHAPA GALVANIZADA E ESTRUTURA DE MADEIRA. AF_03/2022_PS | E24: =IF(J24="ca",VLOOKUP(C24,'Comp SINAPI PE 06-2025 Onerado'!$B$11:$D$9004,3,0),VLOOKUP(C24,'Ins SINAPI PE 06-2025 Onerado'!$B$11:$D$9004,3,0)) -> M2 | F24: 2 | G24: =TRUNC((1-$H$9)*(SUMIFS(CPU!$G:$G,CPU!$A:$A,MURICI!$C24,CPU!$H:$H,"ss")+SUMIFS(CPU!$G:$G,CPU!$A:$A,MURICI!$C24,CPU!$H:$H,"mdo")+SUMIF('Comp SINAPI PE 06-2025 Onerado'!B:B,MURICI!C24,'Comp SINAPI PE 06-2025 Onerado'!E:E)+SUMIF('Ins SINAPI PE 06-2025 Onerado'!B:B,MURICI!C24,'Ins SINAPI PE 06-2025 Onerado'!F:F)),2) -> 468.06 | H24: =TRUNC(G24*(1+$H$5),2) -> 576.69 | I24: =TRUNC(F24*H24,2) -> 1153.38 | J24: ca
A26: 3 | D26: CORTE DA VEGETAÇÃO E REMOÇÃO DAS RAIZES | I26: =SUM(I27) -> 107075.88
A27: 3.1 | D27: Remoção da vegetação | I27: =SUM(I28:I29) -> 107075.88
A28: 3.1.1 | B28: PRÓPRIA | C28: CPU.04 | D28: =(VLOOKUP(C28,CPU!$B$10:$C$302,2,0)) -> Limpeza de vegetação | E28: =(VLOOKUP(C28,CPU!B2:D$408,3,0)) -> m2 | F28: 7944 | G28: =TRUNC((1-$H$9)*(SUMIFS(CPU!$G:$G,CPU!$A:$A,MURICI!$C28,CPU!$H:$H,"ss")+SUMIFS(CPU!$G:$G,CPU!$A:$A,MURICI!$C28,CPU!$H:$H,"mdo")+SUMIF('Comp SINAPI PE 06-2025 Onerado'!B:B,MURICI!C28,'Comp SINAPI PE 06-2025 Onerado'!E:E)+SUMIF('Ins SINAPI PE 06-2025 Onerado'!B:B,MURICI!C28,'Ins SINAPI PE 06-2025 Onerado'!F:F)),2) -> 7.85 | H28: =TRUNC(G28*(1+$H$5),2) -> 9.67 | I28: =TRUNC(F28*H28,2) -> 76818.48
A29: 3.1.2 | B29: PRÓPRIA | C29: CPU.05 | D29: =(VLOOKUP(C29,CPU!$B$10:$C$302,2,0)) -> Corte de tronco e remoção de raiz | E29: =(VLOOKUP(C29,CPU!B3:D$408,3,0)) -> un | F29: 60 | G29: =TRUNC((1-$H$9)*(SUMIFS(CPU!$G:$G,CPU!$A:$A,MURICI!$C29,CPU!$H:$H,"ss")+SUMIFS(CPU!$G:$G,CPU!$A:$A,MURICI!$C29,CPU!$H:$H,"mdo")+SUMIF('Comp SINAPI PE 06-2025 Onerado'!B:B,MURICI!C29,'Comp SINAPI PE 06-2025 Onerado'!E:E)+SUMIF('Ins SINAPI PE 06-2025 Onerado'!B:B,MURICI!C29,'Ins SINAPI PE 06-2025 Onerado'!F:F)),2) -> 409.3 | H29: =TRUNC(G29*(1+$H$5),2) -> 504.29 | I29: =TRUNC(F29*H29,2) -> 30257.4
A31: 4 | D31: RECUPERAÇÃO DO MACIÇO | I31: =SUM(I32,I34) -> 103934.44
A32: 4.1 | D32: Recomposição das Erosões (erosões locais nas ombreiras e aterro), trincas e buracos | I32: =SUM(I33:I33) -> 103237.72
A33: 4.1.1 | B33: PRÓPRIA | C33: CPU.12 | D33: =(VLOOKUP(C33,CPU!$B$10:$C$302,2,0)) -> Recomposição das erosões, inclusive, regularização da superfície e reaterro | E33: =(VLOOKUP(C33,CPU!B4:D$408,3,0)) -> m3 | F33: 274 | G33: =TRUNC((1-$H$9)*(SUMIFS(CPU!$G:$G,CPU!$A:$A,MURICI!$C33,CPU!$H:$H,"ss")+SUMIFS(CPU!$G:$G,CPU!$A:$A,MURICI!$C33,CPU!$H:$H,"mdo")+SUMIF('Comp SINAPI PE 06-2025 Onerado'!B:B,MURICI!C33,'Comp SINAPI PE 06-2025 Onerado'!E:E)+SUMIF('Ins SINAPI PE 06-2025 Onerado'!B:B,MURICI!C33,'Ins SINAPI PE 06-2025 Onerado'!F:F)),2) -> 305.81 | H33: =TRUNC(G33*(1+$H$5),2) -> 376.78 | I33: =TRUNC(F33*H33,2) -> 103237.72
A34: 4.2 | D34: Injeção de nata de cimento em buracos | I34: =SUM(I35:I35) -> 696.72
A35: 4.2.1 | B35: PRÓPRIA | C35: CPU.20 | D35: =(VLOOKUP(C35,CPU!$B$10:$C$302,2,0)) -> Injeção de nata de cimento em buracos | E35: =(VLOOKUP(C35,CPU!B6:D$408,3,0)) -> m3 | F35: 0.5 | G35: =TRUNC((1-$H$9)*(SUMIFS(CPU!$G:$G,CPU!$A:$A,MURICI!$C35,CPU!$H:$H,"ss")+SUMIFS(CPU!$G:$G,CPU!$A:$A,MURICI!$C35,CPU!$H:$H,"mdo")+SUMIF('Comp SINAPI PE 06-2025 Onerado'!B:B,MURICI!C35,'Comp SINAPI PE 06-2025 Onerado'!E:E)+SUMIF('Ins SINAPI PE 06-2025 Onerado'!B:B,MURICI!C35,'Ins SINAPI PE 06-2025 Onerado'!F:F)),2) -> 1130.96 | H35: =TRUNC(G35*(1+$H$5),2) -> 1393.45 | I35: =TRUNC(F35*H35,2) -> 696.72
A37: 5 | D37: REGULARIZAÇÃO E PAVIMENTAÇÃO DA CRISTA | I37: =SUM(I38,I40,I42) -> 90980.67
A38: 5.1 | D38: Regularização da Crista | I38: =SUM(I39:I39) -> 3419.43
A39: 5.1.1 | B39: PRÓPRIA | C39: CPU.13 | D39: =(VLOOKUP(C39,CPU!$B$10:$C$302,2,0)) -> Regularização e compactação da crista | E39: =(VLOOKUP(C39,CPU!B10:D302,3,0)) -> m2 | F39: 857 | G39: =TRUNC((1-$H$9)*(SUMIFS(CPU!$G:$G,CPU!$A:$A,MURICI!$C39,CPU!$H:$H,"ss")+SUMIFS(CPU!$G:$G,CPU!$A:$A,MURICI!$C39,CPU!$H:$H,"mdo")+SUMIF('Comp SINAPI PE 06-2025 Onerado'!B:B,MURICI!C39,'Comp SINAPI PE 06-2025 Onerado'!E:E)+SUMIF('Ins SINAPI PE 06-2025 Onerado'!B:B,MURICI!C39,'Ins SINAPI PE 06-2025 Onerado'!F:F)),2) -> 3.24 | H39: =TRUNC(G39*(1+$H$5),2) -> 3.99 | I39: =TRUNC(F39*H39,2) -> 3419.43
A40: 5.2 | D40: Instalação de meio-fio e sarjeta em ambos os lados da crista | I40: =SUM(I41:I41) -> 14346
A41: 5.2.1 | B41: PRÓPRIA | C41: CPU.16 | D41: =(VLOOKUP(C41,CPU!$B$10:$C$302,2,0)) -> Fornecimento e Assentamento de Guia (meio-fio) Pré-fabricado, dimensões 100x15x20 cm (comprimento x base x altura) | E41: =(VLOOKUP(C41,CPU!B12:D304,3,0)) -> m | F41: 150 | G41: =TRUNC((1-$H$9)*(SUMIFS(CPU!$G:$G,CPU!$A:$A,MURICI!$C41,CPU!$H:$H,"ss")+SUMIFS(CPU!$G:$G,CPU!$A:$A,MURICI!$C41,CPU!$H:$H,"mdo")+SUMIF('Comp SINAPI PE 06-2025 Onerado'!B:B,MURICI!C41,'Comp SINAPI PE 06-2025 Onerado'!E:E)+SUMIF('Ins SINAPI PE 06-2025 Onerado'!B:B,MURICI!C41,'Ins SINAPI PE 06-2025 Onerado'!F:F)),2) -> 77.63 | H41: =TRUNC(G41*(1+$H$5),2) -> 95.64 | I41: =TRUNC(F41*H41,2) -> 14346
A42: 5.3 | D42: Pavimentação da Crista | I42: =SUM(I43:I43) -> 73215.24
A43: 5.3.1 | B43: PRÓPRIA | C43: CPU.14 | D43: =(VLOOKUP(C43,CPU!$B$10:$C$302,2,0)) -> Execução de Revestimento com BGTC | E43: =(VLOOKUP(C43,CPU!B14:D306,3,0)) -> m3 | F43: 129 | G43: =TRUNC((1-$H$9)*(SUMIFS(CPU!$G:$G,CPU!$A:$A,MURICI!$C43,CPU!$H:$H,"ss")+SUMIFS(CPU!$G:$G,CPU!$A:$A,MURICI!$C43,CPU!$H:$H,"mdo")+SUMIF('Comp SINAPI PE 06-2025 Onerado'!B:B,MURICI!C43,'Comp SINAPI PE 06-2025 Onerado'!E:E)+SUMIF('Ins SINAPI PE 06-2025 Onerado'!B:B,MURICI!C43,'Ins SINAPI PE 06-2025 Onerado'!F:F)),2) -> 460.65 | H43: =TRUNC(G43*(1+$H$5),2) -> 567.56 | I43: =TRUNC(F43*H43,2) -> 73215.24
A45: 6 | D45: MANUTENÇÃO NO TALUDE DE MONTANTE | I45: =SUM(I46) -> 9016.98
A46: 6.1 | D46: Enrocamento com pedra de mão para proteção do talude | I46: =SUM(I47:I47) -> 9016.98
A47: 6.1.1 | B47: PRÓPRIA | C47: CPU.06 | D47: =(VLOOKUP(C47,CPU!$B$10:$C$302,2,0)) -> Enrocamento c/ pedra de mão c/ fornecimento e assentamento | E47: =(VLOOKUP(C47,CPU!B24:D408,3,0)) -> m3 | F47: 21 | G47: =TRUNC((1-$H$9)*(SUMIFS(CPU!$G:$G,CPU!$A:$A,MURICI!$C47,CPU!$H:$H,"ss")+SUMIFS(CPU!$G:$G,CPU!$A:$A,MURICI!$C47,CPU!$H:$H,"mdo")+SUMIF('Comp SINAPI PE 06-2025 Onerado'!B:B,MURICI!C47,'Comp SINAPI PE 06-2025 Onerado'!E:E)+SUMIF('Ins SINAPI PE 06-2025 Onerado'!B:B,MURICI!C47,'Ins SINAPI PE 06-2025 Onerado'!F:F)),2) -> 348.5 | H47: =TRUNC(G47*(1+$H$5),2) -> 429.38 | I47: =TRUNC(F47*H47,2) -> 9016.98
A49: 7 | D49: DRENAGEM SUPERFICIAL DO TALUDE DE JUSANTE | I49: =SUM(I50,I52) -> 25063.56
A50: 7.1 | D50: Canaleta para descida d'água | I50: =SUM(I51:I51) -> 23780.4
A51: 7.1.1 | B51: PRÓPRIA | C51: CPU.07 | D51: =(VLOOKUP(C51,CPU!$B$10:$C$302,2,0)) -> Canaleta meia cana de concreto (D=30cm) - Fornecimento e instalação | E51: =(VLOOKUP(C51,CPU!B18:D310,3,0)) -> m | F51: 120 | G51: =TRUNC((1-$H$9)*(SUMIFS(CPU!$G:$G,CPU!$A:$A,MURICI!$C51,CPU!$H:$H,"ss")+SUMIFS(CPU!$G:$G,CPU!$A:$A,MURICI!$C51,CPU!$H:$H,"mdo")+SUMIF('Comp SINAPI PE 06-2025 Onerado'!B:B,MURICI!C51,'Comp SINAPI PE 06-2025 Onerado'!E:E)+SUMIF('Ins SINAPI PE 06-2025 Onerado'!B:B,MURICI!C51,'Ins SINAPI PE 06-2025 Onerado'!F:F)),2) -> 160.84 | H51: =TRUNC(G51*(1+$H$5),2) -> 198.17 | I51: =TRUNC(F51*H51,2) -> 23780.4
A52: 7.2 | D52: Entrada para descida d'água | I52: =SUM(I53:I53) -> 1283.16
A53: 7.2.1 | B53: PRÓPRIA | C53: CPU.08 | D53: =(VLOOKUP(C53,CPU!$B$10:$C$302,2,0)) -> Entrada para descida d'água | E53: =(VLOOKUP(C53,CPU!B20:D408,3,0)) -> un | F53: =F51/20 -> 6 | G53: =TRUNC((1-$H$9)*(SUMIFS(CPU!$G:$G,CPU!$A:$A,MURICI!$C53,CPU!$H:$H,"ss")+SUMIFS(CPU!$G:$G,CPU!$A:$A,MURICI!$C53,CPU!$H:$H,"mdo")+SUMIF('Comp SINAPI PE 06-2025 Onerado'!B:B,MURICI!C53,'Comp SINAPI PE 06-2025 Onerado'!E:E)+SUMIF('Ins SINAPI PE 06-2025 Onerado'!B:B,MURICI!C53,'Ins SINAPI PE 06-2025 Onerado'!F:F)),2) -> 173.58 | H53: =TRUNC(G53*(1+$H$5),2) -> 213.86 | I53: =TRUNC(F53*H53,2) -> 1283.16
A55: 8 | D55: PROTEÇÃO SUPERFICIAL DO TALUDE DE JUSANTE | I55: =SUM(I56) -> 34548.28
A56: 8.1 | D56: Proteção vegetal | I56: =SUM(I57:I57) -> 34548.28
A57: 8.1.1 | B57: PRÓPRIA | C57: CPU.09 | D57: =(VLOOKUP(C57,CPU!$B$10:$C$302,2,0)) -> Plantio de vegetação para proteção de talude com hidrossemeadura, inclusive adubação e transporte | E57: =(VLOOKUP(C57,CPU!B28:D408,3,0)) -> m2 | F57: 2291 | G57: =TRUNC((1-$H$9)*(SUMIFS(CPU!$G:$G,CPU!$A:$A,MURICI!$C57,CPU!$H:$H,"ss")+SUMIFS(CPU!$G:$G,CPU!$A:$A,MURICI!$C57,CPU!$H:$H,"mdo")+SUMIF('Comp SINAPI PE 06-2025 Onerado'!B:B,MURICI!C57,'Comp SINAPI PE 06-2025 Onerado'!E:E)+SUMIF('Ins SINAPI PE 06-2025 Onerado'!B:B,MURICI!C57,'Ins SINAPI PE 06-2025 Onerado'!F:F)),2) -> 12.24 | H57: =TRUNC(G57*(1+$H$5),2) -> 15.08 | I57: =TRUNC(F57*H57,2) -> 34548.28
A59: 9 | D59: RESTAURAÇÃO DO MURO LATERAL | I59: =SUM(I60) -> 5282
A60: 9.1 | D60: Restauração do muro lateral | I60: =SUM(I61:I62) -> 5282
A61: 9.1.1 | B61: PRÓPRIA | C61: CPU.18 | D61: =(VLOOKUP(C61,CPU!$B$10:$C$302,2,0)) -> Limpeza da superfície | E61: =(VLOOKUP(C61,CPU!B32:D408,3,0)) -> m2 | F61: 38 | G61: =TRUNC((1-$H$9)*(SUMIFS(CPU!$G:$G,CPU!$A:$A,MURICI!$C61,CPU!$H:$H,"ss")+SUMIFS(CPU!$G:$G,CPU!$A:$A,MURICI!$C61,CPU!$H:$H,"mdo")+SUMIF('Comp SINAPI PE 06-2025 Onerado'!B:B,MURICI!C61,'Comp SINAPI PE 06-2025 Onerado'!E:E)+SUMIF('Ins SINAPI PE 06-2025 Onerado'!B:B,MURICI!C61,'Ins SINAPI PE 06-2025 Onerado'!F:F)),2) -> 6.5 | H61: =TRUNC(G61*(1+$H$5),2) -> 8 | I61: =TRUNC(F61*H61,2) -> 304
A62: 9.1.2 | B62: PRÓPRIA | C62: CPU.17 | D62: =(VLOOKUP(C62,CPU!$B$10:$C$302,2,0)) -> Emboço ou massa única em argamassa | E62: =(VLOOKUP(C62,CPU!B33:D408,3,0)) -> m2 | F62: 38 | G62: =TRUNC((1-$H$9)*(SUMIFS(CPU!$G:$G,CPU!$A:$A,MURICI!$C62,CPU!$H:$H,"ss")+SUMIFS(CPU!$G:$G,CPU!$A:$A,MURICI!$C62,CPU!$H:$H,"mdo")+SUMIF('Comp SINAPI PE 06-2025 Onerado'!B:B,MURICI!C62,'Comp SINAPI PE 06-2025 Onerado'!E:E)+SUMIF('Ins SINAPI PE 06-2025 Onerado'!B:B,MURICI!C62,'Ins SINAPI PE 06-2025 Onerado'!F:F)),2) -> 106.33 | H62: =TRUNC(G62*(1+$H$5),2) -> 131 | I62: =TRUNC(F62*H62,2) -> 4978
A64: 10 | D64: RESTAURAÇÃO DA SOLEIRA DO VERTEDOURO | I64: =SUM(I65) -> 6420.4
A65: 10.1 | D65: Restauração da soleira do vertedouro | I65: =SUM(I66:I68) -> 6420.4
A66: 10.1.1 | B66: PRÓPRIA | C66: CPU.18 | D66: =(VLOOKUP(C66,CPU!$B$10:$C$302,2,0)) -> Limpeza da superfície | E66: =(VLOOKUP(C66,CPU!B37:D329,3,0)) -> m2 | F66: 40 | G66: =TRUNC((1-$H$9)*(SUMIFS(CPU!$G:$G,CPU!$A:$A,MURICI!$C66,CPU!$H:$H,"ss")+SUMIFS(CPU!$G:$G,CPU!$A:$A,MURICI!$C66,CPU!$H:$H,"mdo")+SUMIF('Comp SINAPI PE 06-2025 Onerado'!B:B,MURICI!C66,'Comp SINAPI PE 06-2025 Onerado'!E:E)+SUMIF('Ins SINAPI PE 06-2025 Onerado'!B:B,MURICI!C66,'Ins SINAPI PE 06-2025 Onerado'!F:F)),2) -> 6.5 | H66: =TRUNC(G66*(1+$H$5),2) -> 8 | I66: =TRUNC(F66*H66,2) -> 320
A67: 10.1.2 | B67: PRÓPRIA | C67: CPU.24 | D67: =(VLOOKUP(C67,CPU!$B$10:$C$302,2,0)) -> Selagem de fissuras com resina epóxi | E67: =(VLOOKUP(C67,CPU!B38:D330,3,0)) -> m | F67: =3/0.3 -> 10 | G67: =TRUNC((1-$H$9)*(SUMIFS(CPU!$G:$G,CPU!$A:$A,MURICI!$C67,CPU!$H:$H,"ss")+SUMIFS(CPU!$G:$G,CPU!$A:$A,MURICI!$C67,CPU!$H:$H,"mdo")+SUMIF('Comp SINAPI PE 06-2025 Onerado'!B:B,MURICI!C67,'Comp SINAPI PE 06-2025 Onerado'!E:E)+SUMIF('Ins SINAPI PE 06-2025 Onerado'!B:B,MURICI!C67,'Ins SINAPI PE 06-2025 Onerado'!F:F)),2) -> 69.84 | H67: =TRUNC(G67*(1+$H$5),2) -> 86.04 | I67: =TRUNC(F67*H67,2) -> 860.4
A68: 10.1.3 | B68: PRÓPRIA | C68: CPU.17 | D68: =(VLOOKUP(C68,CPU!$B$10:$C$302,2,0)) -> Emboço ou massa única em argamassa | E68: =(VLOOKUP(C68,CPU!B39:D331,3,0)) -> m2 | F68: 40 | G68: =TRUNC((1-$H$9)*(SUMIFS(CPU!$G:$G,CPU!$A:$A,MURICI!$C68,CPU!$H:$H,"ss")+SUMIFS(CPU!$G:$G,CPU!$A:$A,MURICI!$C68,CPU!$H:$H,"mdo")+SUMIF('Comp SINAPI PE 06-2025 Onerado'!B:B,MURICI!C68,'Comp SINAPI PE 06-2025 Onerado'!E:E)+SUMIF('Ins SINAPI PE 06-2025 Onerado'!B:B,MURICI!C68,'Ins SINAPI PE 06-2025 Onerado'!F:F)),2) -> 106.33 | H68: =TRUNC(G68*(1+$H$5),2) -> 131 | I68: =TRUNC(F68*H68,2) -> 5240
A70: 11 | D70: RECUPERAÇÃO DA BACIA AMORTECEDORA | I70: =SUM(I71) -> 5004
A71: 11.1 | D71: Recuperção bacia amortecedora | I71: =SUM(I72:I74) -> 5004
A72: 11.1.1 | B72: PRÓPRIA | C72: CPU.18 | D72: =(VLOOKUP(C72,CPU!$B$10:$C$302,2,0)) -> Limpeza da superfície | E72: =(VLOOKUP(C72,CPU!B43:D335,3,0)) -> m2 | F72: 36 | G72: =TRUNC((1-$H$9)*(SUMIFS(CPU!$G:$G,CPU!$A:$A,MURICI!$C72,CPU!$H:$H,"ss")+SUMIFS(CPU!$G:$G,CPU!$A:$A,MURICI!$C72,CPU!$H:$H,"mdo")+SUMIF('Comp SINAPI PE 06-2025 Onerado'!B:B,MURICI!C72,'Comp SINAPI PE 06-2025 Onerado'!E:E)+SUMIF('Ins SINAPI PE 06-2025 Onerado'!B:B,MURICI!C72,'Ins SINAPI PE 06-2025 Onerado'!F:F)),2) -> 6.5 | H72: =TRUNC(G72*(1+$H$5),2) -> 8 | I72: =TRUNC(F72*H72,2) -> 288
A73: 11.1.2 | B73: PRÓPRIA | C73: CPU.17 | D73: =(VLOOKUP(C73,CPU!$B$10:$C$302,2,0)) -> Emboço ou massa única em argamassa | E73: =(VLOOKUP(C73,CPU!B44:D336,3,0)) -> m2 | F73: 36 | G73: =TRUNC((1-$H$9)*(SUMIFS(CPU!$G:$G,CPU!$A:$A,MURICI!$C73,CPU!$H:$H,"ss")+SUMIFS(CPU!$G:$G,CPU!$A:$A,MURICI!$C73,CPU!$H:$H,"mdo")+SUMIF('Comp SINAPI PE 06-2025 Onerado'!B:B,MURICI!C73,'Comp SINAPI PE 06-2025 Onerado'!E:E)+SUMIF('Ins SINAPI PE 06-2025 Onerado'!B:B,MURICI!C73,'Ins SINAPI PE 06-2025 Onerado'!F:F)),2) -> 106.33 | H73: =TRUNC(G73*(1+$H$5),2) -> 131 | I73: =TRUNC(F73*H73,2) -> 4716
A75: 12 | D75: SERVIÇOS COMPLEMENTARES | I75: =SUM(I76,I78) -> 6583.56
A76: 12.1 | D76: Instalação de placas de aviso | I76: =SUM(I77:I77) -> 2306.76
A77: 12.1.1 | B77: SINAPI | C77: 103689 | D77: =IF(J77="ca",VLOOKUP(C77,'Comp SINAPI PE 06-2025 Onerado'!$B$11:$C$9004,2,0),VLOOKUP(C77,'Ins SINAPI PE 06-2025 Onerado'!$B$10:$C$9004,2,0)) -> FORNECIMENTO E INSTALAÇÃO DE PLACA DE OBRA COM CHAPA GALVANIZADA E ESTRUTURA DE MADEIRA. AF_03/2022_PS | E77: =IF(J77="ca",VLOOKUP(C77,'Comp SINAPI PE 06-2025 Onerado'!$B$11:$D$9004,3,0),VLOOKUP(C77,'Ins SINAPI PE 06-2025 Onerado'!$B$11:$D$9004,3,0)) -> M2 | F77: 4 | G77: =TRUNC((1-$H$9)*(SUMIFS(CPU!$G:$G,CPU!$A:$A,MURICI!$C77,CPU!$H:$H,"ss")+SUMIFS(CPU!$G:$G,CPU!$A:$A,MURICI!$C77,CPU!$H:$H,"mdo")+SUMIF('Comp SINAPI PE 06-2025 Onerado'!B:B,MURICI!C77,'Comp SINAPI PE 06-2025 Onerado'!E:E)+SUMIF('Ins SINAPI PE 06-2025 Onerado'!B:B,MURICI!C77,'Ins SINAPI PE 06-2025 Onerado'!F:F)),2) -> 468.06 | H77: =TRUNC(G77*(1+$H$5),2) -> 576.69 | I77: =TRUNC(F77*H77,2) -> 2306.76 | J77: ca
A78: 12.2 | D78: Régua Linimétrica Padrão “ANA”, Aço Carbono - 2 X 70 X 1000 mm (Fornecimento e Instalação) | I78: =SUM(I79:I79) -> 4276.8
A79: 12.2.1 | B79: PRÓPRIA | C79: CPU.15 | D79: =(VLOOKUP(C79,CPU!$B$10:$C$302,2,0)) -> Régua Linimétrica Padrão “ANA”, Aço Carbono - 2 X 70 X 1000 mm (Fornecimento e Instalação) | E79: un | F79: 8 | G79: =TRUNC((1-$H$9)*(SUMIFS(CPU!$G:$G,CPU!$A:$A,MURICI!$C79,CPU!$H:$H,"ss")+SUMIFS(CPU!$G:$G,CPU!$A:$A,MURICI!$C79,CPU!$H:$H,"mdo")+SUMIF('Comp SINAPI PE 06-2025 Onerado'!B:B,MURICI!C79,'Comp SINAPI PE 06-2025 Onerado'!E:E)+SUMIF('Ins SINAPI PE 06-2025 Onerado'!B:B,MURICI!C79,'Ins SINAPI PE 06-2025 Onerado'!F:F)),2) -> 433.9 | H79: =TRUNC(G79*(1+$H$5),2) -> 534.6 | I79: =TRUNC(F79*H79,2) -> 4276.8
A81: 13 | D81: PROJETO "AS IS" | I81: =SUM(I82) -> 14010.87
A82: 13.1 | D82: Levantamento topográfico e "AS IS" | I82: =SUM(I83:I84) -> 14010.87
A83: 13.1.1 | B83: ORSE | C83: 9346 | D83: Levantamento topográfico planimétrico cadastral | E83: m2 | F83: =F28 -> 7944 | G83: =TRUNC(0.35*(1-$H$9),2) -> 0.35 | H83: =TRUNC(G83*(1+$H$5),2) -> 0.43 | I83: =TRUNC(F83*H83,2) -> 3415.92
A84: 13.1.2 | B84: PRÓPRIA | C84: CPU.19 | D84: =(VLOOKUP(C84,CPU!$B$10:$C$302,2,0)) -> Projeto geométrico | E84: un | F84: 1 | G84: =TRUNC((1-$H$9)*(SUMIFS(CPU!$G:$G,CPU!$A:$A,MURICI!$C84,CPU!$H:$H,"ss")+SUMIFS(CPU!$G:$G,CPU!$A:$A,MURICI!$C84,CPU!$H:$H,"mdo")+SUMIF('Comp SINAPI PE 06-2025 Onerado'!B:B,MURICI!C84,'Comp SINAPI PE 06-2025 Onerado'!E:E)+SUMIF('Ins SINAPI PE 06-2025 Onerado'!B:B,MURICI!C84,'Ins SINAPI PE 06-2025 Onerado'!F:F)),2) -> 8599.1 | H84: =TRUNC(G84*(1+$H$5),2) -> 10594.95 | I84: =TRUNC(F84*H84,2) -> 10594.95
A86: 14 | D86: FISCALIZAÇÃO E ACOMPANHAMENTO | I86: =SUM(I87) -> 2829.84
A87: 14.1 | D87: Disponibilidade de veículo para apoio a fiscalização | I87: =SUM(I88:I89) -> 2829.84
A88: 14.1.1 | B88: PRÓPRIA | C88: CPU.21 | D88: =(VLOOKUP(C88,CPU!$B$10:$C$302,2,0)) -> Disponibilidade de veículo para apoio a fiscalização, inclusive combustível | E88: un | F88: 6 | G88: =TRUNC((1-$H$9)*(SUMIFS(CPU!$G:$G,CPU!$A:$A,MURICI!$C88,CPU!$H:$H,"ss")+SUMIFS(CPU!$G:$G,CPU!$A:$A,MURICI!$C88,CPU!$H:$H,"mdo")+SUMIF('Comp SINAPI PE 06-2025 Onerado'!B:B,MURICI!C88,'Comp SINAPI PE 06-2025 Onerado'!E:E)+SUMIF('Ins SINAPI PE 06-2025 Onerado'!B:B,MURICI!C88,'Ins SINAPI PE 06-2025 Onerado'!F:F)),2) -> 382.8 | H88: =TRUNC(G88*(1+$H$5),2) -> 471.64 | I88: =TRUNC(F88*H88,2) -> 2829.84
D90: TOTAL (Custo): | I90: =TRUNC(SUMPRODUCT(F15:F89,G15:G89),2) -> 444977.31
D91: BDI e Encargos Sociais: | I91: =I92-I90 -> 103242.16
D92: TOTAL GERAL COM BDI: | I92: =SUM(I14,I18,I26,I31,I37,I45,I49,I55,I59,I64,I70,I75,I81,I86) -> 548219.47 | L92: =TRUNC(SUMPRODUCT(F15:F89,H15:H89),2) -> 548219.48

Sheet RIACHO DOS CAVALOS
A1: Ministério da Integração e do Desenvolvimento Regional
A2: Companhia de Desenvolvimento dos Vales do São Francisco e do Parnaíba
A4: PLANILHA ORÇAMENTÁRIA - ORÇAMENTO NÃO DESONERADO
A5: OBRA: | B5: =Resumo!B5 -> Execução de manutenção e recuperação nas barragens de Jacu, Caiçara, Algodoes, Manoel Rodrigues, Murici, Riacho dos Cavalos e Alto Grande, localizadas no estado de Pernambuco. | G5: BDI (serv.): | H5: ='BDI serv'!D23 -> 0.2321 | I5: Bancos de dados:
A6: LOCAL: | B6: =Resumo!B6 -> BARRAGENS DE PERNAMBUCO | G6: BDI (forn.): | H6: ='BDI forn'!D23 -> 0.1415 | I6: =Resumo!G6 -> JUN/25 - SINAPI
A7: DATA BASE: | B7: =Resumo!B7 -> 2025-07-01 | E7: Encargos sociais - Horistas: | H7: ='Encargos Sociais'!E49 -> 1.1384 | I7: =Resumo!G7 -> MAI/25 - ORSE
A8: PRAZO: | B8: 90 dias | E8: Encargos sociais - Mensalista: | H8: ='Encargos Sociais'!F49 -> 0.7011 | I8: =Resumo!G8 -> JAN/25 - SETOP
B9: =Resumo!B20 -> Riacho dos Cavalos | G9: Desconto: | H9: 0 | I9: =Resumo!G9 -> ABR/2025 - SICRO3
I10: =Resumo!G10 -> JAN/2025 - EMBASA
I11: =Resumo!G11 -> 028 - SEINFRA
A12: ITEM | B12: REFERÊNCIA | D12: DESCRIÇÃO | E12: UNID. | F12: QUANT. | G12: CUSTO UNITÁRIO | H12: PREÇO UNITÁRIO | I12: PREÇO TOTAL
B13: FONTE | C13: CÓDIGO
A14: 1 | D14: ADMINISTRAÇÃO DA OBRA | I14: =SUM(I15) -> 107417.73
A15: 1.1 | D15: Administração da Obra | I15: =SUM(I16:I16) -> 107417.73
A16: 1.1.1 | B16: PRÓPRIA | C16: CPU.01 | D16: =(VLOOKUP(C16,CPU!$B$10:$C$302,2,0)) -> Administração Local | E16: mês | F16: 3 | G16: =TRUNC((1-$H$9)*(SUMIFS(CPU!$G:$G,CPU!$A:$A,'RIACHO DOS CAVALOS'!$C16,CPU!$H:$H,"ss")+SUMIFS(CPU!$G:$G,CPU!$A:$A,'RIACHO DOS CAVALOS'!$C16,CPU!$H:$H,"mdo")+SUMIF('Comp SINAPI PE 06-2025 Onerado'!B:B,'RIACHO DOS CAVALOS'!C16,'Comp SINAPI PE 06-2025 Onerado'!E:E)+SUMIF('Ins SINAPI PE 06-2025 Onerado'!B:B,'RIACHO DOS CAVALOS'!C16,'Ins SINAPI PE 06-2025 Onerado'!F:F)),2) -> 29060.88 | H16: =TRUNC(G16*(1+$H$5),2) -> 35805.91 | I16: =TRUNC(F16*H16,2) -> 107417.73
A18: 2 | D18: SERVIÇOS PRELIMINARES | I18: =SUM(I19,I21,I23) -> 30051.26
A19: 2.1 | D19: Mobilização e desmobilização | I19: =SUM(I20) -> 3697.9
A20: 2.1.1 | B20: PRÓPRIA | C20: CPU.02 | D20: =(VLOOKUP(C20,CPU!$B$10:$C$302,2,0)) -> Mobilização e desmobilização de instalação do canteiro | E20: un | F20: 1 | G20: =TRUNC((1-$H$9)*(SUMIFS(CPU!$G:$G,CPU!$A:$A,'RIACHO DOS CAVALOS'!$C20,CPU!$H:$H,"ss")+SUMIFS(CPU!$G:$G,CPU!$A:$A,'RIACHO DOS CAVALOS'!$C20,CPU!$H:$H,"mdo")+SUMIF('Comp SINAPI PE 06-2025 Onerado'!B:B,'RIACHO DOS CAVALOS'!C20,'Comp SINAPI PE 06-2025 Onerado'!E:E)+SUMIF('Ins SINAPI PE 06-2025 Onerado'!B:B,'RIACHO DOS CAVALOS'!C20,'Ins SINAPI PE 06-2025 Onerado'!F:F)),2) -> 3001.3 | H20: =TRUNC(G20*(1+$H$5),2) -> 3697.9 | I20: =TRUNC(F20*H20,2) -> 3697.9
A21: 2.2 | D21: Canteiro de obras | I21: =SUM(I22) -> 25199.98
A22: 2.2.1 | B22: PRÓPRIA | C22: CPU.03 | D22: =(VLOOKUP(C22,CPU!$B$10:$C$302,2,0)) -> Execução de canteiro de obras, inclusive, limpeza, refeitório, sanitários e central de formas | E22: m2 | F22: 28.5 | G22: =TRUNC((1-$H$9)*(SUMIFS(CPU!$G:$G,CPU!$A:$A,'RIACHO DOS CAVALOS'!$C22,CPU!$H:$H,"ss")+SUMIFS(CPU!$G:$G,CPU!$A:$A,'RIACHO DOS CAVALOS'!$C22,CPU!$H:$H,"mdo")+SUMIF('Comp SINAPI PE 06-2025 Onerado'!B:B,'RIACHO DOS CAVALOS'!C22,'Comp SINAPI PE 06-2025 Onerado'!E:E)+SUMIF('Ins SINAPI PE 06-2025 Onerado'!B:B,'RIACHO DOS CAVALOS'!C22,'Ins SINAPI PE 06-2025 Onerado'!F:F)),2) -> 717.65 | H22: =TRUNC(G22*(1+$H$5),2) -> 884.21 | I22: =TRUNC(F22*H22,2) -> 25199.98
A23: 2.3 | D23: Sinalização | I23: =SUM(I24:I24) -> 1153.38
A24: 2.3.1 | B24: SINAPI | C24: 103689 | D24: =IF(J24="ca",VLOOKUP(C24,'Comp SINAPI PE 06-2025 Onerado'!$B$11:$C$9004,2,0),VLOOKUP(C24,'Ins SINAPI PE 06-2025 Onerado'!$B$10:$C$9004,2,0)) -> FORNECIMENTO E INSTALAÇÃO DE PLACA DE OBRA COM CHAPA GALVANIZADA E ESTRUTURA DE MADEIRA. AF_03/2022_PS | E24: =IF(J24="ca",VLOOKUP(C24,'Comp SINAPI PE 06-2025 Onerado'!$B$11:$D$9004,3,0),VLOOKUP(C24,'Ins SINAPI PE 06-2025 Onerado'!$B$11:$D$9004,3,0)) -> M2 | F24: 2 | G24: =TRUNC((1-$H$9)*(SUMIFS(CPU!$G:$G,CPU!$A:$A,'RIACHO DOS CAVALOS'!$C24,CPU!$H:$H,"ss")+SUMIFS(CPU!$G:$G,CPU!$A:$A,'RIACHO DOS CAVALOS'!$C24,CPU!$H:$H,"mdo")+SUMIF('Comp SINAPI PE 06-2025 Onerado'!B:B,'RIACHO DOS CAVALOS'!C24,'Comp SINAPI PE 06-2025 Onerado'!E:E)+SUMIF('Ins SINAPI PE 06-2025 Onerado'!B:B,'RIACHO DOS CAVALOS'!C24,'Ins SINAPI PE 06-2025 Onerado'!F:F)),2) -> 468.06 | H24: =TRUNC(G24*(1+$H$5),2) -> 576.69 | I24: =TRUNC(F24*H24,2) -> 1153.38 | J24: ca
A26: 3 | D26: CORTE DA VEGETAÇÃO E REMOÇÃO DAS RAIZES | I26: =SUM(I27) -> 89824.61
A27: 3.1 | D27: Remoção da vegetação | I27: =SUM(I28:I29) -> 89824.61
A28: 3.1.1 | B28: PRÓPRIA | C28: CPU.04 | D28: =(VLOOKUP(C28,CPU!$B$10:$C$302,2,0)) -> Limpeza de vegetação | E28: =(VLOOKUP(C28,CPU!B2:D$408,3,0)) -> m2 | F28: 7203 | G28: =TRUNC((1-$H$9)*(SUMIFS(CPU!$G:$G,CPU!$A:$A,'RIACHO DOS CAVALOS'!$C28,CPU!$H:$H,"ss")+SUMIFS(CPU!$G:$G,CPU!$A:$A,'RIACHO DOS CAVALOS'!$C28,CPU!$H:$H,"mdo")+SUMIF('Comp SINAPI PE 06-2025 Onerado'!B:B,'RIACHO DOS CAVALOS'!C28,'Comp SINAPI PE 06-2025 Onerado'!E:E)+SUMIF('Ins SINAPI PE 06-2025 Onerado'!B:B,'RIACHO DOS CAVALOS'!C28,'Ins SINAPI PE 06-2025 Onerado'!F:F)),2) -> 7.85 | H28: =TRUNC(G28*(1+$H$5),2) -> 9.67 | I28: =TRUNC(F28*H28,2) -> 69653.01
A29: 3.1.2 | B29: PRÓPRIA | C29: CPU.05 | D29: =(VLOOKUP(C29,CPU!$B$10:$C$302,2,0)) -> Corte de tronco e remoção de raiz | E29: =(VLOOKUP(C29,CPU!B3:D$408,3,0)) -> un | F29: 40 | G29: =TRUNC((1-$H$9)*(SUMIFS(CPU!$G:$G,CPU!$A:$A,'RIACHO DOS CAVALOS'!$C29,CPU!$H:$H,"ss")+SUMIFS(CPU!$G:$G,CPU!$A:$A,'RIACHO DOS CAVALOS'!$C29,CPU!$H:$H,"mdo")+SUMIF('Comp SINAPI PE 06-2025 Onerado'!B:B,'RIACHO DOS CAVALOS'!C29,'Comp SINAPI PE 06-2025 Onerado'!E:E)+SUMIF('Ins SINAPI PE 06-2025 Onerado'!B:B,'RIACHO DOS CAVALOS'!C29,'Ins SINAPI PE 06-2025 Onerado'!F:F)),2) -> 409.3 | H29: =TRUNC(G29*(1+$H$5),2) -> 504.29 | I29: =TRUNC(F29*H29,2) -> 20171.6
A31: 4 | D31: RECUPERAÇÃO DO MACIÇO | I31: =SUM(I32,I34) -> 54953.04
A32: 4.1 | D32: Recomposição das Erosões (erosões locais nas ombreiras e aterro), trincas e buracos | I32: =SUM(I33:I33) -> 54256.32
A33: 4.1.1 | B33: PRÓPRIA | C33: CPU.12 | D33: =(VLOOKUP(C33,CPU!$B$10:$C$302,2,0)) -> Recomposição das erosões, inclusive, regularização da superfície e reaterro | E33: =(VLOOKUP(C33,CPU!B4:D$408,3,0)) -> m3 | F33: 144 | G33: =TRUNC((1-$H$9)*(SUMIFS(CPU!$G:$G,CPU!$A:$A,'RIACHO DOS CAVALOS'!$C33,CPU!$H:$H,"ss")+SUMIFS(CPU!$G:$G,CPU!$A:$A,'RIACHO DOS CAVALOS'!$C33,CPU!$H:$H,"mdo")+SUMIF('Comp SINAPI PE 06-2025 Onerado'!B:B,'RIACHO DOS CAVALOS'!C33,'Comp SINAPI PE 06-2025 Onerado'!E:E)+SUMIF('Ins SINAPI PE 06-2025 Onerado'!B:B,'RIACHO DOS CAVALOS'!C33,'Ins SINAPI PE 06-2025 Onerado'!F:F)),2) -> 305.81 | H33: =TRUNC(G33*(1+$H$5),2) -> 376.78 | I33: =TRUNC(F33*H33,2) -> 54256.32
A34: 4.2 | D34: Injeção de nata de cimento em buracos | I34: =SUM(I35:I35) -> 696.72
A35: 4.2.1 | B35: PRÓPRIA | C35: CPU.20 | D35: =(VLOOKUP(C35,CPU!$B$10:$C$302,2,0)) -> Injeção de nata de cimento em buracos | E35: =(VLOOKUP(C35,CPU!B6:D$408,3,0)) -> m3 | F35: 0.5 | G35: =TRUNC((1-$H$9)*(SUMIFS(CPU!$G:$G,CPU!$A:$A,'RIACHO DOS CAVALOS'!$C35,CPU!$H:$H,"ss")+SUMIFS(CPU!$G:$G,CPU!$A:$A,'RIACHO DOS CAVALOS'!$C35,CPU!$H:$H,"mdo")+SUMIF('Comp SINAPI PE 06-2025 Onerado'!B:B,'RIACHO DOS CAVALOS'!C35,'Comp SINAPI PE 06-2025 Onerado'!E:E)+SUMIF('Ins SINAPI PE 06-2025 Onerado'!B:B,'RIACHO DOS CAVALOS'!C35,'Ins SINAPI PE 06-2025 Onerado'!F:F)),2) -> 1130.96 | H35: =TRUNC(G35*(1+$H$5),2) -> 1393.45 | I35: =TRUNC(F35*H35,2) -> 696.72
A37: 5 | D37: REGULARIZAÇÃO E PAVIMENTAÇÃO DA CRISTA | I37: =SUM(I38,I40,I42) -> 124093.78
A38: 5.1 | D38: Regularização da Crista | I38: =SUM(I39:I39) -> 4444.86
A39: 5.1.2 | B39: PRÓPRIA | C39: CPU.13 | D39: =(VLOOKUP(C39,CPU!$B$10:$C$302,2,0)) -> Regularização e compactação da crista | E39: =(VLOOKUP(C39,CPU!B10:D302,3,0)) -> m2 | F39: 1114 | G39: =TRUNC((1-$H$9)*(SUMIFS(CPU!$G:$G,CPU!$A:$A,'RIACHO DOS CAVALOS'!$C39,CPU!$H:$H,"ss")+SUMIFS(CPU!$G:$G,CPU!$A:$A,'RIACHO DOS CAVALOS'!$C39,CPU!$H:$H,"mdo")+SUMIF('Comp SINAPI PE 06-2025 Onerado'!B:B,'RIACHO DOS CAVALOS'!C39,'Comp SINAPI PE 06-2025 Onerado'!E:E)+SUMIF('Ins SINAPI PE 06-2025 Onerado'!B:B,'RIACHO DOS CAVALOS'!C39,'Ins SINAPI PE 06-2025 Onerado'!F:F)),2) -> 3.24 | H39: =TRUNC(G39*(1+$H$5),2) -> 3.99 | I39: =TRUNC(F39*H39,2) -> 4444.86
A40: 5.2 | D40: Instalação de meio-fio e sarjeta em ambos os lados da crista | I40: =SUM(I41:I41) -> 24866.4
A41: 5.2.1 | B41: PRÓPRIA | C41: CPU.16 | D41: =(VLOOKUP(C41,CPU!$B$10:$C$302,2,0)) -> Fornecimento e Assentamento de Guia (meio-fio) Pré-fabricado, dimensões 100x15x20 cm (comprimento x base x altura) | E41: =(VLOOKUP(C41,CPU!B12:D304,3,0)) -> m | F41: 260 | G41: =TRUNC((1-$H$9)*(SUMIFS(CPU!$G:$G,CPU!$A:$A,'RIACHO DOS CAVALOS'!$C41,CPU!$H:$H,"ss")+SUMIFS(CPU!$G:$G,CPU!$A:$A,'RIACHO DOS CAVALOS'!$C41,CPU!$H:$H,"mdo")+SUMIF('Comp SINAPI PE 06-2025 Onerado'!B:B,'RIACHO DOS CAVALOS'!C41,'Comp SINAPI PE 06-2025 Onerado'!E:E)+SUMIF('Ins SINAPI PE 06-2025 Onerado'!B:B,'RIACHO DOS CAVALOS'!C41,'Ins SINAPI PE 06-2025 Onerado'!F:F)),2) -> 77.63 | H41: =TRUNC(G41*(1+$H$5),2) -> 95.64 | I41: =TRUNC(F41*H41,2) -> 24866.4
A42: 5.3 | D42: Pavimentação da Crista | I42: =SUM(I43:I43) -> 94782.52
A43: 5.3.1 | B43: PRÓPRIA | C43: CPU.14 | D43: =(VLOOKUP(C43,CPU!$B$10:$C$302,2,0)) -> Execução de Revestimento com BGTC | E43: =(VLOOKUP(C43,CPU!B14:D306,3,0)) -> m3 | F43: 167 | G43: =TRUNC((1-$H$9)*(SUMIFS(CPU!$G:$G,CPU!$A:$A,'RIACHO DOS CAVALOS'!$C43,CPU!$H:$H,"ss")+SUMIFS(CPU!$G:$G,CPU!$A:$A,'RIACHO DOS CAVALOS'!$C43,CPU!$H:$H,"mdo")+SUMIF('Comp SINAPI PE 06-2025 Onerado'!B:B,'RIACHO DOS CAVALOS'!C43,'Comp SINAPI PE 06-2025 Onerado'!E:E)+SUMIF('Ins SINAPI PE 06-2025 Onerado'!B:B,'RIACHO DOS CAVALOS'!C43,'Ins SINAPI PE 06-2025 Onerado'!F:F)),2) -> 460.65 | H43: =TRUNC(G43*(1+$H$5),2) -> 567.56 | I43: =TRUNC(F43*H43,2) -> 94782.52
A45: 6 | D45: MANUTENÇÃO NO TALUDE DE MONTANTE | I45: =SUM(I46) -> 14169.54
A46: 6.1 | D46: Enrocamento com pedra de mão para proteção do talude | I46: =SUM(I47:I47) -> 14169.54
A47: 6.1.1 | B47: PRÓPRIA | C47: CPU.06 | D47: =(VLOOKUP(C47,CPU!$B$10:$C$302,2,0)) -> Enrocamento c/ pedra de mão c/ fornecimento e assentamento | E47: =(VLOOKUP(C47,CPU!B24:D408,3,0)) -> m3 | F47: 33 | G47: =TRUNC((1-$H$9)*(SUMIFS(CPU!$G:$G,CPU!$A:$A,'RIACHO DOS CAVALOS'!$C47,CPU!$H:$H,"ss")+SUMIFS(CPU!$G:$G,CPU!$A:$A,'RIACHO DOS CAVALOS'!$C47,CPU!$H:$H,"mdo")+SUMIF('Comp SINAPI PE 06-2025 Onerado'!B:B,'RIACHO DOS CAVALOS'!C47,'Comp SINAPI PE 06-2025 Onerado'!E:E)+SUMIF('Ins SINAPI PE 06-2025 Onerado'!B:B,'RIACHO DOS CAVALOS'!C47,'Ins SINAPI PE 06-2025 Onerado'!F:F)),2) -> 348.5 | H47: =TRUNC(G47*(1+$H$5),2) -> 429.38 | I47: =TRUNC(F47*H47,2) -> 14169.54
A49: 7 | D49: DRENAGEM SUPERFICIAL DO TALUDE DE JUSANTE | I49: =SUM(I50,I52) -> 32582.62
A50: 7.1 | D50: Canaleta para descida d'água | I50: =I51 -> 30914.52
A51: 7.1.1 | B51: PRÓPRIA | C51: CPU.07 | D51: =(VLOOKUP(C51,CPU!$B$10:$C$302,2,0)) -> Canaleta meia cana de concreto (D=30cm) - Fornecimento e instalação | E51: =(VLOOKUP(C51,CPU!B18:D310,3,0)) -> m | F51: 156 | G51: =TRUNC((1-$H$9)*(SUMIFS(CPU!$G:$G,CPU!$A:$A,'RIACHO DOS CAVALOS'!$C51,CPU!$H:$H,"ss")+SUMIFS(CPU!$G:$G,CPU!$A:$A,'RIACHO DOS CAVALOS'!$C51,CPU!$H:$H,"mdo")+SUMIF('Comp SINAPI PE 06-2025 Onerado'!B:B,'RIACHO DOS CAVALOS'!C51,'Comp SINAPI PE 06-2025 Onerado'!E:E)+SUMIF('Ins SINAPI PE 06-2025 Onerado'!B:B,'RIACHO DOS CAVALOS'!C51,'Ins SINAPI PE 06-2025 Onerado'!F:F)),2) -> 160.84 | H51: =TRUNC(G51*(1+$H$5),2) -> 198.17 | I51: =TRUNC(F51*H51,2) -> 30914.52
A52: 7.3 | D52: Entrada para descida d'água | I52: =I53 -> 1668.1
A53: 7.3.1 | B53: PRÓPRIA | C53: CPU.08 | D53: =(VLOOKUP(C53,CPU!$B$10:$C$302,2,0)) -> Entrada para descida d'água | E53: =(VLOOKUP(C53,CPU!B20:D408,3,0)) -> un | F53: =F51/20 -> 7.8 | G53: =TRUNC((1-$H$9)*(SUMIFS(CPU!$G:$G,CPU!$A:$A,'RIACHO DOS CAVALOS'!$C53,CPU!$H:$H,"ss")+SUMIFS(CPU!$G:$G,CPU!$A:$A,'RIACHO DOS CAVALOS'!$C53,CPU!$H:$H,"mdo")+SUMIF('Comp SINAPI PE 06-2025 Onerado'!B:B,'RIACHO DOS CAVALOS'!C53,'Comp SINAPI PE 06-2025 Onerado'!E:E)+SUMIF('Ins SINAPI PE 06-2025 Onerado'!B:B,'RIACHO DOS CAVALOS'!C53,'Ins SINAPI PE 06-2025 Onerado'!F:F)),2) -> 173.58 | H53: =TRUNC(G53*(1+$H$5),2) -> 213.86 | I53: =TRUNC(F53*H53,2) -> 1668.1
A55: 8 | D55: PROTEÇÃO SUPERFICIAL DO TALUDE DE JUSANTE | I55: =SUM(I56) -> 30160
A56: 8.1 | D56: Proteção vegetal | I56: =SUM(I57:I57) -> 30160
A57: 8.1.1 | B57: PRÓPRIA | C57: CPU.09 | D57: =(VLOOKUP(C57,CPU!$B$10:$C$302,2,0)) -> Plantio de vegetação para proteção de talude com hidrossemeadura, inclusive adubação e transporte | E57: =(VLOOKUP(C57,CPU!B28:D408,3,0)) -> m2 | F57: 2000 | G57: =TRUNC((1-$H$9)*(SUMIFS(CPU!$G:$G,CPU!$A:$A,'RIACHO DOS CAVALOS'!$C57,CPU!$H:$H,"ss")+SUMIFS(CPU!$G:$G,CPU!$A:$A,'RIACHO DOS CAVALOS'!$C57,CPU!$H:$H,"mdo")+SUMIF('Comp SINAPI PE 06-2025 Onerado'!B:B,'RIACHO DOS CAVALOS'!C57,'Comp SINAPI PE 06-2025 Onerado'!E:E)+SUMIF('Ins SINAPI PE 06-2025 Onerado'!B:B,'RIACHO DOS CAVALOS'!C57,'Ins SINAPI PE 06-2025 Onerado'!F:F)),2) -> 12.24 | H57: =TRUNC(G57*(1+$H$5),2) -> 15.08 | I57: =TRUNC(F57*H57,2) -> 30160
A59: 9 | D59: RESTAURAÇÃO DA SOLEIRA DO VERTEDOURO | I59: =SUM(I60) -> 6420.4
A60: 9.1 | D60: Restauração da soleira do vertedouro | I60: =SUM(I61:I63) -> 6420.4
A61: 9.1.1 | B61: PRÓPRIA | C61: CPU.18 | D61: =(VLOOKUP(C61,CPU!$B$10:$C$302,2,0)) -> Limpeza da superfície | E61: =(VLOOKUP(C61,CPU!B32:D420,3,0)) -> m2 | F61: 40 | G61: =TRUNC((1-$H$9)*(SUMIFS(CPU!$G:$G,CPU!$A:$A,'RIACHO DOS CAVALOS'!$C61,CPU!$H:$H,"ss")+SUMIFS(CPU!$G:$G,CPU!$A:$A,'RIACHO DOS CAVALOS'!$C61,CPU!$H:$H,"mdo")+SUMIF('Comp SINAPI PE 06-2025 Onerado'!B:B,'RIACHO DOS CAVALOS'!C61,'Comp SINAPI PE 06-2025 Onerado'!E:E)+SUMIF('Ins SINAPI PE 06-2025 Onerado'!B:B,'RIACHO DOS CAVALOS'!C61,'Ins SINAPI PE 06-2025 Onerado'!F:F)),2) -> 6.5 | H61: =TRUNC(G61*(1+$H$5),2) -> 8 | I61: =TRUNC(F61*H61,2) -> 320
A62: 9.1.2 | B62: PRÓPRIA | C62: CPU.24 | D62: =(VLOOKUP(C62,CPU!$B$10:$C$302,2,0)) -> Selagem de fissuras com resina epóxi | E62: =(VLOOKUP(C62,CPU!B32:D420,3,0)) -> m | F62: =3/0.3 -> 10 | G62: =TRUNC((1-$H$9)*(SUMIFS(CPU!$G:$G,CPU!$A:$A,'RIACHO DOS CAVALOS'!$C62,CPU!$H:$H,"ss")+SUMIFS(CPU!$G:$G,CPU!$A:$A,'RIACHO DOS CAVALOS'!$C62,CPU!$H:$H,"mdo")+SUMIF('Comp SINAPI PE 06-2025 Onerado'!B:B,'RIACHO DOS CAVALOS'!C62,'Comp SINAPI PE 06-2025 Onerado'!E:E)+SUMIF('Ins SINAPI PE 06-2025 Onerado'!B:B,'RIACHO DOS CAVALOS'!C62,'Ins SINAPI PE 06-2025 Onerado'!F:F)),2) -> 69.84 | H62: =TRUNC(G62*(1+$H$5),2) -> 86.04 | I62: =TRUNC(F62*H62,2) -> 860.4
A63: 9.1.3 | B63: PRÓPRIA | C63: CPU.17 | D63: =(VLOOKUP(C63,CPU!$B$10:$C$302,2,0)) -> Emboço ou massa única em argamassa | E63: =(VLOOKUP(C63,CPU!B33:D421,3,0)) -> m2 | F63: =F61 -> 40 | G63: =TRUNC((1-$H$9)*(SUMIFS(CPU!$G:$G,CPU!$A:$A,'RIACHO DOS CAVALOS'!$C63,CPU!$H:$H,"ss")+SUMIFS(CPU!$G:$G,CPU!$A:$A,'RIACHO DOS CAVALOS'!$C63,CPU!$H:$H,"mdo")+SUMIF('Comp SINAPI PE 06-2025 Onerado'!B:B,'RIACHO DOS CAVALOS'!C63,'Comp SINAPI PE 06-2025 Onerado'!E:E)+SUMIF('Ins SINAPI PE 06-2025 Onerado'!B:B,'RIACHO DOS CAVALOS'!C63,'Ins SINAPI PE 06-2025 Onerado'!F:F)),2) -> 106.33 | H63: =TRUNC(G63*(1+$H$5),2) -> 131 | I63: =TRUNC(F63*H63,2) -> 5240
A65: 10 | D65: RECUPERAÇÃO DA BACIA AMORTECEDORA | I65: =SUM(I66) -> 5004
A66: 10.1 | D66: Recuperção bacia amortecedora | I66: =SUM(I67:I68) -> 5004
A67: 10.1.1 | B67: PRÓPRIA | C67: CPU.18 | D67: =(VLOOKUP(C67,CPU!$B$10:$C$302,2,0)) -> Limpeza da superfície | E67: =(VLOOKUP(C67,CPU!B37:D425,3,0)) -> m2 | F67: 36 | G67: =TRUNC((1-$H$9)*(SUMIFS(CPU!$G:$G,CPU!$A:$A,'RIACHO DOS CAVALOS'!$C67,CPU!$H:$H,"ss")+SUMIFS(CPU!$G:$G,CPU!$A:$A,'RIACHO DOS CAVALOS'!$C67,CPU!$H:$H,"mdo")+SUMIF('Comp SINAPI PE 06-2025 Onerado'!B:B,'RIACHO DOS CAVALOS'!C67,'Comp SINAPI PE 06-2025 Onerado'!E:E)+SUMIF('Ins SINAPI PE 06-2025 Onerado'!B:B,'RIACHO DOS CAVALOS'!C67,'Ins SINAPI PE 06-2025 Onerado'!F:F)),2) -> 6.5 | H67: =TRUNC(G67*(1+$H$5),2) -> 8 | I67: =TRUNC(F67*H67,2) -> 288
A68: 10.1.2 | B68: PRÓPRIA | C68: CPU.17 | D68: =(VLOOKUP(C68,CPU!$B$10:$C$302,2,0)) -> Emboço ou massa única em argamassa | E68: =(VLOOKUP(C68,CPU!B36:D424,3,0)) -> m2 | F68: 36 | G68: =TRUNC((1-$H$9)*(SUMIFS(CPU!$G:$G,CPU!$A:$A,'RIACHO DOS CAVALOS'!$C68,CPU!$H:$H,"ss")+SUMIFS(CPU!$G:$G,CPU!$A:$A,'RIACHO DOS CAVALOS'!$C68,CPU!$H:$H,"mdo")+SUMIF('Comp SINAPI PE 06-2025 Onerado'!B:B,'RIACHO DOS CAVALOS'!C68,'Comp SINAPI PE 06-2025 Onerado'!E:E)+SUMIF('Ins SINAPI PE 06-2025 Onerado'!B:B,'RIACHO DOS CAVALOS'!C68,'Ins SINAPI PE 06-2025 Onerado'!F:F)),2) -> 106.33 | H68: =TRUNC(G68*(1+$H$5),2) -> 131 | I68: =TRUNC(F68*H68,2) -> 4716
A70: 11 | D70: SERVIÇOS COMPLEMENTARES | I70: =SUM(I71,I73) -> 6583.56
A71: 11.1 | D71: Instalação de placas de aviso | I71: =SUM(I72:I72) -> 2306.76
A72: 11.1.1 | B72: SINAPI | C72: 103689 | D72: =IF(J72="ca",VLOOKUP(C72,'Comp SINAPI PE 06-2025 Onerado'!$B$11:$C$9004,2,0),VLOOKUP(C72,'Ins SINAPI PE 06-2025 Onerado'!$B$10:$C$9004,2,0)) -> FORNECIMENTO E INSTALAÇÃO DE PLACA DE OBRA COM CHAPA GALVANIZADA E ESTRUTURA DE MADEIRA. AF_03/2022_PS | E72: =IF(J72="ca",VLOOKUP(C72,'Comp SINAPI PE 06-2025 Onerado'!$B$11:$D$9004,3,0),VLOOKUP(C72,'Ins SINAPI PE 06-2025 Onerado'!$B$11:$D$9004,3,0)) -> M2 | F72: 4 | G72: =TRUNC((1-$H$9)*(SUMIFS(CPU!$G:$G,CPU!$A:$A,'RIACHO DOS CAVALOS'!$C72,CPU!$H:$H,"ss")+SUMIFS(CPU!$G:$G,CPU!$A:$A,'RIACHO DOS CAVALOS'!$C72,CPU!$H:$H,"mdo")+SUMIF('Comp SINAPI PE 06-2025 Onerado'!B:B,'RIACHO DOS CAVALOS'!C72,'Comp SINAPI PE 06-2025 Onerado'!E:E)+SUMIF('Ins SINAPI PE 06-2025 Onerado'!B:B,'RIACHO DOS CAVALOS'!C72,'Ins SINAPI PE 06-2025 Onerado'!F:F)),2) -> 468.06 | H72: =TRUNC(G72*(1+$H$5),2) -> 576.69 | I72: =TRUNC(F72*H72,2) -> 2306.76 | J72: ca
A73: 11.2 | D73: Régua Linimétrica Padrão “ANA”, Aço Carbono - 2 X 70 X 1000 mm (Fornecimento e Instalação) | I73: =SUM(I74:I74) -> 4276.8
A74: 10.2.1 | B74: PRÓPRIA | C74: CPU.15 | D74: =(VLOOKUP(C74,CPU!$B$10:$C$302,2,0)) -> Régua Linimétrica Padrão “ANA”, Aço Carbono - 2 X 70 X 1000 mm (Fornecimento e Instalação) | E74: un | F74: 8 | G74: =TRUNC((1-$H$9)*(SUMIFS(CPU!$G:$G,CPU!$A:$A,'RIACHO DOS CAVALOS'!$C74,CPU!$H:$H,"ss")+SUMIFS(CPU!$G:$G,CPU!$A:$A,'RIACHO DOS CAVALOS'!$C74,CPU!$H:$H,"mdo")+SUMIF('Comp SINAPI PE 06-2025 Onerado'!B:B,'RIACHO DOS CAVALOS'!C74,'Comp SINAPI PE 06-2025 Onerado'!E:E)+SUMIF('Ins SINAPI PE 06-2025 Onerado'!B:B,'RIACHO DOS CAVALOS'!C74,'Ins SINAPI PE 06-2025 Onerado'!F:F)),2) -> 433.9 | H74: =TRUNC(G74*(1+$H$5),2) -> 534.6 | I74: =TRUNC(F74*H74,2) -> 4276.8
A76: 12 | D76: PROJETO "AS IS" | I76: =SUM(I77) -> 13692.24
A77: 12.1 | D77: Levantamento topográfico e "AS IS" | I77: =SUM(I78:I79) -> 13692.24
A78: 12.1.1 | B78: ORSE | C78: 9346 | D78: Levantamento topográfico planimétrico cadastral | E78: m2 | F78: =F28 -> 7203 | G78: =TRUNC(0.35*(1-$H$9),2) -> 0.35 | H78: =TRUNC(G78*(1+$H$5),2) -> 0.43 | I78: =TRUNC(F78*H78,2) -> 3097.29
A79: 12.1.2 | B79: PRÓPRIA | C79: CPU.19 | D79: =(VLOOKUP(C79,CPU!$B$10:$C$302,2,0)) -> Projeto geométrico | E79: un | F79: 1 | G79: =TRUNC((1-$H$9)*(SUMIFS(CPU!$G:$G,CPU!$A:$A,'RIACHO DOS CAVALOS'!$C79,CPU!$H:$H,"ss")+SUMIFS(CPU!$G:$G,CPU!$A:$A,'RIACHO DOS CAVALOS'!$C79,CPU!$H:$H,"mdo")+SUMIF('Comp SINAPI PE 06-2025 Onerado'!B:B,'RIACHO DOS CAVALOS'!C79,'Comp SINAPI PE 06-2025 Onerado'!E:E)+SUMIF('Ins SINAPI PE 06-2025 Onerado'!B:B,'RIACHO DOS CAVALOS'!C79,'Ins SINAPI PE 06-2025 Onerado'!F:F)),2) -> 8599.1 | H79: =TRUNC(G79*(1+$H$5),2) -> 10594.95 | I79: =TRUNC(F79*H79,2) -> 10594.95
A81: 13 | D81: FISCALIZAÇÃO E ACOMPANHAMENTO | I81: =SUM(I82) -> 2829.84
A82: 13.1 | D82: Disponibilidade de veículo para apoio a fiscalização | I82: =SUM(I83:I84) -> 2829.84
A83: 13.1.1 | B83: PRÓPRIA | C83: CPU.21 | D83: =(VLOOKUP(C83,CPU!$B$10:$C$302,2,0)) -> Disponibilidade de veículo para apoio a fiscalização, inclusive combustível | E83: un | F83: 6 | G83: =TRUNC((1-$H$9)*(SUMIFS(CPU!$G:$G,CPU!$A:$A,'RIACHO DOS CAVALOS'!$C83,CPU!$H:$H,"ss")+SUMIFS(CPU!$G:$G,CPU!$A:$A,'RIACHO DOS CAVALOS'!$C83,CPU!$H:$H,"mdo")+SUMIF('Comp SINAPI PE 06-2025 Onerado'!B:B,'RIACHO DOS CAVALOS'!C83,'Comp SINAPI PE 06-2025 Onerado'!E:E)+SUMIF('Ins SINAPI PE 06-2025 Onerado'!B:B,'RIACHO DOS CAVALOS'!C83,'Ins SINAPI PE 06-2025 Onerado'!F:F)),2) -> 382.8 | H83: =TRUNC(G83*(1+$H$5),2) -> 471.64 | I83: =TRUNC(F83*H83,2) -> 2829.84
D85: TOTAL (Custo): | I85: =TRUNC(SUMPRODUCT(F15:F84,G15:G84),2) -> 420271.79
D86: BDI e Encargos Sociais: | I86: =I87-I85 -> 97510.83
D87: TOTAL GERAL COM BDI: | I87: =SUM(I14,I18,I26,I31,I37,I45,I49,I55,I59,I65,I70,I76,I81) -> 517782.62 | L87: =TRUNC(SUMPRODUCT(F14:F84,H14:H84),2) -> 517782.63

Sheet ALTO GRANDE
A1: Ministério da Integração e do Desenvolvimento Regional
A2: Companhia de Desenvolvimento dos Vales do São Francisco e do Parnaíba
A4: PLANILHA ORÇAMENTÁRIA - ORÇAMENTO NÃO DESONERADO
A5: OBRA: | B5: =Resumo!B5 -> Execução de manutenção e recuperação nas barragens de Jacu, Caiçara, Algodoes, Manoel Rodrigues, Murici, Riacho dos Cavalos e Alto Grande, localizadas no estado de Pernambuco. | G5: BDI (serv.): | H5: ='BDI serv'!D23 -> 0.2321 | I5: Bancos de dados:
A6: LOCAL: | B6: =Resumo!B6 -> BARRAGENS DE PERNAMBUCO | G6: BDI (forn.): | H6: ='BDI forn'!D23 -> 0.1415 | I6: =Resumo!G6 -> JUN/25 - SINAPI
A7: DATA BASE: | B7: =Resumo!B7 -> 2025-07-01 | E7: Encargos sociais - Horistas: | H7: ='Encargos Sociais'!E49 -> 1.1384 | I7: =Resumo!G7 -> MAI/25 - ORSE
A8: PRAZO: | B8: 90 dias | E8: Encargos sociais - Mensalista: | H8: ='Encargos Sociais'!F49 -> 0.7011 | I8: =Resumo!G8 -> JAN/25 - SETOP
B9: =Resumo!B21 -> Alto Grande | G9: Desconto: | H9: 0 | I9: =Resumo!G9 -> ABR/2025 - SICRO3
I10: =Resumo!G10 -> JAN/2025 - EMBASA
I11: =Resumo!G11 -> 028 - SEINFRA
A12: ITEM | B12: REFERÊNCIA | D12: DESCRIÇÃO | E12: UNID. | F12: QUANT. | G12: CUSTO UNITÁRIO | H12: PREÇO UNITÁRIO | I12: PREÇO TOTAL
B13: FONTE | C13: CÓDIGO
A14: 1 | D14: ADMINISTRAÇÃO DA OBRA | I14: =SUM(I15) -> 107417.73
A15: 1.1 | D15: Administração da Obra | I15: =SUM(I16:I16) -> 107417.73
A16: 1.1.1 | B16: PRÓPRIA | C16: CPU.01 | D16: =(VLOOKUP(C16,CPU!$B$10:$C$302,2,0)) -> Administração Local | E16: mês | F16: 3 | G16: =TRUNC((1-$H$9)*(SUMIFS(CPU!$G:$G,CPU!$A:$A,'ALTO GRANDE'!$C16,CPU!$H:$H,"ss")+SUMIFS(CPU!$G:$G,CPU!$A:$A,'ALTO GRANDE'!$C16,CPU!$H:$H,"mdo")+SUMIF('Comp SINAPI PE 06-2025 Onerado'!B:B,'ALTO GRANDE'!C16,'Comp SINAPI PE 06-2025 Onerado'!E:E)+SUMIF('Ins SINAPI PE 06-2025 Onerado'!B:B,'ALTO GRANDE'!C16,'Ins SINAPI PE 06-2025 Onerado'!F:F)),2) -> 29060.88 | H16: =TRUNC(G16*(1+$H$5),2) -> 35805.91 | I16: =TRUNC(F16*H16,2) -> 107417.73
A18: 2 | D18: SERVIÇOS PRELIMINARES | I18: =SUM(I19,I21,I23) -> 30051.26
A19: 2.1 | D19: Mobilização e desmobilização | I19: =SUM(I20) -> 3697.9
A20: 2.1.1 | B20: PRÓPRIA | C20: CPU.02 | D20: =(VLOOKUP(C20,CPU!$B$10:$C$302,2,0)) -> Mobilização e desmobilização de instalação do canteiro | E20: un | F20: 1 | G20: =TRUNC((1-$H$9)*(SUMIFS(CPU!$G:$G,CPU!$A:$A,'ALTO GRANDE'!$C20,CPU!$H:$H,"ss")+SUMIFS(CPU!$G:$G,CPU!$A:$A,'ALTO GRANDE'!$C20,CPU!$H:$H,"mdo")+SUMIF('Comp SINAPI PE 06-2025 Onerado'!B:B,'ALTO GRANDE'!C20,'Comp SINAPI PE 06-2025 Onerado'!E:E)+SUMIF('Ins SINAPI PE 06-2025 Onerado'!B:B,'ALTO GRANDE'!C20,'Ins SINAPI PE 06-2025 Onerado'!F:F)),2) -> 3001.3 | H20: =TRUNC(G20*(1+$H$5),2) -> 3697.9 | I20: =TRUNC(F20*H20,2) -> 3697.9
A21: 2.2 | D21: Canteiro de obras | I21: =SUM(I22) -> 25199.98
A22: 2.2.1 | B22: PRÓPRIA | C22: CPU.03 | D22: =(VLOOKUP(C22,CPU!$B$10:$C$302,2,0)) -> Execução de canteiro de obras, inclusive, limpeza, refeitório, sanitários e central de formas | E22: m2 | F22: 28.5 | G22: =TRUNC((1-$H$9)*(SUMIFS(CPU!$G:$G,CPU!$A:$A,'ALTO GRANDE'!$C22,CPU!$H:$H,"ss")+SUMIFS(CPU!$G:$G,CPU!$A:$A,'ALTO GRANDE'!$C22,CPU!$H:$H,"mdo")+SUMIF('Comp SINAPI PE 06-2025 Onerado'!B:B,'ALTO GRANDE'!C22,'Comp SINAPI PE 06-2025 Onerado'!E:E)+SUMIF('Ins SINAPI PE 06-2025 Onerado'!B:B,'ALTO GRANDE'!C22,'Ins SINAPI PE 06-2025 Onerado'!F:F)),2) -> 717.65 | H22: =TRUNC(G22*(1+$H$5),2) -> 884.21 | I22: =TRUNC(F22*H22,2) -> 25199.98
A23: 2.3 | D23: Sinalização | I23: =SUM(I24:I24) -> 1153.38
A24: 2.3.1 | B24: SINAPI | C24: 103689 | D24: =IF(J24="ca",VLOOKUP(C24,'Comp SINAPI PE 06-2025 Onerado'!$B$11:$C$9004,2,0),VLOOKUP(C24,'Ins SINAPI PE 06-2025 Onerado'!$B$10:$C$9004,2,0)) -> FORNECIMENTO E INSTALAÇÃO DE PLACA DE OBRA COM CHAPA GALVANIZADA E ESTRUTURA DE MADEIRA. AF_03/2022_PS | E24: =IF(J24="ca",VLOOKUP(C24,'Comp SINAPI PE 06-2025 Onerado'!$B$11:$D$9004,3,0),VLOOKUP(C24,'Ins SINAPI PE 06-2025 Onerado'!$B$11:$D$9004,3,0)) -> M2 | F24: 2 | G24: =TRUNC((1-$H$9)*(SUMIFS(CPU!$G:$G,CPU!$A:$A,'ALTO GRANDE'!$C24,CPU!$H:$H,"ss")+SUMIFS(CPU!$G:$G,CPU!$A:$A,'ALTO GRANDE'!$C24,CPU!$H:$H,"mdo")+SUMIF('Comp SINAPI PE 06-2025 Onerado'!B:B,'ALTO GRANDE'!C24,'Comp SINAPI PE 06-2025 Onerado'!E:E)+SUMIF('Ins SINAPI PE 06-2025 Onerado'!B:B,'ALTO GRANDE'!C24,'Ins SINAPI PE 06-2025 Onerado'!F:F)),2) -> 468.06 | H24: =TRUNC(G24*(1+$H$5),2) -> 576.69 | I24: =TRUNC(F24*H24,2) -> 1153.38 | J24: ca
A26: 3 | D26: CORTE DA VEGETAÇÃO E REMOÇÃO DAS RAIZES | I26: =SUM(I27) -> 104107.2
A27: 3.1 | D27: Remoção da vegetação | I27: =SUM(I28:I29) -> 104107.2
A28: 3.1.1 | B28: PRÓPRIA | C28: CPU.04 | D28: =(VLOOKUP(C28,CPU!$B$10:$C$302,2,0)) -> Limpeza de vegetação | E28: =(VLOOKUP(C28,CPU!B2:D$408,3,0)) -> m2 | F28: 8680 | G28: =TRUNC((1-$H$9)*(SUMIFS(CPU!$G:$G,CPU!$A:$A,'ALTO GRANDE'!$C28,CPU!$H:$H,"ss")+SUMIFS(CPU!$G:$G,CPU!$A:$A,'ALTO GRANDE'!$C28,CPU!$H:$H,"mdo")+SUMIF('Comp SINAPI PE 06-2025 Onerado'!B:B,'ALTO GRANDE'!C28,'Comp SINAPI PE 06-2025 Onerado'!E:E)+SUMIF('Ins SINAPI PE 06-2025 Onerado'!B:B,'ALTO GRANDE'!C28,'Ins SINAPI PE 06-2025 Onerado'!F:F)),2) -> 7.85 | H28: =TRUNC(G28*(1+$H$5),2) -> 9.67 | I28: =TRUNC(F28*H28,2) -> 83935.6
A29: 3.1.2 | B29: PRÓPRIA | C29: CPU.05 | D29: =(VLOOKUP(C29,CPU!$B$10:$C$302,2,0)) -> Corte de tronco e remoção de raiz | E29: =(VLOOKUP(C29,CPU!B3:D$408,3,0)) -> un | F29: 40 | G29: =TRUNC((1-$H$9)*(SUMIFS(CPU!$G:$G,CPU!$A:$A,'ALTO GRANDE'!$C29,CPU!$H:$H,"ss")+SUMIFS(CPU!$G:$G,CPU!$A:$A,'ALTO GRANDE'!$C29,CPU!$H:$H,"mdo")+SUMIF('Comp SINAPI PE 06-2025 Onerado'!B:B,'ALTO GRANDE'!C29,'Comp SINAPI PE 06-2025 Onerado'!E:E)+SUMIF('Ins SINAPI PE 06-2025 Onerado'!B:B,'ALTO GRANDE'!C29,'Ins SINAPI PE 06-2025 Onerado'!F:F)),2) -> 409.3 | H29: =TRUNC(G29*(1+$H$5),2) -> 504.29 | I29: =TRUNC(F29*H29,2) -> 20171.6
A31: 4 | D31: RECUPERAÇÃO DO MACIÇO | I31: =SUM(I32,I34) -> 53822.7
A32: 4.1 | D32: Recomposição das Erosões (erosões locais nas ombreiras e aterro), trincas e buracos | I32: =SUM(I33:I33) -> 53125.98
A33: 4.1.1 | B33: PRÓPRIA | C33: CPU.12 | D33: =(VLOOKUP(C33,CPU!$B$10:$C$302,2,0)) -> Recomposição das erosões, inclusive, regularização da superfície e reaterro | E33: =(VLOOKUP(C33,CPU!B4:D$408,3,0)) -> m3 | F33: 141 | G33: =TRUNC((1-$H$9)*(SUMIFS(CPU!$G:$G,CPU!$A:$A,'ALTO GRANDE'!$C33,CPU!$H:$H,"ss")+SUMIFS(CPU!$G:$G,CPU!$A:$A,'ALTO GRANDE'!$C33,CPU!$H:$H,"mdo")+SUMIF('Comp SINAPI PE 06-2025 Onerado'!B:B,'ALTO GRANDE'!C33,'Comp SINAPI PE 06-2025 Onerado'!E:E)+SUMIF('Ins SINAPI PE 06-2025 Onerado'!B:B,'ALTO GRANDE'!C33,'Ins SINAPI PE 06-2025 Onerado'!F:F)),2) -> 305.81 | H33: =TRUNC(G33*(1+$H$5),2) -> 376.78 | I33: =TRUNC(F33*H33,2) -> 53125.98
A34: 4.2 | D34: Injeção de nata de cimento em buracos | I34: =SUM(I35:I35) -> 696.72
A35: 4.2.1 | B35: PRÓPRIA | C35: CPU.20 | D35: =(VLOOKUP(C35,CPU!$B$10:$C$302,2,0)) -> Injeção de nata de cimento em buracos | E35: =(VLOOKUP(C35,CPU!B6:D$408,3,0)) -> m3 | F35: 0.5 | G35: =TRUNC((1-$H$9)*(SUMIFS(CPU!$G:$G,CPU!$A:$A,'ALTO GRANDE'!$C35,CPU!$H:$H,"ss")+SUMIFS(CPU!$G:$G,CPU!$A:$A,'ALTO GRANDE'!$C35,CPU!$H:$H,"mdo")+SUMIF('Comp SINAPI PE 06-2025 Onerado'!B:B,'ALTO GRANDE'!C35,'Comp SINAPI PE 06-2025 Onerado'!E:E)+SUMIF('Ins SINAPI PE 06-2025 Onerado'!B:B,'ALTO GRANDE'!C35,'Ins SINAPI PE 06-2025 Onerado'!F:F)),2) -> 1130.96 | H35: =TRUNC(G35*(1+$H$5),2) -> 1393.45 | I35: =TRUNC(F35*H35,2) -> 696.72
A37: 5 | D37: REGULARIZAÇÃO E PAVIMENTAÇÃO DA CRISTA | I37: =SUM(I38,I40,I42) -> 121445.05
A38: 5.1 | D38: Limpeza e Regularização da Crista | I38: =SUM(I39:I39) -> 3730.65
A39: 5.1.2 | B39: PRÓPRIA | C39: CPU.13 | D39: =(VLOOKUP(C39,CPU!$B$10:$C$302,2,0)) -> Regularização e compactação da crista | E39: =(VLOOKUP(C39,CPU!B10:D302,3,0)) -> m2 | F39: 935 | G39: =TRUNC((1-$H$9)*(SUMIFS(CPU!$G:$G,CPU!$A:$A,'ALTO GRANDE'!$C39,CPU!$H:$H,"ss")+SUMIFS(CPU!$G:$G,CPU!$A:$A,'ALTO GRANDE'!$C39,CPU!$H:$H,"mdo")+SUMIF('Comp SINAPI PE 06-2025 Onerado'!B:B,'ALTO GRANDE'!C39,'Comp SINAPI PE 06-2025 Onerado'!E:E)+SUMIF('Ins SINAPI PE 06-2025 Onerado'!B:B,'ALTO GRANDE'!C39,'Ins SINAPI PE 06-2025 Onerado'!F:F)),2) -> 3.24 | H39: =TRUNC(G39*(1+$H$5),2) -> 3.99 | I39: =TRUNC(F39*H39,2) -> 3730.65
A40: 5.2 | D40: Instalação de meio-fio e sarjeta em ambos os lados da crista | I40: =SUM(I41:I41) -> 38256
A41: 5.2.1 | B41: PRÓPRIA | C41: CPU.16 | D41: =(VLOOKUP(C41,CPU!$B$10:$C$302,2,0)) -> Fornecimento e Assentamento de Guia (meio-fio) Pré-fabricado, dimensões 100x15x20 cm (comprimento x base x altura) | E41: =(VLOOKUP(C41,CPU!B12:D304,3,0)) -> m | F41: 400 | G41: =TRUNC((1-$H$9)*(SUMIFS(CPU!$G:$G,CPU!$A:$A,'ALTO GRANDE'!$C41,CPU!$H:$H,"ss")+SUMIFS(CPU!$G:$G,CPU!$A:$A,'ALTO GRANDE'!$C41,CPU!$H:$H,"mdo")+SUMIF('Comp SINAPI PE 06-2025 Onerado'!B:B,'ALTO GRANDE'!C41,'Comp SINAPI PE 06-2025 Onerado'!E:E)+SUMIF('Ins SINAPI PE 06-2025 Onerado'!B:B,'ALTO GRANDE'!C41,'Ins SINAPI PE 06-2025 Onerado'!F:F)),2) -> 77.63 | H41: =TRUNC(G41*(1+$H$5),2) -> 95.64 | I41: =TRUNC(F41*H41,2) -> 38256
A42: 5.3 | D42: Pavimentação da Crista | I42: =SUM(I43:I43) -> 79458.4
A43: 5.3.1 | B43: PRÓPRIA | C43: CPU.14 | D43: =(VLOOKUP(C43,CPU!$B$10:$C$302,2,0)) -> Execução de Revestimento com BGTC | E43: =(VLOOKUP(C43,CPU!B14:D306,3,0)) -> m3 | F43: 140 | G43: =TRUNC((1-$H$9)*(SUMIFS(CPU!$G:$G,CPU!$A:$A,'ALTO GRANDE'!$C43,CPU!$H:$H,"ss")+SUMIFS(CPU!$G:$G,CPU!$A:$A,'ALTO GRANDE'!$C43,CPU!$H:$H,"mdo")+SUMIF('Comp SINAPI PE 06-2025 Onerado'!B:B,'ALTO GRANDE'!C43,'Comp SINAPI PE 06-2025 Onerado'!E:E)+SUMIF('Ins SINAPI PE 06-2025 Onerado'!B:B,'ALTO GRANDE'!C43,'Ins SINAPI PE 06-2025 Onerado'!F:F)),2) -> 460.65 | H43: =TRUNC(G43*(1+$H$5),2) -> 567.56 | I43: =TRUNC(F43*H43,2) -> 79458.4
A45: 6 | D45: MANUTENÇÃO NO TALUDE DE MONTANTE | I45: =SUM(I46) -> 34350.4
A46: 6.1 | D46: Enrocamento com pedra de mão para proteção do talude | I46: =SUM(I47:I47) -> 34350.4
A47: 6.1.1 | B47: PRÓPRIA | C47: CPU.06 | D47: =(VLOOKUP(C47,CPU!$B$10:$C$302,2,0)) -> Enrocamento c/ pedra de mão c/ fornecimento e assentamento | E47: =(VLOOKUP(C47,CPU!B24:D408,3,0)) -> m3 | F47: 80 | G47: =TRUNC((1-$H$9)*(SUMIFS(CPU!$G:$G,CPU!$A:$A,'ALTO GRANDE'!$C47,CPU!$H:$H,"ss")+SUMIFS(CPU!$G:$G,CPU!$A:$A,'ALTO GRANDE'!$C47,CPU!$H:$H,"mdo")+SUMIF('Comp SINAPI PE 06-2025 Onerado'!B:B,'ALTO GRANDE'!C47,'Comp SINAPI PE 06-2025 Onerado'!E:E)+SUMIF('Ins SINAPI PE 06-2025 Onerado'!B:B,'ALTO GRANDE'!C47,'Ins SINAPI PE 06-2025 Onerado'!F:F)),2) -> 348.5 | H47: =TRUNC(G47*(1+$H$5),2) -> 429.38 | I47: =TRUNC(F47*H47,2) -> 34350.4
A49: 7 | D49: DRENAGEM SUPERFICIAL DO TALUDE DE JUSANTE | I49: =SUM(I50,I52) -> 25063.56
A50: 7.1 | D50: Canaleta para descida d'água | I50: =I51 -> 23780.4
A51: 7.1.1 | B51: PRÓPRIA | C51: CPU.07 | D51: =(VLOOKUP(C51,CPU!$B$10:$C$302,2,0)) -> Canaleta meia cana de concreto (D=30cm) - Fornecimento e instalação | E51: =(VLOOKUP(C51,CPU!B18:D310,3,0)) -> m | F51: 120 | G51: =TRUNC((1-$H$9)*(SUMIFS(CPU!$G:$G,CPU!$A:$A,'ALTO GRANDE'!$C51,CPU!$H:$H,"ss")+SUMIFS(CPU!$G:$G,CPU!$A:$A,'ALTO GRANDE'!$C51,CPU!$H:$H,"mdo")+SUMIF('Comp SINAPI PE 06-2025 Onerado'!B:B,'ALTO GRANDE'!C51,'Comp SINAPI PE 06-2025 Onerado'!E:E)+SUMIF('Ins SINAPI PE 06-2025 Onerado'!B:B,'ALTO GRANDE'!C51,'Ins SINAPI PE 06-2025 Onerado'!F:F)),2) -> 160.84 | H51: =TRUNC(G51*(1+$H$5),2) -> 198.17 | I51: =TRUNC(F51*H51,2) -> 23780.4
A52: 7.2 | D52: Entrada para descida d'água | I52: =I53 -> 1283.16
A53: 7.2.1 | B53: PRÓPRIA | C53: CPU.08 | D53: =(VLOOKUP(C53,CPU!$B$10:$C$302,2,0)) -> Entrada para descida d'água | E53: =(VLOOKUP(C53,CPU!B20:D408,3,0)) -> un | F53: =F51/20 -> 6 | G53: =TRUNC((1-$H$9)*(SUMIFS(CPU!$G:$G,CPU!$A:$A,'ALTO GRANDE'!$C53,CPU!$H:$H,"ss")+SUMIFS(CPU!$G:$G,CPU!$A:$A,'ALTO GRANDE'!$C53,CPU!$H:$H,"mdo")+SUMIF('Comp SINAPI PE 06-2025 Onerado'!B:B,'ALTO GRANDE'!C53,'Comp SINAPI PE 06-2025 Onerado'!E:E)+SUMIF('Ins SINAPI PE 06-2025 Onerado'!B:B,'ALTO GRANDE'!C53,'Ins SINAPI PE 06-2025 Onerado'!F:F)),2) -> 173.58 | H53: =TRUNC(G53*(1+$H$5),2) -> 213.86 | I53: =TRUNC(F53*H53,2) -> 1283.16
A55: 8 | D55: PROTEÇÃO SUPERFICIAL DO TALUDE DE JUSANTE | I55: =SUM(I56) -> 47260.72
A56: 8.1 | D56: Proteção vegetal | I56: =SUM(I57:I57) -> 47260.72
A57: 8.1.1 | B57: PRÓPRIA | C57: CPU.09 | D57: =(VLOOKUP(C57,CPU!$B$10:$C$302,2,0)) -> Plantio de vegetação para proteção de talude com hidrossemeadura, inclusive adubação e transporte | E57: =(VLOOKUP(C57,CPU!B28:D408,3,0)) -> m2 | F57: 3134 | G57: =TRUNC((1-$H$9)*(SUMIFS(CPU!$G:$G,CPU!$A:$A,'ALTO GRANDE'!$C57,CPU!$H:$H,"ss")+SUMIFS(CPU!$G:$G,CPU!$A:$A,'ALTO GRANDE'!$C57,CPU!$H:$H,"mdo")+SUMIF('Comp SINAPI PE 06-2025 Onerado'!B:B,'ALTO GRANDE'!C57,'Comp SINAPI PE 06-2025 Onerado'!E:E)+SUMIF('Ins SINAPI PE 06-2025 Onerado'!B:B,'ALTO GRANDE'!C57,'Ins SINAPI PE 06-2025 Onerado'!F:F)),2) -> 12.24 | H57: =TRUNC(G57*(1+$H$5),2) -> 15.08 | I57: =TRUNC(F57*H57,2) -> 47260.72
A59: 9 | D59: SERVIÇOS COMPLEMENTARES | I59: =SUM(I60,I62) -> 6583.56
A60: 9.1 | D60: Instalação de placas de aviso | I60: =SUM(I61:I61) -> 2306.76
A61: 9.1.1 | B61: SINAPI | C61: 103689 | D61: =IF(J61="ca",VLOOKUP(C61,'Comp SINAPI PE 06-2025 Onerado'!$B$11:$C$9004,2,0),VLOOKUP(C61,'Ins SINAPI PE 06-2025 Onerado'!$B$10:$C$9004,2,0)) -> FORNECIMENTO E INSTALAÇÃO DE PLACA DE OBRA COM CHAPA GALVANIZADA E ESTRUTURA DE MADEIRA. AF_03/2022_PS | E61: =IF(J61="ca",VLOOKUP(C61,'Comp SINAPI PE 06-2025 Onerado'!$B$11:$D$9004,3,0),VLOOKUP(C61,'Ins SINAPI PE 06-2025 Onerado'!$B$11:$D$9004,3,0)) -> M2 | F61: 4 | G61: =TRUNC((1-$H$9)*(SUMIFS(CPU!$G:$G,CPU!$A:$A,'ALTO GRANDE'!$C61,CPU!$H:$H,"ss")+SUMIFS(CPU!$G:$G,CPU!$A:$A,'ALTO GRANDE'!$C61,CPU!$H:$H,"mdo")+SUMIF('Comp SINAPI PE 06-2025 Onerado'!B:B,'ALTO GRANDE'!C61,'Comp SINAPI PE 06-2025 Onerado'!E:E)+SUMIF('Ins SINAPI PE 06-2025 Onerado'!B:B,'ALTO GRANDE'!C61,'Ins SINAPI PE 06-2025 Onerado'!F:F)),2) -> 468.06 | H61: =TRUNC(G61*(1+$H$5),2) -> 576.69 | I61: =TRUNC(F61*H61,2) -> 2306.76 | J61: ca
A62: 9.2 | D62: Régua Linimétrica Padrão “ANA”, Aço Carbono - 2 X 70 X 1000 mm (Fornecimento e Instalação) | I62: =SUM(I63:I63) -> 4276.8
A63: 9.2.1 | B63: PRÓPRIA | C63: CPU.15 | D63: =(VLOOKUP(C63,CPU!$B$10:$C$302,2,0)) -> Régua Linimétrica Padrão “ANA”, Aço Carbono - 2 X 70 X 1000 mm (Fornecimento e Instalação) | E63: un | F63: 8 | G63: =TRUNC((1-$H$9)*(SUMIFS(CPU!$G:$G,CPU!$A:$A,'ALTO GRANDE'!$C63,CPU!$H:$H,"ss")+SUMIFS(CPU!$G:$G,CPU!$A:$A,'ALTO GRANDE'!$C63,CPU!$H:$H,"mdo")+SUMIF('Comp SINAPI PE 06-2025 Onerado'!B:B,'ALTO GRANDE'!C63,'Comp SINAPI PE 06-2025 Onerado'!E:E)+SUMIF('Ins SINAPI PE 06-2025 Onerado'!B:B,'ALTO GRANDE'!C63,'Ins SINAPI PE 06-2025 Onerado'!F:F)),2) -> 433.9 | H63: =TRUNC(G63*(1+$H$5),2) -> 534.6 | I63: =TRUNC(F63*H63,2) -> 4276.8
A65: 10 | D65: PROJETO "AS IS" | I65: =SUM(I66) -> 14327.35
A66: 10.1 | D66: Levantamento topográfico e "AS IS" | I66: =SUM(I67:I68) -> 14327.35
A67: 10.1.1 | B67: ORSE | C67: 9346 | D67: Levantamento topográfico planimétrico cadastral | E67: m2 | F67: =F28 -> 8680 | G67: =TRUNC(0.35*(1-$H$9),2) -> 0.35 | H67: =TRUNC(G67*(1+$H$5),2) -> 0.43 | I67: =TRUNC(F67*H67,2) -> 3732.4
A68: 10.1.2 | B68: PRÓPRIA | C68: CPU.19 | D68: =(VLOOKUP(C68,CPU!$B$10:$C$302,2,0)) -> Projeto geométrico | E68: un | F68: 1 | G68: =TRUNC((1-$H$9)*(SUMIFS(CPU!$G:$G,CPU!$A:$A,'ALTO GRANDE'!$C68,CPU!$H:$H,"ss")+SUMIFS(CPU!$G:$G,CPU!$A:$A,'ALTO GRANDE'!$C68,CPU!$H:$H,"mdo")+SUMIF('Comp SINAPI PE 06-2025 Onerado'!B:B,'ALTO GRANDE'!C68,'Comp SINAPI PE 06-2025 Onerado'!E:E)+SUMIF('Ins SINAPI PE 06-2025 Onerado'!B:B,'ALTO GRANDE'!C68,'Ins SINAPI PE 06-2025 Onerado'!F:F)),2) -> 8599.1 | H68: =TRUNC(G68*(1+$H$5),2) -> 10594.95 | I68: =TRUNC(F68*H68,2) -> 10594.95
A70: 11 | D70: FISCALIZAÇÃO E ACOMPANHAMENTO | I70: =SUM(I71) -> 2829.84
A71: 11.1 | D71: Disponibilidade de veículo para apoio a fiscalização | I71: =SUM(I72:I73) -> 2829.84
A72: 11.1.1 | B72: PRÓPRIA | C72: CPU.21 | D72: =(VLOOKUP(C72,CPU!$B$10:$C$302,2,0)) -> Disponibilidade de veículo para apoio a fiscalização, inclusive combustível | E72: un | F72: 6 | G72: =TRUNC((1-$H$9)*(SUMIFS(CPU!$G:$G,CPU!$A:$A,'ALTO GRANDE'!$C72,CPU!$H:$H,"ss")+SUMIFS(CPU!$G:$G,CPU!$A:$A,'ALTO GRANDE'!$C72,CPU!$H:$H,"mdo")+SUMIF('Comp SINAPI PE 06-2025 Onerado'!B:B,'ALTO GRANDE'!C72,'Comp SINAPI PE 06-2025 Onerado'!E:E)+SUMIF('Ins SINAPI PE 06-2025 Onerado'!B:B,'ALTO GRANDE'!C72,'Ins SINAPI PE 06-2025 Onerado'!F:F)),2) -> 382.8 | H72: =TRUNC(G72*(1+$H$5),2) -> 471.64 | I72: =TRUNC(F72*H72,2) -> 2829.84
D74: TOTAL (Custo): | I74: =TRUNC(SUMPRODUCT(F15:F73,G15:G73),2) -> 444199.95
D75: BDI e Encargos Sociais: | I75: =I76-I74 -> 103059.42
D76: TOTAL GERAL COM BDI: | I76: =SUM(I14,I18,I26,I31,I37,I45,I49,I55,I59,I65,I70) -> 547259.37 | L76: =TRUNC(SUMPRODUCT(F15:F73,H15:H73),2) -> 547259.38

Sheet CPU
A1: Ministério da Integração e do Desenvolvimento Regional
A2: Companhia de Desenvolvimento dos Vales do São Francisco e do Parnaíba
A4: COMPOSIÇÕES DE PREÇOS UNITÁRIOS - ORÇAMENTO NÃO DESONERADO
A5: =Resumo!A5 -> OBRA: | B5: =Resumo!B5 -> Execução de manutenção e recuperação nas barragens de Jacu, Caiçara, Algodoes, Manoel Rodrigues, Murici, Riacho dos Cavalos e Alto Grande, localizadas no estado de Pernambuco.
A6: =Resumo!A6 -> LOCAL: | B6: =Resumo!B6 -> BARRAGENS DE PERNAMBUCO
A7: =Resumo!A7 -> DATA BASE: | B7: =Resumo!B7 -> 2025-07-01
A9: REFERÊNCIA | B9: CÓDIGO | C9: DESCRIÇÃO | D9: UNIDADE | E9: ÍNDICE | F9: CUSTO UNITÁRIO | G9: CUSTO TOTAL
B10: CPU.01 | C10: Administração Local | D10: mês | E10: 1 | G10: =SUM(G14,G13,G12,G11) -> 29060.88 | H10: S | I10: COMENTÁRIOS
A11: =B10 -> CPU.01 | C11: MATERIAL | G11: 0 | H11: ss
A12: =B10 -> CPU.01 | C12: EQUIPAMENTOS | G12: 0 | H12: ss
A13: =B10 -> CPU.01 | C13: SERVIÇOS | G13: 0 | H13: ss
A14: =B10 -> CPU.01 | C14: MÃO DE OBRA | G14: =SUM(G15:G17) -> 29060.88 | H14: mdo
A15: SINAPI | B15: 90778 | C15: =PROPER(IF(H15="i",VLOOKUP(B15,'Ins SINAPI PE 06-2025 Onerado'!$B$11:$F$50003,2,0),VLOOKUP(B15,'Comp SINAPI PE 06-2025 Onerado'!$B$11:$C$50004,2,0))) -> Engenheiro Civil De Obra Pleno Com Encargos Complementares | D15: =IF(H15="i",VLOOKUP(B15,'Ins SINAPI PE 06-2025 Onerado'!$B$11:$F$50003,2,0),VLOOKUP(B15,'Comp SINAPI PE 06-2025 Onerado'!$B$11:$H$50004,3,0)) -> H | E15: =1.5*5*4 -> 30 | F15: =IF(H15="i",VLOOKUP(B15,'Ins SINAPI PE 06-2025 Onerado'!$B$11:$F$50003,5,0),VLOOKUP(B15,'Comp SINAPI PE 06-2025 Onerado'!$B$11:$E$50004,4,0)) -> 135.86 | G15: =TRUNC(E15*F15,2) -> 4075.8 | H15: ca
A16: SINAPI | B16: 93572 | C16: =PROPER(IF(H16="i",VLOOKUP(B16,'Ins SINAPI PE 06-2025 Onerado'!$B$11:$F$50003,2,0),VLOOKUP(B16,'Comp SINAPI PE 06-2025 Onerado'!$B$11:$C$50004,2,0))) -> Encarregado Geral De Obras Com Encargos Complementares | D16: =IF(H16="i",VLOOKUP(B16,'Ins SINAPI PE 06-2025 Onerado'!$B$11:$F$50003,2,0),VLOOKUP(B16,'Comp SINAPI PE 06-2025 Onerado'!$B$11:$H$50004,3,0)) -> MES | E16: 0.8 | F16: =IF(H16="i",VLOOKUP(B16,'Ins SINAPI PE 06-2025 Onerado'!$B$11:$F$50003,5,0),VLOOKUP(B16,'Comp SINAPI PE 06-2025 Onerado'!$B$11:$E$50004,4,0)) -> 7847.41 | G16: =TRUNC(E16*F16,2) -> 6277.92 | H16: ca
A17: EMBASA | B17: 74.13.43 | C17: VIGIA - AN | D17: MES | E17: 4 | F17: 4676.79 | G17: =TRUNC(E17*F17,2) -> 18707.16 | H17: ca | I17: considerando 4 vigias intercalando em dupla na jornada de 12/36
B19: CPU.02 | C19: Mobilização e desmobilização de instalação do canteiro | D19: un | E19: 1 | G19: =SUM(G27,G26,G21,G20) -> 3001.3 | H19: S | I19: mobilização e desmobilização de Petrolina a barragem | M19: 2 dias
A20: =B19 -> CPU.02 | C20: MATERIAL | G20: 0 | H20: ss
A21: =B19 -> CPU.02 | C21: EQUIPAMENTOS | G21: =SUM(G22:G25) -> 3001.3 | H21: ss
A22: PRÓPRIA | B22: CODE | C22: Veículo tipo pick-up, cabine dupla - 2.0 16V 4x4 diesel Aut. | D22: dia | E22: 2 | F22: ='CPU-VEICULO_PickUp'!$C$11 -> 382.8058696 | G22: =TRUNC(E22*F22,2) -> 765.61 | H22: ca
A23: SINAPI | B23: 100946 | C23: =PROPER(IF(H23="i",VLOOKUP(B23,'Ins SINAPI PE 06-2025 Onerado'!$B$11:$F$50003,2,0),VLOOKUP(B23,'Comp SINAPI PE 06-2025 Onerado'!$B$11:$C$50004,2,0))) -> Transporte Com Caminhão Carroceria 9T, Em Via Urbana Em Revestimento Primário (Unidade: Txkm). Af_07/2020 | D23: =IF(H23="i",VLOOKUP(B23,'Ins SINAPI PE 06-2025 Onerado'!$B$11:$F$50003,2,0),VLOOKUP(B23,'Comp SINAPI PE 06-2025 Onerado'!$B$11:$H$50004,3,0)) -> TXKM | E23: ='Memorial de cálculo'!H18 -> 76.42857143 | F23: =IF(H23="i",VLOOKUP(B23,'Ins SINAPI PE 06-2025 Onerado'!$B$11:$F$50003,5,0),VLOOKUP(B23,'Comp SINAPI PE 06-2025 Onerado'!$B$11:$E$50004,4,0)) -> 2.43 | G23: =TRUNC(E23*F23,2) -> 185.72 | H23: ca | I23: considerando 5 toneladas de carga
A24: SINAPI | B24: 100947 | C24: =PROPER(IF(H24="i",VLOOKUP(B24,'Ins SINAPI PE 06-2025 Onerado'!$B$11:$F$50003,2,0),VLOOKUP(B24,'Comp SINAPI PE 06-2025 Onerado'!$B$11:$C$50004,2,0))) -> Transporte Com Caminhão Carroceria 9T, Em Via Urbana Pavimentada, Dmt Até 30Km (Unidade: Txkm). Af_07/2020 | D24: =IF(H24="i",VLOOKUP(B24,'Ins SINAPI PE 06-2025 Onerado'!$B$11:$F$50003,2,0),VLOOKUP(B24,'Comp SINAPI PE 06-2025 Onerado'!$B$11:$H$50004,3,0)) -> TXKM | E24: ='Memorial de cálculo'!H21 -> 300 | F24: =IF(H24="i",VLOOKUP(B24,'Ins SINAPI PE 06-2025 Onerado'!$B$11:$F$50003,5,0),VLOOKUP(B24,'Comp SINAPI PE 06-2025 Onerado'!$B$11:$E$50004,4,0)) -> 2.23 | G24: =TRUNC(E24*F24,2) -> 669 | H24: ca
A25: SINAPI | B25: 100948 | C25: =PROPER(IF(H25="i",VLOOKUP(B25,'Ins SINAPI PE 06-2025 Onerado'!$B$11:$F$50003,2,0),VLOOKUP(B25,'Comp SINAPI PE 06-2025 Onerado'!$B$11:$C$50004,2,0))) -> Transporte Com Caminhão Carroceria 9T, Em Via Urbana Pavimentada, Adicional Para Dmt Excedente A 30 Km (Unidade: Txkm). Af_07/2020 | D25: =IF(H25="i",VLOOKUP(B25,'Ins SINAPI PE 06-2025 Onerado'!$B$11:$F$50003,2,0),VLOOKUP(B25,'Comp SINAPI PE 06-2025 Onerado'!$B$11:$H$50004,3,0)) -> TXKM | E25: ='Memorial de cálculo'!H24 -> 1569.285714 | F25: =IF(H25="i",VLOOKUP(B25,'Ins SINAPI PE 06-2025 Onerado'!$B$11:$F$50003,5,0),VLOOKUP(B25,'Comp SINAPI PE 06-2025 Onerado'!$B$11:$E$50004,4,0)) -> 0.88 | G25: =TRUNC(E25*F25,2) -> 1380.97 | H25: ca
A26: =B19 -> CPU.02 | C26: SERVIÇOS | G26: 0 | H26: ss
A27: =B19 -> CPU.02 | C27: MÃO DE OBRA | G27: 0 | H27: mdo
B29: CPU.03 | C29: Execução de canteiro de obras, inclusive, limpeza, refeitório, sanitários e central de formas | D29: m2 | E29: 1 | G29: =SUM(G38,G32,G31,G30) -> 717.65 | H29: S
A30: =B29 -> CPU.03 | C30: MATERIAL | G30: 0 | H30: ss
A31: =B29 -> CPU.03 | C31: EQUIPAMENTOS | G31: 0 | H31: ss
A32: =B29 -> CPU.03 | C32: SERVIÇOS | G32: =SUM(G33:G37) -> 717.65 | H32: ss
A33: SINAPI | B33: 98524 | C33: =PROPER(IF(H33="i",VLOOKUP(B33,'Ins SINAPI PE 06-2025 Onerado'!$B$11:$F$50003,2,0),VLOOKUP(B33,'Comp SINAPI PE 06-2025 Onerado'!$B$11:$C$50004,2,0))) -> Limpeza Manual De Vegetação Em Terreno Com Enxada. Af_03/2024 | D33: =IF(H33="i",VLOOKUP(B33,'Ins SINAPI PE 06-2025 Onerado'!$B$11:$F$50003,2,0),VLOOKUP(B33,'Comp SINAPI PE 06-2025 Onerado'!$B$11:$H$50004,3,0)) -> M2 | E33: 1 | F33: =IF(H33="i",VLOOKUP(B33,'Ins SINAPI PE 06-2025 Onerado'!$B$11:$F$50003,5,0),VLOOKUP(B33,'Comp SINAPI PE 06-2025 Onerado'!$B$11:$E$50004,4,0)) -> 5.13 | G33: =TRUNC(E33*F33,2) -> 5.13 | H33: ca
A34: PRÓPRIA | B34: 93210-ADAPTADO | C34: ='COMPOSICÕES MODIFICADAS'!D149 -> EXECUÇÃO DE REFEITÓRIO EM CANTEIRO DE OBRA EM CHAPA DE MADEIRA COMPENSADA, NÃO INCLUSO MOBILIÁRIO E EQUIPAMENTOS. AF_02/2016 | D34: m2 | E34: ='Memorial de cálculo'!H29/'Memorial de cálculo'!H28 -> 0.2631578947 | F34: ='COMPOSICÕES MODIFICADAS'!D154 -> 599.2143645 | G34: =TRUNC(E34*F34,2) -> 157.68 | H34: ca | I34: Modificações realizadas de acordo com o parecer de custos do G6 - São Gregório
A35: PRÓPRIA | B35: 93212-ADAPTADO | C35: EXECUÇÃO DE SANITÁRIO E VESTIÁRIO EM CANTEIRO DE OBRA EM CHAPA DE MADEIRA COMPENSADA, NÃO INCLUSO MOBILIÁRIO. AF_02/2016 | D35: m2 | E35: ='Memorial de cálculo'!H30/'Memorial de cálculo'!H28 -> 0.3157894737 | F35: ='COMPOSICÕES MODIFICADAS'!D9 -> 973.23 | G35: =TRUNC(E35*F35,2) -> 307.33 | H35: ca
A36: PRÓPRIA | B36: 93583-ADAPTADO | C36: EXECUÇÃO DE CENTRAL DE FÔRMAS, PRODUÇÃO DE ARGAMASSA OU CONCRETO EM CANTEIRO DE OBRA, NÃO INCLUSO MOBILIÁRIO E EQUIPAMENTOS. AF_04/2016 | D36: m2 | E36: ='Memorial de cálculo'!H31/'Memorial de cálculo'!H28 -> 0.4210526316 | F36: ='COMPOSICÕES MODIFICADAS'!D114 -> 523.13 | G36: =TRUNC(E36*F36,2) -> 220.26 | H36: ca
A37: PRÓPRIA | B37: CODE | C37: Hospedagem | D37: un | E37: ='Memorial de cálculo'!D33*'Memorial de cálculo'!H33 -> 0.1394375 | F37: ='CPU HOSPEDAGEM'!$C$19 -> 195.4709848 | G37: =TRUNC(E37*F37,2) -> 27.25 | H37: ca
A38: =B29 -> CPU.03 | C38: MÃO DE OBRA | G38: 0 | H38: mdo
B40: CPU.04 | C40: Limpeza de vegetação | D40: m2 | E40: 1 | G40: =SUM(G48,G43,G42,G41) -> 7.85 | H40: S
A41: =B40 -> CPU.04 | C41: MATERIAL | G41: 0 | H41: ss
A42: =B40 -> CPU.04 | C42: EQUIPAMENTOS | G42: 0 | H42: ss
A43: =B40 -> CPU.04 | C43: SERVIÇOS | G43: =SUM(G44:G47) -> 7.85 | H43: ss
A44: SINAPI | B44: 98524 | C44: =PROPER(IF(H44="i",VLOOKUP(B44,'Ins SINAPI PE 06-2025 Onerado'!$B$11:$F$50003,2,0),VLOOKUP(B44,'Comp SINAPI PE 06-2025 Onerado'!$B$11:$C$50004,2,0))) -> Limpeza Manual De Vegetação Em Terreno Com Enxada. Af_03/2024 | D44: =IF(H44="i",VLOOKUP(B44,'Ins SINAPI PE 06-2025 Onerado'!$B$11:$F$50003,2,0),VLOOKUP(B44,'Comp SINAPI PE 06-2025 Onerado'!$B$11:$H$50004,3,0)) -> M2 | E44: 1 | F44: =IF(H44="i",VLOOKUP(B44,'Ins SINAPI PE 06-2025 Onerado'!$B$11:$F$50003,5,0),VLOOKUP(B44,'Comp SINAPI PE 06-2025 Onerado'!$B$11:$E$50004,4,0)) -> 5.13 | G44: =TRUNC(E44*F44,2) -> 5.13 | H44: ca
A45: PRÓPRIA | B45: CODE | C45: Hospedagem | D45: un | E45: ='Memorial de cálculo'!D37*'Memorial de cálculo'!H37 -> 0.0025 | F45: ='CPU HOSPEDAGEM'!$C$19 -> 195.4709848 | G45: =TRUNC(E45*F45,2) -> 0.48 | H45: ca
A46: PRÓPRIA | B46: CODE | C46: Veículo tipo pick-up, cabine dupla - 2.0 16V 4x4 diesel Aut. | D46: dia | E46: ='Memorial de cálculo'!H37 -> 0.000625 | F46: ='CPU-VEICULO_PickUp'!$C$11 -> 382.8058696 | G46: =TRUNC(E46*F46,2) -> 0.23 | H46: ca
A47: SINAPI | B47: 93589 | C47: =PROPER(IF(H47="i",VLOOKUP(B47,'Ins SINAPI PE 06-2025 Onerado'!$B$11:$F$50003,2,0),VLOOKUP(B47,'Comp SINAPI PE 06-2025 Onerado'!$B$11:$C$50004,2,0))) -> Transporte Com Caminhão Basculante De 10 M³, Em Via Urbana Em Revestimento Primário (Unidade: M3Xkm). Af_07/2020 | D47: =IF(H47="i",VLOOKUP(B47,'Ins SINAPI PE 06-2025 Onerado'!$B$11:$F$50003,2,0),VLOOKUP(B47,'Comp SINAPI PE 06-2025 Onerado'!$B$11:$H$50004,3,0)) -> M3XKM | E47: =15*0.05 -> 0.75 | F47: =IF(H47="i",VLOOKUP(B47,'Ins SINAPI PE 06-2025 Onerado'!$B$11:$F$50003,5,0),VLOOKUP(B47,'Comp SINAPI PE 06-2025 Onerado'!$B$11:$E$50004,4,0)) -> 2.69 | G47: =TRUNC(E47*F47,2) -> 2.01 | H47: ca | I47: considerando 5 cm de altura da vegetação e 15 km para bota-fora
A48: =B40 -> CPU.04 | C48: MÃO DE OBRA | G48: 0 | H48: mdo
B50: CPU.05 | C50: Corte de tronco e remoção de raiz | D50: un | E50: 1 | G50: =SUM(G61,G53,G52,G51) -> 409.3 | H50: S
A51: =B50 -> CPU.05 | C51: MATERIAL | G51: 0 | H51: ss
A52: =B50 -> CPU.05 | C52: EQUIPAMENTOS | G52: 0 | H52: ss
A53: =B50 -> CPU.05 | C53: SERVIÇOS | G53: =SUM(G54:G60) -> 409.3 | H53: ss
A54: SINAPI | B54: 98529 | C54: =PROPER(IF(H54="i",VLOOKUP(B54,'Ins SINAPI PE 06-2025 Onerado'!$B$11:$F$50003,2,0),VLOOKUP(B54,'Comp SINAPI PE 06-2025 Onerado'!$B$11:$C$50004,2,0))) -> Corte Raso E Recorte De Árvore Com Diâmetro De Tronco Maior Ou Igual A 0,20 M E Menor Que 0,40 M. Af_03/2024 | D54: =IF(H54="i",VLOOKUP(B54,'Ins SINAPI PE 06-2025 Onerado'!$B$11:$F$50003,2,0),VLOOKUP(B54,'Comp SINAPI PE 06-2025 Onerado'!$B$11:$H$50004,3,0)) -> UN | E54: 1 | F54: =IF(H54="i",VLOOKUP(B54,'Ins SINAPI PE 06-2025 Onerado'!$B$11:$F$50003,5,0),VLOOKUP(B54,'Comp SINAPI PE 06-2025 Onerado'!$B$11:$E$50004,4,0)) -> 81.17 | G54: =TRUNC(E54*F54,2) -> 81.17 | H54: ca
A55: SINAPI | B55: 98526 | C55: =PROPER(IF(H55="i",VLOOKUP(B55,'Ins SINAPI PE 06-2025 Onerado'!$B$11:$F$50003,2,0),VLOOKUP(B55,'Comp SINAPI PE 06-2025 Onerado'!$B$11:$C$50004,2,0))) -> Remoção De Raízes Remanescentes De Tronco De Árvore Com Diâmetro Maior Ou Igual A 0,20 M E Menor Que 0,40 M. Af_03/2024 | D55: =IF(H55="i",VLOOKUP(B55,'Ins SINAPI PE 06-2025 Onerado'!$B$11:$F$50003,2,0),VLOOKUP(B55,'Comp SINAPI PE 06-2025 Onerado'!$B$11:$H$50004,3,0)) -> UN | E55: 1 | F55: =IF(H55="i",VLOOKUP(B55,'Ins SINAPI PE 06-2025 Onerado'!$B$11:$F$50003,5,0),VLOOKUP(B55,'Comp SINAPI PE 06-2025 Onerado'!$B$11:$E$50004,4,0)) -> 130.79 | G55: 130.79 | H55: ca
A56: SINAPI | B56: 6081 | C56: =PROPER(IF(H56="i",VLOOKUP(B56,'Ins SINAPI PE 06-2025 Onerado'!$B$11:$F$50003,2,0),VLOOKUP(B56,'Comp SINAPI PE 06-2025 Onerado'!$G$11:$H$50004,2,0))) -> Argila Ou Barro Para Aterro/Reaterro (Com Transporte Ate 10 Km) | D56: =IF(H56="i",VLOOKUP(B56,'Ins SINAPI PE 06-2025 Onerado'!$B$11:$F$50003,3,0),VLOOKUP(B56,'Comp SINAPI PE 06-2025 Onerado'!$G$11:$H$50004,3,0)) -> M3 | E56: 0.5 | F56: 54.26 | G56: 27.13 | H56: i | I56: considerando 0,5 m3 por árvore
A57: SINAPI | B57: 93382 | C57: =PROPER(IF(H57="i",VLOOKUP(B57,'Ins SINAPI PE 06-2025 Onerado'!$B$11:$F$50003,2,0),VLOOKUP(B57,'Comp SINAPI PE 06-2025 Onerado'!$B$11:$C$50004,2,0))) -> Reaterro Manual De Valas, Com Compactador De Solos De Percussão. Af_08/2023 | D57: =IF(H57="i",VLOOKUP(B57,'Ins SINAPI PE 06-2025 Onerado'!$B$11:$F$50003,2,0),VLOOKUP(B57,'Comp SINAPI PE 06-2025 Onerado'!$B$11:$H$50004,3,0)) -> M3 | E57: 0.5 | F57: =IF(H57="i",VLOOKUP(B57,'Ins SINAPI PE 06-2025 Onerado'!$B$11:$F$50003,5,0),VLOOKUP(B57,'Comp SINAPI PE 06-2025 Onerado'!$B$11:$E$50004,4,0)) -> 27.38 | G57: 13.69 | H57: ca
A58: PRÓPRIA | B58: CODE | C58: Hospedagem | D58: un | E58: ='Memorial de cálculo'!D41*'Memorial de cálculo'!H41+'Memorial de cálculo'!D42*'Memorial de cálculo'!H42 -> 0.41525 | F58: ='CPU HOSPEDAGEM'!$C$19 -> 195.4709848 | G58: 81.16 | H58: ca
A59: PRÓPRIA | B59: CODE | C59: Veículo tipo pick-up, cabine dupla - 2.0 16V 4x4 diesel Aut. | D59: dia | E59: =LARGE('Memorial de cálculo'!H41:H42,1) -> 0.1441875 | F59: ='CPU-VEICULO_PickUp'!$C$11 -> 382.8058696 | G59: 55.19 | H59: ca
A60: SINAPI | B60: 93589 | C60: =PROPER(IF(H60="i",VLOOKUP(B60,'Ins SINAPI PE 06-2025 Onerado'!$B$11:$F$50003,2,0),VLOOKUP(B60,'Comp SINAPI PE 06-2025 Onerado'!$B$11:$C$50004,2,0))) -> Transporte Com Caminhão Basculante De 10 M³, Em Via Urbana Em Revestimento Primário (Unidade: M3Xkm). Af_07/2020 | D60: =IF(H60="i",VLOOKUP(B60,'Ins SINAPI PE 06-2025 Onerado'!$B$11:$F$50003,2,0),VLOOKUP(B60,'Comp SINAPI PE 06-2025 Onerado'!$B$11:$H$50004,3,0)) -> M3XKM | E60: =15*0.5 -> 7.5 | F60: =IF(H60="i",VLOOKUP(B60,'Ins SINAPI PE 06-2025 Onerado'!$B$11:$F$50003,5,0),VLOOKUP(B60,'Comp SINAPI PE 06-2025 Onerado'!$B$11:$E$50004,4,0)) -> 2.69 | G60: 20.17 | H60: ca | I60: considerando 0,5 m3 por árvore e 15 km para bota-fora
A61: =B50 -> CPU.05 | C61: MÃO DE OBRA | G61: 0 | H61: mdo
B63: CPU.06 | C63: Enrocamento c/ pedra de mão c/ fornecimento e assentamento | D63: m3 | E63: 1 | G63: =SUM(G74,G67,G66,G64) -> 348.5 | H63: S
A64: =B63 -> CPU.06 | C64: MATERIAL | G64: =SUM(G65) -> 94.56 | H64: ss
A65: SINAPI | B65: 4730 | C65: =PROPER(IF(H65="i",VLOOKUP(B65,'Ins SINAPI PE 06-2025 Onerado'!$B$11:$F$50003,2,0),VLOOKUP(B65,'Comp SINAPI PE 06-2025 Onerado'!$G$11:$H$50004,2,0))) -> Pedra De Mao Ou Pedra Rachao Para Arrimo/Fundacao (Posto Pedreira/Fornecedor, Sem Frete) | D65: =IF(H65="i",VLOOKUP(B65,'Ins SINAPI PE 06-2025 Onerado'!$B$11:$F$50003,3,0),VLOOKUP(B65,'Comp SINAPI PE 06-2025 Onerado'!$G$11:$H$50004,3,0)) -> M3 | E65: 1 | F65: =IF(H65="i",VLOOKUP(B65,'Ins SINAPI PE 06-2025 Onerado'!$B$11:$F$50003,5,0),VLOOKUP(B65,'Comp SINAPI PE 06-2025 Onerado'!$G$11:$H$50004,5,0)) -> 94.56 | G65: =TRUNC(E65*F65,2) -> 94.56 | H65: i
A66: =B63 -> CPU.06 | C66: EQUIPAMENTOS | G66: 0 | H66: ss
A67: =B63 -> CPU.06 | C67: SERVIÇOS | G67: =SUM(G68:G73) -> 243.16 | H67: ss
A68: SINAPI | B68: 93592 | C68: =PROPER(IF(H68="i",VLOOKUP(B68,'Ins SINAPI PE 06-2025 Onerado'!$B$11:$F$50003,2,0),VLOOKUP(B68,'Comp SINAPI PE 06-2025 Onerado'!$B$11:$C$50004,2,0))) -> Transporte Com Caminhão Basculante De 14 M³, Em Via Urbana Em Revestimento Primário (Unidade: M3Xkm). Af_07/2020 | D68: =IF(H68="i",VLOOKUP(B68,'Ins SINAPI PE 06-2025 Onerado'!$B$11:$F$50003,2,0),VLOOKUP(B68,'Comp SINAPI PE 06-2025 Onerado'!$B$11:$H$50004,3,0)) -> M3XKM | E68: ='Memorial de cálculo'!H8 -> 7.642857143 | F68: =IF(H68="i",VLOOKUP(B68,'Ins SINAPI PE 06-2025 Onerado'!$B$11:$F$50003,5,0),VLOOKUP(B68,'Comp SINAPI PE 06-2025 Onerado'!$B$11:$E$50004,4,0)) -> 2.36 | G68: =TRUNC(E68*F68,2) -> 18.03 | H68: ca
A69: SINAPI | B69: 95876 | C69: =PROPER(IF(H69="i",VLOOKUP(B69,'Ins SINAPI PE 06-2025 Onerado'!$B$11:$F$50003,2,0),VLOOKUP(B69,'Comp SINAPI PE 06-2025 Onerado'!$B$11:$C$50004,2,0))) -> Transporte Com Caminhão Basculante De 14 M³, Em Via Urbana Pavimentada, Dmt Até 30 Km (Unidade: M3Xkm). Af_07/2020 | D69: =IF(H69="i",VLOOKUP(B69,'Ins SINAPI PE 06-2025 Onerado'!$B$11:$F$50003,2,0),VLOOKUP(B69,'Comp SINAPI PE 06-2025 Onerado'!$B$11:$H$50004,3,0)) -> M3XKM | E69: =30 -> 30 | F69: =IF(H69="i",VLOOKUP(B69,'Ins SINAPI PE 06-2025 Onerado'!$B$11:$F$50003,5,0),VLOOKUP(B69,'Comp SINAPI PE 06-2025 Onerado'!$B$11:$E$50004,4,0)) -> 2.14 | G69: 64.2 | H69: ca
A70: SINAPI | B70: 93593 | C70: =PROPER(IF(H70="i",VLOOKUP(B70,'Ins SINAPI PE 06-2025 Onerado'!$B$11:$F$50003,2,0),VLOOKUP(B70,'Comp SINAPI PE 06-2025 Onerado'!$B$11:$C$50004,2,0))) -> Transporte Com Caminhão Basculante De 14 M³, Em Via Urbana Pavimentada, Adicional Para Dmt Excedente A 30 Km (Unidade: M3Xkm). Af_07/2020 | D70: =IF(H70="i",VLOOKUP(B70,'Ins SINAPI PE 06-2025 Onerado'!$B$11:$F$50003,2,0),VLOOKUP(B70,'Comp SINAPI PE 06-2025 Onerado'!$B$11:$H$50004,3,0)) -> M3XKM | E70: ='Memorial de cálculo'!H7-30 -> 156.9285714 | F70: =IF(H70="i",VLOOKUP(B70,'Ins SINAPI PE 06-2025 Onerado'!$B$11:$F$50003,5,0),VLOOKUP(B70,'Comp SINAPI PE 06-2025 Onerado'!$B$11:$E$50004,4,0)) -> 0.86 | G70: 134.95 | H70: ca
A71: SINAPI | B71: 100979 | C71: =PROPER(IF(H71="i",VLOOKUP(B71,'Ins SINAPI PE 06-2025 Onerado'!$B$11:$F$50003,2,0),VLOOKUP(B71,'Comp SINAPI PE 06-2025 Onerado'!$B$11:$C$50004,2,0))) -> Carga, Manobra E Descarga De Solos E Materiais Granulares Em Caminhão Basculante 14 M³ - Carga Com Escavadeira Hidráulica (Caçamba De 1,20 M³ / 155 Hp) E Descarga Livre (Unidade: M3). Af_07/2020 | D71: =IF(H71="i",VLOOKUP(B71,'Ins SINAPI PE 06-2025 Onerado'!$B$11:$F$50003,2,0),VLOOKUP(B71,'Comp SINAPI PE 06-2025 Onerado'!$B$11:$H$50004,3,0)) -> M3 | E71: 1 | F71: =IF(H71="i",VLOOKUP(B71,'Ins SINAPI PE 06-2025 Onerado'!$B$11:$F$50003,5,0),VLOOKUP(B71,'Comp SINAPI PE 06-2025 Onerado'!$B$11:$E$50004,4,0)) -> 6.64 | G71: 6.64 | H71: ca
A72: PRÓPRIA | B72: CODE | C72: Hospedagem | D72: un | E72: ='Memorial de cálculo'!D46*'Memorial de cálculo'!H46+'Memorial de cálculo'!D47*'Memorial de cálculo'!H47 -> 0.05 | F72: ='CPU HOSPEDAGEM'!$C$19 -> 195.4709848 | G72: 9.77 | H72: ca
A73: PRÓPRIA | B73: CODE | C73: Veículo tipo pick-up, cabine dupla - 2.0 16V 4x4 diesel Aut. | D73: dia | E73: =LARGE('Memorial de cálculo'!H46:H47,1) -> 0.025 | F73: ='CPU-VEICULO_PickUp'!$C$11 -> 382.8058696 | G73: 9.57 | H73: ca
A74: =B63 -> CPU.06 | C74: MÃO DE OBRA | G74: =SUM(G75:G76) -> 10.78 | H74: mdo
A75: SINAPI | B75: 88309 | C75: =PROPER(IF(H75="i",VLOOKUP(B75,'Ins SINAPI PE 06-2025 Onerado'!$B$11:$F$50003,2,0),VLOOKUP(B75,'Comp SINAPI PE 06-2025 Onerado'!$B$11:$C$50004,2,0))) -> Pedreiro Com Encargos Complementares | D75: =IF(H75="i",VLOOKUP(B75,'Ins SINAPI PE 06-2025 Onerado'!$B$11:$F$50003,2,0),VLOOKUP(B75,'Comp SINAPI PE 06-2025 Onerado'!$B$11:$H$50004,3,0)) -> H | E75: 0.2 | F75: =IF(H75="i",VLOOKUP(B75,'Ins SINAPI PE 06-2025 Onerado'!$B$11:$F$50003,5,0),VLOOKUP(B75,'Comp SINAPI PE 06-2025 Onerado'!$B$11:$E$50004,4,0)) -> 29.85 | G75: 5.97 | H75: ca
A76: SINAPI | B76: 88316 | C76: =PROPER(IF(H76="i",VLOOKUP(B76,'Ins SINAPI PE 06-2025 Onerado'!$B$11:$F$50003,2,0),VLOOKUP(B76,'Comp SINAPI PE 06-2025 Onerado'!$B$11:$C$50004,2,0))) -> Servente Com Encargos Complementares | D76: =IF(H76="i",VLOOKUP(B76,'Ins SINAPI PE 06-2025 Onerado'!$B$11:$F$50003,2,0),VLOOKUP(B76,'Comp SINAPI PE 06-2025 Onerado'!$B$11:$H$50004,3,0)) -> H | E76: 0.2 | F76: =IF(H76="i",VLOOKUP(B76,'Ins SINAPI PE 06-2025 Onerado'!$B$11:$F$50003,5,0),VLOOKUP(B76,'Comp SINAPI PE 06-2025 Onerado'!$B$11:$E$50004,4,0)) -> 24.08 | G76: 4.81 | H76: ca
B78: CPU.07 | C78: Canaleta meia cana de concreto (D=30cm) - Fornecimento e instalação | D78: m | E78: 1 | G78: =SUM(G90,G81,G80,G79) -> 160.84 | H78: S
A79: =B78 -> CPU.07 | C79: MATERIAL | G79: 0 | H79: ss
A80: =B78 -> CPU.07 | C80: EQUIPAMENTOS | G80: 0 | H80: ss
A81: =B78 -> CPU.07 | C81: SERVIÇOS | G81: =SUM(G82:G89) -> 160.84 | H81: ss
A82: SINAPI | B82: 93358 | C82: =PROPER(IF(H82="i",VLOOKUP(B82,'Ins SINAPI PE 06-2025 Onerado'!$B$11:$F$50003,2,0),VLOOKUP(B82,'Comp SINAPI PE 06-2025 Onerado'!$B$11:$C$50004,2,0))) -> Escavação Manual De Vala. Af_09/2024 | D82: =IF(H82="i",VLOOKUP(B82,'Ins SINAPI PE 06-2025 Onerado'!$B$11:$F$50003,2,0),VLOOKUP(B82,'Comp SINAPI PE 06-2025 Onerado'!$B$11:$H$50004,3,0)) -> M3 | E82: 0.1188 | F82: =IF(H82="i",VLOOKUP(B82,'Ins SINAPI PE 06-2025 Onerado'!$B$11:$F$50003,5,0),VLOOKUP(B82,'Comp SINAPI PE 06-2025 Onerado'!$B$11:$E$50004,4,0)) -> 95.25 | G82: =TRUNC(E82*F82,2) -> 11.31 | H82: ca | I82: Indice com base na composição ED-48552 - do SBC
A83: SETOP | B83: ED-51093 | C83: APILOAMENTO E REGULARIZACAO MANUAL DE FUNDO DE CAVAS | D83: M2 | E83: 0.36 | F83: 26.06 | G83: =TRUNC(E83*F83,2) -> 9.38 | I83: Indice com base na composição ED-48552 - do SBC
A84: SINAPI | B84: 102990 | C84: =PROPER(IF(H84="i",VLOOKUP(B84,'Ins SINAPI PE 06-2025 Onerado'!$B$11:$F$50003,2,0),VLOOKUP(B84,'Comp SINAPI PE 06-2025 Onerado'!$B$11:$C$50004,2,0))) -> Canaleta Meia Cana Pré-Moldada De Concreto (D = 30 Cm) - Fornecimento E Instalação. Af_05/2025 | D84: =IF(H84="i",VLOOKUP(B84,'Ins SINAPI PE 06-2025 Onerado'!$B$11:$F$50003,2,0),VLOOKUP(B84,'Comp SINAPI PE 06-2025 Onerado'!$B$11:$H$50004,3,0)) -> M | E84: 1 | F84: =IF(H84="i",VLOOKUP(B84,'Ins SINAPI PE 06-2025 Onerado'!$B$11:$F$50003,5,0),VLOOKUP(B84,'Comp SINAPI PE 06-2025 Onerado'!$B$11:$E$50004,4,0)) -> 53.26 | G84: =TRUNC(E84*F84,2) -> 53.26 | H84: ca
A85: SINAPI | B85: 100946 | C85: =PROPER(IF(H85="i",VLOOKUP(B85,'Ins SINAPI PE 06-2025 Onerado'!$B$11:$F$50003,2,0),VLOOKUP(B85,'Comp SINAPI PE 06-2025 Onerado'!$B$11:$C$50004,2,0))) -> Transporte Com Caminhão Carroceria 9T, Em Via Urbana Em Revestimento Primário (Unidade: Txkm). Af_07/2020 | D85: =IF(H85="i",VLOOKUP(B85,'Ins SINAPI PE 06-2025 Onerado'!$B$11:$F$50003,2,0),VLOOKUP(B85,'Comp SINAPI PE 06-2025 Onerado'!$B$11:$H$50004,3,0)) -> TXKM | E85: =0.052*'Memorial de cálculo'!H8 -> 0.3974285714 | F85: =IF(H85="i",VLOOKUP(B85,'Ins SINAPI PE 06-2025 Onerado'!$B$11:$F$50003,5,0),VLOOKUP(B85,'Comp SINAPI PE 06-2025 Onerado'!$B$11:$E$50004,4,0)) -> 2.43 | G85: 0.96 | H85: ca | I85: considerando 52 kg por metro de canaleta
A86: SINAPI | B86: 100947 | C86: =PROPER(IF(H86="i",VLOOKUP(B86,'Ins SINAPI PE 06-2025 Onerado'!$B$11:$F$50003,2,0),VLOOKUP(B86,'Comp SINAPI PE 06-2025 Onerado'!$B$11:$C$50004,2,0))) -> Transporte Com Caminhão Carroceria 9T, Em Via Urbana Pavimentada, Dmt Até 30Km (Unidade: Txkm). Af_07/2020 | D86: =IF(H86="i",VLOOKUP(B86,'Ins SINAPI PE 06-2025 Onerado'!$B$11:$F$50003,2,0),VLOOKUP(B86,'Comp SINAPI PE 06-2025 Onerado'!$B$11:$H$50004,3,0)) -> TXKM | E86: =0.052*30 -> 1.56 | F86: =IF(H86="i",VLOOKUP(B86,'Ins SINAPI PE 06-2025 Onerado'!$B$11:$F$50003,5,0),VLOOKUP(B86,'Comp SINAPI PE 06-2025 Onerado'!$B$11:$E$50004,4,0)) -> 2.23 | G86: 3.47 | H86: ca
A87: SINAPI | B87: 100948 | C87: =PROPER(IF(H87="i",VLOOKUP(B87,'Ins SINAPI PE 06-2025 Onerado'!$B$11:$F$50003,2,0),VLOOKUP(B87,'Comp SINAPI PE 06-2025 Onerado'!$B$11:$C$50004,2,0))) -> Transporte Com Caminhão Carroceria 9T, Em Via Urbana Pavimentada, Adicional Para Dmt Excedente A 30 Km (Unidade: Txkm). Af_07/2020 | D87: =IF(H87="i",VLOOKUP(B87,'Ins SINAPI PE 06-2025 Onerado'!$B$11:$F$50003,2,0),VLOOKUP(B87,'Comp SINAPI PE 06-2025 Onerado'!$B$11:$H$50004,3,0)) -> TXKM | E87: =0.052*('Memorial de cálculo'!H7-30) -> 8.160285714 | F87: =IF(H87="i",VLOOKUP(B87,'Ins SINAPI PE 06-2025 Onerado'!$B$11:$F$50003,5,0),VLOOKUP(B87,'Comp SINAPI PE 06-2025 Onerado'!$B$11:$E$50004,4,0)) -> 0.88 | G87: 7.18 | H87: ca
A88: PRÓPRIA | B88: CODE | C88: Hospedagem | D88: un | E88: ='Memorial de cálculo'!D51*'Memorial de cálculo'!G51+'Memorial de cálculo'!D52*'Memorial de cálculo'!H52 -> 0.31635 | F88: ='CPU HOSPEDAGEM'!$C$19 -> 195.4709848 | G88: 61.83 | H88: ca
A89: PRÓPRIA | B89: CODE | C89: Veículo tipo pick-up, cabine dupla - 2.0 16V 4x4 diesel Aut. | D89: dia | E89: =LARGE('Memorial de cálculo'!H51:H52,1) -> 0.03515 | F89: ='CPU-VEICULO_PickUp'!$C$11 -> 382.8058696 | G89: 13.45 | H89: ca
A90: =B78 -> CPU.07 | C90: MÃO DE OBRA | G90: 0 | H90: mdo
B92: CPU.08 | C92: Entrada para descida d'água | D92: un | E92: 1 | G92: =SUM(G100,G95,G94,G93) -> 173.58 | H92: S
A93: =B110 | C93: MATERIAL | G93: 0 | H93: ss
A94: =B92 -> CPU.08 | C94: EQUIPAMENTOS | G94: 0 | H94: ss
A95: =B92 -> CPU.08 | C95: SERVIÇOS | G95: =SUM(G96:G99) -> 173.58 | H95: ss
A96: SINAPI | B96: 94964 | C96: =PROPER(IF(H96="i",VLOOKUP(B96,'Ins SINAPI PE 06-2025 Onerado'!$B$11:$F$50003,2,0),VLOOKUP(B96,'Comp SINAPI PE 06-2025 Onerado'!$B$11:$C$50004,2,0))) -> Concreto Fck = 20Mpa, Traço 1:2,7:3 (Em Massa Seca De Cimento/ Areia Média/ Brita 1) - Preparo Mecânico Com Betoneira 400 L. Af_05/2021 | D96: =IF(H96="i",VLOOKUP(B96,'Ins SINAPI PE 06-2025 Onerado'!$B$11:$F$50003,2,0),VLOOKUP(B96,'Comp SINAPI PE 06-2025 Onerado'!$B$11:$H$50004,3,0)) -> M3 | E96: =2*1*0.3*0.1 -> 0.06 | F96: =IF(H96="i",VLOOKUP(B96,'Ins SINAPI PE 06-2025 Onerado'!$B$11:$F$50003,5,0),VLOOKUP(B96,'Comp SINAPI PE 06-2025 Onerado'!$B$11:$E$50004,4,0)) -> 487.9 | G96: =TRUNC(E96*F96,2) -> 29.27 | H96: ca | I96: comprimento 1 m, altura 0,30 m e espessura 0,10 m
A97: SINAPI | B97: 92268 | C97: =PROPER(IF(H97="i",VLOOKUP(B97,'Ins SINAPI PE 06-2025 Onerado'!$B$11:$F$50003,2,0),VLOOKUP(B97,'Comp SINAPI PE 06-2025 Onerado'!$B$11:$C$50004,2,0))) -> Fabricação De Fôrma Para Lajes, Em Chapa De Madeira Compensada Plastificada, E = 18 Mm. Af_09/2020 | D97: =IF(H97="i",VLOOKUP(B97,'Ins SINAPI PE 06-2025 Onerado'!$B$11:$F$50003,2,0),VLOOKUP(B97,'Comp SINAPI PE 06-2025 Onerado'!$B$11:$H$50004,3,0)) -> M2 | E97: =2*1*0.3 -> 0.6 | F97: =IF(H97="i",VLOOKUP(B97,'Ins SINAPI PE 06-2025 Onerado'!$B$11:$F$50003,5,0),VLOOKUP(B97,'Comp SINAPI PE 06-2025 Onerado'!$B$11:$E$50004,4,0)) -> 75.74 | G97: =TRUNC(E97*F97,2) -> 45.44 | H97: ca | I97: comprimento 1 m, altura 0,30 m
A98: PRÓPRIA | B98: CODE | C98: Hospedagem | D98: un | E98: ='Memorial de cálculo'!D59*'Memorial de cálculo'!H59+'Memorial de cálculo'!D60*'Memorial de cálculo'!H60+'Memorial de cálculo'!D56*'Memorial de cálculo'!H56+'Memorial de cálculo'!D57*'Memorial de cálculo'!H57 -> 0.2330095 | F98: ='CPU HOSPEDAGEM'!$C$19 -> 195.4709848 | G98: =TRUNC(E98*F98,2) -> 45.54 | H98: ca
A99: PRÓPRIA | B99: CODE | C99: Veículo tipo pick-up, cabine dupla - 2.0 16V 4x4 diesel Aut. | D99: dia | E99: =LARGE('Memorial de cálculo'!H56:H60,1) -> 0.1393315 | F99: ='CPU-VEICULO_PickUp'!$C$11 -> 382.8058696 | G99: =TRUNC(E99*F99,2) -> 53.33 | H99: ca
A100: =B92 -> CPU.08 | C100: MÃO DE OBRA | G100: 0 | H100: mdo
B102: CPU.09 | C102: Plantio de vegetação para proteção de talude com hidrossemeadura, inclusive adubação e transporte | D102: m2 | E102: 1 | G102: =SUM(G112,G105,G104,G103) -> 12.24 | H102: S
A103: =B120 | C103: MATERIAL | G103: 0 | H103: ss
A104: =B102 -> CPU.09 | C104: EQUIPAMENTOS | G104: 0 | H104: ss
A105: =B102 -> CPU.09 | C105: SERVIÇOS | G105: =SUM(G106:G111) -> 12.24 | H105: ss
A106: SICRO | B106: 4413905 | C106: Hidrossemeadura | D106: M2 | E106: 1 | F106: 7.01 | G106: =TRUNC(E106*F106,2) -> 7.01 | H106: ca
A107: SINAPI | B107: 100946 | C107: =PROPER(IF(H107="i",VLOOKUP(B107,'Ins SINAPI PE 06-2025 Onerado'!$B$11:$F$50003,2,0),VLOOKUP(B107,'Comp SINAPI PE 06-2025 Onerado'!$B$11:$C$50004,2,0))) -> Transporte Com Caminhão Carroceria 9T, Em Via Urbana Em Revestimento Primário (Unidade: Txkm). Af_07/2020 | D107: =IF(H107="i",VLOOKUP(B107,'Ins SINAPI PE 06-2025 Onerado'!$B$11:$F$50003,2,0),VLOOKUP(B107,'Comp SINAPI PE 06-2025 Onerado'!$B$11:$H$50004,3,0)) -> TXKM | E107: ='Memorial de cálculo'!H8*0.02 -> 0.1528571429 | F107: =IF(H107="i",VLOOKUP(B107,'Ins SINAPI PE 06-2025 Onerado'!$B$11:$F$50003,5,0),VLOOKUP(B107,'Comp SINAPI PE 06-2025 Onerado'!$B$11:$E$50004,4,0)) -> 2.43 | G107: 0.37 | H107: ca | I107: 1m² de tapete pesa 20 kg
A108: SINAPI | B108: 100947 | C108: =PROPER(IF(H108="i",VLOOKUP(B108,'Ins SINAPI PE 06-2025 Onerado'!$B$11:$F$50003,2,0),VLOOKUP(B108,'Comp SINAPI PE 06-2025 Onerado'!$B$11:$C$50004,2,0))) -> Transporte Com Caminhão Carroceria 9T, Em Via Urbana Pavimentada, Dmt Até 30Km (Unidade: Txkm). Af_07/2020 | D108: =IF(H108="i",VLOOKUP(B108,'Ins SINAPI PE 06-2025 Onerado'!$B$11:$F$50003,2,0),VLOOKUP(B108,'Comp SINAPI PE 06-2025 Onerado'!$B$11:$H$50004,3,0)) -> TXKM | E108: =30*0.02 -> 0.6 | F108: =IF(H108="i",VLOOKUP(B108,'Ins SINAPI PE 06-2025 Onerado'!$B$11:$F$50003,5,0),VLOOKUP(B108,'Comp SINAPI PE 06-2025 Onerado'!$B$11:$E$50004,4,0)) -> 2.23 | G108: 1.33 | H108: ca
A109: SINAPI | B109: 100948 | C109: =PROPER(IF(H109="i",VLOOKUP(B109,'Ins SINAPI PE 06-2025 Onerado'!$B$11:$F$50003,2,0),VLOOKUP(B109,'Comp SINAPI PE 06-2025 Onerado'!$B$11:$C$50004,2,0))) -> Transporte Com Caminhão Carroceria 9T, Em Via Urbana Pavimentada, Adicional Para Dmt Excedente A 30 Km (Unidade: Txkm). Af_07/2020 | D109: =IF(H109="i",VLOOKUP(B109,'Ins SINAPI PE 06-2025 Onerado'!$B$11:$F$50003,2,0),VLOOKUP(B109,'Comp SINAPI PE 06-2025 Onerado'!$B$11:$H$50004,3,0)) -> TXKM | E109: =('Memorial de cálculo'!H7-30)*0.02 -> 3.138571429 | F109: =IF(H109="i",VLOOKUP(B109,'Ins SINAPI PE 06-2025 Onerado'!$B$11:$F$50003,5,0),VLOOKUP(B109,'Comp SINAPI PE 06-2025 Onerado'!$B$11:$E$50004,4,0)) -> 0.88 | G109: 2.76 | H109: ca
A110: PRÓPRIA | B110: CODE | C110: Hospedagem | D110: un | E110: ='Memorial de cálculo'!D64*'Memorial de cálculo'!H64 -> 0.002409638554 | F110: ='CPU HOSPEDAGEM'!$C$19 -> 195.4709848 | G110: 0.47 | H110: ca
A111: PRÓPRIA | B111: CODE | C111: Veículo tipo pick-up, cabine dupla - 2.0 16V 4x4 diesel Aut. | D111: dia | E111: =LARGE('Memorial de cálculo'!H64:H64,1) -> 0.0008032128514 | F111: ='CPU-VEICULO_PickUp'!$C$11 -> 382.8058696 | G111: 0.3 | H111: ca
A112: =B102 -> CPU.09 | C112: MÃO DE OBRA | G112: 0 | H112: mdo
B114: CPU.10 | C114: Apicoamento da superfície | D114: m2 | E114: 1 | G114: =SUM(G124,G117,G116,G115) -> 33.73 | H114: S
A115: =B133 | C115: MATERIAL | G115: 0 | H115: ss
A116: =B114 -> CPU.10 | C116: EQUIPAMENTOS | G116: 0 | H116: ss
A117: =B114 -> CPU.10 | C117: SERVIÇOS | G117: =SUM(G118:G123) -> 33.73 | H117: ss
A118: SINAPI | B118: 97631 | C118: =PROPER(IF(H118="i",VLOOKUP(B118,'Ins SINAPI PE 06-2025 Onerado'!$B$11:$F$50003,2,0),VLOOKUP(B118,'Comp SINAPI PE 06-2025 Onerado'!$B$11:$C$50004,2,0))) -> Demolição De Argamassas, De Forma Manual, Sem Reaproveitamento. Af_09/2023 | D118: =IF(H118="i",VLOOKUP(B118,'Ins SINAPI PE 06-2025 Onerado'!$B$11:$F$50003,2,0),VLOOKUP(B118,'Comp SINAPI PE 06-2025 Onerado'!$B$11:$H$50004,3,0)) -> M2 | E118: =0.05*15 -> 0.75 | F118: =IF(H118="i",VLOOKUP(B118,'Ins SINAPI PE 06-2025 Onerado'!$B$11:$F$50003,5,0),VLOOKUP(B118,'Comp SINAPI PE 06-2025 Onerado'!$B$11:$E$50004,4,0)) -> 12.75 | G118: =TRUNC(E118*F118,2) -> 9.56 | H118: ca
A119: SINAPI | B119: 93589 | C119: =PROPER(IF(H119="i",VLOOKUP(B119,'Ins SINAPI PE 06-2025 Onerado'!$B$11:$F$50003,2,0),VLOOKUP(B119,'Comp SINAPI PE 06-2025 Onerado'!$B$11:$C$50004,2,0))) -> Transporte Com Caminhão Basculante De 10 M³, Em Via Urbana Em Revestimento Primário (Unidade: M3Xkm). Af_07/2020 | D119: =IF(H119="i",VLOOKUP(B119,'Ins SINAPI PE 06-2025 Onerado'!$B$11:$F$50003,2,0),VLOOKUP(B119,'Comp SINAPI PE 06-2025 Onerado'!$B$11:$H$50004,3,0)) -> M3XKM | E119: =0.05*15 -> 0.75 | F119: =IF(H119="i",VLOOKUP(B119,'Ins SINAPI PE 06-2025 Onerado'!$B$11:$F$50003,5,0),VLOOKUP(B119,'Comp SINAPI PE 06-2025 Onerado'!$B$11:$E$50004,4,0)) -> 2.69 | G119: 2.01 | H119: ca | I119: considerando 5 cm de entulho e 15 km para bota-fora
A120: SINAPI | B120: 95875 | C120: =PROPER(IF(H120="i",VLOOKUP(B120,'Ins SINAPI PE 06-2025 Onerado'!$B$11:$F$50003,2,0),VLOOKUP(B120,'Comp SINAPI PE 06-2025 Onerado'!$B$11:$C$50004,2,0))) -> Transporte Com Caminhão Basculante De 10 M³, Em Via Urbana Pavimentada, Dmt Até 30 Km (Unidade: M3Xkm). Af_07/2020 | D120: =IF(H120="i",VLOOKUP(B120,'Ins SINAPI PE 06-2025 Onerado'!$B$11:$F$50003,2,0),VLOOKUP(B120,'Comp SINAPI PE 06-2025 Onerado'!$B$11:$H$50004,3,0)) -> M3XKM | E120: =0.05*15 -> 0.75 | F120: =IF(H120="i",VLOOKUP(B120,'Ins SINAPI PE 06-2025 Onerado'!$B$11:$F$50003,5,0),VLOOKUP(B120,'Comp SINAPI PE 06-2025 Onerado'!$B$11:$E$50004,4,0)) -> 2.48 | G120: 1.86 | H120: ca | I120: considerando 5 cm de entulho e 15 km para bota-fora
A121: SINAPI | B121: 95875 | C121: =PROPER(IF(H121="i",VLOOKUP(B121,'Ins SINAPI PE 06-2025 Onerado'!$B$11:$F$50003,2,0),VLOOKUP(B121,'Comp SINAPI PE 06-2025 Onerado'!$B$11:$C$50004,2,0))) -> Transporte Com Caminhão Basculante De 10 M³, Em Via Urbana Pavimentada, Dmt Até 30 Km (Unidade: M3Xkm). Af_07/2020 | D121: =IF(H121="i",VLOOKUP(B121,'Ins SINAPI PE 06-2025 Onerado'!$B$11:$F$50003,2,0),VLOOKUP(B121,'Comp SINAPI PE 06-2025 Onerado'!$B$11:$H$50004,3,0)) -> M3XKM | E121: =0.05*15 -> 0.75 | F121: =IF(H121="i",VLOOKUP(B121,'Ins SINAPI PE 06-2025 Onerado'!$B$11:$F$50003,5,0),VLOOKUP(B121,'Comp SINAPI PE 06-2025 Onerado'!$B$11:$E$50004,4,0)) -> 2.48 | G121: 1.86 | H121: ca | I121: considerando 5 cm de entulho e 15 km para bota-fora
A122: PRÓPRIA | B122: CODE | C122: Hospedagem | D122: un | E122: ='Memorial de cálculo'!D68*'Memorial de cálculo'!H68+'Memorial de cálculo'!D69*'Memorial de cálculo'!H69 -> 0.0627875 | F122: ='CPU HOSPEDAGEM'!$C$19 -> 195.4709848 | G122: 12.27 | H122: ca
A123: PRÓPRIA | B123: CODE | C123: Veículo tipo pick-up, cabine dupla - 2.0 16V 4x4 diesel Aut. | D123: dia | E123: =LARGE('Memorial de cálculo'!H68:H69,1) -> 0.01613333333 | F123: ='CPU-VEICULO_PickUp'!$C$11 -> 382.8058696 | G123: 6.17 | H123: ca
A124: =B114 -> CPU.10 | C124: MÃO DE OBRA | G124: 0 | H124: mdo
B126: CPU.11 | C126: Enrocamento ARCO tipo rachão reciclado cinza classe A jogado com fornecimento | D126: m3 | E126: 1 | G126: =SUM(G137,G130,G129,G127) -> 281.21 | H126: S
A127: =B126 -> CPU.11 | C127: MATERIAL | G127: =SUM(G128) -> 54.26 | H127: ss
A128: SINAPI | B128: 40553 | C128: =PROPER(IF(H128="i",VLOOKUP(B128,'Ins SINAPI PE 06-2025 Onerado'!$B$11:$F$50003,2,0),VLOOKUP(B128,'Comp SINAPI PE 06-2025 Onerado'!$G$11:$H$50004,2,0))) -> Agregado Reciclado, Tipo Rachao Reciclado Cinza, Classe A | D128: =IF(H128="i",VLOOKUP(B128,'Ins SINAPI PE 06-2025 Onerado'!$B$11:$F$50003,3,0),VLOOKUP(B128,'Comp SINAPI PE 06-2025 Onerado'!$G$11:$H$50004,3,0)) -> M3 | E128: 1 | F128: 54.26 | G128: =TRUNC(E128*F128,2) -> 54.26 | H128: i
A129: =B126 -> CPU.11 | C129: EQUIPAMENTOS | G129: 0 | H129: ss
A130: =B126 -> CPU.11 | C130: SERVIÇOS | G130: =SUM(G131:G136) -> 226.42 | H130: ss
A131: SINAPI | B131: 93592 | C131: =PROPER(IF(H131="i",VLOOKUP(B131,'Ins SINAPI PE 06-2025 Onerado'!$B$11:$F$50003,2,0),VLOOKUP(B131,'Comp SINAPI PE 06-2025 Onerado'!$B$11:$C$50004,2,0))) -> Transporte Com Caminhão Basculante De 14 M³, Em Via Urbana Em Revestimento Primário (Unidade: M3Xkm). Af_07/2020 | D131: =IF(H131="i",VLOOKUP(B131,'Ins SINAPI PE 06-2025 Onerado'!$B$11:$F$50003,2,0),VLOOKUP(B131,'Comp SINAPI PE 06-2025 Onerado'!$B$11:$H$50004,3,0)) -> M3XKM | E131: ='Memorial de cálculo'!H8 -> 7.642857143 | F131: =IF(H131="i",VLOOKUP(B131,'Ins SINAPI PE 06-2025 Onerado'!$B$11:$F$50003,5,0),VLOOKUP(B131,'Comp SINAPI PE 06-2025 Onerado'!$B$11:$E$50004,4,0)) -> 2.36 | G131: =TRUNC(E131*F131,2) -> 18.03 | H131: ca
A132: SINAPI | B132: 95876 | C132: =PROPER(IF(H132="i",VLOOKUP(B132,'Ins SINAPI PE 06-2025 Onerado'!$B$11:$F$50003,2,0),VLOOKUP(B132,'Comp SINAPI PE 06-2025 Onerado'!$B$11:$C$50004,2,0))) -> Transporte Com Caminhão Basculante De 14 M³, Em Via Urbana Pavimentada, Dmt Até 30 Km (Unidade: M3Xkm). Af_07/2020 | D132: =IF(H132="i",VLOOKUP(B132,'Ins SINAPI PE 06-2025 Onerado'!$B$11:$F$50003,2,0),VLOOKUP(B132,'Comp SINAPI PE 06-2025 Onerado'!$B$11:$H$50004,3,0)) -> M3XKM | E132: 30 | F132: =IF(H132="i",VLOOKUP(B132,'Ins SINAPI PE 06-2025 Onerado'!$B$11:$F$50003,5,0),VLOOKUP(B132,'Comp SINAPI PE 06-2025 Onerado'!$B$11:$E$50004,4,0)) -> 2.14 | G132: 64.2 | H132: ca
A133: SINAPI | B133: 93593 | C133: =PROPER(IF(H133="i",VLOOKUP(B133,'Ins SINAPI PE 06-2025 Onerado'!$B$11:$F$50003,2,0),VLOOKUP(B133,'Comp SINAPI PE 06-2025 Onerado'!$B$11:$C$50004,2,0))) -> Transporte Com Caminhão Basculante De 14 M³, Em Via Urbana Pavimentada, Adicional Para Dmt Excedente A 30 Km (Unidade: M3Xkm). Af_07/2020 | D133: =IF(H133="i",VLOOKUP(B133,'Ins SINAPI PE 06-2025 Onerado'!$B$11:$F$50003,2,0),VLOOKUP(B133,'Comp SINAPI PE 06-2025 Onerado'!$B$11:$H$50004,3,0)) -> M3XKM | E133: ='Memorial de cálculo'!H7-30 -> 156.9285714 | F133: =IF(H133="i",VLOOKUP(B133,'Ins SINAPI PE 06-2025 Onerado'!$B$11:$F$50003,5,0),VLOOKUP(B133,'Comp SINAPI PE 06-2025 Onerado'!$B$11:$E$50004,4,0)) -> 0.86 | G133: 134.95 | H133: ca
A134: SINAPI | B134: 100976 | C134: =PROPER(IF(H134="i",VLOOKUP(B134,'Ins SINAPI PE 06-2025 Onerado'!$B$11:$F$50003,2,0),VLOOKUP(B134,'Comp SINAPI PE 06-2025 Onerado'!$B$11:$C$50004,2,0))) -> Carga, Manobra E Descarga De Solos E Materiais Granulares Em Caminhão Basculante 18 M³ - Carga Com Pá Carregadeira (Caçamba De 1,7 A 2,8 M³ / 128 Hp) E Descarga Livre (Unidade: M3). Af_07/2020 | D134: =IF(H134="i",VLOOKUP(B134,'Ins SINAPI PE 06-2025 Onerado'!$B$11:$F$50003,2,0),VLOOKUP(B134,'Comp SINAPI PE 06-2025 Onerado'!$B$11:$H$50004,3,0)) -> M3 | E134: 1 | F134: =IF(H134="i",VLOOKUP(B134,'Ins SINAPI PE 06-2025 Onerado'!$B$11:$F$50003,5,0),VLOOKUP(B134,'Comp SINAPI PE 06-2025 Onerado'!$B$11:$E$50004,4,0)) -> 8.29 | G134: 8.29 | H134: ca
A135: PRÓPRIA | B135: CODE | C135: Hospedagem | D135: un | E135: ='Memorial de cálculo'!D73*'Memorial de cálculo'!H73+'Memorial de cálculo'!D74*'Memorial de cálculo'!H74 -> 0.0025 | F135: ='CPU HOSPEDAGEM'!$C$19 -> 195.4709848 | G135: 0.48 | H135: ca
A136: PRÓPRIA | B136: CODE | C136: Veículo tipo pick-up, cabine dupla - 2.0 16V 4x4 diesel Aut. | D136: dia | E136: =LARGE('Memorial de cálculo'!H73:H74,1) -> 0.00125 | F136: ='CPU-VEICULO_PickUp'!$C$11 -> 382.8058696 | G136: 0.47 | H136: ca
A137: =B126 -> CPU.11 | C137: MÃO DE OBRA | G137: =SUM(G138:G139) -> 0.53 | H137: mdo
A138: SINAPI | B138: 88309 | C138: =PROPER(IF(H138="i",VLOOKUP(B138,'Ins SINAPI PE 06-2025 Onerado'!$B$11:$F$50003,2,0),VLOOKUP(B138,'Comp SINAPI PE 06-2025 Onerado'!$B$11:$C$50004,2,0))) -> Pedreiro Com Encargos Complementares | D138: =IF(H138="i",VLOOKUP(B138,'Ins SINAPI PE 06-2025 Onerado'!$B$11:$F$50003,2,0),VLOOKUP(B138,'Comp SINAPI PE 06-2025 Onerado'!$B$11:$H$50004,3,0)) -> H | E138: 0.01 | F138: =IF(H138="i",VLOOKUP(B138,'Ins SINAPI PE 06-2025 Onerado'!$B$11:$F$50003,5,0),VLOOKUP(B138,'Comp SINAPI PE 06-2025 Onerado'!$B$11:$E$50004,4,0)) -> 29.85 | G138: 0.29 | H138: ca
A139: SINAPI | B139: 88316 | C139: =PROPER(IF(H139="i",VLOOKUP(B139,'Ins SINAPI PE 06-2025 Onerado'!$B$11:$F$50003,2,0),VLOOKUP(B139,'Comp SINAPI PE 06-2025 Onerado'!$B$11:$C$50004,2,0))) -> Servente Com Encargos Complementares | D139: =IF(H139="i",VLOOKUP(B139,'Ins SINAPI PE 06-2025 Onerado'!$B$11:$F$50003,2,0),VLOOKUP(B139,'Comp SINAPI PE 06-2025 Onerado'!$B$11:$H$50004,3,0)) -> H | E139: 0.01 | F139: =IF(H139="i",VLOOKUP(B139,'Ins SINAPI PE 06-2025 Onerado'!$B$11:$F$50003,5,0),VLOOKUP(B139,'Comp SINAPI PE 06-2025 Onerado'!$B$11:$E$50004,4,0)) -> 24.08 | G139: 0.24 | H139: ca
B141: CPU.12 | C141: Recomposição das erosões, inclusive, regularização da superfície e reaterro | D141: m3 | E141: 1 | G141: =SUM(G157,G145,G144,G142) -> 305.81 | H141: S
A142: =B141 -> CPU.12 | C142: MATERIAL | G142: =SUM(G143) -> 54.26 | H142: ss
A143: SINAPI | B143: 6081 | C143: =PROPER(IF(H143="i",VLOOKUP(B143,'Ins SINAPI PE 06-2025 Onerado'!$B$11:$F$50003,2,0),VLOOKUP(B143,'Comp SINAPI PE 06-2025 Onerado'!$G$11:$H$50004,2,0))) -> Argila Ou Barro Para Aterro/Reaterro (Com Transporte Ate 10 Km) | D143: =IF(H143="i",VLOOKUP(B143,'Ins SINAPI PE 06-2025 Onerado'!$B$11:$F$50003,3,0),VLOOKUP(B143,'Comp SINAPI PE 06-2025 Onerado'!$G$11:$H$50004,3,0)) -> M3 | E143: 1 | F143: 54.26 | G143: =TRUNC(E143*F143,2) -> 54.26 | H143: i
A144: =B141 -> CPU.12 | C144: EQUIPAMENTOS | G144: 0 | H144: ss
A145: =B141 -> CPU.12 | C145: SERVIÇOS | G145: =SUM(G146:G156) -> 251.55 | H145: ss
A146: SINAPI | B146: 101230 | C146: =PROPER(IF(H146="i",VLOOKUP(B146,'Ins SINAPI PE 06-2025 Onerado'!$B$11:$F$50003,2,0),VLOOKUP(B146,'Comp SINAPI PE 06-2025 Onerado'!$B$11:$C$50004,2,0))) -> Escavação Vertical Para Infraestrutura, Com Carga, Descarga E Transporte De Solo De 1ª Categoria, Com Escavadeira Hidráulica (Caçamba: 0,8 M³ / 111 Hp), Frota De 3 Caminhões Basculantes De 14 M³, Dmt Até 1 Km E Velocidade Média14 Km/H. Af_05/2020 | D146: =IF(H146="i",VLOOKUP(B146,'Ins SINAPI PE 06-2025 Onerado'!$B$11:$F$50003,2,0),VLOOKUP(B146,'Comp SINAPI PE 06-2025 Onerado'!$B$11:$H$50004,3,0)) -> M3 | E146: 0.1 | F146: =IF(H146="i",VLOOKUP(B146,'Ins SINAPI PE 06-2025 Onerado'!$B$11:$F$50003,5,0),VLOOKUP(B146,'Comp SINAPI PE 06-2025 Onerado'!$B$11:$E$50004,4,0)) -> 11.08 | G146: =TRUNC(E146*F146,2) -> 1.1 | H146: ca | I146: Preparação da superfície 10%
A147: SINAPI | B147: 93589 | C147: =PROPER(IF(H147="i",VLOOKUP(B147,'Ins SINAPI PE 06-2025 Onerado'!$B$11:$F$50003,2,0),VLOOKUP(B147,'Comp SINAPI PE 06-2025 Onerado'!$B$11:$C$50004,2,0))) -> Transporte Com Caminhão Basculante De 10 M³, Em Via Urbana Em Revestimento Primário (Unidade: M3Xkm). Af_07/2020 | D147: =IF(H147="i",VLOOKUP(B147,'Ins SINAPI PE 06-2025 Onerado'!$B$11:$F$50003,2,0),VLOOKUP(B147,'Comp SINAPI PE 06-2025 Onerado'!$B$11:$H$50004,3,0)) -> M3XKM | E147: ='Memorial de cálculo'!$H$8-10 -> -2.357142857 | F147: =IF(H147="i",VLOOKUP(B147,'Ins SINAPI PE 06-2025 Onerado'!$B$11:$F$50003,5,0),VLOOKUP(B147,'Comp SINAPI PE 06-2025 Onerado'!$B$11:$E$50004,4,0)) -> 2.69 | G147: -6.34 | H147: ca | I147: Transporte da argila
A148: SINAPI | B148: 95875 | C148: =PROPER(IF(H148="i",VLOOKUP(B148,'Ins SINAPI PE 06-2025 Onerado'!$B$11:$F$50003,2,0),VLOOKUP(B148,'Comp SINAPI PE 06-2025 Onerado'!$B$11:$C$50004,2,0))) -> Transporte Com Caminhão Basculante De 10 M³, Em Via Urbana Pavimentada, Dmt Até 30 Km (Unidade: M3Xkm). Af_07/2020 | D148: =IF(H148="i",VLOOKUP(B148,'Ins SINAPI PE 06-2025 Onerado'!$B$11:$F$50003,2,0),VLOOKUP(B148,'Comp SINAPI PE 06-2025 Onerado'!$B$11:$H$50004,3,0)) -> M3XKM | E148: =30 -> 30 | F148: =IF(H148="i",VLOOKUP(B148,'Ins SINAPI PE 06-2025 Onerado'!$B$11:$F$50003,5,0),VLOOKUP(B148,'Comp SINAPI PE 06-2025 Onerado'!$B$11:$E$50004,4,0)) -> 2.48 | G148: 74.4 | H148: ca
A149: SINAPI | B149: 93590 | C149: =PROPER(IF(H149="i",VLOOKUP(B149,'Ins SINAPI PE 06-2025 Onerado'!$B$11:$F$50003,2,0),VLOOKUP(B149,'Comp SINAPI PE 06-2025 Onerado'!$B$11:$C$50004,2,0))) -> Transporte Com Caminhão Basculante De 10 M³, Em Via Urbana Pavimentada, Adicional Para Dmt Excedente A 30 Km (Unidade: M3Xkm). Af_07/2020 | D149: =IF(H149="i",VLOOKUP(B149,'Ins SINAPI PE 06-2025 Onerado'!$B$11:$F$50003,2,0),VLOOKUP(B149,'Comp SINAPI PE 06-2025 Onerado'!$B$11:$H$50004,3,0)) -> M3XKM | E149: ='Memorial de cálculo'!$H$7-30 -> 156.9285714 | F149: =IF(H149="i",VLOOKUP(B149,'Ins SINAPI PE 06-2025 Onerado'!$B$11:$F$50003,5,0),VLOOKUP(B149,'Comp SINAPI PE 06-2025 Onerado'!$B$11:$E$50004,4,0)) -> 0.98 | G149: 153.79 | H149: ca
A150: SINAPI | B150: 100976 | C150: =PROPER(IF(H150="i",VLOOKUP(B150,'Ins SINAPI PE 06-2025 Onerado'!$B$11:$F$50003,2,0),VLOOKUP(B150,'Comp SINAPI PE 06-2025 Onerado'!$B$11:$C$50004,2,0))) -> Carga, Manobra E Descarga De Solos E Materiais Granulares Em Caminhão Basculante 18 M³ - Carga Com Pá Carregadeira (Caçamba De 1,7 A 2,8 M³ / 128 Hp) E Descarga Livre (Unidade: M3). Af_07/2020 | D150: =IF(H150="i",VLOOKUP(B150,'Ins SINAPI PE 06-2025 Onerado'!$B$11:$F$50003,2,0),VLOOKUP(B150,'Comp SINAPI PE 06-2025 Onerado'!$B$11:$H$50004,3,0)) -> M3 | E150: 1 | F150: =IF(H150="i",VLOOKUP(B150,'Ins SINAPI PE 06-2025 Onerado'!$B$11:$F$50003,5,0),VLOOKUP(B150,'Comp SINAPI PE 06-2025 Onerado'!$B$11:$E$50004,4,0)) -> 8.29 | G150: 8.29 | H150: ca
A151: SINAPI | B151: 100951 | C151: =PROPER(IF(H151="i",VLOOKUP(B151,'Ins SINAPI PE 06-2025 Onerado'!$B$11:$F$50003,2,0),VLOOKUP(B151,'Comp SINAPI PE 06-2025 Onerado'!$B$11:$C$50004,2,0))) -> Transporte Com Caminhão Carroceria Com Guindauto (Munck), Momento Máximo De Carga 11,7 Tm, Em Via Urbana Em Revestimento Primário (Unidade: Txkm). Af_07/2020 | D151: =IF(H151="i",VLOOKUP(B151,'Ins SINAPI PE 06-2025 Onerado'!$B$11:$F$50003,2,0),VLOOKUP(B151,'Comp SINAPI PE 06-2025 Onerado'!$B$11:$H$50004,3,0)) -> TXKM | E151: =1.5*'Memorial de cálculo'!$H$8*2/'Memorial de cálculo'!P76 -> 0.09674502712 | F151: =IF(H151="i",VLOOKUP(B151,'Ins SINAPI PE 06-2025 Onerado'!$B$11:$F$50003,5,0),VLOOKUP(B151,'Comp SINAPI PE 06-2025 Onerado'!$B$11:$E$50004,4,0)) -> 3.07 | G151: =TRUNC(E151*F151,2) -> 0.29 | H151: ca | I151: Tonelada da máquina | K151: 1.5
A152: SINAPI | B152: 100952 | C152: =PROPER(IF(H152="i",VLOOKUP(B152,'Ins SINAPI PE 06-2025 Onerado'!$B$11:$F$50003,2,0),VLOOKUP(B152,'Comp SINAPI PE 06-2025 Onerado'!$B$11:$C$50004,2,0))) -> Transporte Com Caminhão Carroceria Com Guindauto (Munck), Momento Máximo De Carga 11,7 Tm, Em Via Urbana Pavimentada, Dmt Até 30Km (Unidade: Txkm). Af_07/2020 | D152: =IF(H152="i",VLOOKUP(B152,'Ins SINAPI PE 06-2025 Onerado'!$B$11:$F$50003,2,0),VLOOKUP(B152,'Comp SINAPI PE 06-2025 Onerado'!$B$11:$H$50004,3,0)) -> TXKM | E152: =1.5*30*2/'Memorial de cálculo'!P76 -> 0.3797468354 | F152: =IF(H152="i",VLOOKUP(B152,'Ins SINAPI PE 06-2025 Onerado'!$B$11:$F$50003,5,0),VLOOKUP(B152,'Comp SINAPI PE 06-2025 Onerado'!$B$11:$E$50004,4,0)) -> 2.84 | G152: 1.07 | H152: ca | I152: Tonelada da máquina | K152: 1.5
A153: SINAPI | B153: 100953 | C153: =PROPER(IF(H153="i",VLOOKUP(B153,'Ins SINAPI PE 06-2025 Onerado'!$B$11:$F$50003,2,0),VLOOKUP(B153,'Comp SINAPI PE 06-2025 Onerado'!$B$11:$C$50004,2,0))) -> Transporte Com Caminhão Carroceria Com Guindauto (Munck), Momento Máximo De Carga 11,7 Tm, Em Via Urbana Pavimentada, Adicional Para Dmt Excedente A 30 Km (Unidade: Txkm). Af_07/2020 | D153: =IF(H153="i",VLOOKUP(B153,'Ins SINAPI PE 06-2025 Onerado'!$B$11:$F$50003,2,0),VLOOKUP(B153,'Comp SINAPI PE 06-2025 Onerado'!$B$11:$H$50004,3,0)) -> TXKM | E153: =1.5*('Memorial de cálculo'!$H$7-30)*2/'Memorial de cálculo'!P76 -> 1.986437613 | F153: =IF(H153="i",VLOOKUP(B153,'Ins SINAPI PE 06-2025 Onerado'!$B$11:$F$50003,5,0),VLOOKUP(B153,'Comp SINAPI PE 06-2025 Onerado'!$B$11:$E$50004,4,0)) -> 1.12 | G153: 2.22 | H153: ca | I153: Tonelada da máquina | K153: 1.5
A154: SINAPI | B154: 96385 | C154: =PROPER(IF(H154="i",VLOOKUP(B154,'Ins SINAPI PE 06-2025 Onerado'!$B$11:$F$50003,2,0),VLOOKUP(B154,'Comp SINAPI PE 06-2025 Onerado'!$B$11:$C$50004,2,0))) -> Execução E Compactação De Corpo De Aterro De Aterro (95% De Energia Do Proctor Normal) Com Solo Predominantemente Argiloso Espessura 15 Cm - Exclusive Material, Escavação, Carga E Transporte. Af_09/2024 | D154: =IF(H154="i",VLOOKUP(B154,'Ins SINAPI PE 06-2025 Onerado'!$B$11:$F$50003,2,0),VLOOKUP(B154,'Comp SINAPI PE 06-2025 Onerado'!$B$11:$H$50004,3,0)) -> M3 | E154: 1 | F154: =IF(H154="i",VLOOKUP(B154,'Ins SINAPI PE 06-2025 Onerado'!$B$11:$F$50003,5,0),VLOOKUP(B154,'Comp SINAPI PE 06-2025 Onerado'!$B$11:$E$50004,4,0)) -> 11.45 | G154: 11.45 | H154: ca
A155: COTAÇÃO | B155: CT.01 | C155: Hospedagem | D155: un | E155: ='Memorial de cálculo'!D78*'Memorial de cálculo'!H78+'Memorial de cálculo'!D79*'Memorial de cálculo'!H79+'Memorial de cálculo'!D80*'Memorial de cálculo'!H80 -> 0.0153585375 | F155: ='CPU HOSPEDAGEM'!$C$19 -> 195.4709848 | G155: 3 | H155: ca
A156: PRÓPRIA | B156: CODE | C156: Veículo tipo pick-up, cabine dupla - 2.0 16V 4x4 diesel Aut. | D156: dia | E156: =LARGE('Memorial de cálculo'!H78:H80,1) -> 0.0059586125 | F156: ='CPU-VEICULO_PickUp'!$C$11 -> 382.8058696 | G156: 2.28 | H156: ca
A157: =B141 -> CPU.12 | C157: MÃO DE OBRA | G157: 0 | H157: mdo
B159: CPU.13 | C159: Regularização e compactação da crista | D159: m2 | E159: 1 | G159: =SUM(G166,G162,G161,G160) -> 3.24 | H159: S
A160: =B159 -> CPU.13 | C160: MATERIAL | G160: 0 | H160: ss
A161: =B159 -> CPU.13 | C161: EQUIPAMENTOS | G161: 0 | H161: ss
A162: =B159 -> CPU.13 | C162: SERVIÇOS | G162: =SUM(G163:G165) -> 3.24 | H162: ss
A163: SINAPI | B163: 100576 | C163: =PROPER(IF(H163="i",VLOOKUP(B163,'Ins SINAPI PE 06-2025 Onerado'!$B$11:$F$50003,2,0),VLOOKUP(B163,'Comp SINAPI PE 06-2025 Onerado'!$B$11:$C$50004,2,0))) -> Regularização E Compactação De Subleito De Solo Predominantemente Argiloso, Para Obras De Construção De Pavimentos. Af_09/2024 | D163: =IF(H163="i",VLOOKUP(B163,'Ins SINAPI PE 06-2025 Onerado'!$B$11:$F$50003,2,0),VLOOKUP(B163,'Comp SINAPI PE 06-2025 Onerado'!$B$11:$H$50004,3,0)) -> M2 | E163: 1 | F163: =IF(H163="i",VLOOKUP(B163,'Ins SINAPI PE 06-2025 Onerado'!$B$11:$F$50003,5,0),VLOOKUP(B163,'Comp SINAPI PE 06-2025 Onerado'!$B$11:$E$50004,4,0)) -> 2.62 | G163: =TRUNC(E163*F163,2) -> 2.62 | H163: ca
A164: COTAÇÃO | B164: CT.01 | C164: Hospedagem | D164: un | E164: ='Memorial de cálculo'!D84*'Memorial de cálculo'!H84 -> 0.0010769 | F164: ='CPU HOSPEDAGEM'!$C$19 -> 195.4709848 | G164: =TRUNC(E164*F164,2) -> 0.21 | H164: ca
A165: PRÓPRIA | B165: CODE | C165: Veículo tipo pick-up, cabine dupla - 2.0 16V 4x4 diesel Aut. | D165: dia | E165: =LARGE('Memorial de cálculo'!H84,1) -> 0.0010769 | F165: ='CPU-VEICULO_PickUp'!$C$11 -> 382.8058696 | G165: =TRUNC(E165*F165,2) -> 0.41 | H165: ca
A166: =B159 -> CPU.13 | C166: MÃO DE OBRA | G166: 0 | H166: mdo
B168: CPU.14 | C168: Execução de Revestimento com BGTC | D168: m3 | E168: 1 | G168: =SUM(G179,G171,G170,G169) -> 460.65 | H168: S
A169: =B168 -> CPU.14 | C169: MATERIAL | G169: 0 | H169: ss
A170: =B168 -> CPU.14 | C170: EQUIPAMENTOS | G170: 0 | H170: ss
A171: =B168 -> CPU.14 | C171: SERVIÇOS | G171: =SUM(G172:G178) -> 460.65 | H171: ss
A172: SINAPI | B172: 96397 | C172: =PROPER(IF(H172="i",VLOOKUP(B172,'Ins SINAPI PE 06-2025 Onerado'!$B$11:$F$50003,2,0),VLOOKUP(B172,'Comp SINAPI PE 06-2025 Onerado'!$B$11:$C$50004,2,0))) -> Construção De Base E Sub-Base Para Pavimentação De Brita Graduada Simples Tratada Com Cimento, Com Espessura De 15 Cm - Exclusive Carga E Transporte. Af_09/2024 | D172: =IF(H172="i",VLOOKUP(B172,'Ins SINAPI PE 06-2025 Onerado'!$B$11:$F$50003,2,0),VLOOKUP(B172,'Comp SINAPI PE 06-2025 Onerado'!$B$11:$H$50004,3,0)) -> M3 | E172: 1 | F172: =IF(H172="i",VLOOKUP(B172,'Ins SINAPI PE 06-2025 Onerado'!$B$11:$F$50003,5,0),VLOOKUP(B172,'Comp SINAPI PE 06-2025 Onerado'!$B$11:$E$50004,4,0)) -> 232.55 | G172: =TRUNC(E172*F172,2) -> 232.55 | H172: ca
A173: SINAPI | B173: 93592 | C173: =PROPER(IF(H173="i",VLOOKUP(B173,'Ins SINAPI PE 06-2025 Onerado'!$B$11:$F$50003,2,0),VLOOKUP(B173,'Comp SINAPI PE 06-2025 Onerado'!$B$11:$C$50004,2,0))) -> Transporte Com Caminhão Basculante De 14 M³, Em Via Urbana Em Revestimento Primário (Unidade: M3Xkm). Af_07/2020 | D173: =IF(H173="i",VLOOKUP(B173,'Ins SINAPI PE 06-2025 Onerado'!$B$11:$F$50003,2,0),VLOOKUP(B173,'Comp SINAPI PE 06-2025 Onerado'!$B$11:$H$50004,3,0)) -> M3XKM | E173: ='Memorial de cálculo'!$H$8 -> 7.642857143 | F173: =IF(H173="i",VLOOKUP(B173,'Ins SINAPI PE 06-2025 Onerado'!$B$11:$F$50003,5,0),VLOOKUP(B173,'Comp SINAPI PE 06-2025 Onerado'!$B$11:$E$50004,4,0)) -> 2.36 | G173: 18.03 | H173: ca
A174: SINAPI | B174: 95876 | C174: =PROPER(IF(H174="i",VLOOKUP(B174,'Ins SINAPI PE 06-2025 Onerado'!$B$11:$F$50003,2,0),VLOOKUP(B174,'Comp SINAPI PE 06-2025 Onerado'!$B$11:$C$50004,2,0))) -> Transporte Com Caminhão Basculante De 14 M³, Em Via Urbana Pavimentada, Dmt Até 30 Km (Unidade: M3Xkm). Af_07/2020 | D174: =IF(H174="i",VLOOKUP(B174,'Ins SINAPI PE 06-2025 Onerado'!$B$11:$F$50003,2,0),VLOOKUP(B174,'Comp SINAPI PE 06-2025 Onerado'!$B$11:$H$50004,3,0)) -> M3XKM | E174: =30 -> 30 | F174: =IF(H174="i",VLOOKUP(B174,'Ins SINAPI PE 06-2025 Onerado'!$B$11:$F$50003,5,0),VLOOKUP(B174,'Comp SINAPI PE 06-2025 Onerado'!$B$11:$E$50004,4,0)) -> 2.14 | G174: 64.2 | H174: ca
A175: SINAPI | B175: 93593 | C175: =PROPER(IF(H175="i",VLOOKUP(B175,'Ins SINAPI PE 06-2025 Onerado'!$B$11:$F$50003,2,0),VLOOKUP(B175,'Comp SINAPI PE 06-2025 Onerado'!$B$11:$C$50004,2,0))) -> Transporte Com Caminhão Basculante De 14 M³, Em Via Urbana Pavimentada, Adicional Para Dmt Excedente A 30 Km (Unidade: M3Xkm). Af_07/2020 | D175: =IF(H175="i",VLOOKUP(B175,'Ins SINAPI PE 06-2025 Onerado'!$B$11:$F$50003,2,0),VLOOKUP(B175,'Comp SINAPI PE 06-2025 Onerado'!$B$11:$H$50004,3,0)) -> M3XKM | E175: ='Memorial de cálculo'!$H$7-30 -> 156.9285714 | F175: =IF(H175="i",VLOOKUP(B175,'Ins SINAPI PE 06-2025 Onerado'!$B$11:$F$50003,5,0),VLOOKUP(B175,'Comp SINAPI PE 06-2025 Onerado'!$B$11:$E$50004,4,0)) -> 0.86 | G175: 134.95 | H175: ca
A176: SINAPI | B176: 100976 | C176: =PROPER(IF(H176="i",VLOOKUP(B176,'Ins SINAPI PE 06-2025 Onerado'!$B$11:$F$50003,2,0),VLOOKUP(B176,'Comp SINAPI PE 06-2025 Onerado'!$B$11:$C$50004,2,0))) -> Carga, Manobra E Descarga De Solos E Materiais Granulares Em Caminhão Basculante 18 M³ - Carga Com Pá Carregadeira (Caçamba De 1,7 A 2,8 M³ / 128 Hp) E Descarga Livre (Unidade: M3). Af_07/2020 | D176: =IF(H176="i",VLOOKUP(B176,'Ins SINAPI PE 06-2025 Onerado'!$B$11:$F$50003,2,0),VLOOKUP(B176,'Comp SINAPI PE 06-2025 Onerado'!$B$11:$H$50004,3,0)) -> M3 | E176: 1 | F176: =IF(H176="i",VLOOKUP(B176,'Ins SINAPI PE 06-2025 Onerado'!$B$11:$F$50003,5,0),VLOOKUP(B176,'Comp SINAPI PE 06-2025 Onerado'!$B$11:$E$50004,4,0)) -> 8.29 | G176: 8.29 | H176: ca
A177: COTAÇÃO | B177: CT.01 | C177: Hospedagem | D177: un | E177: ='Memorial de cálculo'!D88*'Memorial de cálculo'!H88 -> 0.004568675 | F177: ='CPU HOSPEDAGEM'!$C$19 -> 195.4709848 | G177: 0.89 | H177: ca
A178: PRÓPRIA | B178: CODE | C178: Veículo tipo pick-up, cabine dupla - 2.0 16V 4x4 diesel Aut. | D178: dia | E178: =LARGE('Memorial de cálculo'!H88,1) -> 0.004568675 | F178: ='CPU-VEICULO_PickUp'!$C$11 -> 382.8058696 | G178: 1.74 | H178: ca
A179: =B168 -> CPU.14 | C179: MÃO DE OBRA | G179: 0 | H179: mdo
B181: CPU.15 | C181: Régua Linimétrica Padrão “ANA”, Aço Carbono - 2 X 70 X 1000 mm (Fornecimento e Instalação) | D181: un | E181: 1 | G181: =SUM(G190,G186,G185,G182) -> 433.9 | H181: S
A182: =B181 -> CPU.15 | C182: MATERIAL | G182: =SUM(G183:G184) -> 229.26 | H182: ss
A183: 2025-04-09 | B183: cotação | C183: RÉGUA LINIMÉTRICA PADRÃO “ANA”, AÇO CARBONO - 2 X 70 X 1000MM | D183: un | E183: 1 | F183: =Cotação!O11 -> 165.9 | G183: =TRUNC(E183*F183,2) -> 165.9 | H183: ca
A184: SINAPI | B184: 2747 | C184: =PROPER(IF(H184="i",VLOOKUP(B184,'Ins SINAPI PE 06-2025 Onerado'!$B$11:$F$50003,2,0),VLOOKUP(B184,'Comp SINAPI PE 06-2025 Onerado'!$G$11:$H$50004,2,0))) -> Mourao Rolico De Madeira Tratada, D = 16 A 20 Cm, H = 2,20 M, Em Eucalipto Ou Equivalente Da Regiao (Para Cerca) | D184: =IF(H184="i",VLOOKUP(B184,'Ins SINAPI PE 06-2025 Onerado'!$B$11:$F$50003,3,0),VLOOKUP(B184,'Comp SINAPI PE 06-2025 Onerado'!$G$11:$H$50004,3,0)) -> M | E184: 1.5 | F184: =IF(H184="i",VLOOKUP(B184,'Ins SINAPI PE 06-2025 Onerado'!$B$11:$F$50003,5,0),VLOOKUP(B184,'Comp SINAPI PE 06-2025 Onerado'!$G$11:$H$50004,5,0)) -> 42.24 | G184: =TRUNC(E184*F184,2) -> 63.36 | H184: i
A185: =B181 -> CPU.15 | C185: EQUIPAMENTOS | G185: 0 | H185: ss
A186: =B181 -> CPU.15 | C186: SERVIÇOS | G186: =SUM(G187:G189) -> 140.35 | H186: ss
A187: SINAPI | B187: 94975 | C187: =PROPER(IF(H187="i",VLOOKUP(B187,'Ins SINAPI PE 06-2025 Onerado'!$B$11:$F$50003,2,0),VLOOKUP(B187,'Comp SINAPI PE 06-2025 Onerado'!$B$11:$C$50004,2,0))) -> Concreto Fck = 15Mpa, Traço 1:3,4:3,5 (Em Massa Seca De Cimento/ Areia Média/ Brita 1) - Preparo Manual. Af_05/2021 | D187: =IF(H187="i",VLOOKUP(B187,'Ins SINAPI PE 06-2025 Onerado'!$B$11:$F$50003,2,0),VLOOKUP(B187,'Comp SINAPI PE 06-2025 Onerado'!$B$11:$H$50004,3,0)) -> M3 | E187: 0.01 | F187: =IF(H187="i",VLOOKUP(B187,'Ins SINAPI PE 06-2025 Onerado'!$B$11:$F$50003,5,0),VLOOKUP(B187,'Comp SINAPI PE 06-2025 Onerado'!$B$11:$E$50004,4,0)) -> 515.38 | G187: =TRUNC(E187*F187,2) -> 5.15 | H187: ca
A188: PRÓPRIA | B188: CODE | C188: Hospedagem | D188: un | E188: ='Memorial de cálculo'!D92*'Memorial de cálculo'!H92+'Memorial de cálculo'!D93*'Memorial de cálculo'!H93 -> 0.3 | F188: ='CPU HOSPEDAGEM'!$C$19 -> 195.4709848 | G188: 58.64 | H188: ca
A189: PRÓPRIA | B189: CODE | C189: Veículo tipo pick-up, cabine dupla - 2.0 16V 4x4 diesel Aut. | D189: dia | E189: =LARGE('Memorial de cálculo'!H92:H93,1) -> 0.2 | F189: ='CPU-VEICULO_PickUp'!$C$11 -> 382.8058696 | G189: 76.56 | H189: ca
A190: =B181 -> CPU.15 | C190: MÃO DE OBRA | G190: =SUM(G191:G192) -> 64.29 | H190: mdo
A191: SINAPI | B191: 90781 | C191: =PROPER(IF(H191="i",VLOOKUP(B191,'Ins SINAPI PE 06-2025 Onerado'!$B$11:$F$50003,2,0),VLOOKUP(B191,'Comp SINAPI PE 06-2025 Onerado'!$B$11:$C$50004,2,0))) -> Topografo Com Encargos Complementares | D191: =IF(H191="i",VLOOKUP(B191,'Ins SINAPI PE 06-2025 Onerado'!$B$11:$F$50003,2,0),VLOOKUP(B191,'Comp SINAPI PE 06-2025 Onerado'!$B$11:$H$50004,3,0)) -> H | E191: 0.8 | F191: =IF(H191="i",VLOOKUP(B191,'Ins SINAPI PE 06-2025 Onerado'!$B$11:$F$50003,5,0),VLOOKUP(B191,'Comp SINAPI PE 06-2025 Onerado'!$B$11:$E$50004,4,0)) -> 32.22 | G191: 25.77 | H191: ca
A192: SINAPI | B192: 88316 | C192: =PROPER(IF(H192="i",VLOOKUP(B192,'Ins SINAPI PE 06-2025 Onerado'!$B$11:$F$50003,2,0),VLOOKUP(B192,'Comp SINAPI PE 06-2025 Onerado'!$B$11:$C$50004,2,0))) -> Servente Com Encargos Complementares | D192: =IF(H192="i",VLOOKUP(B192,'Ins SINAPI PE 06-2025 Onerado'!$B$11:$F$50003,2,0),VLOOKUP(B192,'Comp SINAPI PE 06-2025 Onerado'!$B$11:$H$50004,3,0)) -> H | E192: 1.6 | F192: =IF(H192="i",VLOOKUP(B192,'Ins SINAPI PE 06-2025 Onerado'!$B$11:$F$50003,5,0),VLOOKUP(B192,'Comp SINAPI PE 06-2025 Onerado'!$B$11:$E$50004,4,0)) -> 24.08 | G192: 38.52 | H192: ca
B194: CPU.16 | C194: Fornecimento e Assentamento de Guia (meio-fio) Pré-fabricado, dimensões 100x15x20 cm (comprimento x base x altura) | D194: m | E194: 1 | G194: =SUM(G204,G197,G196,G195) -> 77.63 | H194: S
A195: =B194 -> CPU.16 | C195: MATERIAL | G195: 0 | H195: ss
A196: =B194 -> CPU.16 | C196: EQUIPAMENTOS | G196: 0 | H196: ss
A197: =B194 -> CPU.16 | C197: SERVIÇOS | G197: =SUM(G198:G203) -> 77.63 | H197: ss
A198: SINAPI | B198: 94275 | C198: =PROPER(IF(H198="i",VLOOKUP(B198,'Ins SINAPI PE 06-2025 Onerado'!$B$11:$F$50003,2,0),VLOOKUP(B198,'Comp SINAPI PE 06-2025 Onerado'!$B$11:$C$50004,2,0))) -> Assentamento De Guia (Meio-Fio) Em Trecho Reto, Confeccionada Em Concreto Pré-Fabricado, Dimensões 100X15X13X20 Cm (Comprimento X Base Inferior X Base Superior X Altura). Af_01/2024 | D198: =IF(H198="i",VLOOKUP(B198,'Ins SINAPI PE 06-2025 Onerado'!$B$11:$F$50003,2,0),VLOOKUP(B198,'Comp SINAPI PE 06-2025 Onerado'!$B$11:$H$50004,3,0)) -> M | E198: 1 | F198: =IF(H198="i",VLOOKUP(B198,'Ins SINAPI PE 06-2025 Onerado'!$B$11:$F$50003,5,0),VLOOKUP(B198,'Comp SINAPI PE 06-2025 Onerado'!$B$11:$E$50004,4,0)) -> 49.82 | G198: =TRUNC(E198*F198,2) -> 49.82 | H198: ca
A199: SINAPI | B199: 93595 | C199: =PROPER(IF(H199="i",VLOOKUP(B199,'Ins SINAPI PE 06-2025 Onerado'!$B$11:$F$50003,2,0),VLOOKUP(B199,'Comp SINAPI PE 06-2025 Onerado'!$B$11:$C$50004,2,0))) -> Transporte Com Caminhão Basculante De 10 M³, Em Via Urbana Em Revestimento Primário (Unidade: Txkm). Af_07/2020 | D199: =IF(H199="i",VLOOKUP(B199,'Ins SINAPI PE 06-2025 Onerado'!$B$11:$F$50003,2,0),VLOOKUP(B199,'Comp SINAPI PE 06-2025 Onerado'!$B$11:$H$50004,3,0)) -> TXKM | E199: =('Memorial de cálculo'!$H$8)*0.067 -> 0.5120714286 | F199: =IF(H199="i",VLOOKUP(B199,'Ins SINAPI PE 06-2025 Onerado'!$B$11:$F$50003,5,0),VLOOKUP(B199,'Comp SINAPI PE 06-2025 Onerado'!$B$11:$E$50004,4,0)) -> 1.81 | G199: 0.92 | H199: ca | I199: Transporte do meio-fio pré fabricado (PESO = 67 KG)
A200: SINAPI | B200: 95878 | C200: =PROPER(IF(H200="i",VLOOKUP(B200,'Ins SINAPI PE 06-2025 Onerado'!$B$11:$F$50003,2,0),VLOOKUP(B200,'Comp SINAPI PE 06-2025 Onerado'!$B$11:$C$50004,2,0))) -> Transporte Com Caminhão Basculante De 10 M³, Em Via Urbana Pavimentada, Dmt Até 30 Km (Unidade: Txkm). Af_07/2020 | D200: =IF(H200="i",VLOOKUP(B200,'Ins SINAPI PE 06-2025 Onerado'!$B$11:$F$50003,2,0),VLOOKUP(B200,'Comp SINAPI PE 06-2025 Onerado'!$B$11:$H$50004,3,0)) -> TXKM | E200: =30*0.067 -> 2.01 | F200: =IF(H200="i",VLOOKUP(B200,'Ins SINAPI PE 06-2025 Onerado'!$B$11:$F$50003,5,0),VLOOKUP(B200,'Comp SINAPI PE 06-2025 Onerado'!$B$11:$E$50004,4,0)) -> 1.67 | G200: 3.35 | H200: ca
A201: SINAPI | B201: 93596 | C201: =PROPER(IF(H201="i",VLOOKUP(B201,'Ins SINAPI PE 06-2025 Onerado'!$B$11:$F$50003,2,0),VLOOKUP(B201,'Comp SINAPI PE 06-2025 Onerado'!$B$11:$C$50004,2,0))) -> Transporte Com Caminhão Basculante De 10 M³, Em Via Urbana Pavimentada, Adicional Para Dmt Excedente A 30 Km (Unidade: Txkm). Af_07/2020 | D201: =IF(H201="i",VLOOKUP(B201,'Ins SINAPI PE 06-2025 Onerado'!$B$11:$F$50003,2,0),VLOOKUP(B201,'Comp SINAPI PE 06-2025 Onerado'!$B$11:$H$50004,3,0)) -> TXKM | E201: =('Memorial de cálculo'!$H$7-30)*0.067 -> 10.51421429 | F201: =IF(H201="i",VLOOKUP(B201,'Ins SINAPI PE 06-2025 Onerado'!$B$11:$F$50003,5,0),VLOOKUP(B201,'Comp SINAPI PE 06-2025 Onerado'!$B$11:$E$50004,4,0)) -> 0.65 | G201: 6.83 | H201: ca
A202: PRÓPRIA | B202: CODE | C202: Hospedagem | D202: un | E202: ='Memorial de cálculo'!D98*'Memorial de cálculo'!H98+'Memorial de cálculo'!D97*'Memorial de cálculo'!H97 -> 0.0574 | F202: ='CPU HOSPEDAGEM'!$C$19 -> 195.4709848 | G202: =TRUNC(E202*F202,2) -> 11.22 | H202: ca
A203: PRÓPRIA | B203: CODE | C203: Veículo tipo pick-up, cabine dupla - 2.0 16V 4x4 diesel Aut. | D203: dia | E203: =LARGE('Memorial de cálculo'!H97:H98,1) -> 0.01435 | F203: ='CPU-VEICULO_PickUp'!$C$11 -> 382.8058696 | G203: 5.49 | H203: ca
A204: =B194 -> CPU.16 | C204: MÃO DE OBRA | G204: 0 | H204: mdo
B206: CPU.17 | C206: Emboço ou massa única em argamassa | D206: m2 | E206: 1 | G206: =SUM(G213,G209,G208,G207) -> 106.33 | H206: S
A207: =B206 -> CPU.17 | C207: MATERIAL | G207: 0 | H207: ss
A208: =B206 -> CPU.17 | C208: EQUIPAMENTOS | G208: 0 | H208: ss
A209: =B206 -> CPU.17 | C209: SERVIÇOS | G209: =SUM(G210:G212) -> 106.33 | H209: ss
A210: SINAPI | B210: 104208 | C210: =PROPER(IF(H210="i",VLOOKUP(B210,'Ins SINAPI PE 06-2025 Onerado'!$B$11:$F$50003,2,0),VLOOKUP(B210,'Comp SINAPI PE 06-2025 Onerado'!$B$11:$C$50004,2,0))) -> Emboço Ou Massa Única Em Argamassa Traço 1:2:8, Preparo Mecânica Com Betoneira 400 L, Aplicada Com Projetor Tipo Canequinha Em Panos De Fachada Sem Presença De Vãos, Espessura De 35 Mm, Acesso Por Balancim Manual. Af_08/2022 | D210: =IF(H210="i",VLOOKUP(B210,'Ins SINAPI PE 06-2025 Onerado'!$B$11:$F$50003,2,0),VLOOKUP(B210,'Comp SINAPI PE 06-2025 Onerado'!$B$11:$H$50004,3,0)) -> M2 | E210: 1 | F210: =IF(H210="i",VLOOKUP(B210,'Ins SINAPI PE 06-2025 Onerado'!$B$11:$F$50003,5,0),VLOOKUP(B210,'Comp SINAPI PE 06-2025 Onerado'!$B$11:$E$50004,4,0)) -> 66.67 | G210: =TRUNC(E210*F210,2) -> 66.67 | H210: ca
A211: PRÓPRIA | B211: CODE | C211: Hospedagem | D211: un | E211: ='Memorial de cálculo'!D102*'Memorial de cálculo'!H102+'Memorial de cálculo'!D103*'Memorial de cálculo'!H103 -> 0.13625 | F211: ='CPU HOSPEDAGEM'!$C$19 -> 195.4709848 | G211: =TRUNC(E211*F211,2) -> 26.63 | H211: ca
A212: PRÓPRIA | B212: CODE | C212: Veículo tipo pick-up, cabine dupla - 2.0 16V 4x4 diesel Aut. | D212: dia | E212: =LARGE('Memorial de cálculo'!H102:H103,1) -> 0.0340625 | F212: ='CPU-VEICULO_PickUp'!$C$11 -> 382.8058696 | G212: =TRUNC(E212*F212,2) -> 13.03 | H212: ca
A213: =B206 -> CPU.17 | C213: MÃO DE OBRA | G213: 0 | H213: mdo
B215: CPU.18 | C215: Limpeza da superfície | D215: m2 | E215: 1 | G215: =SUM(G222,G218,G217,G216) -> 6.5 | H215: S
A216: =B215 -> CPU.18 | C216: MATERIAL | G216: 0 | H216: ss
A217: =B215 -> CPU.18 | C217: EQUIPAMENTOS | G217: 0 | H217: ss
A218: =B215 -> CPU.18 | C218: SERVIÇOS | G218: =SUM(G219:G221) -> 6.5 | H218: ss
A219: SINAPI | B219: 99814 | C219: =PROPER(IF(H219="i",VLOOKUP(B219,'Ins SINAPI PE 06-2025 Onerado'!$B$11:$F$50003,2,0),VLOOKUP(B219,'Comp SINAPI PE 06-2025 Onerado'!$B$11:$C$50004,2,0))) -> Limpeza De Superfície Com Jato De Alta Pressão. Af_04/2019 | D219: =IF(H219="i",VLOOKUP(B219,'Ins SINAPI PE 06-2025 Onerado'!$B$11:$F$50003,2,0),VLOOKUP(B219,'Comp SINAPI PE 06-2025 Onerado'!$B$11:$H$50004,3,0)) -> M2 | E219: 1 | F219: =IF(H219="i",VLOOKUP(B219,'Ins SINAPI PE 06-2025 Onerado'!$B$11:$F$50003,5,0),VLOOKUP(B219,'Comp SINAPI PE 06-2025 Onerado'!$B$11:$E$50004,4,0)) -> 2.21 | G219: =TRUNC(E219*F219,2) -> 2.21 | H219: ca
... 72 more rows

Sheet COMPOSICÕES MODIFICADAS
A3: Código | D3: 93212 ADAPTADO
A4: Descrição | D4: EXECUÇÃO DE SANITÁRIO E VESTIÁRIO EM CANTEIRO DE OBRA EM CHAPA DE MADEIRA COMPENSADA, NÃO INCLUSO MOBILIÁRIO. AF_02/2016
A5: Data | D5: 2024-05-01
A6: Estado | D6: Pernambuco
A7: Tipo | D7: CANT - CANTEIRO DE OBRAS
A8: Unidade | D8: m²
A9: Valor sem Desoneração | D9: =SUM(I12,I16,I20:I54,I58:I61,I65:I78,I85:I105) -> 973.23
A11: Natureza | B11: Fonte | C11: codigo | D11: Descrição | E11: Tipo | F11: Unidade | G11: Valor sem Desoneração | H11: Coeficiente | I11: Preço sem Desoneração
A12: C | B12: SINAPI | C12: 89173 | D12: (COMPOSIÇÃO REPRESENTATIVA) DO SERVIÇO DE EMBOÇO/MASSA ÚNICA, APLICADO MANUALMENTE, TRAÇO 1:2:8, EM BETONEIRA DE 400L, PAREDES INTERNAS, COM EXECUÇÃO DE TALISCAS, EDIFICAÇÃO HABITACIONAL UNIFAMILIAR (CASAS) E EDIFICAÇÃO PÚBLICA PADRÃO. AF_12/2014 - ADAPTADO | E12: REVE - REVESTIMENTO E TRATAMENTO DE SUPERFÍCIES | F12: m² | G12: =SUM(I13:I15) -> 41.39 | H12: 0.7679 | I12: =ROUND(G12*H12,2) -> 31.78
A13: C | B13: SINAPI | C13: 87531 | D13: =VLOOKUP(C13,'Comp SINAPI PE 06-2025 Onerado'!$B$11:$F$9696,2,FALSE) -> EMBOÇO, EM ARGAMASSA TRAÇO 1:2:8, PREPARO MECÂNICO, APLICADO MANUALMENTE EM PAREDES INTERNAS DE AMBIENTES COM ÁREA ENTRE 5M² E 10M², E = 17,5MM, COM TALISCAS. AF_03/2024 | E13: REVE - REVESTIMENTO E TRATAMENTO DE SUPERFÍCIES | F13: m² | G13: =VLOOKUP(C13,'Comp SINAPI PE 06-2025 Onerado'!$B$11:$F$9696,4,FALSE) -> 39.88 | H13: 0.154 | I13: =ROUND(G13*H13,2) -> 6.14
A14: C | B14: SINAPI | C14: 87527 | D14: =VLOOKUP(C14,'Comp SINAPI PE 06-2025 Onerado'!$B$11:$F$9696,2,FALSE) -> EMBOÇO, EM ARGAMASSA TRAÇO 1:2:8, PREPARO MECÂNICO, APLICADO MANUALMENTE EM PAREDES INTERNAS DE AMBIENTES COM ÁREA MENOR QUE 5M², E =17,5MM, COM TALISCAS. AF_03/2024 | E14: REVE - REVESTIMENTO E TRATAMENTO DE SUPERFÍCIES | F14: m² | G14: =VLOOKUP(C14,'Comp SINAPI PE 06-2025 Onerado'!$B$11:$F$9696,4,FALSE) -> 44.53 | H14: 0.1121 | I14: =ROUND(G14*H14,2) -> 4.99
A15: C | B15: SINAPI | C15: 87529 | D15: =VLOOKUP(C15,'Comp SINAPI PE 06-2025 Onerado'!$B$11:$F$9696,2,FALSE) -> MASSA ÚNICA, EM ARGAMASSA TRAÇO 1:2:8, PREPARO MECÂNICO, APLICADA MANUALMENTE EM PAREDES INTERNAS DE AMBIENTES COM ÁREA ENTRE 5M² E 10M², E = 17,5MM, COM TALISCAS. AF_03/2024 | E15: REVE - REVESTIMENTO E TRATAMENTO DE SUPERFÍCIES | F15: m² | G15: =VLOOKUP(C15,'Comp SINAPI PE 06-2025 Onerado'!$B$11:$F$9696,4,FALSE) -> 41.23 | H15: 0.7339 | I15: 30.26
A16: C | B16: SINAPI | C16: 89171 | D16: (COMPOSIÇÃO REPRESENTATIVA) DO SERVIÇO DE REVESTIMENTO CERÂMICO PARA PISO COM PLACAS TIPO ESMALTADA EXTRA DE DIMENSÕES 35X35 CM, PARA EDIFICAÇÃO HABITACIONAL UNIFAMILIAR (CASA) E EDIFICAÇÃO PÚBLICA PADRÃO. AF_11/2014 - ADAPTADO | E16: PISO - PISOS | F16: m² | G16: =SUM(I17:I19) -> 59.35 | H16: 0.4628 | I16: 27.47
A17: C | B17: SINAPI | C17: 87247 | D17: =VLOOKUP(C17,'Comp SINAPI PE 06-2025 Onerado'!$B$11:$F$9696,2,FALSE) -> REVESTIMENTO CERÂMICO PARA PISO COM PLACAS TIPO ESMALTADA DE DIMENSÕES 35X35 CM APLICADA EM AMBIENTES DE ÁREA ENTRE 5 M2 E 10 M2. AF_02/2023_PE | E17: PISO - PISOS | F17: m² | G17: =VLOOKUP(C17,'Comp SINAPI PE 06-2025 Onerado'!$B$11:$F$9696,4,FALSE) -> 63.71 | H17: 0.3365 | I17: =ROUND(G17*H17,2) -> 21.44
A18: C | B18: SINAPI | C18: 87248 | D18: =VLOOKUP(C18,'Comp SINAPI PE 06-2025 Onerado'!$B$11:$F$9696,2,FALSE) -> REVESTIMENTO CERÂMICO PARA PISO COM PLACAS TIPO ESMALTADA DE DIMENSÕES 35X35 CM APLICADA EM AMBIENTES DE ÁREA MAIOR QUE 10 M2. AF_02/2023_PE | E18: PISO - PISOS | F18: m² | G18: =VLOOKUP(C18,'Comp SINAPI PE 06-2025 Onerado'!$B$11:$F$9696,4,FALSE) -> 55.88 | H18: 0.6087 | I18: =ROUND(G18*H18,2) -> 34.01
A19: C | B19: SINAPI | C19: 87246 | D19: =VLOOKUP(C19,'Comp SINAPI PE 06-2025 Onerado'!$B$11:$F$9696,2,FALSE) -> REVESTIMENTO CERÂMICO PARA PISO COM PLACAS TIPO ESMALTADA DE DIMENSÕES 35X35 CM APLICADA EM AMBIENTES DE ÁREA MENOR QUE 5 M2. AF_02/2023_PE | E19: PISO - PISOS | F19: m² | G19: =VLOOKUP(C19,'Comp SINAPI PE 06-2025 Onerado'!$B$11:$F$9696,4,FALSE) -> 71.15 | H19: 0.0548 | I19: 3.9
A20: C | B20: SINAPI | C20: 101165 | D20: =VLOOKUP(C20,'Comp SINAPI PE 06-2025 Onerado'!$B$11:$F$9696,2,FALSE) -> ALVENARIA DE EMBASAMENTO COM BLOCO ESTRUTURAL DE CONCRETO, DE 14X19X29CM E ARGAMASSA DE ASSENTAMENTO COM PREPARO EM BETONEIRA. AF_05/2020 | E20: FUES - FUNDAÇÕES E ESTRUTURAS | F20: m³ | G20: =VLOOKUP(C20,'Comp SINAPI PE 06-2025 Onerado'!$B$11:$F$9696,4,FALSE) -> 1019.3 | H20: 0.0286 | I20: 29.15
A21: C | B21: SINAPI | C21: 103328 | D21: =VLOOKUP(C21,'Comp SINAPI PE 06-2025 Onerado'!$B$11:$F$9696,2,FALSE) -> ALVENARIA DE VEDAÇÃO DE BLOCOS CERÂMICOS FURADOS NA HORIZONTAL DE 9X19X19 CM (ESPESSURA 9 CM) E ARGAMASSA DE ASSENTAMENTO COM PREPARO EM BETONEIRA. AF_12/2021 | E21: PARE - PAREDES/PAINEIS | F21: m² | G21: =VLOOKUP(C21,'Comp SINAPI PE 06-2025 Onerado'!$B$11:$F$9696,4,FALSE) -> 93.43 | H21: 0.4675 | I21: 43.68
A22: C | B22: SINAPI | C22: 91924 | D22: =VLOOKUP(C22,'Comp SINAPI PE 06-2025 Onerado'!$B$11:$F$9696,2,FALSE) -> CABO DE COBRE FLEXÍVEL ISOLADO, 1,5 MM², ANTI-CHAMA 450/750 V, PARA CIRCUITOS TERMINAIS - FORNECIMENTO E INSTALAÇÃO. AF_03/2023 | E22: INEL - INSTALAÇÃO ELÉTRICA/ELETRIFICAÇÃO E ILUMINAÇÃO EXTERNA | F22: M | G22: =VLOOKUP(C22,'Comp SINAPI PE 06-2025 Onerado'!$B$11:$F$9696,4,FALSE) -> 3.17 | H22: 1.253 | I22: 3.97
A23: C | B23: SINAPI | C23: 92981 | D23: =VLOOKUP(C23,'Comp SINAPI PE 06-2025 Onerado'!$B$11:$F$9696,2,FALSE) -> CABO DE COBRE FLEXÍVEL ISOLADO, 16 MM², ANTI-CHAMA 450/750 V, PARA DISTRIBUIÇÃO - FORNECIMENTO E INSTALAÇÃO. AF_10/2020 | E23: INEL - INSTALAÇÃO ELÉTRICA/ELETRIFICAÇÃO E ILUMINAÇÃO EXTERNA | F23: M | G23: =VLOOKUP(C23,'Comp SINAPI PE 06-2025 Onerado'!$B$11:$F$9696,4,FALSE) -> 16.51 | H23: 0.2611 | I23: 4.31
A24: C | B24: SINAPI | C24: 91926 | D24: =VLOOKUP(C24,'Comp SINAPI PE 06-2025 Onerado'!$B$11:$F$9696,2,FALSE) -> CABO DE COBRE FLEXÍVEL ISOLADO, 2,5 MM², ANTI-CHAMA 450/750 V, PARA CIRCUITOS TERMINAIS - FORNECIMENTO E INSTALAÇÃO. AF_03/2023 | E24: INEL - INSTALAÇÃO ELÉTRICA/ELETRIFICAÇÃO E ILUMINAÇÃO EXTERNA | F24: M | G24: =VLOOKUP(C24,'Comp SINAPI PE 06-2025 Onerado'!$B$11:$F$9696,4,FALSE) -> 4.59 | H24: 0.4699 | I24: 2.16
A25: C | B25: SINAPI | C25: 91928 | D25: =VLOOKUP(C25,'Comp SINAPI PE 06-2025 Onerado'!$B$11:$F$9696,2,FALSE) -> CABO DE COBRE FLEXÍVEL ISOLADO, 4 MM², ANTI-CHAMA 450/750 V, PARA CIRCUITOS TERMINAIS - FORNECIMENTO E INSTALAÇÃO. AF_03/2023 | E25: INEL - INSTALAÇÃO ELÉTRICA/ELETRIFICAÇÃO E ILUMINAÇÃO EXTERNA | F25: M | G25: =VLOOKUP(C25,'Comp SINAPI PE 06-2025 Onerado'!$B$11:$F$9696,4,FALSE) -> 7.06 | H25: 1.0442 | I25: 7.37
A26: C | B26: SINAPI | C26: 97886 | D26: =VLOOKUP(C26,'Comp SINAPI PE 06-2025 Onerado'!$B$11:$F$9696,2,FALSE) -> CAIXA ENTERRADA ELÉTRICA RETANGULAR, EM ALVENARIA COM TIJOLOS CERÂMICOS MACIÇOS, FUNDO COM BRITA, DIMENSÕES INTERNAS: 0,3X0,3X0,3 M. AF_12/2020 | E26: INEL - INSTALAÇÃO ELÉTRICA/ELETRIFICAÇÃO E ILUMINAÇÃO EXTERNA | F26: UN | G26: =VLOOKUP(C26,'Comp SINAPI PE 06-2025 Onerado'!$B$11:$F$9696,4,FALSE) -> 165.62 | H26: 0.0522 | I26: 8.65
A27: C | B27: SINAPI | C27: 97906 | D27: =VLOOKUP(C27,'Comp SINAPI PE 06-2025 Onerado'!$B$11:$F$9696,2,FALSE) -> CAIXA ENTERRADA HIDRÁULICA RETANGULAR, EM ALVENARIA COM BLOCOS DE CONCRETO, DIMENSÕES INTERNAS: 0,6X0,6X0,6 M PARA REDE DE ESGOTO. AF_12/2020 | E27: INHI - INSTALAÇÕES HIDROS SANITÁRIAS | F27: UN | G27: =VLOOKUP(C27,'Comp SINAPI PE 06-2025 Onerado'!$B$11:$F$9696,4,FALSE) -> 463.31 | H27: 0.0348 | I27: 16.12
A28: C | B28: SINAPI | C28: 91937 | D28: =VLOOKUP(C28,'Comp SINAPI PE 06-2025 Onerado'!$B$11:$F$9696,2,FALSE) -> CAIXA OCTOGONAL 3" X 3", PVC, INSTALADA EM LAJE - FORNECIMENTO E INSTALAÇÃO. AF_03/2023 | E28: INEL - INSTALAÇÃO ELÉTRICA/ELETRIFICAÇÃO E ILUMINAÇÃO EXTERNA | F28: UN | G28: =VLOOKUP(C28,'Comp SINAPI PE 06-2025 Onerado'!$B$11:$F$9696,4,FALSE) -> 18.63 | H28: 0.1392 | I28: 2.59
A29: C | B29: SINAPI | C29: 87903 | D29: =VLOOKUP(C29,'Comp SINAPI PE 06-2025 Onerado'!$B$11:$F$9696,2,FALSE) -> CHAPISCO APLICADO EM ALVENARIA (COM PRESENÇA DE VÃOS) E ESTRUTURAS DE CONCRETO DE FACHADA, COM ROLO PARA TEXTURA ACRÍLICA. ARGAMASSA INDUSTRIALIZADA COM PREPARO EM MISTURADOR 300 KG. AF_10/2022 | E29: REVE - REVESTIMENTO E TRATAMENTO DE SUPERFÍCIES | F29: m² | G29: =VLOOKUP(C29,'Comp SINAPI PE 06-2025 Onerado'!$B$11:$F$9696,4,FALSE) -> 13.98 | H29: 0.1681 | I29: 2.35
A30: C | B30: SINAPI | C30: 87885 | D30: =VLOOKUP(C30,'Comp SINAPI PE 06-2025 Onerado'!$B$11:$F$9696,2,FALSE) -> CHAPISCO APLICADO NO TETO OU EM ALVENARIA E ESTRUTURA, COM ROLO PARA TEXTURA ACRÍLICA. ARGAMASSA INDUSTRIALIZADA COM PREPARO EM MISTURADOR 300 KG. AF_10/2022 | E30: REVE - REVESTIMENTO E TRATAMENTO DE SUPERFÍCIES | F30: m² | G30: =VLOOKUP(C30,'Comp SINAPI PE 06-2025 Onerado'!$B$11:$F$9696,4,FALSE) -> 11.43 | H30: 0.7679 | I30: 8.78
A31: C | B31: SINAPI | C31: 90466 | D31: =VLOOKUP(C31,'Comp SINAPI PE 06-2025 Onerado'!$B$11:$F$9696,2,FALSE) -> CHUMBAMENTO LINEAR EM ALVENARIA PARA RAMAIS/DISTRIBUIÇÃO DE INSTALAÇÕES HIDRÁULICAS COM DIÂMETROS MENORES OU IGUAIS A 40 MM. AF_09/2023 | E31: INHI - INSTALAÇÕES HIDROS SANITÁRIAS | F31: M | G31: =VLOOKUP(C31,'Comp SINAPI PE 06-2025 Onerado'!$B$11:$F$9696,4,FALSE) -> 16.18 | H31: 0.0722 | I31: 1.17
A32: C | B32: SINAPI | C32: 100860 | D32: =VLOOKUP(C32,'Comp SINAPI PE 06-2025 Onerado'!$B$11:$F$9696,2,FALSE) -> CHUVEIRO ELÉTRICO COMUM CORPO PLÁSTICO, TIPO DUCHA - FORNECIMENTO E INSTALAÇÃO. AF_01/2020 | E32: INHI - INSTALAÇÕES HIDROS SANITÁRIAS | F32: UN | G32: =VLOOKUP(C32,'Comp SINAPI PE 06-2025 Onerado'!$B$11:$F$9696,4,FALSE) -> 122.86 | H32: 0.0696 | I32: 8.55
A33: C | B33: SINAPI | C33: 95805 | D33: =VLOOKUP(C33,'Comp SINAPI PE 06-2025 Onerado'!$B$11:$F$9696,2,FALSE) -> CONDULETE DE PVC, TIPO B, PARA ELETRODUTO DE PVC SOLDÁVEL DN 25 MM (3/4''), APARENTE - FORNECIMENTO E INSTALAÇÃO. AF_10/2022 | E33: INEL - INSTALAÇÃO ELÉTRICA/ELETRIFICAÇÃO E ILUMINAÇÃO EXTERNA | F33: UN | G33: =VLOOKUP(C33,'Comp SINAPI PE 06-2025 Onerado'!$B$11:$F$9696,4,FALSE) -> 28.71 | H33: 0.0174 | I33: 0.5
A34: C | B34: SINAPI | C34: 95811 | D34: =VLOOKUP(C34,'Comp SINAPI PE 06-2025 Onerado'!$B$11:$F$9696,2,FALSE) -> CONDULETE DE PVC, TIPO LB, PARA ELETRODUTO DE PVC SOLDÁVEL DN 25 MM (3/4''), APARENTE - FORNECIMENTO E INSTALAÇÃO. AF_10/2022 | E34: INEL - INSTALAÇÃO ELÉTRICA/ELETRIFICAÇÃO E ILUMINAÇÃO EXTERNA | F34: UN | G34: =VLOOKUP(C34,'Comp SINAPI PE 06-2025 Onerado'!$B$11:$F$9696,4,FALSE) -> 24.93 | H34: 0.0522 | I34: 1.3
A35: C | B35: SINAPI | C35: 91911 | D35: =VLOOKUP(C35,'Comp SINAPI PE 06-2025 Onerado'!$B$11:$F$9696,2,FALSE) -> CURVA 90 GRAUS PARA ELETRODUTO, PVC, ROSCÁVEL, DN 20 MM (1/2"), PARA CIRCUITOS TERMINAIS, INSTALADA EM PAREDE - FORNECIMENTO E INSTALAÇÃO. AF_03/2023 | E35: INEL - INSTALAÇÃO ELÉTRICA/ELETRIFICAÇÃO E ILUMINAÇÃO EXTERNA | F35: UN | G35: =VLOOKUP(C35,'Comp SINAPI PE 06-2025 Onerado'!$B$11:$F$9696,4,FALSE) -> 19.16 | H35: 0.0696 | I35: 1.33
A36: C | B36: SINAPI | C36: 91890 | D36: =VLOOKUP(C36,'Comp SINAPI PE 06-2025 Onerado'!$B$11:$F$9696,2,FALSE) -> CURVA 90 GRAUS PARA ELETRODUTO, PVC, ROSCÁVEL, DN 25 MM (3/4"), PARA CIRCUITOS TERMINAIS, INSTALADA EM FORRO - FORNECIMENTO E INSTALAÇÃO. AF_03/2023 | E36: INEL - INSTALAÇÃO ELÉTRICA/ELETRIFICAÇÃO E ILUMINAÇÃO EXTERNA | F36: UN | G36: =VLOOKUP(C36,'Comp SINAPI PE 06-2025 Onerado'!$B$11:$F$9696,4,FALSE) -> 15.52 | H36: 0.0174 | I36: 0.27
A37: C | B37: SINAPI | C37: 89748 | D37: =VLOOKUP(C37,'Comp SINAPI PE 06-2025 Onerado'!$B$11:$F$9696,2,FALSE) -> CURVA CURTA 90 GRAUS, PVC, SERIE NORMAL, ESGOTO PREDIAL, DN 100 MM, JUNTA ELÁSTICA, FORNECIDO E INSTALADO EM RAMAL DE DESCARGA OU RAMAL DE ESGOTO SANITÁRIO. AF_08/2022 | E37: INHI - INSTALAÇÕES HIDROS SANITÁRIAS | F37: UN | G37: =VLOOKUP(C37,'Comp SINAPI PE 06-2025 Onerado'!$B$11:$F$9696,4,FALSE) -> 39.81 | H37: 0.0522 | I37: 2.08
A38: C | B38: SINAPI | C38: 101891 | D38: =VLOOKUP(C38,'Comp SINAPI PE 06-2025 Onerado'!$B$11:$F$9696,2,FALSE) -> DISJUNTOR MONOPOLAR TIPO NEMA, CORRENTE NOMINAL DE 35 ATÉ 50A - FORNECIMENTO E INSTALAÇÃO. AF_10/2020 | E38: INEL - INSTALAÇÃO ELÉTRICA/ELETRIFICAÇÃO E ILUMINAÇÃO EXTERNA | F38: UN | G38: =VLOOKUP(C38,'Comp SINAPI PE 06-2025 Onerado'!$B$11:$F$9696,4,FALSE) -> 32.08 | H38: 0.1044 | I38: 3.35
A39: C | B39: SINAPI | C39: 91862 | D39: =VLOOKUP(C39,'Comp SINAPI PE 06-2025 Onerado'!$B$11:$F$9696,2,FALSE) -> ELETRODUTO RÍGIDO ROSCÁVEL, PVC, DN 20 MM (1/2"), PARA CIRCUITOS TERMINAIS, INSTALADO EM FORRO - FORNECIMENTO E INSTALAÇÃO. AF_03/2023 | E39: INEL - INSTALAÇÃO ELÉTRICA/ELETRIFICAÇÃO E ILUMINAÇÃO EXTERNA | F39: M | G39: =VLOOKUP(C39,'Comp SINAPI PE 06-2025 Onerado'!$B$11:$F$9696,4,FALSE) -> 10.59 | H39: 0.3307 | I39: 3.5
A40: C | B40: SINAPI | C40: 91870 | D40: =VLOOKUP(C40,'Comp SINAPI PE 06-2025 Onerado'!$B$11:$F$9696,2,FALSE) -> ELETRODUTO RÍGIDO ROSCÁVEL, PVC, DN 20 MM (1/2"), PARA CIRCUITOS TERMINAIS, INSTALADO EM PAREDE - FORNECIMENTO E INSTALAÇÃO. AF_03/2023 | E40: INEL - INSTALAÇÃO ELÉTRICA/ELETRIFICAÇÃO E ILUMINAÇÃO EXTERNA | F40: M | G40: =VLOOKUP(C40,'Comp SINAPI PE 06-2025 Onerado'!$B$11:$F$9696,4,FALSE) -> 13.82 | H40: 0.1566 | I40: 2.16
A41: C | B41: SINAPI | C41: 91863 | D41: =VLOOKUP(C41,'Comp SINAPI PE 06-2025 Onerado'!$B$11:$F$9696,2,FALSE) -> ELETRODUTO RÍGIDO ROSCÁVEL, PVC, DN 25 MM (3/4"), PARA CIRCUITOS TERMINAIS, INSTALADO EM FORRO - FORNECIMENTO E INSTALAÇÃO. AF_03/2023 | E41: INEL - INSTALAÇÃO ELÉTRICA/ELETRIFICAÇÃO E ILUMINAÇÃO EXTERNA | F41: M | G41: =VLOOKUP(C41,'Comp SINAPI PE 06-2025 Onerado'!$B$11:$F$9696,4,FALSE) -> 12.52 | H41: 0.1305 | I41: 1.63
A42: C | B42: SINAPI | C42: 91871 | D42: =VLOOKUP(C42,'Comp SINAPI PE 06-2025 Onerado'!$B$11:$F$9696,2,FALSE) -> ELETRODUTO RÍGIDO ROSCÁVEL, PVC, DN 25 MM (3/4"), PARA CIRCUITOS TERMINAIS, INSTALADO EM PAREDE - FORNECIMENTO E INSTALAÇÃO. AF_03/2023 | E42: INEL - INSTALAÇÃO ELÉTRICA/ELETRIFICAÇÃO E ILUMINAÇÃO EXTERNA | F42: M | G42: =VLOOKUP(C42,'Comp SINAPI PE 06-2025 Onerado'!$B$11:$F$9696,4,FALSE) -> 15.76 | H42: 0.0261 | I42: 0.41
A43: C | B43: SINAPI | C43: 87777 | D43: =VLOOKUP(C43,'Comp SINAPI PE 06-2025 Onerado'!$B$11:$F$9696,2,FALSE) -> EMBOÇO OU MASSA ÚNICA EM ARGAMASSA TRAÇO 1:2:8, PREPARO MANUAL, APLICADA MANUALMENTE EM PANOS DE FACHADA COM PRESENÇA DE VÃOS, ESPESSURA DE 25 MM. AF_08/2022 | E43: REVE - REVESTIMENTO E TRATAMENTO DE SUPERFÍCIES | F43: m² | G43: =VLOOKUP(C43,'Comp SINAPI PE 06-2025 Onerado'!$B$11:$F$9696,4,FALSE) -> 65.88 | H43: 0.1681 | I43: 11.07
A44: C | B44: SINAPI | C44: 93358 | D44: =VLOOKUP(C44,'Comp SINAPI PE 06-2025 Onerado'!$B$11:$F$9696,2,FALSE) -> ESCAVAÇÃO MANUAL DE VALA. AF_09/2024 | E44: MOVT - MOVIMENTO DE TERRA | F44: m³ | G44: =VLOOKUP(C44,'Comp SINAPI PE 06-2025 Onerado'!$B$11:$F$9696,4,FALSE) -> 95.25 | H44: 0.0279 | I44: 2.66
A45: C | B45: SINAPI | C45: 91305 | D45: =VLOOKUP(C45,'Comp SINAPI PE 06-2025 Onerado'!$B$11:$F$9696,2,FALSE) -> FECHADURA DE EMBUTIR PARA PORTA DE BANHEIRO, COMPLETA, ACABAMENTO PADRÃO POPULAR, INCLUSO EXECUÇÃO DE FURO - FORNECIMENTO E INSTALAÇÃO. AF_12/2019 | E45: ESQV - ESQUADRIAS/FERRAGENS/VIDROS | F45: UN | G45: =VLOOKUP(C45,'Comp SINAPI PE 06-2025 Onerado'!$B$11:$F$9696,4,FALSE) -> 119.91 | H45: 0.0522 | I45: 6.26
A46: C | B46: SINAPI | C46: 91170 | D46: =VLOOKUP(C46,'Comp SINAPI PE 06-2025 Onerado'!$B$11:$F$9696,2,FALSE) -> FIXAÇÃO DE TUBOS HORIZONTAIS DE PVC ÁGUA, PVC ESGOTO, PVC ÁGUA PLUVIAL, CPVC, PPR, COBRE OU AÇO, DIÂMETROS MENORES OU IGUAIS A 40 MM, COM ABRAÇADEIRA METÁLICA RÍGIDA TIPO U PERFIL 1 1/4", FIXADA EM PERFILADO EM LAJE. AF_09/2023_PS | E46: INHI - INSTALAÇÕES HIDROS SANITÁRIAS | F46: M | G46: =VLOOKUP(C46,'Comp SINAPI PE 06-2025 Onerado'!$B$11:$F$9696,4,FALSE) -> 11.65 | H46: 0.4612 | I46: 5.37
A47: C | B47: SINAPI | C47: 91173 | D47: =VLOOKUP(C47,'Comp SINAPI PE 06-2025 Onerado'!$B$11:$F$9696,2,FALSE) -> FIXAÇÃO DE TUBOS VERTICAIS DE PVC ÁGUA, PVC ESGOTO, PVC ÁGUA PLUVIAL, CPVC, PPR, COBRE OU AÇO, DIÂMETROS MENORES OU IGUAIS A 40 MM, COM ABRAÇADEIRA METÁLICA RÍGIDA TIPO U PERFIL 1 1/4", FIXADA EM PERFILADO EM PAREDE. AF_09/2023_PS | E47: INHI - INSTALAÇÕES HIDROS SANITÁRIAS | F47: M | G47: =VLOOKUP(C47,'Comp SINAPI PE 06-2025 Onerado'!$B$11:$F$9696,4,FALSE) -> 4.34 | H47: 0.1827 | I47: 0.79
A48: C | B48: SINAPI | C48: 96985 | D48: =VLOOKUP(C48,'Comp SINAPI PE 06-2025 Onerado'!$B$11:$F$9696,2,FALSE) -> HASTE DE ATERRAMENTO, DIÂMETRO 5/8", COM 3 METROS - FORNECIMENTO E INSTALAÇÃO. AF_08/2023 | E48: INEL - INSTALAÇÃO ELÉTRICA/ELETRIFICAÇÃO E ILUMINAÇÃO EXTERNA | F48: UN | G48: =VLOOKUP(C48,'Comp SINAPI PE 06-2025 Onerado'!$B$11:$F$9696,4,FALSE) -> 108.95 | H48: 0.0522 | I48: 5.69
A49: C | B49: SINAPI | C49: 91959 | D49: =VLOOKUP(C49,'Comp SINAPI PE 06-2025 Onerado'!$B$11:$F$9696,2,FALSE) -> INTERRUPTOR SIMPLES (2 MÓDULOS), 10A/250V, INCLUINDO SUPORTE E PLACA - FORNECIMENTO E INSTALAÇÃO. AF_03/2023 | E49: INEL - INSTALAÇÃO ELÉTRICA/ELETRIFICAÇÃO E ILUMINAÇÃO EXTERNA | F49: UN | G49: =VLOOKUP(C49,'Comp SINAPI PE 06-2025 Onerado'!$B$11:$F$9696,4,FALSE) -> 47.12 | H49: 0.0174 | I49: 0.82
A50: C | B50: SINAPI | C50: 91967 | D50: =VLOOKUP(C50,'Comp SINAPI PE 06-2025 Onerado'!$B$11:$F$9696,2,FALSE) -> INTERRUPTOR SIMPLES (3 MÓDULOS), 10A/250V, INCLUINDO SUPORTE E PLACA - FORNECIMENTO E INSTALAÇÃO. AF_03/2023 | E50: INEL - INSTALAÇÃO ELÉTRICA/ELETRIFICAÇÃO E ILUMINAÇÃO EXTERNA | F50: UN | G50: =VLOOKUP(C50,'Comp SINAPI PE 06-2025 Onerado'!$B$11:$F$9696,4,FALSE) -> 63.25 | H50: 0.0174 | I50: 1.1
A51: C | B51: SINAPI | C51: 94559 | D51: =VLOOKUP(C51,'Comp SINAPI PE 06-2025 Onerado'!$B$11:$F$9696,2,FALSE) -> JANELA DE AÇO TIPO BASCULANTE, PARA VIDROS (VIDROS NÃO INCLUSOS), BATENTE/ REQUADRO INCLUSO (6,5 A 14 CM), DIMENSÕES 60X60 CM, COM COM PINTURA ANTICORROSIVA, SEM ACABAMENTO, COM FERRAGENS, FIXAÇÃO COM ARGAMASSA, EXCLUSIVE CONTRAMARCO - FORNECIMENTO E INSTALAÇÃO. AF_11/2024 | E51: ESQV - ESQUADRIAS/FERRAGENS/VIDROS | F51: m² | G51: =VLOOKUP(C51,'Comp SINAPI PE 06-2025 Onerado'!$B$11:$F$9696,4,FALSE) -> 741.11 | H51: 0.0905 | I51: 67.07
A52: C | B52: SINAPI | C52: 89724 | D52: =VLOOKUP(C52,'Comp SINAPI PE 06-2025 Onerado'!$B$11:$F$9696,2,FALSE) -> JOELHO 90 GRAUS, PVC, SERIE NORMAL, ESGOTO PREDIAL, DN 40 MM, JUNTA SOLDÁVEL, FORNECIDO E INSTALADO EM RAMAL DE DESCARGA OU RAMAL DE ESGOTO SANITÁRIO. AF_08/2022 | E52: INHI - INSTALAÇÕES HIDROS SANITÁRIAS | F52: UN | G52: =VLOOKUP(C52,'Comp SINAPI PE 06-2025 Onerado'!$B$11:$F$9696,4,FALSE) -> 10.22 | H52: 0.174 | I52: 1.78
A53: C | B53: SINAPI | C53: 89731 | D53: =VLOOKUP(C53,'Comp SINAPI PE 06-2025 Onerado'!$B$11:$F$9696,2,FALSE) -> JOELHO 90 GRAUS, PVC, SERIE NORMAL, ESGOTO PREDIAL, DN 50 MM, JUNTA ELÁSTICA, FORNECIDO E INSTALADO EM RAMAL DE DESCARGA OU RAMAL DE ESGOTO SANITÁRIO. AF_08/2022 | E53: INHI - INSTALAÇÕES HIDROS SANITÁRIAS | F53: UN | G53: =VLOOKUP(C53,'Comp SINAPI PE 06-2025 Onerado'!$B$11:$F$9696,4,FALSE) -> 15.65 | H53: 0.0174 | I53: 0.27
A54: C | B54: SINAPI | C54: 89970 | D54: KIT DE REGISTRO DE PRESSÃO BRUTO DE LATÃO ¾", INCLUSIVE CONEXÕES, ROSCÁVEL, INSTALADO EM RAMAL DE ÁGUA FRIA - FORNECIMENTO E INSTALAÇÃO. AF_12/2014 | E54: INHI - INSTALAÇÕES HIDROS SANITÁRIAS | F54: UN | G54: =SUM(I55:I57) -> 52.4 | H54: 0.0696 | I54: 3.65
A55: C | B55: SINAPI | C55: 89383 | D55: =VLOOKUP(C55,'Comp SINAPI PE 06-2025 Onerado'!$B$11:$F$9696,2,FALSE) -> ADAPTADOR CURTO COM BOLSA E ROSCA PARA REGISTRO, PVC, SOLDÁVEL, DN 25MM X 3/4, INSTALADO EM RAMAL OU SUB-RAMAL DE ÁGUA - FORNECIMENTO E INSTALAÇÃO. AF_06/2022 | E55: INHI - INSTALAÇÕES HIDROS SANITÁRIAS | F55: UN | G55: =VLOOKUP(C55,'Comp SINAPI PE 06-2025 Onerado'!$B$11:$F$9696,4,FALSE) -> 6.87 | H55: 1 | I55: =ROUND(G55*H55,2) -> 6.87
A56: C | B56: SINAPI | C56: 89385 | D56: =VLOOKUP(C56,'Comp SINAPI PE 06-2025 Onerado'!$B$11:$F$9696,2,FALSE) -> LUVA SOLDÁVEL E COM ROSCA, PVC, SOLDÁVEL, DN 25MM X 3/4, INSTALADO EM RAMAL OU SUB-RAMAL DE ÁGUA - FORNECIMENTO E INSTALAÇÃO. AF_06/2022 | E56: INHI - INSTALAÇÕES HIDROS SANITÁRIAS | F56: UN | G56: =VLOOKUP(C56,'Comp SINAPI PE 06-2025 Onerado'!$B$11:$F$9696,4,FALSE) -> 7.48 | H56: 1 | I56: =ROUND(G56*H56,2) -> 7.48
A57: C | B57: SINAPI | C57: 89351 | D57: =VLOOKUP(C57,'Comp SINAPI PE 06-2025 Onerado'!$B$11:$F$9696,2,FALSE) -> REGISTRO DE PRESSÃO BRUTO, LATÃO, ROSCÁVEL, 3/4'' - FORNECIMENTO E INSTALAÇÃO. AF_08/2021 | E57: INHI - INSTALAÇÕES HIDROS SANITÁRIAS | F57: UN | G57: =VLOOKUP(C57,'Comp SINAPI PE 06-2025 Onerado'!$B$11:$F$9696,4,FALSE) -> 38.05 | H57: 1 | I57: 38.05
A58: C | B58: SINAPI | C58: 95240 | D58: =VLOOKUP(C58,'Comp SINAPI PE 06-2025 Onerado'!$B$11:$F$9696,2,FALSE) -> LASTRO DE CONCRETO MAGRO, APLICADO EM PISOS, LAJES SOBRE SOLO OU RADIERS, ESPESSURA DE 3 CM. AF_01/2024 | E58: FUES - FUNDAÇÕES E ESTRUTURAS | F58: m² | G58: =VLOOKUP(C58,'Comp SINAPI PE 06-2025 Onerado'!$B$11:$F$9696,4,FALSE) -> 19.74 | H58: 0.0064 | I58: 0.13
A59: C | B59: SINAPI | C59: 95241 | D59: =VLOOKUP(C59,'Comp SINAPI PE 06-2025 Onerado'!$B$11:$F$9696,2,FALSE) -> LASTRO DE CONCRETO MAGRO, APLICADO EM PISOS, LAJES SOBRE SOLO OU RADIERS, ESPESSURA DE 5 CM. AF_01/2024 | E59: FUES - FUNDAÇÕES E ESTRUTURAS | F59: m² | G59: =VLOOKUP(C59,'Comp SINAPI PE 06-2025 Onerado'!$B$11:$F$9696,4,FALSE) -> 37.92 | H59: 1.3328 | I59: 50.54
A60: C | B60: SINAPI | C60: 86943 | D60: =VLOOKUP(C60,'Comp SINAPI PE 06-2025 Onerado'!$B$11:$F$9696,2,FALSE) -> LAVATÓRIO LOUÇA BRANCA SUSPENSO, 29,5 X 39CM OU EQUIVALENTE, PADRÃO POPULAR, INCLUSO SIFÃO FLEXÍVEL EM PVC, VÁLVULA E ENGATE FLEXÍVEL 30CM EM PLÁSTICO E TORNEIRA CROMADA DE MESA, PADRÃO POPULAR - FORNECIMENTO E INSTALAÇÃO. AF_01/2020 | E60: INHI - INSTALAÇÕES HIDROS SANITÁRIAS | F60: UN | G60: =VLOOKUP(C60,'Comp SINAPI PE 06-2025 Onerado'!$B$11:$F$9696,4,FALSE) -> 277.8 | H60: 0.0522 | I60: =ROUND(G60*H60,2) -> 14.5
A61: C | B61: SINAPI | C61: 97586 | D61: LUMINÁRIA TIPO CALHA, DE SOBREPOR, COM 2 LÂMPADAS TUBULARES FLUORESCENTES DE 36 W, COM REATOR DE PARTIDA RÁPIDA - FORNECIMENTO E INSTALAÇÃO. AF_02/2020 | E61: INEL - INSTALAÇÃO ELÉTRICA/ELETRIFICAÇÃO E ILUMINAÇÃO EXTERNA | F61: UN | G61: =SUM(I62:I64) -> 222.74 | H61: 0.1392 | I61: =ROUND(G61*H61,2) -> 31.01 | J61: FALTA ESSE!!!
A62: C | B62: SINAPI | C62: 88247 | D62: =VLOOKUP(C62,'Comp SINAPI PE 06-2025 Onerado'!$B$11:$F$9696,2,FALSE) -> AUXILIAR DE ELETRICISTA COM ENCARGOS COMPLEMENTARES | E62: SEDI - SERVIÇOS DIVERSOS | F62: H | G62: =VLOOKUP(C62,'Comp SINAPI PE 06-2025 Onerado'!$B$11:$F$9696,4,FALSE) -> 25.53 | H62: 0.1727 | I62: =ROUND(G62*H62,2) -> 4.41
A63: C | B63: SINAPI | C63: 88264 | D63: =VLOOKUP(C63,'Comp SINAPI PE 06-2025 Onerado'!$B$11:$F$9696,2,FALSE) -> ELETRICISTA COM ENCARGOS COMPLEMENTARES | E63: SEDI - SERVIÇOS DIVERSOS | F63: H | G63: =VLOOKUP(C63,'Comp SINAPI PE 06-2025 Onerado'!$B$11:$F$9696,4,FALSE) -> 30.24 | H63: 0.4144 | I63: =ROUND(G63*H63,2) -> 12.53
A64: I | B64: SINAPI | C64: 3780 | D64: =VLOOKUP(C64,'Ins SINAPI PE 06-2025 Onerado'!$B$11:$F$9696,2,FALSE) -> LUMINARIA DE SOBREPOR EM CHAPA DE ACO PARA 1 LAMPADA FLUORESCENTE DE *36* W, ALETADA, COMPLETA (LAMPADA E REATOR INCLUSOS) | E64: Material | F64: UN | G64: 102.9 | H64: 2 | I64: =ROUND(G64*H64,2) -> 205.8
A65: C | B65: SINAPI | C65: 91882 | D65: =VLOOKUP(C65,'Comp SINAPI PE 06-2025 Onerado'!$B$11:$F$9696,2,FALSE) -> LUVA PARA ELETRODUTO, PVC, ROSCÁVEL, DN 20 MM (1/2"), PARA CIRCUITOS TERMINAIS, INSTALADA EM PAREDE - FORNECIMENTO E INSTALAÇÃO. AF_03/2023 | E65: INEL - INSTALAÇÃO ELÉTRICA/ELETRIFICAÇÃO E ILUMINAÇÃO EXTERNA | F65: UN | G65: =VLOOKUP(C65,'Comp SINAPI PE 06-2025 Onerado'!$B$11:$F$9696,4,FALSE) -> 11.28 | H65: 0.0348 | I65: 0.39
A66: C | B66: SINAPI | C66: 91875 | D66: =VLOOKUP(C66,'Comp SINAPI PE 06-2025 Onerado'!$B$11:$F$9696,2,FALSE) -> LUVA PARA ELETRODUTO, PVC, ROSCÁVEL, DN 25 MM (3/4"), PARA CIRCUITOS TERMINAIS, INSTALADA EM FORRO - FORNECIMENTO E INSTALAÇÃO. AF_03/2023 | E66: INEL - INSTALAÇÃO ELÉTRICA/ELETRIFICAÇÃO E ILUMINAÇÃO EXTERNA | F66: UN | G66: =VLOOKUP(C66,'Comp SINAPI PE 06-2025 Onerado'!$B$11:$F$9696,4,FALSE) -> 9.39 | H66: 0.0348 | I66: 0.33
A67: C | B67: SINAPI | C67: 87548 | D67: =VLOOKUP(C67,'Comp SINAPI PE 06-2025 Onerado'!$B$11:$F$9696,2,FALSE) -> MASSA ÚNICA, EM ARGAMASSA TRAÇO 1:2:8, PREPARO MANUAL, APLICADA MANUALMENTE EM PAREDES INTERNAS DE AMBIENTES COM ÁREA ENTRE 5M² E 10M², E = 10MM, COM TALISCAS. AF_03/2024 | E67: REVE - REVESTIMENTO E TRATAMENTO DE SUPERFÍCIES | F67: m² | G67: =VLOOKUP(C67,'Comp SINAPI PE 06-2025 Onerado'!$B$11:$F$9696,4,FALSE) -> 32.5 | H67: 0.1894 | I67: 6.16
A68: C | B68: SINAPI | C68: 98445 | D68: =VLOOKUP(C68,'Comp SINAPI PE 06-2025 Onerado'!$B$11:$F$9696,2,FALSE) -> PAREDE DE MADEIRA COMPENSADA PARA CONSTRUÇÃO TEMPORÁRIA EM CHAPA SIMPLES, EXTERNA, COM ÁREA LÍQUIDA MAIOR OU IGUAL A 6 M², COM VÃO. AF_03/2024 | E68: CANT - CANTEIRO DE OBRAS | F68: m² | G68: =VLOOKUP(C68,'Comp SINAPI PE 06-2025 Onerado'!$B$11:$F$9696,4,FALSE) -> 114.38 | H68: 0.4081 | I68: 46.68
A69: C | B69: SINAPI | C69: 98441 | D69: =VLOOKUP(C69,'Comp SINAPI PE 06-2025 Onerado'!$B$11:$F$9696,2,FALSE) -> PAREDE DE MADEIRA COMPENSADA PARA CONSTRUÇÃO TEMPORÁRIA EM CHAPA SIMPLES, EXTERNA, SEM VÃO. AF_03/2024 | E69: CANT - CANTEIRO DE OBRAS | F69: m² | G69: =VLOOKUP(C69,'Comp SINAPI PE 06-2025 Onerado'!$B$11:$F$9696,4,FALSE) -> 96.22 | H69: 0.2612 | I69: 25.13
A70: C | B70: SINAPI | C70: 98446 | D70: =VLOOKUP(C70,'Comp SINAPI PE 06-2025 Onerado'!$B$11:$F$9696,2,FALSE) -> PAREDE DE MADEIRA COMPENSADA PARA CONSTRUÇÃO TEMPORÁRIA EM CHAPA SIMPLES, EXTERNA, COM ÁREA LÍQUIDA MENOR QUE 6 M², COM VÃO. AF_03/2024 | E70: CANT - CANTEIRO DE OBRAS | F70: m² | G70: =VLOOKUP(C70,'Comp SINAPI PE 06-2025 Onerado'!$B$11:$F$9696,4,FALSE) -> 147.59 | H70: 0.3182 | I70: 46.96
A71: C | B71: SINAPI | C71: 98441 | D71: =VLOOKUP(C71,'Comp SINAPI PE 06-2025 Onerado'!$B$11:$F$9696,2,FALSE) -> PAREDE DE MADEIRA COMPENSADA PARA CONSTRUÇÃO TEMPORÁRIA EM CHAPA SIMPLES, EXTERNA, SEM VÃO. AF_03/2024 | E71: CANT - CANTEIRO DE OBRAS | F71: m² | G71: =VLOOKUP(C71,'Comp SINAPI PE 06-2025 Onerado'!$B$11:$F$9696,4,FALSE) -> 96.22 | H71: 0.3007 | I71: 28.93
A72: C | B72: SINAPI | C72: 98447 | D72: =VLOOKUP(C72,'Comp SINAPI PE 06-2025 Onerado'!$B$11:$F$9696,2,FALSE) -> PAREDE DE MADEIRA COMPENSADA PARA CONSTRUÇÃO TEMPORÁRIA EM CHAPA SIMPLES, INTERNA, COM ÁREA LÍQUIDA MAIOR OU IGUAL A 6 M², COM VÃO. AF_03/2024 | E72: CANT - CANTEIRO DE OBRAS | F72: m² | G72: =VLOOKUP(C72,'Comp SINAPI PE 06-2025 Onerado'!$B$11:$F$9696,4,FALSE) -> 89.02 | H72: 0.1297 | I72: 11.55
A73: C | B73: SINAPI | C73: 98443 | D73: =VLOOKUP(C73,'Comp SINAPI PE 06-2025 Onerado'!$B$11:$F$9696,2,FALSE) -> PAREDE DE MADEIRA COMPENSADA PARA CONSTRUÇÃO TEMPORÁRIA EM CHAPA SIMPLES, INTERNA, SEM VÃO. AF_03/2024 | E73: CANT - CANTEIRO DE OBRAS | F73: m² | G73: =VLOOKUP(C73,'Comp SINAPI PE 06-2025 Onerado'!$B$11:$F$9696,4,FALSE) -> 74.35 | H73: 0.083 | I73: 6.17
A74: C | B74: SINAPI | C74: 98448 | D74: =VLOOKUP(C74,'Comp SINAPI PE 06-2025 Onerado'!$B$11:$F$9696,2,FALSE) -> PAREDE DE MADEIRA COMPENSADA PARA CONSTRUÇÃO TEMPORÁRIA EM CHAPA SIMPLES, INTERNA, COM ÁREA LÍQUIDA MENOR QUE 6 M², COM VÃO. AF_03/2024 | E74: CANT - CANTEIRO DE OBRAS | F74: m² | G74: =VLOOKUP(C74,'Comp SINAPI PE 06-2025 Onerado'!$B$11:$F$9696,4,FALSE) -> 116.1 | H74: 0.1011 | I74: 11.74
A75: C | B75: SINAPI | C75: 98443 | D75: =VLOOKUP(C75,'Comp SINAPI PE 06-2025 Onerado'!$B$11:$F$9696,2,FALSE) -> PAREDE DE MADEIRA COMPENSADA PARA CONSTRUÇÃO TEMPORÁRIA EM CHAPA SIMPLES, INTERNA, SEM VÃO. AF_03/2024 | E75: CANT - CANTEIRO DE OBRAS | F75: m² | G75: =VLOOKUP(C75,'Comp SINAPI PE 06-2025 Onerado'!$B$11:$F$9696,4,FALSE) -> 74.35 | H75: 0.0956 | I75: 7.11
A76: C | B76: SINAPI | C76: 88489 | D76: =VLOOKUP(C76,'Comp SINAPI PE 06-2025 Onerado'!$B$11:$F$9696,2,FALSE) -> PINTURA LÁTEX ACRÍLICA PREMIUM, APLICAÇÃO MANUAL EM PAREDES, DUAS DEMÃOS. AF_04/2023 | E76: PINT - PINTURAS | F76: m² | G76: =VLOOKUP(C76,'Comp SINAPI PE 06-2025 Onerado'!$B$11:$F$9696,4,FALSE) -> 14.93 | H76: 2.4442 | I76: 36.49
A77: C | B77: SINAPI | C77: 98679 | D77: =VLOOKUP(C77,'Comp SINAPI PE 06-2025 Onerado'!$B$11:$F$9696,2,FALSE) -> PISO CIMENTADO, TRAÇO 1:3 (CIMENTO E AREIA), ACABAMENTO LISO, ESPESSURA 2,0 CM, PREPARO MECÂNICO DA ARGAMASSA. AF_09/2020 | E77: PISO - PISOS | F77: m² | G77: =VLOOKUP(C77,'Comp SINAPI PE 06-2025 Onerado'!$B$11:$F$9696,4,FALSE) -> 38.43 | H77: 0.5134 | I77: 19.73
A78: C | B78: SINAPI | C78: 89957 | D78: PONTO DE CONSUMO TERMINAL DE ÁGUA FRIA (SUBRAMAL) COM TUBULAÇÃO DE PVC, DN 25 MM, INSTALADO EM RAMAL DE ÁGUA, INCLUSOS RASGO E CHUMBAMENTO EM ALVENARIA. AF_12/2014 (ADAPTADO) | E78: INHI - INSTALAÇÕES HIDROS SANITÁRIAS | F78: UN | G78: =SUM(I79:I84) -> 146.23 | H78: 0.174 | I78: =ROUND(G78*H78,2) -> 25.44
A79: C | B79: SINAPI | C79: 90466 | D79: =VLOOKUP(C79,'Comp SINAPI PE 06-2025 Onerado'!$B$11:$F$9696,2,FALSE) -> CHUMBAMENTO LINEAR EM ALVENARIA PARA RAMAIS/DISTRIBUIÇÃO DE INSTALAÇÕES HIDRÁULICAS COM DIÂMETROS MENORES OU IGUAIS A 40 MM. AF_09/2023 | E79: Material | F79: M | G79: =VLOOKUP(C79,'Comp SINAPI PE 06-2025 Onerado'!$B$11:$F$9696,4,FALSE) -> 16.18 | H79: 2.14 | I79: 34.63
A80: C | B80: SINAPI | C80: 89366 | D80: =VLOOKUP(C80,'Comp SINAPI PE 06-2025 Onerado'!$B$11:$F$9696,2,FALSE) -> JOELHO 90 GRAUS COM BUCHA DE LATÃO, PVC, SOLDÁVEL, DN 25MM, X 3/4 INSTALADO EM RAMAL OU SUB-RAMAL DE ÁGUA - FORNECIMENTO E INSTALAÇÃO. AF_06/2022 | E80: Material | F80: UN | G80: =VLOOKUP(C80,'Comp SINAPI PE 06-2025 Onerado'!$B$11:$F$9696,4,FALSE) -> 16.48 | H80: 1 | I80: 16.48
A81: C | B81: SINAPI | C81: 89362 | D81: =VLOOKUP(C81,'Comp SINAPI PE 06-2025 Onerado'!$B$11:$F$9696,2,FALSE) -> JOELHO 90 GRAUS, PVC, SOLDÁVEL, DN 25MM, INSTALADO EM RAMAL OU SUB-RAMAL DE ÁGUA - FORNECIMENTO E INSTALAÇÃO. AF_06/2022 | E81: Material | F81: UN | G81: =VLOOKUP(C81,'Comp SINAPI PE 06-2025 Onerado'!$B$11:$F$9696,4,FALSE) -> 9.97 | H81: 1.18 | I81: 11.76
A82: C | B82: SINAPI | C82: 90443 | D82: =VLOOKUP(C82,'Comp SINAPI PE 06-2025 Onerado'!$B$11:$F$9696,2,FALSE) -> RASGO LINEAR MANUAL EM ALVENARIA, PARA RAMAIS/ DISTRIBUIÇÃO DE INSTALAÇÕES HIDRÁULICAS, DIÂMETROS MENORES OU IGUAIS A 40 MM. AF_09/2023 | E82: Material | F82: M | G82: =VLOOKUP(C82,'Comp SINAPI PE 06-2025 Onerado'!$B$11:$F$9696,4,FALSE) -> 8.44 | H82: 2.14 | I82: 18.06
A83: C | B83: SINAPI | C83: 89395 | D83: =VLOOKUP(C83,'Comp SINAPI PE 06-2025 Onerado'!$B$11:$F$9696,2,FALSE) -> TE, PVC, SOLDÁVEL, DN 25MM, INSTALADO EM RAMAL OU SUB-RAMAL DE ÁGUA - FORNECIMENTO E INSTALAÇÃO. AF_06/2022 | E83: Material | F83: UN | G83: =VLOOKUP(C83,'Comp SINAPI PE 06-2025 Onerado'!$B$11:$F$9696,4,FALSE) -> 13.7 | H83: 0.89 | I83: 12.19
A84: C | B84: SINAPI | C84: 89356 | D84: =VLOOKUP(C84,'Comp SINAPI PE 06-2025 Onerado'!$B$11:$F$9696,2,FALSE) -> TUBO, PVC, SOLDÁVEL, DE 25MM, INSTALADO EM RAMAL OU SUB-RAMAL DE ÁGUA - FORNECIMENTO E INSTALAÇÃO. AF_06/2022 | E84: Material | F84: M | G84: =VLOOKUP(C84,'Comp SINAPI PE 06-2025 Onerado'!$B$11:$F$9696,4,FALSE) -> 24.82 | H84: 2.14 | I84: 53.11
A85: C | B85: SINAPI | C85: 90822 | D85: =VLOOKUP(C85,'Comp SINAPI PE 06-2025 Onerado'!$B$11:$F$9696,2,FALSE) -> PORTA DE MADEIRA PARA PINTURA, SEMI-OCA (LEVE OU MÉDIA), 80X210CM, ESPESSURA DE 3,5CM, INCLUSO DOBRADIÇAS - FORNECIMENTO E INSTALAÇÃO. AF_12/2019 | E85: ESQV - ESQUADRIAS/FERRAGENS/VIDROS | F85: UN | G85: =VLOOKUP(C85,'Comp SINAPI PE 06-2025 Onerado'!$B$11:$F$9696,4,FALSE) -> 373.98 | H85: 0.0348 | I85: 13.01
A86: C | B86: SINAPI | C86: 101876 | D86: =VLOOKUP(C86,'Comp SINAPI PE 06-2025 Onerado'!$B$11:$F$9696,2,FALSE) -> QUADRO DE DISTRIBUIÇÃO DE ENERGIA EM PVC, DE EMBUTIR, SEM BARRAMENTO, PARA 6 DISJUNTORES - FORNECIMENTO E INSTALAÇÃO. AF_10/2020 | E86: INEL - INSTALAÇÃO ELÉTRICA/ELETRIFICAÇÃO E ILUMINAÇÃO EXTERNA | F86: UN | G86: =VLOOKUP(C86,'Comp SINAPI PE 06-2025 Onerado'!$B$11:$F$9696,4,FALSE) -> 107.15 | H86: 0.0174 | I86: 1.86
A87: C | B87: SINAPI | C87: 89709 | D87: =VLOOKUP(C87,'Comp SINAPI PE 06-2025 Onerado'!$B$11:$F$9696,2,FALSE) -> RALO SIFONADO, PVC, DN 100 X 40 MM, JUNTA SOLDÁVEL, FORNECIDO E INSTALADO EM RAMAL DE DESCARGA OU EM RAMAL DE ESGOTO SANITÁRIO. AF_08/2022 | E87: INHI - INSTALAÇÕES HIDROS SANITÁRIAS | F87: UN | G87: =VLOOKUP(C87,'Comp SINAPI PE 06-2025 Onerado'!$B$11:$F$9696,4,FALSE) -> 18.6 | H87: 0.0696 | I87: 1.29
A88: C | B88: SINAPI | C88: 90443 | D88: =VLOOKUP(C88,'Comp SINAPI PE 06-2025 Onerado'!$B$11:$F$9696,2,FALSE) -> RASGO LINEAR MANUAL EM ALVENARIA, PARA RAMAIS/ DISTRIBUIÇÃO DE INSTALAÇÕES HIDRÁULICAS, DIÂMETROS MENORES OU IGUAIS A 40 MM. AF_09/2023 | E88: INHI - INSTALAÇÕES HIDROS SANITÁRIAS | F88: M | G88: =VLOOKUP(C88,'Comp SINAPI PE 06-2025 Onerado'!$B$11:$F$9696,4,FALSE) -> 8.44 | H88: 0.0722 | I88: 0.61
A89: C | B89: SINAPI | C89: 93382 | D89: =VLOOKUP(C89,'Comp SINAPI PE 06-2025 Onerado'!$B$11:$F$9696,2,FALSE) -> REATERRO MANUAL DE VALAS, COM COMPACTADOR DE SOLOS DE PERCUSSÃO. AF_08/2023 | E89: MOVT - MOVIMENTO DE TERRA | F89: m³ | G89: =VLOOKUP(C89,'Comp SINAPI PE 06-2025 Onerado'!$B$11:$F$9696,4,FALSE) -> 27.38 | H89: 0.0072 | I89: 0.2
A90: C | B90: SINAPI | C90: 89784 | D90: =VLOOKUP(C90,'Comp SINAPI PE 06-2025 Onerado'!$B$11:$F$9696,2,FALSE) -> TE, PVC, SERIE NORMAL, ESGOTO PREDIAL, DN 50 X 50 MM, JUNTA ELÁSTICA, FORNECIDO E INSTALADO EM RAMAL DE DESCARGA OU RAMAL DE ESGOTO SANITÁRIO. AF_08/2022 | E90: INHI - INSTALAÇÕES HIDROS SANITÁRIAS | F90: UN | G90: =VLOOKUP(C90,'Comp SINAPI PE 06-2025 Onerado'!$B$11:$F$9696,4,FALSE) -> 24.57 | H90: 0.0174 | I90: 0.43
A91: C | B91: SINAPI | C91: 94210 | D91: =VLOOKUP(C91,'Comp SINAPI PE 06-2025 Onerado'!$B$11:$F$9696,2,FALSE) -> TELHAMENTO COM TELHA ONDULADA DE FIBROCIMENTO E = 6 MM, COM RECOBRIMENTO LATERAL DE 1 1/4 DE ONDA PARA TELHADO COM INCLINAÇÃO MÁXIMA DE 10°, COM ATÉ 2 ÁGUAS, INCLUSO IÇAMENTO. AF_07/2019 | E91: COBE - COBERTURA | F91: m² | G91: =VLOOKUP(C91,'Comp SINAPI PE 06-2025 Onerado'!$B$11:$F$9696,4,FALSE) -> 58.95 | H91: 1.3566 | I91: 79.97
A92: C | B92: SINAPI | C92: 92000 | D92: =VLOOKUP(C92,'Comp SINAPI PE 06-2025 Onerado'!$B$11:$F$9696,2,FALSE) -> TOMADA BAIXA DE EMBUTIR (1 MÓDULO), 2P+T 10 A, INCLUINDO SUPORTE E PLACA - FORNECIMENTO E INSTALAÇÃO. AF_03/2023 | E92: INEL - INSTALAÇÃO ELÉTRICA/ELETRIFICAÇÃO E ILUMINAÇÃO EXTERNA | F92: UN | G92: =VLOOKUP(C92,'Comp SINAPI PE 06-2025 Onerado'!$B$11:$F$9696,4,FALSE) -> 32.46 | H92: 0.0348 | I92: 1.13
A93: C | B93: SINAPI | C93: 92543 | D93: =VLOOKUP(C93,'Comp SINAPI PE 06-2025 Onerado'!$B$11:$F$9696,2,FALSE) -> TRAMA DE MADEIRA COMPOSTA POR TERÇAS PARA TELHADOS DE ATÉ 2 ÁGUAS PARA TELHA ONDULADA DE FIBROCIMENTO, METÁLICA, PLÁSTICA OU TERMOACÚSTICA, INCLUSO TRANSPORTE VERTICAL. AF_07/2019 | E93: COBE - COBERTURA | F93: m² | G93: =VLOOKUP(C93,'Comp SINAPI PE 06-2025 Onerado'!$B$11:$F$9696,4,FALSE) -> 25.33 | H93: 1.3566 | I93: 34.36
A94: C | B94: SINAPI | C94: 89714 | D94: =VLOOKUP(C94,'Comp SINAPI PE 06-2025 Onerado'!$B$11:$F$9696,2,FALSE) -> TUBO PVC, SERIE NORMAL, ESGOTO PREDIAL, DN 100 MM, FORNECIDO E INSTALADO EM RAMAL DE DESCARGA OU RAMAL DE ESGOTO SANITÁRIO. AF_08/2022 | E94: INHI - INSTALAÇÕES HIDROS SANITÁRIAS | F94: M | G94: =VLOOKUP(C94,'Comp SINAPI PE 06-2025 Onerado'!$B$11:$F$9696,4,FALSE) -> 36.26 | H94: 0.047 | I94: 1.7
A95: C | B95: SINAPI | C95: 89711 | D95: =VLOOKUP(C95,'Comp SINAPI PE 06-2025 Onerado'!$B$11:$F$9696,2,FALSE) -> TUBO PVC, SERIE NORMAL, ESGOTO PREDIAL, DN 40 MM, FORNECIDO E INSTALADO EM RAMAL DE DESCARGA OU RAMAL DE ESGOTO SANITÁRIO. AF_08/2022 | E95: INHI - INSTALAÇÕES HIDROS SANITÁRIAS | F95: M | G95: =VLOOKUP(C95,'Comp SINAPI PE 06-2025 Onerado'!$B$11:$F$9696,4,FALSE) -> 21.14 | H95: 0.1631 | I95: 3.45
A96: C | B96: SINAPI | C96: 89712 | D96: =VLOOKUP(C96,'Comp SINAPI PE 06-2025 Onerado'!$B$11:$F$9696,2,FALSE) -> TUBO PVC, SERIE NORMAL, ESGOTO PREDIAL, DN 50 MM, FORNECIDO E INSTALADO EM RAMAL DE DESCARGA OU RAMAL DE ESGOTO SANITÁRIO. AF_08/2022 | E96: INHI - INSTALAÇÕES HIDROS SANITÁRIAS | F96: M | G96: =VLOOKUP(C96,'Comp SINAPI PE 06-2025 Onerado'!$B$11:$F$9696,4,FALSE) -> 26.02 | H96: 0.2235 | I96: 5.82
A97: C | B97: SINAPI | C97: 86888 | D97: =VLOOKUP(C97,'Comp SINAPI PE 06-2025 Onerado'!$B$11:$F$9696,2,FALSE) -> VASO SANITÁRIO SIFONADO COM CAIXA ACOPLADA LOUÇA BRANCA - FORNECIMENTO E INSTALAÇÃO. AF_01/2020 | E97: INHI - INSTALAÇÕES HIDROS SANITÁRIAS | F97: UN | G97: =VLOOKUP(C97,'Comp SINAPI PE 06-2025 Onerado'!$B$11:$F$9696,4,FALSE) -> 505.92 | H97: 0.0522 | I97: 26.41
A98: I | B98: SINAPI | C98: 11712 | D98: =VLOOKUP(C98,'Ins SINAPI PE 06-2025 Onerado'!$B$11:$F$9696,2,FALSE) -> CAIXA SIFONADA, PVC, 150 X 150 X 50 MM, COM GRELHA QUADRADA, BRANCA (NBR 5688) | E98: Material | F98: UN | G98: =VLOOKUP(C98,'Ins SINAPI PE 06-2025 Onerado'!$B$11:$F$9696,5,FALSE) -> 32.9 | H98: 0.0348 | I98: 1.14
A99: I | B99: SINAPI | C99: 3080 | D99: =VLOOKUP(C99,'Ins SINAPI PE 06-2025 Onerado'!$B$11:$F$9696,2,FALSE) -> FECHADURA ESPELHO PARA PORTA EXTERNA, EM ACO INOX (MAQUINA, TESTA E CONTRA-TESTA) E EM ZAMAC (MACANETA, LINGUETA E TRINCOS) COM ACABAMENTO CROMADO, MAQUINA DE 40 MM, INCLUINDO CHAVE TIPO CILINDRO | E99: Material | F99: CJ | G99: =VLOOKUP(C99,'Ins SINAPI PE 06-2025 Onerado'!$B$11:$F$9696,5,FALSE) -> 79.39 | H99: 0.0348 | I99: 2.76
A100: I | B100: SINAPI | C100: 11587 | D100: =VLOOKUP(C100,'Ins SINAPI PE 06-2025 Onerado'!$B$11:$F$9696,2,FALSE) -> FORRO DE PVC LISO, BRANCO, REGUA DE 10 CM, ESPESSURA APROXIMADA DE 8 MM (COM COLOCACAO / SEM ESTRUTURA METALICA) | E100: Material | F100: m² | G100: =VLOOKUP(C100,'Ins SINAPI PE 06-2025 Onerado'!$B$11:$F$9696,5,FALSE) -> 81.72 | H100: 0.9762 | I100: 79.78
A101: I | B101: SINAPI | C101: 3659 | D101: =VLOOKUP(C101,'Ins SINAPI PE 06-2025 Onerado'!$B$11:$F$9696,2,FALSE) -> JUNCAO SIMPLES DE REDUCAO, PVC, DN 100 X 50 MM, SERIE NORMAL PARA ESGOTO PREDIAL | E101: Material | F101: UN | G101: =VLOOKUP(C101,'Ins SINAPI PE 06-2025 Onerado'!$B$11:$F$9696,5,FALSE) -> 14.75 | H101: 0.0174 | I101: 0.26
A102: I | B102: SINAPI | C102: 3670 | D102: =VLOOKUP(C102,'Ins SINAPI PE 06-2025 Onerado'!$B$11:$F$9696,2,FALSE) -> JUNCAO SIMPLES, PVC, 45 GRAUS, DN 100 X 100 MM, SERIE NORMAL PARA ESGOTO PREDIAL | E102: Material | F102: UN | G102: =VLOOKUP(C102,'Ins SINAPI PE 06-2025 Onerado'!$B$11:$F$9696,5,FALSE) -> 18.94 | H102: 0.0348 | I102: 0.66
A103: I | B103: SINAPI | C103: 11697 | D103: =VLOOKUP(C103,'Ins SINAPI PE 06-2025 Onerado'!$B$11:$F$9696,2,FALSE) -> MICTORIO COLETIVO ACO INOX (AISI 304), E = 0,8 MM, DE *100 X 40 X 30* CM (C X A X P) | E103: Material | F103: UN | G103: =VLOOKUP(C103,'Ins SINAPI PE 06-2025 Onerado'!$B$11:$F$9696,5,FALSE) -> 766.12 | H103: 0.0174 | I103: 13.33
A104: I | B104: SINAPI | C104: 43777 | D104: =VLOOKUP(C104,'Ins SINAPI PE 06-2025 Onerado'!$B$11:$F$9696,2,FALSE) -> PORTA DE MADEIRA, FOLHA LEVE (NBR 15930), DE 600 X 2100 MM, E = 35 MM, NUCLEO COLMEIA, CAPA LISA EM HDF, ACABAMENTO MELAMINICO EM PADRAO MADEIRA | E104: Material | F104: UN | G104: =VLOOKUP(C104,'Ins SINAPI PE 06-2025 Onerado'!$B$11:$F$9696,5,FALSE) -> 209.28 | H104: 0.0447618 | I104: 9.37
A105: I | B105: SINAPI | C105: 21112 | D105: =VLOOKUP(C105,'Ins SINAPI PE 06-2025 Onerado'!$B$11:$F$9696,2,FALSE) -> VALVULA DE DESCARGA EM METAL CROMADO PARA MICTORIO COM ACIONAMENTO POR PRESSAO E FECHAMENTO AUTOMATICO | E105: Material | F105: UN | G105: =VLOOKUP(C105,'Ins SINAPI PE 06-2025 Onerado'!$B$11:$F$9696,5,FALSE) -> 318.49 | H105: 0.0174 | I105: 5.54
A108: Código | D108: 93583 ADAPTADO
A109: Descrição | D109: EXECUÇÃO DE CENTRAL DE FÔRMAS, PRODUÇÃO DE ARGAMASSA OU CONCRETO EM CANTEIRO DE OBRA, NÃO INCLUSO MOBILIÁRIO E EQUIPAMENTOS. AF_04/2016
A110: Data | D110: 2024-05-01
A111: Estado | D111: Pernambuco
A112: Tipo | D112: CANT - CANTEIRO DE OBRAS
A113: Unidade | D113: m²
A114: Valor sem Desoneração | D114: =SUM(I117:I131,I135:I145) -> 523.13
A116: Natureza | B116: Fonte | C116: codigo | D116: Descrição | E116: Tipo | F116: Unidade | G116: Valor sem Desoneração | H116: Coeficiente | I116: Valor sem Desoneração
A117: C | B117: SINAPI | C117: 91924 | D117: =VLOOKUP(C117,'Comp SINAPI PE 06-2025 Onerado'!$B$11:$F$9696,2,FALSE) -> CABO DE COBRE FLEXÍVEL ISOLADO, 1,5 MM², ANTI-CHAMA 450/750 V, PARA CIRCUITOS TERMINAIS - FORNECIMENTO E INSTALAÇÃO. AF_03/2023 | E117: INEL - INSTALAÇÃO ELÉTRICA/ELETRIFICAÇÃO E ILUMINAÇÃO EXTERNA | F117: M | G117: =VLOOKUP(C117,'Comp SINAPI PE 06-2025 Onerado'!$B$11:$F$9696,4,FALSE) -> 3.17 | H117: 1,0821 | I117: 2.91
A118: C | B118: SINAPI | C118: 92981 | D118: =VLOOKUP(C118,'Comp SINAPI PE 06-2025 Onerado'!$B$11:$F$9696,2,FALSE) -> CABO DE COBRE FLEXÍVEL ISOLADO, 16 MM², ANTI-CHAMA 450/750 V, PARA DISTRIBUIÇÃO - FORNECIMENTO E INSTALAÇÃO. AF_10/2020 | E118: INEL - INSTALAÇÃO ELÉTRICA/ELETRIFICAÇÃO E ILUMINAÇÃO EXTERNA | F118: M | G118: =VLOOKUP(C118,'Comp SINAPI PE 06-2025 Onerado'!$B$11:$F$9696,4,FALSE) -> 16.51 | H118: 0,4831 | I118: 6.66
A119: C | B119: SINAPI | C119: 91926 | D119: =VLOOKUP(C119,'Comp SINAPI PE 06-2025 Onerado'!$B$11:$F$9696,2,FALSE) -> CABO DE COBRE FLEXÍVEL ISOLADO, 2,5 MM², ANTI-CHAMA 450/750 V, PARA CIRCUITOS TERMINAIS - FORNECIMENTO E INSTALAÇÃO. AF_03/2023 | E119: INEL - INSTALAÇÃO ELÉTRICA/ELETRIFICAÇÃO E ILUMINAÇÃO EXTERNA | F119: M | G119: =VLOOKUP(C119,'Comp SINAPI PE 06-2025 Onerado'!$B$11:$F$9696,4,FALSE) -> 4.59 | H119: 2,087 | I119: 8.05
A120: C | B120: SINAPI | C120: 97886 | D120: =VLOOKUP(C120,'Comp SINAPI PE 06-2025 Onerado'!$B$11:$F$9696,2,FALSE) -> CAIXA ENTERRADA ELÉTRICA RETANGULAR, EM ALVENARIA COM TIJOLOS CERÂMICOS MACIÇOS, FUNDO COM BRITA, DIMENSÕES INTERNAS: 0,3X0,3X0,3 M. AF_12/2020 | E120: INEL - INSTALAÇÃO ELÉTRICA/ELETRIFICAÇÃO E ILUMINAÇÃO EXTERNA | F120: UN | G120: =VLOOKUP(C120,'Comp SINAPI PE 06-2025 Onerado'!$B$11:$F$9696,4,FALSE) -> 165.62 | H120: 0,0966 | I120: 14.63
A121: C | B121: SINAPI | C121: 95805 | D121: =VLOOKUP(C121,'Comp SINAPI PE 06-2025 Onerado'!$B$11:$F$9696,2,FALSE) -> CONDULETE DE PVC, TIPO B, PARA ELETRODUTO DE PVC SOLDÁVEL DN 25 MM (3/4''), APARENTE - FORNECIMENTO E INSTALAÇÃO. AF_10/2022 | E121: INEL - INSTALAÇÃO ELÉTRICA/ELETRIFICAÇÃO E ILUMINAÇÃO EXTERNA | F121: UN | G121: =VLOOKUP(C121,'Comp SINAPI PE 06-2025 Onerado'!$B$11:$F$9696,4,FALSE) -> 28.71 | H121: 0,3865 | I121: 9.89
A122: C | B122: SINAPI | C122: 101891 | D122: =VLOOKUP(C122,'Comp SINAPI PE 06-2025 Onerado'!$B$11:$F$9696,2,FALSE) -> DISJUNTOR MONOPOLAR TIPO NEMA, CORRENTE NOMINAL DE 35 ATÉ 50A - FORNECIMENTO E INSTALAÇÃO. AF_10/2020 | E122: INEL - INSTALAÇÃO ELÉTRICA/ELETRIFICAÇÃO E ILUMINAÇÃO EXTERNA | F122: UN | G122: =VLOOKUP(C122,'Comp SINAPI PE 06-2025 Onerado'!$B$11:$F$9696,4,FALSE) -> 32.08 | H122: 0,2899 | I122: 9.01
A123: C | B123: SINAPI | C123: 91862 | D123: =VLOOKUP(C123,'Comp SINAPI PE 06-2025 Onerado'!$B$11:$F$9696,2,FALSE) -> ELETRODUTO RÍGIDO ROSCÁVEL, PVC, DN 20 MM (1/2"), PARA CIRCUITOS TERMINAIS, INSTALADO EM FORRO - FORNECIMENTO E INSTALAÇÃO. AF_03/2023 | E123: INEL - INSTALAÇÃO ELÉTRICA/ELETRIFICAÇÃO E ILUMINAÇÃO EXTERNA | F123: M | G123: =VLOOKUP(C123,'Comp SINAPI PE 06-2025 Onerado'!$B$11:$F$9696,4,FALSE) -> 10.59 | H123: 0,4251 | I123: 3.91
A124: C | B124: SINAPI | C124: 91870 | D124: =VLOOKUP(C124,'Comp SINAPI PE 06-2025 Onerado'!$B$11:$F$9696,2,FALSE) -> ELETRODUTO RÍGIDO ROSCÁVEL, PVC, DN 20 MM (1/2"), PARA CIRCUITOS TERMINAIS, INSTALADO EM PAREDE - FORNECIMENTO E INSTALAÇÃO. AF_03/2023 | E124: INEL - INSTALAÇÃO ELÉTRICA/ELETRIFICAÇÃO E ILUMINAÇÃO EXTERNA | F124: M | G124: =VLOOKUP(C124,'Comp SINAPI PE 06-2025 Onerado'!$B$11:$F$9696,4,FALSE) -> 13.82 | H124: 0,4638 | I124: 5.53
A125: C | B125: SINAPI | C125: 93358 | D125: =VLOOKUP(C125,'Comp SINAPI PE 06-2025 Onerado'!$B$11:$F$9696,2,FALSE) -> ESCAVAÇÃO MANUAL DE VALA. AF_09/2024 | E125: MOVT - MOVIMENTO DE TERRA | F125: m³ | G125: =VLOOKUP(C125,'Comp SINAPI PE 06-2025 Onerado'!$B$11:$F$9696,4,FALSE) -> 95.25 | H125: 0,0078 | I125: 0.62
A126: C | B126: SINAPI | C126: 91170 | D126: =VLOOKUP(C126,'Comp SINAPI PE 06-2025 Onerado'!$B$11:$F$9696,2,FALSE) -> FIXAÇÃO DE TUBOS HORIZONTAIS DE PVC ÁGUA, PVC ESGOTO, PVC ÁGUA PLUVIAL, CPVC, PPR, COBRE OU AÇO, DIÂMETROS MENORES OU IGUAIS A 40 MM, COM ABRAÇADEIRA METÁLICA RÍGIDA TIPO U PERFIL 1 1/4", FIXADA EM PERFILADO EM LAJE. AF_09/2023_PS | E126: INHI - INSTALAÇÕES HIDROS SANITÁRIAS | F126: M | G126: =VLOOKUP(C126,'Comp SINAPI PE 06-2025 Onerado'!$B$11:$F$9696,4,FALSE) -> 11.65 | H126: 0,4251 | I126: 4.54
A127: C | B127: SINAPI | C127: 91173 | D127: =VLOOKUP(C127,'Comp SINAPI PE 06-2025 Onerado'!$B$11:$F$9696,2,FALSE) -> FIXAÇÃO DE TUBOS VERTICAIS DE PVC ÁGUA, PVC ESGOTO, PVC ÁGUA PLUVIAL, CPVC, PPR, COBRE OU AÇO, DIÂMETROS MENORES OU IGUAIS A 40 MM, COM ABRAÇADEIRA METÁLICA RÍGIDA TIPO U PERFIL 1 1/4", FIXADA EM PERFILADO EM PAREDE. AF_09/2023_PS | E127: INHI - INSTALAÇÕES HIDROS SANITÁRIAS | F127: M | G127: =VLOOKUP(C127,'Comp SINAPI PE 06-2025 Onerado'!$B$11:$F$9696,4,FALSE) -> 4.34 | H127: 0,4638 | I127: 1.84
A128: C | B128: SINAPI | C128: 96985 | D128: =VLOOKUP(C128,'Comp SINAPI PE 06-2025 Onerado'!$B$11:$F$9696,2,FALSE) -> HASTE DE ATERRAMENTO, DIÂMETRO 5/8", COM 3 METROS - FORNECIMENTO E INSTALAÇÃO. AF_08/2023 | E128: INEL - INSTALAÇÃO ELÉTRICA/ELETRIFICAÇÃO E ILUMINAÇÃO EXTERNA | F128: UN | G128: =VLOOKUP(C128,'Comp SINAPI PE 06-2025 Onerado'!$B$11:$F$9696,4,FALSE) -> 108.95 | H128: 0,0966 | I128: 10.39
A129: C | B129: SINAPI | C129: 92023 | D129: =VLOOKUP(C129,'Comp SINAPI PE 06-2025 Onerado'!$B$11:$F$9696,2,FALSE) -> INTERRUPTOR SIMPLES (1 MÓDULO) COM 1 TOMADA DE EMBUTIR 2P+T 10 A, INCLUINDO SUPORTE E PLACA - FORNECIMENTO E INSTALAÇÃO. AF_03/2023 | E129: INEL - INSTALAÇÃO ELÉTRICA/ELETRIFICAÇÃO E ILUMINAÇÃO EXTERNA | F129: UN | G129: =VLOOKUP(C129,'Comp SINAPI PE 06-2025 Onerado'!$B$11:$F$9696,4,FALSE) -> 52.72 | H129: 0,0966 | I129: 4.67
A130: C | B130: SINAPI | C130: 95241 | D130: =VLOOKUP(C130,'Comp SINAPI PE 06-2025 Onerado'!$B$11:$F$9696,2,FALSE) -> LASTRO DE CONCRETO MAGRO, APLICADO EM PISOS, LAJES SOBRE SOLO OU RADIERS, ESPESSURA DE 5 CM. AF_01/2024 | E130: FUES - FUNDAÇÕES E ESTRUTURAS | F130: m² | G130: =VLOOKUP(C130,'Comp SINAPI PE 06-2025 Onerado'!$B$11:$F$9696,4,FALSE) -> 37.92 | H130: 1,9256 | I130: 59.65
A131: C | B131: SINAPI | C131: 97586 | D131: LUMINÁRIA TIPO CALHA, DE SOBREPOR, COM 2 LÂMPADAS TUBULARES FLUORESCENTES DE 36 W, COM REATOR DE PARTIDA RÁPIDA - FORNECIMENTO E INSTALAÇÃO. AF_02/2020 | E131: INEL - INSTALAÇÃO ELÉTRICA/ELETRIFICAÇÃO E ILUMINAÇÃO EXTERNA | F131: UN | G131: =SUM(I132:I134) -> 222.74 | H131: 0.1392 | I131: =ROUND(G131*H131,2) -> 31.01
A132: C | B132: SINAPI | C132: 88247 | D132: =VLOOKUP(C132,'Comp SINAPI PE 06-2025 Onerado'!$B$11:$F$9696,2,FALSE) -> AUXILIAR DE ELETRICISTA COM ENCARGOS COMPLEMENTARES | E132: SEDI - SERVIÇOS DIVERSOS | F132: H | G132: =VLOOKUP(C132,'Comp SINAPI PE 06-2025 Onerado'!$B$11:$F$9696,4,FALSE) -> 25.53 | H132: 0.1727 | I132: =ROUND(G132*H132,2) -> 4.41
A133: C | B133: SINAPI | C133: 88264 | D133: =VLOOKUP(C133,'Comp SINAPI PE 06-2025 Onerado'!$B$11:$F$9696,2,FALSE) -> ELETRICISTA COM ENCARGOS COMPLEMENTARES | E133: SEDI - SERVIÇOS DIVERSOS | F133: H | G133: =VLOOKUP(C133,'Comp SINAPI PE 06-2025 Onerado'!$B$11:$F$9696,4,FALSE) -> 30.24 | H133: 0.4144 | I133: =ROUND(G133*H133,2) -> 12.53
A134: I | B134: SINAPI | C134: 3780 | D134: =VLOOKUP(C134,'Ins SINAPI PE 06-2025 Onerado'!$B$11:$F$9696,2,FALSE) -> LUMINARIA DE SOBREPOR EM CHAPA DE ACO PARA 1 LAMPADA FLUORESCENTE DE *36* W, ALETADA, COMPLETA (LAMPADA E REATOR INCLUSOS) | E134: Material | F134: UN | G134: =G64 -> 102.9 | H134: 2 | I134: =ROUND(G134*H134,2) -> 205.8
A135: C | B135: SINAPI | C135: 98445 | D135: =VLOOKUP(C135,'Comp SINAPI PE 06-2025 Onerado'!$B$11:$F$9696,2,FALSE) -> PAREDE DE MADEIRA COMPENSADA PARA CONSTRUÇÃO TEMPORÁRIA EM CHAPA SIMPLES, EXTERNA, COM ÁREA LÍQUIDA MAIOR OU IGUAL A 6 M², COM VÃO. AF_03/2024 | E135: CANT - CANTEIRO DE OBRAS | F135: m² | G135: =VLOOKUP(C135,'Comp SINAPI PE 06-2025 Onerado'!$B$11:$F$9696,4,FALSE) -> 114.38 | H135: 0,1508 | I135: 28.43
A136: C | B136: SINAPI | C136: 98441 | D136: =VLOOKUP(C136,'Comp SINAPI PE 06-2025 Onerado'!$B$11:$F$9696,2,FALSE) -> PAREDE DE MADEIRA COMPENSADA PARA CONSTRUÇÃO TEMPORÁRIA EM CHAPA SIMPLES, EXTERNA, SEM VÃO. AF_03/2024 | E136: CANT - CANTEIRO DE OBRAS | F136: m² | G136: =VLOOKUP(C136,'Comp SINAPI PE 06-2025 Onerado'!$B$11:$F$9696,4,FALSE) -> 96.22 | H136: 0,0966 | I136: 15.02
A137: C | B137: SINAPI | C137: 98446 | D137: =VLOOKUP(C137,'Comp SINAPI PE 06-2025 Onerado'!$B$11:$F$9696,2,FALSE) -> PAREDE DE MADEIRA COMPENSADA PARA CONSTRUÇÃO TEMPORÁRIA EM CHAPA SIMPLES, EXTERNA, COM ÁREA LÍQUIDA MENOR QUE 6 M², COM VÃO. AF_03/2024 | E137: CANT - CANTEIRO DE OBRAS | F137: m² | G137: =VLOOKUP(C137,'Comp SINAPI PE 06-2025 Onerado'!$B$11:$F$9696,4,FALSE) -> 147.59 | H137: 0,1176 | I137: 28.54
A138: C | B138: SINAPI | C138: 98441 | D138: =VLOOKUP(C138,'Comp SINAPI PE 06-2025 Onerado'!$B$11:$F$9696,2,FALSE) -> PAREDE DE MADEIRA COMPENSADA PARA CONSTRUÇÃO TEMPORÁRIA EM CHAPA SIMPLES, EXTERNA, SEM VÃO. AF_03/2024 | E138: CANT - CANTEIRO DE OBRAS | F138: m² | G138: =VLOOKUP(C138,'Comp SINAPI PE 06-2025 Onerado'!$B$11:$F$9696,4,FALSE) -> 96.22 | H138: 0.3007 | I138: =ROUND(G138*H138,2) -> 28.93
A139: C | B139: SINAPI | C139: 88489 | D139: =VLOOKUP(C139,'Comp SINAPI PE 06-2025 Onerado'!$B$11:$F$9696,2,FALSE) -> PINTURA LÁTEX ACRÍLICA PREMIUM, APLICAÇÃO MANUAL EM PAREDES, DUAS DEMÃOS. AF_04/2023 | E139: PINT - PINTURAS | F139: m² | G139: =VLOOKUP(C139,'Comp SINAPI PE 06-2025 Onerado'!$B$11:$F$9696,4,FALSE) -> 14.93 | H139: 0,4761 | I139: 6.35
A140: C | B140: SINAPI | C140: 101876 | D140: =VLOOKUP(C140,'Comp SINAPI PE 06-2025 Onerado'!$B$11:$F$9696,2,FALSE) -> QUADRO DE DISTRIBUIÇÃO DE ENERGIA EM PVC, DE EMBUTIR, SEM BARRAMENTO, PARA 6 DISJUNTORES - FORNECIMENTO E INSTALAÇÃO. AF_10/2020 | E140: INEL - INSTALAÇÃO ELÉTRICA/ELETRIFICAÇÃO E ILUMINAÇÃO EXTERNA | F140: UN | G140: =VLOOKUP(C140,'Comp SINAPI PE 06-2025 Onerado'!$B$11:$F$9696,4,FALSE) -> 107.15 | H140: 0,0966 | I140: 10.05
A141: C | B141: SINAPI | C141: 94210 | D141: =VLOOKUP(C141,'Comp SINAPI PE 06-2025 Onerado'!$B$11:$F$9696,2,FALSE) -> TELHAMENTO COM TELHA ONDULADA DE FIBROCIMENTO E = 6 MM, COM RECOBRIMENTO LATERAL DE 1 1/4 DE ONDA PARA TELHADO COM INCLINAÇÃO MÁXIMA DE 10°, COM ATÉ 2 ÁGUAS, INCLUSO IÇAMENTO. AF_07/2019 | E141: COBE - COBERTURA | F141: m² | G141: =VLOOKUP(C141,'Comp SINAPI PE 06-2025 Onerado'!$B$11:$F$9696,4,FALSE) -> 58.95 | H141: 1,9256 | I141: 125
A142: C | B142: SINAPI | C142: 92008 | D142: =VLOOKUP(C142,'Comp SINAPI PE 06-2025 Onerado'!$B$11:$F$9696,2,FALSE) -> TOMADA BAIXA DE EMBUTIR (2 MÓDULOS), 2P+T 10 A, INCLUINDO SUPORTE E PLACA - FORNECIMENTO E INSTALAÇÃO. AF_03/2023 | E142: INEL - INSTALAÇÃO ELÉTRICA/ELETRIFICAÇÃO E ILUMINAÇÃO EXTERNA | F142: UN | G142: =VLOOKUP(C142,'Comp SINAPI PE 06-2025 Onerado'!$B$11:$F$9696,4,FALSE) -> 50.02 | H142: 0,2899 | I142: 13.41
A143: C | B143: SINAPI | C143: 92543 | D143: =VLOOKUP(C143,'Comp SINAPI PE 06-2025 Onerado'!$B$11:$F$9696,2,FALSE) -> TRAMA DE MADEIRA COMPOSTA POR TERÇAS PARA TELHADOS DE ATÉ 2 ÁGUAS PARA TELHA ONDULADA DE FIBROCIMENTO, METÁLICA, PLÁSTICA OU TERMOACÚSTICA, INCLUSO TRANSPORTE VERTICAL. AF_07/2019 | E143: COBE - COBERTURA | F143: m² | G143: =VLOOKUP(C143,'Comp SINAPI PE 06-2025 Onerado'!$B$11:$F$9696,4,FALSE) -> 25.33 | H143: 1,9256 | I143: 49.21
A144: I | B144: SINAPI | C144: 10886 | D144: =VLOOKUP(C144,'Ins SINAPI PE 06-2025 Onerado'!$B$11:$F$9696,2,FALSE) -> EXTINTOR DE INCENDIO PORTATIL COM CARGA DE AGUA PRESSURIZADA DE 10 L, CLASSE A | E144: Material | F144: UN | G144: =VLOOKUP(C144,'Ins SINAPI PE 06-2025 Onerado'!$B$11:$F$9696,5,FALSE) -> 245 | H144: 0,0966 | I144: 22.82
A145: I | B145: SINAPI | C145: 10891 | D145: =VLOOKUP(C145,'Ins SINAPI PE 06-2025 Onerado'!$B$11:$F$9696,2,FALSE) -> EXTINTOR DE INCENDIO PORTATIL COM CARGA DE PO QUIMICO SECO (PQS) DE 4 KG, CLASSE BC | E145: Material | F145: UN | G145: =VLOOKUP(C145,'Ins SINAPI PE 06-2025 Onerado'!$B$11:$F$9696,5,FALSE) -> 236.92 | H145: 0,0966 | I145: 22.06
A148: Código | D148: 93210 ADAPTADO
A149: Descrição | D149: EXECUÇÃO DE REFEITÓRIO EM CANTEIRO DE OBRA EM CHAPA DE MADEIRA COMPENSADA, NÃO INCLUSO MOBILIÁRIO E EQUIPAMENTOS. AF_02/2016
A150: Data | D150: 2024-05-01
A151: Estado | D151: Pernambuco
A152: Tipo | D152: CANT - CANTEIRO DE OBRAS
A153: Unidade | D153: m²
A154: Valor sem Desoneração | D154: =SUM(I157:I179,I183:I188,I195:I208) -> 599.2143645
A156: Natureza | B156: Fonte | C156: codigo | D156: Descrição | E156: Tipo | F156: Unidade | G156: Valor sem Desoneração | H156: Coeficiente | I156: Valor sem Desoneração
A157: C | B157: SINAPI | C157: 101165 | D157: =VLOOKUP(C157,'Comp SINAPI PE 06-2025 Onerado'!$B$11:$F$9696,2,FALSE) -> ALVENARIA DE EMBASAMENTO COM BLOCO ESTRUTURAL DE CONCRETO, DE 14X19X29CM E ARGAMASSA DE ASSENTAMENTO COM PREPARO EM BETONEIRA. AF_05/2020 | E157: FUES - FUNDAÇÕES E ESTRUTURAS | F157: m³ | G157: =VLOOKUP(C157,'Comp SINAPI PE 06-2025 Onerado'!$B$11:$F$9696,4,FALSE) -> 1019.3 | H157: 0.04 | I157: =G157*H157 -> 40.772
A158: C | B158: SINAPI | C158: 86934 | D158: =VLOOKUP(C158,'Comp SINAPI PE 06-2025 Onerado'!$B$11:$F$9696,2,FALSE) -> BANCADA DE MÁRMORE SINTÉTICO 120 X 60CM, COM CUBA INTEGRADA, INCLUSO SIFÃO TIPO FLEXÍVEL EM PVC, VÁLVULA EM PLÁSTICO CROMADO TIPO AMERICANA E TORNEIRA CROMADA LONGA, DE PAREDE, PADRÃO POPULAR - FORNECIMENTO E INSTALAÇÃO. AF_01/2020 | E158: INHI - INSTALAÇÕES HIDROS SANITÁRIAS | F158: UN | G158: =VLOOKUP(C158,'Comp SINAPI PE 06-2025 Onerado'!$B$11:$F$9696,4,FALSE) -> 455.39 | H158: 0.0268 | I158: =G158*H158 -> 12.204452
A159: C | B159: SINAPI | C159: 91924 | D159: =VLOOKUP(C159,'Comp SINAPI PE 06-2025 Onerado'!$B$11:$F$9696,2,FALSE) -> CABO DE COBRE FLEXÍVEL ISOLADO, 1,5 MM², ANTI-CHAMA 450/750 V, PARA CIRCUITOS TERMINAIS - FORNECIMENTO E INSTALAÇÃO. AF_03/2023 | E159: INEL - INSTALAÇÃO ELÉTRICA/ELETRIFICAÇÃO E ILUMINAÇÃO EXTERNA | F159: M | G159: =VLOOKUP(C159,'Comp SINAPI PE 06-2025 Onerado'!$B$11:$F$9696,4,FALSE) -> 3.17 | H159: 0.8591 | I159: 2.723347
A160: C | B160: SINAPI | C160: 91926 | D160: =VLOOKUP(C160,'Comp SINAPI PE 06-2025 Onerado'!$B$11:$F$9696,2,FALSE) -> CABO DE COBRE FLEXÍVEL ISOLADO, 2,5 MM², ANTI-CHAMA 450/750 V, PARA CIRCUITOS TERMINAIS - FORNECIMENTO E INSTALAÇÃO. AF_03/2023 | E160: INEL - INSTALAÇÃO ELÉTRICA/ELETRIFICAÇÃO E ILUMINAÇÃO EXTERNA | F160: M | G160: =VLOOKUP(C160,'Comp SINAPI PE 06-2025 Onerado'!$B$11:$F$9696,4,FALSE) -> 4.59 | H160: 2.5503 | I160: 11.705877
A161: C | B161: SINAPI | C161: 98102 | D161: =VLOOKUP(C161,'Comp SINAPI PE 06-2025 Onerado'!$B$11:$F$9696,2,FALSE) -> CAIXA DE GORDURA SIMPLES, CIRCULAR, EM CONCRETO PRÉ-MOLDADO, DIÂMETRO INTERNO = 0,4 M, ALTURA INTERNA = 0,4 M. AF_12/2020 | E161: INHI - INSTALAÇÕES HIDROS SANITÁRIAS | F161: UN | G161: =VLOOKUP(C161,'Comp SINAPI PE 06-2025 Onerado'!$B$11:$F$9696,4,FALSE) -> 145.97 | H161: 0.0268 | I161: 3.911996
A162: C | B162: SINAPI | C162: 97906 | D162: =VLOOKUP(C162,'Comp SINAPI PE 06-2025 Onerado'!$B$11:$F$9696,2,FALSE) -> CAIXA ENTERRADA HIDRÁULICA RETANGULAR, EM ALVENARIA COM BLOCOS DE CONCRETO, DIMENSÕES INTERNAS: 0,6X0,6X0,6 M PARA REDE DE ESGOTO. AF_12/2020 | E162: INHI - INSTALAÇÕES HIDROS SANITÁRIAS | F162: UN | G162: =VLOOKUP(C162,'Comp SINAPI PE 06-2025 Onerado'!$B$11:$F$9696,4,FALSE) -> 463.31 | H162: 0.0268 | I162: 12.416708
A163: C | B163: SINAPI | C163: 91937 | D163: =VLOOKUP(C163,'Comp SINAPI PE 06-2025 Onerado'!$B$11:$F$9696,2,FALSE) -> CAIXA OCTOGONAL 3" X 3", PVC, INSTALADA EM LAJE - FORNECIMENTO E INSTALAÇÃO. AF_03/2023 | E163: INEL - INSTALAÇÃO ELÉTRICA/ELETRIFICAÇÃO E ILUMINAÇÃO EXTERNA | F163: UN | G163: =VLOOKUP(C163,'Comp SINAPI PE 06-2025 Onerado'!$B$11:$F$9696,4,FALSE) -> 18.63 | H163: 0.1611 | I163: 3.001293
A164: C | B164: SINAPI | C164: 88262 | D164: =VLOOKUP(C164,'Comp SINAPI PE 06-2025 Onerado'!$B$11:$F$9696,2,FALSE) -> CARPINTEIRO DE FORMAS COM ENCARGOS COMPLEMENTARES | E164: SEDI - SERVIÇOS DIVERSOS | F164: H | G164: =VLOOKUP(C164,'Comp SINAPI PE 06-2025 Onerado'!$B$11:$F$9696,4,FALSE) -> 29.41 | H164: 1.1155 | I164: 32.806855
A165: C | B165: SINAPI | C165: 95805 | D165: =VLOOKUP(C165,'Comp SINAPI PE 06-2025 Onerado'!$B$11:$F$9696,2,FALSE) -> CONDULETE DE PVC, TIPO B, PARA ELETRODUTO DE PVC SOLDÁVEL DN 25 MM (3/4''), APARENTE - FORNECIMENTO E INSTALAÇÃO. AF_10/2022 | E165: INEL - INSTALAÇÃO ELÉTRICA/ELETRIFICAÇÃO E ILUMINAÇÃO EXTERNA | F165: UN | G165: =VLOOKUP(C165,'Comp SINAPI PE 06-2025 Onerado'!$B$11:$F$9696,4,FALSE) -> 28.71 | H165: 0.1879 | I165: 5.394609
A166: C | B166: SINAPI | C166: 95811 | D166: =VLOOKUP(C166,'Comp SINAPI PE 06-2025 Onerado'!$B$11:$F$9696,2,FALSE) -> CONDULETE DE PVC, TIPO LB, PARA ELETRODUTO DE PVC SOLDÁVEL DN 25 MM (3/4''), APARENTE - FORNECIMENTO E INSTALAÇÃO. AF_10/2022 | E166: INEL - INSTALAÇÃO ELÉTRICA/ELETRIFICAÇÃO E ILUMINAÇÃO EXTERNA | F166: UN | G166: =VLOOKUP(C166,'Comp SINAPI PE 06-2025 Onerado'!$B$11:$F$9696,4,FALSE) -> 24.93 | H166: 0.0268 | I166: 0.668124
A167: C | B167: SINAPI | C167: 91911 | D167: =VLOOKUP(C167,'Comp SINAPI PE 06-2025 Onerado'!$B$11:$F$9696,2,FALSE) -> CURVA 90 GRAUS PARA ELETRODUTO, PVC, ROSCÁVEL, DN 20 MM (1/2"), PARA CIRCUITOS TERMINAIS, INSTALADA EM PAREDE - FORNECIMENTO E INSTALAÇÃO. AF_03/2023 | E167: INEL - INSTALAÇÃO ELÉTRICA/ELETRIFICAÇÃO E ILUMINAÇÃO EXTERNA | F167: UN | G167: =VLOOKUP(C167,'Comp SINAPI PE 06-2025 Onerado'!$B$11:$F$9696,4,FALSE) -> 19.16 | H167: 0.1074 | I167: 2.057784
A168: C | B168: SINAPI | C168: 101891 | D168: =VLOOKUP(C168,'Comp SINAPI PE 06-2025 Onerado'!$B$11:$F$9696,2,FALSE) -> DISJUNTOR MONOPOLAR TIPO NEMA, CORRENTE NOMINAL DE 35 ATÉ 50A - FORNECIMENTO E INSTALAÇÃO. AF_10/2020 | E168: INEL - INSTALAÇÃO ELÉTRICA/ELETRIFICAÇÃO E ILUMINAÇÃO EXTERNA | F168: UN | G168: =VLOOKUP(C168,'Comp SINAPI PE 06-2025 Onerado'!$B$11:$F$9696,4,FALSE) -> 32.08 | H168: 0.1074 | I168: 3.445392
A169: C | B169: SINAPI | C169: 91862 | D169: =VLOOKUP(C169,'Comp SINAPI PE 06-2025 Onerado'!$B$11:$F$9696,2,FALSE) -> ELETRODUTO RÍGIDO ROSCÁVEL, PVC, DN 20 MM (1/2"), PARA CIRCUITOS TERMINAIS, INSTALADO EM FORRO - FORNECIMENTO E INSTALAÇÃO. AF_03/2023 | E169: INEL - INSTALAÇÃO ELÉTRICA/ELETRIFICAÇÃO E ILUMINAÇÃO EXTERNA | F169: M | G169: =VLOOKUP(C169,'Comp SINAPI PE 06-2025 Onerado'!$B$11:$F$9696,4,FALSE) -> 10.59 | H169: 0.3221 | I169: 3.411039
A170: C | B170: SINAPI | C170: 91870 | D170: =VLOOKUP(C170,'Comp SINAPI PE 06-2025 Onerado'!$B$11:$F$9696,2,FALSE) -> ELETRODUTO RÍGIDO ROSCÁVEL, PVC, DN 20 MM (1/2"), PARA CIRCUITOS TERMINAIS, INSTALADO EM PAREDE - FORNECIMENTO E INSTALAÇÃO. AF_03/2023 | E170: INEL - INSTALAÇÃO ELÉTRICA/ELETRIFICAÇÃO E ILUMINAÇÃO EXTERNA | F170: M | G170: =VLOOKUP(C170,'Comp SINAPI PE 06-2025 Onerado'!$B$11:$F$9696,4,FALSE) -> 13.82 | H170: 0.5369 | I170: 7.419958
A171: C | B171: SINAPI | C171: 93358 | D171: =VLOOKUP(C171,'Comp SINAPI PE 06-2025 Onerado'!$B$11:$F$9696,2,FALSE) -> ESCAVAÇÃO MANUAL DE VALA. AF_09/2024 | E171: MOVT - MOVIMENTO DE TERRA | F171: m³ | G171: =VLOOKUP(C171,'Comp SINAPI PE 06-2025 Onerado'!$B$11:$F$9696,4,FALSE) -> 95.25 | H171: 0.039 | I171: 3.71475
A172: C | B172: SINAPI | C172: 91170 | D172: =VLOOKUP(C172,'Comp SINAPI PE 06-2025 Onerado'!$B$11:$F$9696,2,FALSE) -> FIXAÇÃO DE TUBOS HORIZONTAIS DE PVC ÁGUA, PVC ESGOTO, PVC ÁGUA PLUVIAL, CPVC, PPR, COBRE OU AÇO, DIÂMETROS MENORES OU IGUAIS A 40 MM, COM ABRAÇADEIRA METÁLICA RÍGIDA TIPO U PERFIL 1 1/4", FIXADA EM PERFILADO EM LAJE. AF_09/2023_PS | E172: INHI - INSTALAÇÕES HIDROS SANITÁRIAS | F172: M | G172: =VLOOKUP(C172,'Comp SINAPI PE 06-2025 Onerado'!$B$11:$F$9696,4,FALSE) -> 11.65 | H172: 0.3221 | I172: 3.752465
A173: C | B173: SINAPI | C173: 91173 | D173: =VLOOKUP(C173,'Comp SINAPI PE 06-2025 Onerado'!$B$11:$F$9696,2,FALSE) -> FIXAÇÃO DE TUBOS VERTICAIS DE PVC ÁGUA, PVC ESGOTO, PVC ÁGUA PLUVIAL, CPVC, PPR, COBRE OU AÇO, DIÂMETROS MENORES OU IGUAIS A 40 MM, COM ABRAÇADEIRA METÁLICA RÍGIDA TIPO U PERFIL 1 1/4", FIXADA EM PERFILADO EM PAREDE. AF_09/2023_PS | E173: INHI - INSTALAÇÕES HIDROS SANITÁRIAS | F173: M | G173: =VLOOKUP(C173,'Comp SINAPI PE 06-2025 Onerado'!$B$11:$F$9696,4,FALSE) -> 4.34 | H173: 0.5369 | I173: 2.330146
A174: C | B174: SINAPI | C174: 92023 | D174: =VLOOKUP(C174,'Comp SINAPI PE 06-2025 Onerado'!$B$11:$F$9696,2,FALSE) -> INTERRUPTOR SIMPLES (1 MÓDULO) COM 1 TOMADA DE EMBUTIR 2P+T 10 A, INCLUINDO SUPORTE E PLACA - FORNECIMENTO E INSTALAÇÃO. AF_03/2023 | E174: INEL - INSTALAÇÃO ELÉTRICA/ELETRIFICAÇÃO E ILUMINAÇÃO EXTERNA | F174: UN | G174: =VLOOKUP(C174,'Comp SINAPI PE 06-2025 Onerado'!$B$11:$F$9696,4,FALSE) -> 52.72 | H174: 0.0268 | I174: 1.412896
A175: C | B175: SINAPI | C175: 89724 | D175: =VLOOKUP(C175,'Comp SINAPI PE 06-2025 Onerado'!$B$11:$F$9696,2,FALSE) -> JOELHO 90 GRAUS, PVC, SERIE NORMAL, ESGOTO PREDIAL, DN 40 MM, JUNTA SOLDÁVEL, FORNECIDO E INSTALADO EM RAMAL DE DESCARGA OU RAMAL DE ESGOTO SANITÁRIO. AF_08/2022 | E175: INHI - INSTALAÇÕES HIDROS SANITÁRIAS | F175: UN | G175: =VLOOKUP(C175,'Comp SINAPI PE 06-2025 Onerado'!$B$11:$F$9696,4,FALSE) -> 10.22 | H175: 0.0537 | I175: 0.548814
A176: C | B176: SINAPI | C176: 95240 | D176: =VLOOKUP(C176,'Comp SINAPI PE 06-2025 Onerado'!$B$11:$F$9696,2,FALSE) -> LASTRO DE CONCRETO MAGRO, APLICADO EM PISOS, LAJES SOBRE SOLO OU RADIERS, ESPESSURA DE 3 CM. AF_01/2024 | E176: FUES - FUNDAÇÕES E ESTRUTURAS | F176: m² | G176: =VLOOKUP(C176,'Comp SINAPI PE 06-2025 Onerado'!$B$11:$F$9696,4,FALSE) -> 19.74 | H176: 0.009 | I176: 0.17766
A177: C | B177: SINAPI | C177: 95241 | D177: =VLOOKUP(C177,'Comp SINAPI PE 06-2025 Onerado'!$B$11:$F$9696,2,FALSE) -> LASTRO DE CONCRETO MAGRO, APLICADO EM PISOS, LAJES SOBRE SOLO OU RADIERS, ESPESSURA DE 5 CM. AF_01/2024 | E177: FUES - FUNDAÇÕES E ESTRUTURAS | F177: m² | G177: =VLOOKUP(C177,'Comp SINAPI PE 06-2025 Onerado'!$B$11:$F$9696,4,FALSE) -> 37.92 | H177: 1.451 | I177: 55.02192
A178: C | B178: SINAPI | C178: 86943 | D178: =VLOOKUP(C178,'Comp SINAPI PE 06-2025 Onerado'!$B$11:$F$9696,2,FALSE) -> LAVATÓRIO LOUÇA BRANCA SUSPENSO, 29,5 X 39CM OU EQUIVALENTE, PADRÃO POPULAR, INCLUSO SIFÃO FLEXÍVEL EM PVC, VÁLVULA E ENGATE FLEXÍVEL 30CM EM PLÁSTICO E TORNEIRA CROMADA DE MESA, PADRÃO POPULAR - FORNECIMENTO E INSTALAÇÃO. AF_01/2020 | E178: INHI - INSTALAÇÕES HIDROS SANITÁRIAS | F178: UN | G178: =VLOOKUP(C178,'Comp SINAPI PE 06-2025 Onerado'!$B$11:$F$9696,4,FALSE) -> 277.8 | H178: 0.0268 | I178: 7.44504
A179: C | B179: SINAPI | C179: 97586 | D179: LUMINÁRIA TIPO CALHA, DE SOBREPOR, COM 2 LÂMPADAS TUBULARES FLUORESCENTES DE 36 W, COM REATOR DE PARTIDA RÁPIDA - FORNECIMENTO E INSTALAÇÃO. AF_02/2020 ADAPTADA | E179: INEL - INSTALAÇÃO ELÉTRICA/ELETRIFICAÇÃO E ILUMINAÇÃO EXTERNA | F179: UN | G179: =SUM(I180:I182) -> 119.840487 | H179: 0.1611 | I179: =G179*H179 -> 19.30630246
A180: C | B180: SINAPI | C180: 88247 | D180: =VLOOKUP(C180,'Comp SINAPI PE 06-2025 Onerado'!$B$11:$F$9696,2,FALSE) -> AUXILIAR DE ELETRICISTA COM ENCARGOS COMPLEMENTARES | E180: SEDI - SERVIÇOS DIVERSOS | F180: H | G180: =VLOOKUP(C180,'Comp SINAPI PE 06-2025 Onerado'!$B$11:$F$9696,4,FALSE) -> 25.53 | H180: 0.1727 | I180: 4.409031
A181: C | B181: SINAPI | C181: 88264 | D181: =VLOOKUP(C181,'Comp SINAPI PE 06-2025 Onerado'!$B$11:$F$9696,2,FALSE) -> ELETRICISTA COM ENCARGOS COMPLEMENTARES | E181: SEDI - SERVIÇOS DIVERSOS | F181: H | G181: =VLOOKUP(C181,'Comp SINAPI PE 06-2025 Onerado'!$B$11:$F$9696,4,FALSE) -> 30.24 | H181: 0.4144 | I181: 12.531456
A182: C | B182: SINAPI | C182: 3780 | D182: =VLOOKUP(C182,'Ins SINAPI PE 06-2025 Onerado'!$B$11:$F$9696,2,FALSE) -> LUMINARIA DE SOBREPOR EM CHAPA DE ACO PARA 1 LAMPADA FLUORESCENTE DE *36* W, ALETADA, COMPLETA (LAMPADA E REATOR INCLUSOS) | E182: Material | F182: UN | G182: =G134 -> 102.9 | H182: 1 | I182: 102.9
A183: C | B183: SINAPI | C183: 98445 | D183: =VLOOKUP(C183,'Comp SINAPI PE 06-2025 Onerado'!$B$11:$F$9696,2,FALSE) -> PAREDE DE MADEIRA COMPENSADA PARA CONSTRUÇÃO TEMPORÁRIA EM CHAPA SIMPLES, EXTERNA, COM ÁREA LÍQUIDA MAIOR OU IGUAL A 6 M², COM VÃO. AF_03/2024 | E183: CANT - CANTEIRO DE OBRAS | F183: m² | G183: =VLOOKUP(C183,'Comp SINAPI PE 06-2025 Onerado'!$B$11:$F$9696,4,FALSE) -> 114.38 | H183: 0.2264 | I183: 25.895632
A184: C | B184: SINAPI | C184: 98441 | D184: =VLOOKUP(C184,'Comp SINAPI PE 06-2025 Onerado'!$B$11:$F$9696,2,FALSE) -> PAREDE DE MADEIRA COMPENSADA PARA CONSTRUÇÃO TEMPORÁRIA EM CHAPA SIMPLES, EXTERNA, SEM VÃO. AF_03/2024 | E184: CANT - CANTEIRO DE OBRAS | F184: m² | G184: =VLOOKUP(C184,'Comp SINAPI PE 06-2025 Onerado'!$B$11:$F$9696,4,FALSE) -> 96.22 | H184: 0.1449 | I184: 13.942278
A185: C | B185: SINAPI | C185: 98446 | D185: =VLOOKUP(C185,'Comp SINAPI PE 06-2025 Onerado'!$B$11:$F$9696,2,FALSE) -> PAREDE DE MADEIRA COMPENSADA PARA CONSTRUÇÃO TEMPORÁRIA EM CHAPA SIMPLES, EXTERNA, COM ÁREA LÍQUIDA MENOR QUE 6 M², COM VÃO. AF_03/2024 | E185: CANT - CANTEIRO DE OBRAS | F185: m² | G185: =VLOOKUP(C185,'Comp SINAPI PE 06-2025 Onerado'!$B$11:$F$9696,4,FALSE) -> 147.59 | H185: 0.1765 | I185: 26.049635
A186: C | B186: SINAPI | C186: 98441 | D186: =VLOOKUP(C186,'Comp SINAPI PE 06-2025 Onerado'!$B$11:$F$9696,2,FALSE) -> PAREDE DE MADEIRA COMPENSADA PARA CONSTRUÇÃO TEMPORÁRIA EM CHAPA SIMPLES, EXTERNA, SEM VÃO. AF_03/2024 | E186: CANT - CANTEIRO DE OBRAS | F186: m² | G186: =VLOOKUP(C186,'Comp SINAPI PE 06-2025 Onerado'!$B$11:$F$9696,4,FALSE) -> 96.22 | H186: 0.1668 | I186: 16.049496
A187: C | B187: SINAPI | C187: 88489 | D187: =VLOOKUP(C187,'Comp SINAPI PE 06-2025 Onerado'!$B$11:$F$9696,2,FALSE) -> PINTURA LÁTEX ACRÍLICA PREMIUM, APLICAÇÃO MANUAL EM PAREDES, DUAS DEMÃOS. AF_04/2023 | E187: PINT - PINTURAS | F187: m² | G187: =VLOOKUP(C187,'Comp SINAPI PE 06-2025 Onerado'!$B$11:$F$9696,4,FALSE) -> 14.93 | H187: 1.4293 | I187: 21.339449
A188: C | B188: SINAPI | C188: 89957 | D188: PONTO DE CONSUMO TERMINAL DE ÁGUA FRIA (SUBRAMAL) COM TUBULAÇÃO DE PVC, DN 25 MM, INSTALADO EM RAMAL DE ÁGUA, INCLUSOS RASGO E CHUMBAMENTO EM ALVENARIA. AF_12/2014 ATUALIZADA | E188: INHI - INSTALAÇÕES HIDROS SANITÁRIAS | F188: UN | G188: =SUM(I189:I194) -> 146.2392 | H188: 0.0537 | I188: 7.85304504
A189: C | B189: SINAPI | C189: 90466 | D189: =VLOOKUP(C189,'Comp SINAPI PE 06-2025 Onerado'!$B$11:$F$9696,2,FALSE) -> CHUMBAMENTO LINEAR EM ALVENARIA PARA RAMAIS/DISTRIBUIÇÃO DE INSTALAÇÕES HIDRÁULICAS COM DIÂMETROS MENORES OU IGUAIS A 40 MM. AF_09/2023 | E189: INHI - INSTALAÇÕES HIDROS SANITÁRIAS | F189: M | G189: =VLOOKUP(C189,'Comp SINAPI PE 06-2025 Onerado'!$B$11:$F$9696,4,FALSE) -> 16.18 | H189: 2.14 | I189: 34.6252
A190: C | B190: SINAPI | C190: 89366 | D190: =VLOOKUP(C190,'Comp SINAPI PE 06-2025 Onerado'!$B$11:$F$9696,2,FALSE) -> JOELHO 90 GRAUS COM BUCHA DE LATÃO, PVC, SOLDÁVEL, DN 25MM, X 3/4 INSTALADO EM RAMAL OU SUB-RAMAL DE ÁGUA - FORNECIMENTO E INSTALAÇÃO. AF_06/2022 | E190: INHI - INSTALAÇÕES HIDROS SANITÁRIAS | F190: UN | G190: =VLOOKUP(C190,'Comp SINAPI PE 06-2025 Onerado'!$B$11:$F$9696,4,FALSE) -> 16.48 | H190: 1 | I190: 16.48
A191: C | B191: SINAPI | C191: 89362 | D191: =VLOOKUP(C191,'Comp SINAPI PE 06-2025 Onerado'!$B$11:$F$9696,2,FALSE) -> JOELHO 90 GRAUS, PVC, SOLDÁVEL, DN 25MM, INSTALADO EM RAMAL OU SUB-RAMAL DE ÁGUA - FORNECIMENTO E INSTALAÇÃO. AF_06/2022 | E191: INHI - INSTALAÇÕES HIDROS SANITÁRIAS | F191: UN | G191: =VLOOKUP(C191,'Comp SINAPI PE 06-2025 Onerado'!$B$11:$F$9696,4,FALSE) -> 9.97 | H191: 1.18 | I191: 11.7646
A192: C | B192: SINAPI | C192: 90443 | D192: =VLOOKUP(C192,'Comp SINAPI PE 06-2025 Onerado'!$B$11:$F$9696,2,FALSE) -> RASGO LINEAR MANUAL EM ALVENARIA, PARA RAMAIS/ DISTRIBUIÇÃO DE INSTALAÇÕES HIDRÁULICAS, DIÂMETROS MENORES OU IGUAIS A 40 MM. AF_09/2023 | E192: INHI - INSTALAÇÕES HIDROS SANITÁRIAS | F192: M | G192: =VLOOKUP(C192,'Comp SINAPI PE 06-2025 Onerado'!$B$11:$F$9696,4,FALSE) -> 8.44 | H192: 2.14 | I192: 18.0616
A193: C | B193: SINAPI | C193: 89395 | D193: =VLOOKUP(C193,'Comp SINAPI PE 06-2025 Onerado'!$B$11:$F$9696,2,FALSE) -> TE, PVC, SOLDÁVEL, DN 25MM, INSTALADO EM RAMAL OU SUB-RAMAL DE ÁGUA - FORNECIMENTO E INSTALAÇÃO. AF_06/2022 | E193: INHI - INSTALAÇÕES HIDROS SANITÁRIAS | F193: UN | G193: =VLOOKUP(C193,'Comp SINAPI PE 06-2025 Onerado'!$B$11:$F$9696,4,FALSE) -> 13.7 | H193: 0.89 | I193: 12.193
A194: C | B194: SINAPI | C194: 89356 | D194: =VLOOKUP(C194,'Comp SINAPI PE 06-2025 Onerado'!$B$11:$F$9696,2,FALSE) -> TUBO, PVC, SOLDÁVEL, DE 25MM, INSTALADO EM RAMAL OU SUB-RAMAL DE ÁGUA - FORNECIMENTO E INSTALAÇÃO. AF_06/2022 | E194: INHI - INSTALAÇÕES HIDROS SANITÁRIAS | F194: M | G194: =VLOOKUP(C194,'Comp SINAPI PE 06-2025 Onerado'!$B$11:$F$9696,4,FALSE) -> 24.82 | H194: 2.14 | I194: 53.1148
A195: C | B195: SINAPI | C195: 90822 | D195: =VLOOKUP(C195,'Comp SINAPI PE 06-2025 Onerado'!$B$11:$F$9696,2,FALSE) -> PORTA DE MADEIRA PARA PINTURA, SEMI-OCA (LEVE OU MÉDIA), 80X210CM, ESPESSURA DE 3,5CM, INCLUSO DOBRADIÇAS - FORNECIMENTO E INSTALAÇÃO. AF_12/2019 | E195: ESQV - ESQUADRIAS/FERRAGENS/VIDROS | F195: UN | G195: =VLOOKUP(C195,'Comp SINAPI PE 06-2025 Onerado'!$B$11:$F$9696,4,FALSE) -> 373.98 | H195: 0.0268 | I195: 10.022664
A196: C | B196: SINAPI | C196: 101876 | D196: =VLOOKUP(C196,'Comp SINAPI PE 06-2025 Onerado'!$B$11:$F$9696,2,FALSE) -> QUADRO DE DISTRIBUIÇÃO DE ENERGIA EM PVC, DE EMBUTIR, SEM BARRAMENTO, PARA 6 DISJUNTORES - FORNECIMENTO E INSTALAÇÃO. AF_10/2020 | E196: INEL - INSTALAÇÃO ELÉTRICA/ELETRIFICAÇÃO E ILUMINAÇÃO EXTERNA | F196: UN | G196: =VLOOKUP(C196,'Comp SINAPI PE 06-2025 Onerado'!$B$11:$F$9696,4,FALSE) -> 107.15 | H196: 0.0268 | I196: 2.87162
A197: C | B197: SINAPI | C197: 93382 | D197: =VLOOKUP(C197,'Comp SINAPI PE 06-2025 Onerado'!$B$11:$F$9696,2,FALSE) -> REATERRO MANUAL DE VALAS, COM COMPACTADOR DE SOLOS DE PERCUSSÃO. AF_08/2023 | E197: MOVT - MOVIMENTO DE TERRA | F197: m³ | G197: =VLOOKUP(C197,'Comp SINAPI PE 06-2025 Onerado'!$B$11:$F$9696,4,FALSE) -> 27.38 | H197: 0.01 | I197: 0.2738
A198: C | B198: SINAPI | C198: 94210 | D198: =VLOOKUP(C198,'Comp SINAPI PE 06-2025 Onerado'!$B$11:$F$9696,2,FALSE) -> TELHAMENTO COM TELHA ONDULADA DE FIBROCIMENTO E = 6 MM, COM RECOBRIMENTO LATERAL DE 1 1/4 DE ONDA PARA TELHADO COM INCLINAÇÃO MÁXIMA DE 10°, COM ATÉ 2 ÁGUAS, INCLUSO IÇAMENTO. AF_07/2019 | E198: COBE - COBERTURA | F198: m² | G198: =VLOOKUP(C198,'Comp SINAPI PE 06-2025 Onerado'!$B$11:$F$9696,4,FALSE) -> 58.95 | H198: 1.451 | I198: 85.53645
A199: C | B199: SINAPI | C199: 92000 | D199: =VLOOKUP(C199,'Comp SINAPI PE 06-2025 Onerado'!$B$11:$F$9696,2,FALSE) -> TOMADA BAIXA DE EMBUTIR (1 MÓDULO), 2P+T 10 A, INCLUINDO SUPORTE E PLACA - FORNECIMENTO E INSTALAÇÃO. AF_03/2023 | E199: INEL - INSTALAÇÃO ELÉTRICA/ELETRIFICAÇÃO E ILUMINAÇÃO EXTERNA | F199: UN | G199: =VLOOKUP(C199,'Comp SINAPI PE 06-2025 Onerado'!$B$11:$F$9696,4,FALSE) -> 32.46 | H199: 0.0268 | I199: 0.869928
A200: C | B200: SINAPI | C200: 92008 | D200: =VLOOKUP(C200,'Comp SINAPI PE 06-2025 Onerado'!$B$11:$F$9696,2,FALSE) -> TOMADA BAIXA DE EMBUTIR (2 MÓDULOS), 2P+T 10 A, INCLUINDO SUPORTE E PLACA - FORNECIMENTO E INSTALAÇÃO. AF_03/2023 | E200: INEL - INSTALAÇÃO ELÉTRICA/ELETRIFICAÇÃO E ILUMINAÇÃO EXTERNA | F200: UN | G200: =VLOOKUP(C200,'Comp SINAPI PE 06-2025 Onerado'!$B$11:$F$9696,4,FALSE) -> 50.02 | H200: 0.1342 | I200: 6.712684
A201: C | B201: SINAPI | C201: 92543 | D201: =VLOOKUP(C201,'Comp SINAPI PE 06-2025 Onerado'!$B$11:$F$9696,2,FALSE) -> TRAMA DE MADEIRA COMPOSTA POR TERÇAS PARA TELHADOS DE ATÉ 2 ÁGUAS PARA TELHA ONDULADA DE FIBROCIMENTO, METÁLICA, PLÁSTICA OU TERMOACÚSTICA, INCLUSO TRANSPORTE VERTICAL. AF_07/2019 | E201: COBE - COBERTURA | F201: m² | G201: =VLOOKUP(C201,'Comp SINAPI PE 06-2025 Onerado'!$B$11:$F$9696,4,FALSE) -> 25.33 | H201: 1.451 | I201: 36.75383
A202: C | B202: SINAPI | C202: 89714 | D202: =VLOOKUP(C202,'Comp SINAPI PE 06-2025 Onerado'!$B$11:$F$9696,2,FALSE) -> TUBO PVC, SERIE NORMAL, ESGOTO PREDIAL, DN 100 MM, FORNECIDO E INSTALADO EM RAMAL DE DESCARGA OU RAMAL DE ESGOTO SANITÁRIO. AF_08/2022 | E202: INHI - INSTALAÇÕES HIDROS SANITÁRIAS | F202: M | G202: =VLOOKUP(C202,'Comp SINAPI PE 06-2025 Onerado'!$B$11:$F$9696,4,FALSE) -> 36.26 | H202: 0.1423 | I202: 5.159798
A203: C | B203: SINAPI | C203: 89711 | D203: =VLOOKUP(C203,'Comp SINAPI PE 06-2025 Onerado'!$B$11:$F$9696,2,FALSE) -> TUBO PVC, SERIE NORMAL, ESGOTO PREDIAL, DN 40 MM, FORNECIDO E INSTALADO EM RAMAL DE DESCARGA OU RAMAL DE ESGOTO SANITÁRIO. AF_08/2022 | E203: INHI - INSTALAÇÕES HIDROS SANITÁRIAS | F203: M | G203: =VLOOKUP(C203,'Comp SINAPI PE 06-2025 Onerado'!$B$11:$F$9696,4,FALSE) -> 21.14 | H203: 0.0886 | I203: 1.873004
A204: I | B204: SINAPI | C204: 10886 | D204: =VLOOKUP(C204,'Ins SINAPI PE 06-2025 Onerado'!$B$11:$F$9696,2,FALSE) -> EXTINTOR DE INCENDIO PORTATIL COM CARGA DE AGUA PRESSURIZADA DE 10 L, CLASSE A | E204: Material | F204: UN | G204: =VLOOKUP(C204,'Ins SINAPI PE 06-2025 Onerado'!$B$11:$F$9696,5,FALSE) -> 245 | H204: 0.0268 | I204: 6.566
A205: I | B205: SINAPI | C205: 10891 | D205: =VLOOKUP(C205,'Ins SINAPI PE 06-2025 Onerado'!$B$11:$F$9696,2,FALSE) -> EXTINTOR DE INCENDIO PORTATIL COM CARGA DE PO QUIMICO SECO (PQS) DE 4 KG, CLASSE BC | E205: Material | F205: UN | G205: =VLOOKUP(C205,'Ins SINAPI PE 06-2025 Onerado'!$B$11:$F$9696,5,FALSE) -> 236.92 | H205: 0.0268 | I205: 6.349456
A206: I | B206: SINAPI | C206: 3080 | D206: =VLOOKUP(C206,'Ins SINAPI PE 06-2025 Onerado'!$B$11:$F$9696,2,FALSE) -> FECHADURA ESPELHO PARA PORTA EXTERNA, EM ACO INOX (MAQUINA, TESTA E CONTRA-TESTA) E EM ZAMAC (MACANETA, LINGUETA E TRINCOS) COM ACABAMENTO CROMADO, MAQUINA DE 40 MM, INCLUINDO CHAVE TIPO CILINDRO | E206: Material | F206: CJ | G206: =VLOOKUP(C206,'Ins SINAPI PE 06-2025 Onerado'!$B$11:$F$9696,5,FALSE) -> 79.39 | H206: 0.0268 | I206: 2.127652
A207: I | B207: SINAPI | C207: 11587 | D207: =VLOOKUP(C207,'Ins SINAPI PE 06-2025 Onerado'!$B$11:$F$9696,2,FALSE) -> FORRO DE PVC LISO, BRANCO, REGUA DE 10 CM, ESPESSURA APROXIMADA DE 8 MM (COM COLOCACAO / SEM ESTRUTURA METALICA) | E207: Material | F207: m² | G207: =VLOOKUP(C207,'Ins SINAPI PE 06-2025 Onerado'!$B$11:$F$9696,5,FALSE) -> 81.72 | H207: 1 | I207: 81.72
A208: I | B208: SINAPI | C208: 37525 | D208: =VLOOKUP(C208,'Ins SINAPI PE 06-2025 Onerado'!$B$11:$F$9696,2,FALSE) -> TELA PLASTICA TECIDA LISTRADA BRANCA E LARANJA, TIPO GUARDA CORPO, EM POLIETILENO MONOFILADO, ROLO 1,20 X 50 M (L X C) | E208: Equipamento | F208: M | G208: =VLOOKUP(C208,'Ins SINAPI PE 06-2025 Onerado'!$B$11:$F$9696,5,FALSE) -> 4.38 | H208: 1.2782 | I208: 5.598516

Sheet CPU HOSPEDAGEM
B2: Engenharia Consultiva da Codevasf
B3: CPU - HOSPEDAGEM EQUIPE DE CAMPO (4 PESSOAS/MÊS) | D3: Código/Referencia
B4: ALUGUEL | C4: 3074.56 | D4: F020003334/EMBASA insumo
B5: Aquisição de Mobiliário | C5: =42.11*C16 -> 168.44 | D5: B8954/DNIT
B6: Material de limpeza e diarista | C6: =131.08+(123*8) -> 1115.08 | D6: 10563/ORSE - E200300131/EMBASA
B7: manutenção da casa alugada - Serviços Gerais/Vigia | C7: 3044.36 | D7: 41096/SINAPI
B8: Energia | C8: 180 | D8: 10555/ORSE
B9: Água | C9: 394.99 | D9: 10554/ORSE
B10: telefone/Internet | C10: =154.99+89 -> 243.99 | D10: 10557/10558/ORSE
B11: IPTU (mês) | C11: =(C4*0.5)/12 -> 128.1066667
B13: Custo Mensal: | C13: =SUM(C4:C12) -> 8349.526667
B14: Custo Mensal por pessoa: | C14: =C13/C16 -> 2087.381667
B15: Custo diário por pessoa: | C15: =C14/22 -> 94.88098485
B16: número de pessoas: | C16: 4
B17: Alimentação: | C17: 100.59 | D17: Tabela Diária Codevasf 2025
B19: Diária Total (alimentação + hospedagem): | C19: =C15+C17 -> 195.4709848

Sheet Memorial de cálculo
A1: Ministério da Integração e do Desenvolvimento Regional
A2: Companhia de desenvolvimento dos Vales do São Francisco e do Parnaíba | I2: Quantitativos por Barragem
A4: MEMORIAL DE CÁLCULO | I4: Jacu | J4: Caiçara | K4: Manoel Rodrigues | L4: Murici | M4: Riacho dos Cavalos | N4: Algodoes | O4: Alto Grande | P4: MÉDIA
A5: OBRA: | B5: =Resumo!B5 -> Execução de manutenção e recuperação nas barragens de Jacu, Caiçara, Algodoes, Manoel Rodrigues, Murici, Riacho dos Cavalos e Alto Grande, localizadas no estado de Pernambuco. | D5: DESLOCAMENTO - Petrolina para Barragem (km): | H5: =P5 -> 194.5714286 | I5: 212 | J5: 139 | K5: 188 | L5: 222 | M5: 219 | N5: 190 | O5: 192 | P5: =AVERAGE(I5:O5) -> 194.5714286
A6: LOCAL: | B6: =Resumo!B6 -> BARRAGENS DE PERNAMBUCO
A7: DATA BASE: | B7: =Resumo!B7 -> 2025-07-01 | D7: VIA URBANA PAVIMENTADA - Petrolina para Barragem (km) | H7: =P7 -> 186.9285714 | I7: =I5-I8 -> 203 | J7: =J5-J8 -> 135 | K7: 183 | L7: 218 | M7: 206 | N7: 183.5 | O7: 180 | P7: =AVERAGE(I7:O7) -> 186.9285714
A8: PRAZO: | B8: =Resumo!B8 -> 270 dias | D8: REVESTIMENTO PRIMÁRIO - Petrolina para Barragem (km) | H8: =P8 -> 7.642857143 | I8: 9 | J8: 4 | K8: 5 | L8: 4 | M8: 13 | N8: 6.5 | O8: 12 | P8: =AVERAGE(I8:O8) -> 7.642857143
A9: ITEM | B9: DESCRIÇÃO | C9: UNID. | D9: PARÂMETRO 1 | E9: PARÂMETRO 2 | F9: PARÂMETRO 3 | G9: PARÂMETRO 4 | H9: TOTAL
A11: =CPU!B10 -> CPU.01 | B11: =VLOOKUP(A11,CPU!$B$10:$G$5105,2,0) -> Administração Local | C11: =VLOOKUP(A11,CPU!$B$10:$G$5105,3,0) -> mês | D11: QUANT.PESSOAS | E11: HORAS DIÁRIA | F11: DIAS TRABALHADOS NO MÊS | G11: MESES | H11: 3
B12: =CPU!C15 -> Engenheiro Civil De Obra Pleno Com Encargos Complementares | C12: h | D12: 1 | E12: 1.5 | F12: =4*5 -> 20 | H12: =D12*E12*F12 -> 30
B13: =CPU!C16 -> Encarregado Geral De Obras Com Encargos Complementares | C13: mês | D13: 1 | G13: 0.8 | H13: =D13*G13 -> 0.8
B14: =CPU!C17 -> VIGIA - AN | C14: h | D14: 4 | E14: 12 | F14: 15 | H14: =D14*E14*F14 -> 720
B15: A escala de trabalho 12x36 para vigias noturnos consiste em trabalhar 12 horas seguidas e folgar 36 horas
A17: =CPU!B19 -> CPU.02 | B17: =VLOOKUP(A17,CPU!$B$10:$G$5105,2,0) -> Mobilização e desmobilização de instalação do canteiro | C17: =VLOOKUP(A17,CPU!$B$10:$G$5105,3,0) -> un | H17: 1
A18: 100946 | B18: =IF(I18="ca",VLOOKUP(A18,'Comp SINAPI PE 06-2025 Onerado'!B:C,2,0),VLOOKUP(A18,'Ins SINAPI PE 06-2025 Onerado'!B:C,2,0)) -> TRANSPORTE COM CAMINHÃO CARROCERIA 9T, EM VIA URBANA EM REVESTIMENTO PRIMÁRIO (UNIDADE: TXKM). AF_07/2020 | C18: =IF(I18="ca",VLOOKUP(A18,'Comp SINAPI PE 06-2025 Onerado'!B:D,3,0),VLOOKUP(A18,'Ins SINAPI PE 06-2025 Onerado'!B:D,3,0)) -> TXKM | H18: =$C$20*$D$20*$E$20 -> 76.42857143 | I18: ca
C19: T | D19: km | E19: N. viagens
C20: 5 | D20: =H8 -> 7.642857143 | E20: 2
A21: 100947 | B21: =IF(I21="ca",VLOOKUP(A21,'Comp SINAPI PE 06-2025 Onerado'!B:C,2,0),VLOOKUP(A21,'Ins SINAPI PE 06-2025 Onerado'!B:C,2,0)) -> TRANSPORTE COM CAMINHÃO CARROCERIA 9T, EM VIA URBANA PAVIMENTADA, DMT ATÉ 30KM (UNIDADE: TXKM). AF_07/2020 | C21: =IF(I21="ca",VLOOKUP(A21,'Comp SINAPI PE 06-2025 Onerado'!B:D,3,0),VLOOKUP(A21,'Ins SINAPI PE 06-2025 Onerado'!B:D,3,0)) -> TXKM | H21: =$C$23*$D$23*$E$23 -> 300 | I21: ca
C22: T | D22: km | E22: N. viagens
C23: 5 | D23: 30 | E23: 2
A24: 100948 | B24: =IF(I24="ca",VLOOKUP(A24,'Comp SINAPI PE 06-2025 Onerado'!B:C,2,0),VLOOKUP(A24,'Ins SINAPI PE 06-2025 Onerado'!B:C,2,0)) -> TRANSPORTE COM CAMINHÃO CARROCERIA 9T, EM VIA URBANA PAVIMENTADA, ADICIONAL PARA DMT EXCEDENTE A 30 KM (UNIDADE: TXKM). AF_07/2020 | C24: =IF(I24="ca",VLOOKUP(A24,'Comp SINAPI PE 06-2025 Onerado'!B:D,3,0),VLOOKUP(A24,'Ins SINAPI PE 06-2025 Onerado'!B:D,3,0)) -> TXKM | H24: =$C$26*$D$26*$E$26 -> 1569.285714 | I24: ca
C25: T | D25: km | E25: N. viagens
C26: 5 | D26: =H5-D23-D20 -> 156.9285714 | E26: 2 | I26: DIAS | J26: DIAS | K26: DIAS | L26: DIAS | M26: DIAS | N26: DIAS | O26: DIAS
A27: QTD | I27: 2 | J27: 2 | K27: 2 | L27: 2 | M27: 2 | N27: 2 | O27: 2
A28: =CPU!B29 -> CPU.03 | B28: =VLOOKUP(A28,CPU!$B$10:$G$5105,2,0) -> Execução de canteiro de obras, inclusive, limpeza, refeitório, sanitários e central de formas | C28: =VLOOKUP(A28,CPU!$B$10:$G$5105,3,0) -> m2 | H28: =SUM(H29:H31) -> 28.5
B29: Área do Refeitório Em Canteiro De Obra | C29: m2 | D29: 1 | E29: 3 | F29: 2.5 | H29: =D29*E29*F29 -> 7.5
B30: Área do Sanitário Em Canteiro De Obra | C30: m2 | D30: 1 | E30: 4.5 | F30: 2 | H30: =D30*E30*F30 -> 9
B31: Área da Central de Fôrmas Em Canteiro De Obra | C31: m2 | D31: 1 | E31: 4 | F31: 3 | H31: =D31*E31*F31 -> 12
B32: Mao de obra | C32: m2 | D32: QUANT.PESSOAS | E32: RENDIMENTO (H/M2) | F32: m2 | G32: HORAS | H32: DIAS | I32: DIAS | J32: DIAS | K32: DIAS | L32: DIAS | M32: DIAS | N32: DIAS | O32: DIAS
A33: QTD | B33: Carpinteiro | C33: h | D33: 2 | E33: =1.1155/D33 -> 0.55775 | F33: 1 | G33: =F33*(E33) -> 0.55775 | H33: =G33/8 -> 0.06971875 | I33: =$H$28*$E$33/8 -> 1.986984375 | J33: 1.986984375 | K33: 1.986984375 | L33: 1.986984375 | M33: 1.986984375 | N33: 1.986984375 | O33: 1.986984375
A35: =CPU!B40 -> CPU.04 | B35: =VLOOKUP(A35,CPU!$B$10:$G$5105,2,0) -> Limpeza de vegetação | C35: =VLOOKUP(A35,CPU!$B$10:$G$5105,3,0) -> m2 | I35: =JACU!F28 -> 18671 | J35: =CAIÇARA!F28 -> 21613 | K35: ='MANOEL RODRIGUES'!F28 -> 7382 | L35: =MURICI!F28 -> 7944 | M35: ='RIACHO DOS CAVALOS'!F28 -> 7203 | N35: =ALGODOES!F28 -> 14527 | O35: ='ALTO GRANDE'!F28 -> 8680
B36: Mao de obra | C36: m2 | D36: QUANT.PESSOAS | E36: RENDIMENTO (H/M2) | F36: m2 | G36: HORAS | H36: DIAS | I36: DIAS | J36: DIAS | K36: DIAS | L36: DIAS | M36: DIAS | N36: DIAS | O36: DIAS | P36: DIAS
A37: QTD | B37: Servente | C37: h | D37: 4 | E37: =20/1000/D37 -> 0.005 | F37: 1 | G37: =F37*(E37) -> 0.005 | H37: =G37/8 -> 0.000625 | I37: =$I$35*$E$37/8 -> 11.669375 | J37: =$J$35*$E$37/8 -> 13.508125 | K37: =$K$35*$E$37/8 -> 4.61375 | L37: =$L$35*$E$37/8 -> 4.965 | M37: =$M$35*$E$37/8 -> 4.501875 | N37: =$N$35*$E$37/8 -> 9.079375 | O37: =$O$35*$E$37/8 -> 5.425
B38: Rendimento 400 m² por dia por servente
A39: =CPU!B50 -> CPU.05 | B39: =VLOOKUP(A39,CPU!$B$10:$G$5105,2,0) -> Corte de tronco e remoção de raiz | C39: =VLOOKUP(A39,CPU!$B$10:$G$5105,3,0) -> un | I39: =JACU!F29 -> 30 | J39: =CAIÇARA!F29 -> 30 | K39: ='MANOEL RODRIGUES'!F29 -> 60 | L39: =MURICI!F29 -> 60 | M39: ='RIACHO DOS CAVALOS'!F29 -> 40 | N39: =ALGODOES!F29 -> 60 | O39: ='ALTO GRANDE'!F29 -> 40
B40: Mão de obra | D40: QUANT.PESSOAS | E40: RENDIMENTO (H/un) | F40: un | G40: HORAS | H40: DIAS | I40: DIAS | J40: DIAS | K40: DIAS | L40: DIAS | M40: DIAS | N40: DIAS | O40: DIAS | P40: DIAS
A41: QTD | B41: Servente | C41: h | D41: 2 | E41: =2.1685/D41 -> 1.08425 | F41: 1 | G41: =F41*(E41) -> 1.08425 | H41: =G41/8 -> 0.13553125 | I41: =I$39*$E$41/8 -> 4.0659375 | J41: =J$39*$E$41/8 -> 4.0659375 | K41: =K$39*$E$41/8 -> 8.131875 | L41: 8.131875 | M41: 5.42125 | N41: 8.131875 | O41: 5.42125
B42: Jardineiro | C42: h | D42: 1 | E42: =1.1535/D42 -> 1.1535 | F42: 1 | G42: =F42*(E42) -> 1.1535 | H42: =G42/8 -> 0.1441875
A44: CPU.06 | B44: =VLOOKUP(A44,CPU!$B$10:$G$5105,2,0) -> Enrocamento c/ pedra de mão c/ fornecimento e assentamento | C44: =VLOOKUP(A44,CPU!$B$10:$G$5105,3,0) -> m3 | I44: =JACU!F47 -> 126 | J44: =CAIÇARA!F47 -> 150 | K44: ='MANOEL RODRIGUES'!F47 -> 23 | L44: =MURICI!F47 -> 21 | M44: ='RIACHO DOS CAVALOS'!F47 -> 33 | N44: =ALGODOES!F49 -> 63 | O44: ='ALTO GRANDE'!F47 -> 80
B45: Mao de obra | D45: QUANT.PESSOAS | E45: RENDIMENTO (H/M3) | F45: m3 | G45: HORAS | H45: DIAS | I45: DIAS | J45: DIAS | K45: DIAS | L45: DIAS | M45: DIAS | N45: DIAS | O45: DIAS | P45: DIAS
A46: QTD | B46: Pedreiro | D46: 1 | E46: =0.2/D46 -> 0.2 | F46: 1 | G46: =F46*(E46) -> 0.2 | H46: =G46/8 -> 0.025 | I46: =I$44*$E$46/8 -> 3.15 | J46: =J$44*$E$46/8 -> 3.75 | K46: 0.575 | L46: 0.525 | M46: 0.825 | N46: 1.575 | O46: 2
B47: Servente | D47: 1 | E47: =0.2/D47 -> 0.2 | F47: 1 | G47: =F47*(E47) -> 0.2 | H47: =G47/8 -> 0.025
A49: =CPU!B78 -> CPU.07 | B49: =VLOOKUP(A49,CPU!$B$10:$G$5105,2,0) -> Canaleta meia cana de concreto (D=30cm) - Fornecimento e instalação | C49: =VLOOKUP(A49,CPU!$B$10:$G$5105,3,0) -> m | I49: =JACU!F51 -> 288 | J49: =CAIÇARA!F51 -> 175 | K49: ='MANOEL RODRIGUES'!F51 -> 108 | L49: =MURICI!F51 -> 120 | M49: ='RIACHO DOS CAVALOS'!F51 -> 156 | N49: =ALGODOES!F53 -> 174 | O49: ='ALTO GRANDE'!F51 -> 120
B50: Mao de obra | D50: QUANT.PESSOAS | E50: RENDIMENTO (H/m) | F50: m | G50: HORAS | H50: DIAS | I50: DIAS | J50: DIAS | K50: DIAS | L50: DIAS | M50: DIAS | N50: DIAS | O50: DIAS | P50: DIAS
A51: QTD | B51: Pedreiro | D51: 1 | E51: =0.2812/D51 -> 0.2812 | F51: 1 | G51: =F51*(E51) -> 0.2812 | H51: =G51/8 -> 0.03515 | I51: =I$49*$E$51/8 -> 10.1232 | J51: =J$49*$E$51/8 -> 6.15125 | K51: 3.7962 | L51: 4.218 | M51: 5.4834 | N51: 6.1161 | O51: 4.218
B52: Servente | D52: 1 | E52: =0.2812/D52 -> 0.2812 | F52: 1 | G52: =F52*(E52) -> 0.2812 | H52: =G52/8 -> 0.03515
A54: =CPU!B92 -> CPU.08 | B54: =VLOOKUP(A54,CPU!$B$10:$G$5105,2,0) -> Entrada para descida d'água | C54: =VLOOKUP(A54,CPU!$B$10:$G$5105,3,0) -> un | I54: =JACU!F53 -> 14.4 | J54: =CAIÇARA!F53 -> 8.75 | K54: ='MANOEL RODRIGUES'!F53 -> 5.4 | L54: =MURICI!F53 -> 6 | M54: ='RIACHO DOS CAVALOS'!F53 -> 7.8 | N54: =ALGODOES!F55 -> 8.7 | O54: ='ALTO GRANDE'!F53 -> 6
B55: Mao de obra | D55: QUANT.PESSOAS | E55: RENDIMENTO (H/m3) | F55: m3 | G55: HORAS | H55: DIAS | I55: DIAS | J55: DIAS | K55: DIAS | L55: DIAS | M55: DIAS | N55: DIAS | O55: DIAS | P55: DIAS
A56: QTD | B56: Servente | D56: 1 | E56: =2.5333/D56 -> 2.5333 | F56: 0.44 | G56: =F56*(E56) -> 1.114652 | H56: =G56/8 -> 0.1393315 | I56: =I$54*$E$56/8 -> 4.55994 | J56: =J$54*$E$56/8 -> 2.770796875 | K56: 1.7099775 | L56: 1.899975 | M56: 2.4699675 | N56: 2.75496375 | O56: =O$54*$E$56/8 -> 1.899975
B57: Operador de betoneira | D57: 1 | E57: =1.6046/D57 -> 1.6046 | F57: 0.44 | G57: =F57*(E57) -> 0.706024 | H57: =G57/8 -> 0.088253
B58: Mao de obra | D58: QUANT.PESSOAS | E58: RENDIMENTO (H/m2) | F58: m2 | G58: HORAS | H58: DIAS | I58: DIAS | J58: DIAS | K58: DIAS | L58: DIAS | M58: DIAS | N58: DIAS | O58: DIAS | P58: DIAS
B59: Ajudante de carpinteiro | D59: 1 | E59: =0.005/D59 -> 0.005 | F59: 4.34 | G59: =F59*(E59) -> 0.0217 | H59: =G59/8 -> 0.0027125 | I59: =I$54*$E$59/8 -> 0.009 | J59: =J$54*$E$59/8 -> 0.00546875 | K59: 0.003375 | L59: 0.00375 | M59: 0.004875 | N59: 0.0054375 | O59: 0.00375
B60: Carpinteiro | D60: 1 | E60: =0.005/D60 -> 0.005 | F60: 4.34 | G60: =F60*(E60) -> 0.0217 | H60: =G60/8 -> 0.0027125
A62: =CPU!B102 -> CPU.09 | B62: =VLOOKUP(A62,CPU!$B$10:$G$5105,2,0) -> Plantio de vegetação para proteção de talude com hidrossemeadura, inclusive adubação e transporte | C62: =VLOOKUP(A62,CPU!$B$10:$G$5105,3,0) -> m2 | I62: =JACU!F57 -> 10324 | J62: =CAIÇARA!F57 -> 7428 | K62: ='MANOEL RODRIGUES'!F57 -> 1444 | L62: =MURICI!F57 -> 2291 | M62: ='RIACHO DOS CAVALOS'!F57 -> 2000 | N62: =ALGODOES!F59 -> 3186 | O62: ='ALTO GRANDE'!F57 -> 3134 | P62: MÉDIA
B63: Mao de obra | D63: QUANT.PESSOAS | E63: RENDIMENTO (H/m2) | F63: m2 | G63: HORAS | H63: DIAS | I63: DIAS | J63: DIAS | K63: DIAS | L63: DIAS | M63: DIAS | N63: DIAS | O63: DIAS | P63: DIAS
A64: QTD | B64: Servente | D64: 3 | E64: =(8/415)/D64 -> 0.006425702811 | F64: 1 | G64: =F64*(E64) -> 0.006425702811 | H64: =G64/8 -> 0.0008032128514 | I64: =I62*$E$64/8 -> 8.292369478 | J64: =J62*$E$64/8 -> 5.96626506 | K64: 1.159839357 | L64: 1.840160643 | M64: 1.606425703 | N64: 2.559036145 | O64: 2.517269076 | P64: =AVERAGE(I64:O64) -> 3.420195066
A66: =CPU!B114 -> CPU.10 | B66: =VLOOKUP(A66,CPU!$B$10:$G$5105,2,0) -> Apicoamento da superfície | C66: =VLOOKUP(A66,CPU!$B$10:$G$5105,3,0) -> m2 | N66: =ALGODOES!F69 -> 450
B67: Mao de obra | D67: QUANT.PESSOAS | E67: RENDIMENTO (H/m2) | F67: m2 | G67: HORAS | H67: DIAS | I67: DIAS | J67: DIAS | K67: DIAS | L67: DIAS | M67: DIAS | N67: DIAS | O67: DIAS | P67: DIAS
B68: PEDREIRO | D68: 1 | E68: =0.1151/D68 -> 0.1151 | F68: 1 | G68: =F68*(E68) -> 0.1151 | H68: =G68/8 -> 0.0143875 | N68: =N66*$E$68/8 -> 6.474375
A69: QTD | B69: SERVENTE | D69: 3 | E69: =0.3872/D69 -> 0.1290666667 | F69: 1 | G69: =F69*(E69) -> 0.1290666667 | H69: =G69/8 -> 0.01613333333 | N69: =N66*$E$69/8 -> 7.26
A71: =CPU!B126 -> CPU.11 | B71: =VLOOKUP(A71,CPU!$B$10:$G$5105,2,0) -> Enrocamento ARCO tipo rachão reciclado cinza classe A jogado com fornecimento | C71: =VLOOKUP(A71,CPU!$B$10:$G$5105,3,0) -> m3 | I71: =JACU!F72 -> 58 | J71: 0 | K71: ='MANOEL RODRIGUES'!F72 -> 27 | L71: 0 | M71: 0 | N71: 0 | O71: 0
B72: Mao de obra | D72: QUANT.PESSOAS | E72: RENDIMENTO (H/m3) | F72: m3 | G72: HORAS | H72: DIAS | I72: DIAS | J72: DIAS | K72: DIAS | L72: DIAS | M72: DIAS | N72: DIAS | O72: DIAS | P72: DIAS
A73: QTD | B73: Pedreiro | D73: 1 | E73: =0.01/D73 -> 0.01 | F73: 1 | G73: =F73*(E73) -> 0.01 | H73: =G73/8 -> 0.00125 | I73: =I71*$E$73/8 -> 0.0725 | J73: =J71*$E$73/8 -> 0 | K73: 0.03375 | L73: 0 | M73: 0 | N73: 0 | O73: 0
B74: Servente | D74: 1 | E74: =0.01/D74 -> 0.01 | F74: 1 | G74: =F74*(E74) -> 0.01 | H74: =G74/8 -> 0.00125
A76: =CPU!B141 -> CPU.12 | B76: =VLOOKUP(A76,CPU!$B$10:$G$5105,2,0) -> Recomposição das erosões, inclusive, regularização da superfície e reaterro | C76: =VLOOKUP(A76,CPU!$B$10:$G$5105,3,0) -> m3 | I76: =JACU!F33 -> 225 | J76: =CAIÇARA!F33 -> 486 | K76: ='MANOEL RODRIGUES'!F33 -> 187 | L76: =MURICI!F33 -> 274 | M76: ='RIACHO DOS CAVALOS'!F33 -> 144 | N76: =ALGODOES!F35 -> 202 | O76: ='ALTO GRANDE'!F33 -> 141 | P76: =AVERAGE(I76:O76) -> 237
B77: Mao de obra | D77: QUANT.PESSOAS | E77: RENDIMENTO (H/M3) | F77: m3 | G77: HORAS | H77: DIAS | I77: DIAS | J77: DIAS | K77: DIAS | L77: DIAS | M77: DIAS | N77: DIAS | O77: DIAS | P77: DIAS
A78: QTD | B78: Servente | D78: 1 | E78: =(0.012+0.0356689)/D78 -> 0.0476689 | F78: 1 | G78: =F78*(E78) -> 0.0476689 | H78: =G78/8 -> 0.0059586125 | I78: =I76*$E$78/8 -> 1.340687812 | J78: =J76*$E$78/8 -> 2.895885675 | K78: 1.114260538 | L78: 1.632659825 | M78: 0.8580402 | N78: 1.203639725 | O78: 0.8401643625
B79: Motorista | D79: 1 | E79: =(0.0228+0.0153+0.004257)/D79 -> 0.042357 | F79: 1 | G79: =F79*(E79) -> 0.042357 | H79: =G79/8 -> 0.005294625
B80: Operador de máquina | D80: 1 | E80: =(0.0096+0.0083+0.0045112+0.0104312)/D80 -> 0.0328424 | F80: 1 | G80: =F80*(E80) -> 0.0328424 | H80: =G80/8 -> 0.0041053
B81: rolo compactador + motoniveladora
A82: =CPU!B159 -> CPU.13 | B82: =VLOOKUP(A82,CPU!$B$10:$G$5105,2,0) -> Regularização e compactação da crista | C82: =VLOOKUP(A82,CPU!$B$10:$G$5105,3,0) -> m2 | I82: =JACU!F39 -> 2123 | J82: =CAIÇARA!F39 -> 2414 | K82: ='MANOEL RODRIGUES'!F39 -> 871 | L82: =MURICI!F39 -> 857 | M82: ='RIACHO DOS CAVALOS'!F39 -> 1114 | N82: =ALGODOES!F41 -> 2104 | O82: ='ALTO GRANDE'!F39 -> 935
B83: Mao de obra | C83: m2 | D83: QUANT.PESSOAS | E83: RENDIMENTO (H/M2) | F83: m2 | G83: HORAS | H83: DIAS | I83: DIAS | J83: DIAS | K83: DIAS | L83: DIAS | M83: DIAS | N83: DIAS | O83: DIAS | P83: DIAS
A84: QTD | B84: Servente | C84: h | D84: 1 | E84: =0.0086152/D84 -> 0.0086152 | F84: 1 | G84: =F84*(E84) -> 0.0086152 | H84: =G84/8 -> 0.0010769 | I84: =I82*$E$84/8 -> 2.2862587 | J84: =J82*$E$84/8 -> 2.5996366 | K84: 0.9379799 | L84: 0.9229033 | M84: 1.1996666 | N84: 2.2657976 | O84: 1.0069015
A86: =CPU!B168 -> CPU.14 | B86: =VLOOKUP(A86,CPU!$B$10:$G$5105,2,0) -> Execução de Revestimento com BGTC | C86: =VLOOKUP(A86,CPU!$B$10:$G$5105,3,0) -> m3 | I86: =JACU!F43 -> 318 | J86: =CAIÇARA!F43 -> 362 | K86: ='MANOEL RODRIGUES'!F43 -> 131 | L86: =MURICI!F43 -> 129 | M86: ='RIACHO DOS CAVALOS'!F43 -> 167 | N86: =ALGODOES!F45 -> 316 | O86: ='ALTO GRANDE'!F43 -> 140
B87: Mao de obra | C87: m3 | D87: QUANT.PESSOAS | E87: RENDIMENTO (H/M3) | F87: m3 | G87: HORAS | H87: DIAS | I87: DIAS | J87: DIAS | K87: DIAS | L87: DIAS | M87: DIAS | N87: DIAS | O87: DIAS | P87: DIAS
A88: QTD | B88: Servente | C88: h | D88: 1 | E88: =0.0365494/D88 -> 0.0365494 | F88: 1 | G88: =F88*(E88) -> 0.0365494 | H88: =G88/8 -> 0.004568675 | I88: =I86*$E$88/8 -> 1.45283865 | J88: =J86*$E$88/8 -> 1.65386035 | K88: 0.598496425 | L88: 0.589359075 | M88: 0.762968725 | N88: 1.4437013 | O88: 0.6396145
A90: =CPU!B181 -> CPU.15 | B90: =VLOOKUP(A90,CPU!$B$10:$G$5105,2,0) -> Régua Linimétrica Padrão “ANA”, Aço Carbono - 2 X 70 X 1000 mm (Fornecimento e Instalação) | C90: =VLOOKUP(A90,CPU!$B$10:$G$5105,3,0) -> un | I90: =JACU!F78 -> 14 | J90: =CAIÇARA!F73 -> 15 | K90: ='MANOEL RODRIGUES'!F78 -> 9 | L90: =MURICI!F79 -> 8 | M90: ='RIACHO DOS CAVALOS'!F74 -> 8 | N90: =ALGODOES!F78 -> 10 | O90: ='ALTO GRANDE'!F63 -> 8
B91: Mao de obra | D91: QUANT.PESSOAS | E91: RENDIMENTO (H/UN) | F91: un | G91: HORAS | H91: DIAS
B92: Topógrafo | D92: 1 | E92: =0.8/D92 -> 0.8 | F92: 1 | G92: =F92*(E92) -> 0.8 | H92: =G92/8 -> 0.1
A93: QTD | B93: Servente | D93: 1 | E93: =1.6/D93 -> 1.6 | F93: 1 | G93: =F93*(E93) -> 1.6 | H93: =G93/8 -> 0.2 | I93: =I90*$E$93/8 -> 2.8 | J93: =J90*$E$93/8 -> 3 | K93: 1.8 | L93: 1.6 | M93: 1.6 | N93: 2 | O93: 1.6
A95: =CPU!B194 -> CPU.16 | B95: =VLOOKUP(A95,CPU!$B$10:$G$5105,2,0) -> Fornecimento e Assentamento de Guia (meio-fio) Pré-fabricado, dimensões 100x15x20 cm (comprimento x base x altura) | C95: =VLOOKUP(A95,CPU!$B$10:$G$5105,3,0) -> m | I95: =JACU!F41 -> 228 | J95: =CAIÇARA!F41 -> 200 | K95: ='MANOEL RODRIGUES'!F41 -> 168 | L95: =MURICI!F41 -> 150 | M95: ='RIACHO DOS CAVALOS'!F41 -> 260 | N95: =ALGODOES!F43 -> 232 | O95: ='ALTO GRANDE'!F41 -> 400
B96: Mao de obra | C96: m | D96: QUANT.PESSOAS | E96: RENDIMENTO (H/M) | F96: m | G96: HORAS | H96: DIAS | I96: DIAS | J96: DIAS | K96: DIAS | L96: DIAS | M96: DIAS | N96: DIAS | O96: DIAS | P96: DIAS
A97: QTD | B97: Servente | C97: h | D97: 2 | E97: =(0.2296)/D97 -> 0.1148 | F97: 1 | G97: =F97*(E97) -> 0.1148 | H97: =G97/8 -> 0.01435 | I97: =I95*$E$97/8 -> 3.2718 | J97: 2.87 | K97: 2.4108 | L97: 2.1525 | M97: 3.731 | N97: 3.3292 | O97: 5.74
B98: Pedreiro | C98: h | D98: 2 | E98: =(0.2296)/D98 -> 0.1148 | F98: 1 | G98: =F98*(E98) -> 0.1148 | H98: =G98/8 -> 0.01435
A100: =CPU!B206 -> CPU.17 | B100: =VLOOKUP(A100,CPU!$B$10:$G$5105,2,0) -> Emboço ou massa única em argamassa | C100: =VLOOKUP(A100,CPU!$B$10:$G$5105,3,0) -> m2 | I100: =JACU!F62+JACU!F68 -> 52.75 | J100: =CAIÇARA!F62+CAIÇARA!F67 -> 14 | K100: ='MANOEL RODRIGUES'!F62+'MANOEL RODRIGUES'!F68 -> 38 | L100: =MURICI!F62+MURICI!F68 -> 78 | M100: ='RIACHO DOS CAVALOS'!F63+'RIACHO DOS CAVALOS'!F68 -> 76 | N100: =ALGODOES!F65 -> 98 | O100: 0
B101: Mao de obra | D101: QUANT.PESSOAS | E101: RENDIMENTO (H/m2) | F101: m2 | G101: HORAS | H101: DIAS
A102: QTD | B102: Servente | D102: 2 | E102: =0.545/D102 -> 0.2725 | F102: 1 | G102: =F102*(E102) -> 0.2725 | H102: =G102/8 -> 0.0340625 | I102: =I100*$E$102/8 -> 1.796796875 | J102: =J100*$E$102/8 -> 0.476875 | K102: 1.294375 | L102: 2.656875 | M102: 2.58875 | N102: 3.338125 | O102: 0
B103: Pedreiro | D103: 2 | E103: =0.545/D103 -> 0.2725 | F103: 1 | G103: =F103*(E103) -> 0.2725 | H103: =G103/8 -> 0.0340625
A105: =CPU!B215 -> CPU.18 | B105: =VLOOKUP(A105,CPU!$B$10:$G$5105,2,0) -> Limpeza da superfície | C105: =VLOOKUP(A105,CPU!$B$10:$G$5105,3,0) -> m2 | I105: =JACU!F61+JACU!F66 -> 52.75 | J105: =CAIÇARA!F61+CAIÇARA!F66 -> 21 | K105: ='MANOEL RODRIGUES'!F61+'MANOEL RODRIGUES'!F66 -> 38 | L105: =MURICI!F61+MURICI!F66 -> 78 | M105: ='RIACHO DOS CAVALOS'!F61+'RIACHO DOS CAVALOS'!F67 -> 76 | N105: =ALGODOES!F63+ALGODOES!F70 -> 548 | O105: 0
B106: Mao de obra | D106: QUANT.PESSOAS | E106: RENDIMENTO (H/m2) | F106: m2 | G106: HORAS | H106: DIAS
A107: QTD | B107: Servente | D107: 2 | E107: =0.089/D107 -> 0.0445 | F107: 1 | G107: =F107*(E107) -> 0.0445 | H107: =G107/8 -> 0.0055625 | I107: =I105*$E$107/8 -> 0.293421875 | J107: =J105*$E$107/8 -> 0.1168125 | K107: 0.211375 | L107: 0.433875 | M107: 0.42275 | N107: 3.04825 | O107: 0
A109: =CPU!B224 -> CPU.19 | B109: =VLOOKUP(A109,CPU!$B$10:$G$5105,2,0) -> Projeto geométrico | C109: =VLOOKUP(A109,CPU!$B$10:$G$5105,3,0) -> un
B110: Mao de obra | D110: QUANT.PESSOAS | E110: RENDIMENTO (H/un) | F110: un | G110: HORAS | H110: DIAS
B111: Engenheiro Civil De Obra Junior Com Encargos Complementares | D111: 1 | E111: =CPU!E229/D111 -> 30 | F111: 1 | G111: =F111*(E111) -> 30 | H111: =G111/8 -> 3.75
B112: Engenheiro Civil De Obra Senior Com Encargos Complementares | D112: 1 | E112: =CPU!E230/D112 -> 20 | F112: 1 | G112: =F112*(E112) -> 20 | H112: =G112/8 -> 2.5
A113: QTD | B113: Desenhista Projetista Com Encargos Complementares | D113: 1 | E113: =CPU!E231/D113 -> 60 | F113: 1 | G113: =F113*(E113) -> 60 | H113: =G113/8 -> 7.5 | I113: =ROUND($H$113,0) -> 8 | J113: =ROUND($H$113,0) -> 8 | K113: =ROUND($H$113,0) -> 8 | L113: 8 | M113: 8 | N113: 8 | O113: 8
A115: =CPU!B233 -> CPU.20 | B115: =VLOOKUP(A115,CPU!$B$10:$G$5105,2,0) -> Injeção de nata de cimento em buracos | C115: =VLOOKUP(A115,CPU!$B$10:$G$5105,3,0) -> m3 | I115: 0.5 | J115: 0.5 | K115: 0.5 | L115: 0.5 | M115: 0.5 | N115: 0.5 | O115: 0.5
B116: Mao de obra | D116: QUANT.PESSOAS | E116: RENDIMENTO (H/m3) | F116: m3 | G116: HORAS | H116: DIAS
